Workbook

Sheet Conceptual Points
B2: Problems with Calculation of LLCR
B4: Changing Interest rates - use the compound interest rate
B6: Different Debt issues - Use forward debt IRR with function

Sheet Debt Scenarios
D2: Code Number | E2: 1 | J2: LLCR @ COD | K2: =Model!E99 -> 1.76595431
G5: First Issue | M5: Second Issue
D6: Dates | E6: Tenor 1 | F6: Tenor 2 | G6: 2016-01-01 | H6: 2019-03-01 | I6: 2021-03-01 | J6: 2023-03-01 | K6: 2025-03-01 | L6: 2027-03-01 | M6: 2016-01-01 | N6: 2019-03-01 | O6: 2021-03-01 | P6: 2023-03-01 | Q6: 2025-03-01 | R6: 2027-03-01
D7: Equal Interest Rates | E7: 15 | F7: 15 | G7: 0.02 | H7: 0.02 | I7: 0.02 | J7: 0.02 | K7: 0.02 | L7: 0.02 | M7: 0.02 | N7: 0.02 | O7: 0.02 | P7: 0.02 | Q7: 0.02 | R7: 0.02
D8: Equal Increasing Rates | E8: 15 | F8: 15 | G8: 0.005 | H8: =G8+1% -> 0.015 | I8: =H8+1% -> 0.025 | J8: 0.035 | K8: 0.045 | L8: 0.055 | M8: 0.005 | N8: =M8+1% -> 0.015 | O8: =N8+1% -> 0.025 | P8: 0.035 | Q8: 0.045 | R8: 0.055
D9: Different Constant | E9: 15 | F9: 15 | G9: 0.04 | H9: 0.04 | I9: 0.04 | J9: 0.04 | K9: 0.04 | L9: 0.04 | M9: 0.07 | N9: 0.07 | O9: 0.07 | P9: 0.07 | Q9: 0.07 | R9: 0.07
D10: Different Increasing | E10: 15 | F10: 15 | G10: 0.005 | H10: =G10+1% -> 0.015 | I10: 0.025 | J10: 0.035 | K10: 0.045 | L10: 0.055 | M10: 0.01 | N10: =M10+1.5% -> 0.025 | O10: =N10+1.5% -> 0.04 | P10: 0.055 | Q10: 0.07 | R10: 0.085
D11: Different Tenors | E11: 15 | F11: 20 | G11: 0.005 | H11: =G11+1% -> 0.015 | I11: 0.025 | J11: 0.035 | K11: 0.045 | L11: 0.055 | M11: 0.01 | N11: =M11+1.5% -> 0.025 | O11: 0.04 | P11: 0.055 | Q11: 0.07 | R11: 0.085
D13: =INDEX(D7:D11,$E$2) -> Equal Interest Rates | E13: =INDEX(E7:E11,$E$2) -> 15 | F13: =INDEX(F7:F11,$E$2) -> 15 | G13: 0.02 | H13: 0.02 | I13: 0.02 | J13: 0.02 | K13: 0.02 | L13: 0.02 | M13: 0.02 | N13: 0.02 | O13: 0.02 | P13: 0.02 | Q13: 0.02 | R13: 0.02
N17: PCT reduction to BE
N18: DSCR-1/DSCR
N20: LLCR-1/LLCR

Sheet Model
A1: Timing
B2: Period | G2: EBITDA | H2: =F27 -> 890 | J2: 1 | K2: 2 | L2: 3 | M2: 4 | N2: 5 | O2: 6 | P2: 7 | Q2: 8 | R2: 9 | S2: 10 | T2: 11 | U2: 12 | V2: 13 | W2: 14 | X2: 15 | Y2: 16 | Z2: 17 | AA2: 18 | AB2: 19 | AC2: 20 | AD2: 21 | AE2: 22 | AF2: 23 | AG2: 24 | AH2: 25 | AI2: 26 | AJ2: 27 | AK2: 28 | AL2: 29 | AM2: 30 | AN2: 31 | AO2: 32 | AP2: 33 | AQ2: 34 | AR2: 35 | AS2: 36 | AT2: 37 | AU2: 38 | AV2: 39 | AW2: 40 | AX2: 41 | AY2: 42 | AZ2: 43 | BA2: 44 | BB2: 45 | BC2: 46 | BD2: 47 | BE2: 48 | BF2: 49 | BG2: 50 | BH2: 51 | BI2: 52 | BJ2: 53 | BK2: 54 | BL2: 55 | BM2: 56 | BN2: 57 | BO2: 58 | BP2: 59 | BQ2: 60 | BR2: 61 | BS2: 62 | BT2: 63 | BU2: 64 | BV2: 65 | BW2: 66 | BX2: 67 | BY2: 68 | BZ2: 69 | CA2: 70 | CB2: 71 | CC2: 72 | CD2: 73 | CE2: 74 | CF2: 75 | CG2: 76 | CH2: 77 | CI2: 78 | CJ2: 79 | CK2: 80 | CL2: 81 | CM2: 82 | CN2: 83 | CO2: 84 | CP2: 85 | CQ2: 86 | CR2: 87 | CS2: 88 | CT2: 89 | CU2: 90 | CV2: 91 | CW2: 92 | CX2: 93 | CY2: 94 | CZ2: 95 | DA2: 96 | DB2: 97 | DC2: 98 | DD2: 99 | DE2: 100 | DF2: 101 | DG2: 102 | DH2: 103 | DI2: 104 | DJ2: 105 | DK2: 106 | DL2: 107 | DM2: 108 | DN2: 109 | DO2: 110 | DP2: 111 | DQ2: 112 | DR2: 113 | DS2: 114 | DT2: 115 | DU2: 116 | DV2: 117 | DW2: 118 | DX2: 119 | DY2: 120 | DZ2: 121 | EA2: 122 | EB2: 123 | EC2: 124 | ED2: 125 | EE2: 126 | EF2: 127 | EG2: 128 | EH2: 129 | EI2: 130 | EJ2: 131 | EK2: 132 | EL2: 133 | EM2: 134 | EN2: 135 | EO2: 136 | EP2: 137 | EQ2: 138 | ER2: 139 | ES2: 140 | ET2: 141 | EU2: 142 | EV2: 143 | EW2: 144 | EX2: 145 | EY2: 146 | EZ2: 147 | FA2: 148 | FB2: 149 | FC2: 150 | FD2: 151 | FE2: 152 | FF2: 153 | FG2: 154 | FH2: 155 | FI2: 156 | FJ2: 157 | FK2: 158 | FL2: 159 | FM2: 160 | FN2: 161 | FO2: 162 | FP2: 163 | FQ2: 164 | FR2: 165 | FS2: 166 | FT2: 167 | FU2: 168 | FV2: 169 | FW2: 170 | FX2: 171 | FY2: 172 | FZ2: 173 | GA2: 174 | GB2: 175 | GC2: 176 | GD2: 177 | GE2: 178 | GF2: 179 | GG2: 180 | GH2: 181 | GI2: 182 | GJ2: 183 | GK2: 184 | GL2: 185 | GM2: 186 | GN2: 187 | GO2: 188 | GP2: 189 | GQ2: 190 | GR2: 191 | GS2: 192 | GT2: 193 | GU2: 194 | GV2: 195 | GW2: 196 | GX2: 197 | GY2: 198 | GZ2: 199 | HA2: 200
G3: Growth | H3: =F28 -> 0.03
G5: LLCR 1 | H5: =AV153 -> 1.765954302
G6: LLCR 2 | H6: =AV154 -> 1.765954302
B10: Pre-Cod | H10: =F18 -> 38 | J10: =J2<=$H$10 -> TRUE | K10: =K2<=$H$10 -> TRUE | L10: =L2<=$H$10 -> TRUE | M10: =M2<=$H$10 -> TRUE | N10: =N2<=$H$10 -> TRUE | O10: =O2<=$H$10 -> TRUE | P10: =P2<=$H$10 -> TRUE | Q10: =Q2<=$H$10 -> TRUE | R10: =R2<=$H$10 -> TRUE | S10: =S2<=$H$10 -> TRUE | T10: =T2<=$H$10 -> TRUE | U10: =U2<=$H$10 -> TRUE | V10: =V2<=$H$10 -> TRUE | W10: =W2<=$H$10 -> TRUE | X10: =X2<=$H$10 -> TRUE | Y10: =Y2<=$H$10 -> TRUE | Z10: =Z2<=$H$10 -> TRUE | AA10: =AA2<=$H$10 -> TRUE | AB10: =AB2<=$H$10 -> TRUE | AC10: =AC2<=$H$10 -> TRUE | AD10: =AD2<=$H$10 -> TRUE | AE10: =AE2<=$H$10 -> TRUE | AF10: =AF2<=$H$10 -> TRUE | AG10: =AG2<=$H$10 -> TRUE | AH10: =AH2<=$H$10 -> TRUE | AI10: =AI2<=$H$10 -> TRUE | AJ10: =AJ2<=$H$10 -> TRUE | AK10: =AK2<=$H$10 -> TRUE | AL10: =AL2<=$H$10 -> TRUE | AM10: =AM2<=$H$10 -> TRUE | AN10: =AN2<=$H$10 -> TRUE | AO10: =AO2<=$H$10 -> TRUE | AP10: =AP2<=$H$10 -> TRUE | AQ10: =AQ2<=$H$10 -> TRUE | AR10: =AR2<=$H$10 -> TRUE | AS10: =AS2<=$H$10 -> TRUE | AT10: =AT2<=$H$10 -> TRUE | AU10: =AU2<=$H$10 -> TRUE | AV10: =AV2<=$H$10 -> FALSE | AW10: =AW2<=$H$10 -> FALSE | AX10: =AX2<=$H$10 -> FALSE | AY10: =AY2<=$H$10 -> FALSE | AZ10: =AZ2<=$H$10 -> FALSE | BA10: =BA2<=$H$10 -> FALSE | BB10: =BB2<=$H$10 -> FALSE | BC10: =BC2<=$H$10 -> FALSE | BD10: =BD2<=$H$10 -> FALSE | BE10: =BE2<=$H$10 -> FALSE | BF10: =BF2<=$H$10 -> FALSE | BG10: =BG2<=$H$10 -> FALSE | BH10: =BH2<=$H$10 -> FALSE | BI10: =BI2<=$H$10 -> FALSE | BJ10: =BJ2<=$H$10 -> FALSE | BK10: =BK2<=$H$10 -> FALSE | BL10: =BL2<=$H$10 -> FALSE | BM10: =BM2<=$H$10 -> FALSE | BN10: =BN2<=$H$10 -> FALSE | BO10: =BO2<=$H$10 -> FALSE | BP10: =BP2<=$H$10 -> FALSE | BQ10: =BQ2<=$H$10 -> FALSE | BR10: =BR2<=$H$10 -> FALSE | BS10: =BS2<=$H$10 -> FALSE | BT10: =BT2<=$H$10 -> FALSE | BU10: =BU2<=$H$10 -> FALSE | BV10: =BV2<=$H$10 -> FALSE | BW10: =BW2<=$H$10 -> FALSE | BX10: =BX2<=$H$10 -> FALSE | BY10: =BY2<=$H$10 -> FALSE | BZ10: =BZ2<=$H$10 -> FALSE | CA10: =CA2<=$H$10 -> FALSE | CB10: =CB2<=$H$10 -> FALSE | CC10: =CC2<=$H$10 -> FALSE | CD10: =CD2<=$H$10 -> FALSE | CE10: =CE2<=$H$10 -> FALSE | CF10: =CF2<=$H$10 -> FALSE | CG10: =CG2<=$H$10 -> FALSE | CH10: =CH2<=$H$10 -> FALSE | CI10: =CI2<=$H$10 -> FALSE | CJ10: =CJ2<=$H$10 -> FALSE | CK10: =CK2<=$H$10 -> FALSE | CL10: =CL2<=$H$10 -> FALSE | CM10: =CM2<=$H$10 -> FALSE | CN10: =CN2<=$H$10 -> FALSE | CO10: =CO2<=$H$10 -> FALSE | CP10: =CP2<=$H$10 -> FALSE | CQ10: =CQ2<=$H$10 -> FALSE | CR10: =CR2<=$H$10 -> FALSE | CS10: =CS2<=$H$10 -> FALSE | CT10: =CT2<=$H$10 -> FALSE | CU10: =CU2<=$H$10 -> FALSE | CV10: =CV2<=$H$10 -> FALSE | CW10: =CW2<=$H$10 -> FALSE | CX10: =CX2<=$H$10 -> FALSE | CY10: =CY2<=$H$10 -> FALSE | CZ10: =CZ2<=$H$10 -> FALSE | DA10: =DA2<=$H$10 -> FALSE | DB10: =DB2<=$H$10 -> FALSE | DC10: =DC2<=$H$10 -> FALSE | DD10: =DD2<=$H$10 -> FALSE | DE10: =DE2<=$H$10 -> FALSE | DF10: =DF2<=$H$10 -> FALSE | DG10: =DG2<=$H$10 -> FALSE | DH10: =DH2<=$H$10 -> FALSE | DI10: =DI2<=$H$10 -> FALSE | DJ10: =DJ2<=$H$10 -> FALSE | DK10: =DK2<=$H$10 -> FALSE | DL10: =DL2<=$H$10 -> FALSE | DM10: =DM2<=$H$10 -> FALSE | DN10: =DN2<=$H$10 -> FALSE | DO10: =DO2<=$H$10 -> FALSE | DP10: =DP2<=$H$10 -> FALSE | DQ10: =DQ2<=$H$10 -> FALSE | DR10: =DR2<=$H$10 -> FALSE | DS10: =DS2<=$H$10 -> FALSE | DT10: =DT2<=$H$10 -> FALSE | DU10: =DU2<=$H$10 -> FALSE | DV10: =DV2<=$H$10 -> FALSE | DW10: =DW2<=$H$10 -> FALSE | DX10: =DX2<=$H$10 -> FALSE | DY10: =DY2<=$H$10 -> FALSE | DZ10: =DZ2<=$H$10 -> FALSE | EA10: =EA2<=$H$10 -> FALSE | EB10: =EB2<=$H$10 -> FALSE | EC10: =EC2<=$H$10 -> FALSE | ED10: =ED2<=$H$10 -> FALSE | EE10: =EE2<=$H$10 -> FALSE | EF10: =EF2<=$H$10 -> FALSE | EG10: =EG2<=$H$10 -> FALSE | EH10: =EH2<=$H$10 -> FALSE | EI10: =EI2<=$H$10 -> FALSE | EJ10: =EJ2<=$H$10 -> FALSE | EK10: =EK2<=$H$10 -> FALSE | EL10: =EL2<=$H$10 -> FALSE | EM10: =EM2<=$H$10 -> FALSE | EN10: =EN2<=$H$10 -> FALSE | EO10: =EO2<=$H$10 -> FALSE | EP10: =EP2<=$H$10 -> FALSE | EQ10: =EQ2<=$H$10 -> FALSE | ER10: =ER2<=$H$10 -> FALSE | ES10: =ES2<=$H$10 -> FALSE | ET10: =ET2<=$H$10 -> FALSE | EU10: =EU2<=$H$10 -> FALSE | EV10: =EV2<=$H$10 -> FALSE | EW10: =EW2<=$H$10 -> FALSE | EX10: =EX2<=$H$10 -> FALSE | EY10: =EY2<=$H$10 -> FALSE | EZ10: =EZ2<=$H$10 -> FALSE | FA10: =FA2<=$H$10 -> FALSE | FB10: =FB2<=$H$10 -> FALSE | FC10: =FC2<=$H$10 -> FALSE | FD10: =FD2<=$H$10 -> FALSE | FE10: =FE2<=$H$10 -> FALSE | FF10: =FF2<=$H$10 -> FALSE | FG10: =FG2<=$H$10 -> FALSE | FH10: =FH2<=$H$10 -> FALSE | FI10: =FI2<=$H$10 -> FALSE | FJ10: =FJ2<=$H$10 -> FALSE | FK10: =FK2<=$H$10 -> FALSE | FL10: =FL2<=$H$10 -> FALSE | FM10: =FM2<=$H$10 -> FALSE | FN10: =FN2<=$H$10 -> FALSE | FO10: =FO2<=$H$10 -> FALSE | FP10: =FP2<=$H$10 -> FALSE | FQ10: =FQ2<=$H$10 -> FALSE | FR10: =FR2<=$H$10 -> FALSE | FS10: =FS2<=$H$10 -> FALSE | FT10: =FT2<=$H$10 -> FALSE | FU10: =FU2<=$H$10 -> FALSE | FV10: =FV2<=$H$10 -> FALSE | FW10: =FW2<=$H$10 -> FALSE | FX10: =FX2<=$H$10 -> FALSE | FY10: =FY2<=$H$10 -> FALSE | FZ10: =FZ2<=$H$10 -> FALSE | GA10: =GA2<=$H$10 -> FALSE | GB10: =GB2<=$H$10 -> FALSE | GC10: =GC2<=$H$10 -> FALSE | GD10: =GD2<=$H$10 -> FALSE | GE10: =GE2<=$H$10 -> FALSE | GF10: =GF2<=$H$10 -> FALSE | GG10: =GG2<=$H$10 -> FALSE | GH10: =GH2<=$H$10 -> FALSE | GI10: =GI2<=$H$10 -> FALSE | GJ10: =GJ2<=$H$10 -> FALSE | GK10: =GK2<=$H$10 -> FALSE | GL10: =GL2<=$H$10 -> FALSE | GM10: =GM2<=$H$10 -> FALSE | GN10: =GN2<=$H$10 -> FALSE | GO10: =GO2<=$H$10 -> FALSE | GP10: =GP2<=$H$10 -> FALSE | GQ10: =GQ2<=$H$10 -> FALSE | GR10: =GR2<=$H$10 -> FALSE | GS10: =GS2<=$H$10 -> FALSE | GT10: =GT2<=$H$10 -> FALSE | GU10: =GU2<=$H$10 -> FALSE | GV10: =GV2<=$H$10 -> FALSE | GW10: =GW2<=$H$10 -> FALSE | GX10: =GX2<=$H$10 -> FALSE | GY10: =GY2<=$H$10 -> FALSE | GZ10: =GZ2<=$H$10 -> FALSE | HA10: =HA2<=$H$10 -> FALSE
B11: Operating Switch | F11: =F19 -> 2019-03-01 | G11: =F21 -> 2039-03-01 | J11: =AND(J13>=$F$11,J13<$G$11) -> FALSE | K11: =AND(K13>=$F$11,K13<$G$11) -> FALSE | L11: =AND(L13>=$F$11,L13<$G$11) -> FALSE | M11: =AND(M13>=$F$11,M13<$G$11) -> FALSE | N11: =AND(N13>=$F$11,N13<$G$11) -> FALSE | O11: =AND(O13>=$F$11,O13<$G$11) -> FALSE | P11: =AND(P13>=$F$11,P13<$G$11) -> FALSE | Q11: =AND(Q13>=$F$11,Q13<$G$11) -> FALSE | R11: =AND(R13>=$F$11,R13<$G$11) -> FALSE | S11: =AND(S13>=$F$11,S13<$G$11) -> FALSE | T11: =AND(T13>=$F$11,T13<$G$11) -> FALSE | U11: =AND(U13>=$F$11,U13<$G$11) -> FALSE | V11: =AND(V13>=$F$11,V13<$G$11) -> FALSE | W11: =AND(W13>=$F$11,W13<$G$11) -> FALSE | X11: =AND(X13>=$F$11,X13<$G$11) -> FALSE | Y11: =AND(Y13>=$F$11,Y13<$G$11) -> FALSE | Z11: =AND(Z13>=$F$11,Z13<$G$11) -> FALSE | AA11: =AND(AA13>=$F$11,AA13<$G$11) -> FALSE | AB11: =AND(AB13>=$F$11,AB13<$G$11) -> FALSE | AC11: =AND(AC13>=$F$11,AC13<$G$11) -> FALSE | AD11: =AND(AD13>=$F$11,AD13<$G$11) -> FALSE | AE11: =AND(AE13>=$F$11,AE13<$G$11) -> FALSE | AF11: =AND(AF13>=$F$11,AF13<$G$11) -> FALSE | AG11: =AND(AG13>=$F$11,AG13<$G$11) -> FALSE | AH11: =AND(AH13>=$F$11,AH13<$G$11) -> FALSE | AI11: =AND(AI13>=$F$11,AI13<$G$11) -> FALSE | AJ11: =AND(AJ13>=$F$11,AJ13<$G$11) -> FALSE | AK11: =AND(AK13>=$F$11,AK13<$G$11) -> FALSE | AL11: =AND(AL13>=$F$11,AL13<$G$11) -> FALSE | AM11: =AND(AM13>=$F$11,AM13<$G$11) -> FALSE | AN11: =AND(AN13>=$F$11,AN13<$G$11) -> FALSE | AO11: =AND(AO13>=$F$11,AO13<$G$11) -> FALSE | AP11: =AND(AP13>=$F$11,AP13<$G$11) -> FALSE | AQ11: =AND(AQ13>=$F$11,AQ13<$G$11) -> FALSE | AR11: =AND(AR13>=$F$11,AR13<$G$11) -> FALSE | AS11: =AND(AS13>=$F$11,AS13<$G$11) -> FALSE | AT11: =AND(AT13>=$F$11,AT13<$G$11) -> FALSE | AU11: =AND(AU13>=$F$11,AU13<$G$11) -> FALSE | AV11: =AND(AV13>=$F$11,AV13<$G$11) -> TRUE | AW11: =AND(AW13>=$F$11,AW13<$G$11) -> TRUE | AX11: =AND(AX13>=$F$11,AX13<$G$11) -> TRUE | AY11: =AND(AY13>=$F$11,AY13<$G$11) -> TRUE | AZ11: =AND(AZ13>=$F$11,AZ13<$G$11) -> TRUE | BA11: =AND(BA13>=$F$11,BA13<$G$11) -> TRUE | BB11: =AND(BB13>=$F$11,BB13<$G$11) -> TRUE | BC11: =AND(BC13>=$F$11,BC13<$G$11) -> TRUE | BD11: =AND(BD13>=$F$11,BD13<$G$11) -> TRUE | BE11: =AND(BE13>=$F$11,BE13<$G$11) -> TRUE | BF11: =AND(BF13>=$F$11,BF13<$G$11) -> TRUE | BG11: =AND(BG13>=$F$11,BG13<$G$11) -> TRUE | BH11: =AND(BH13>=$F$11,BH13<$G$11) -> TRUE | BI11: =AND(BI13>=$F$11,BI13<$G$11) -> TRUE | BJ11: =AND(BJ13>=$F$11,BJ13<$G$11) -> TRUE | BK11: =AND(BK13>=$F$11,BK13<$G$11) -> TRUE | BL11: =AND(BL13>=$F$11,BL13<$G$11) -> TRUE | BM11: =AND(BM13>=$F$11,BM13<$G$11) -> TRUE | BN11: =AND(BN13>=$F$11,BN13<$G$11) -> TRUE | BO11: =AND(BO13>=$F$11,BO13<$G$11) -> TRUE | BP11: =AND(BP13>=$F$11,BP13<$G$11) -> TRUE | BQ11: =AND(BQ13>=$F$11,BQ13<$G$11) -> TRUE | BR11: =AND(BR13>=$F$11,BR13<$G$11) -> TRUE | BS11: =AND(BS13>=$F$11,BS13<$G$11) -> TRUE | BT11: =AND(BT13>=$F$11,BT13<$G$11) -> TRUE | BU11: =AND(BU13>=$F$11,BU13<$G$11) -> TRUE | BV11: =AND(BV13>=$F$11,BV13<$G$11) -> TRUE | BW11: =AND(BW13>=$F$11,BW13<$G$11) -> TRUE | BX11: =AND(BX13>=$F$11,BX13<$G$11) -> TRUE | BY11: =AND(BY13>=$F$11,BY13<$G$11) -> TRUE | BZ11: =AND(BZ13>=$F$11,BZ13<$G$11) -> TRUE | CA11: =AND(CA13>=$F$11,CA13<$G$11) -> TRUE | CB11: =AND(CB13>=$F$11,CB13<$G$11) -> TRUE | CC11: =AND(CC13>=$F$11,CC13<$G$11) -> TRUE | CD11: =AND(CD13>=$F$11,CD13<$G$11) -> TRUE | CE11: =AND(CE13>=$F$11,CE13<$G$11) -> TRUE | CF11: =AND(CF13>=$F$11,CF13<$G$11) -> TRUE | CG11: =AND(CG13>=$F$11,CG13<$G$11) -> TRUE | CH11: =AND(CH13>=$F$11,CH13<$G$11) -> TRUE | CI11: =AND(CI13>=$F$11,CI13<$G$11) -> TRUE | CJ11: =AND(CJ13>=$F$11,CJ13<$G$11) -> FALSE | CK11: =AND(CK13>=$F$11,CK13<$G$11) -> FALSE | CL11: =AND(CL13>=$F$11,CL13<$G$11) -> FALSE | CM11: =AND(CM13>=$F$11,CM13<$G$11) -> FALSE | CN11: =AND(CN13>=$F$11,CN13<$G$11) -> FALSE | CO11: =AND(CO13>=$F$11,CO13<$G$11) -> FALSE | CP11: =AND(CP13>=$F$11,CP13<$G$11) -> FALSE | CQ11: =AND(CQ13>=$F$11,CQ13<$G$11) -> FALSE | CR11: =AND(CR13>=$F$11,CR13<$G$11) -> FALSE | CS11: =AND(CS13>=$F$11,CS13<$G$11) -> FALSE | CT11: =AND(CT13>=$F$11,CT13<$G$11) -> FALSE | CU11: =AND(CU13>=$F$11,CU13<$G$11) -> FALSE | CV11: =AND(CV13>=$F$11,CV13<$G$11) -> FALSE | CW11: =AND(CW13>=$F$11,CW13<$G$11) -> FALSE | CX11: =AND(CX13>=$F$11,CX13<$G$11) -> FALSE | CY11: =AND(CY13>=$F$11,CY13<$G$11) -> FALSE | CZ11: =AND(CZ13>=$F$11,CZ13<$G$11) -> FALSE | DA11: =AND(DA13>=$F$11,DA13<$G$11) -> FALSE | DB11: =AND(DB13>=$F$11,DB13<$G$11) -> FALSE | DC11: =AND(DC13>=$F$11,DC13<$G$11) -> FALSE | DD11: =AND(DD13>=$F$11,DD13<$G$11) -> FALSE | DE11: =AND(DE13>=$F$11,DE13<$G$11) -> FALSE | DF11: =AND(DF13>=$F$11,DF13<$G$11) -> FALSE | DG11: =AND(DG13>=$F$11,DG13<$G$11) -> FALSE | DH11: =AND(DH13>=$F$11,DH13<$G$11) -> FALSE | DI11: =AND(DI13>=$F$11,DI13<$G$11) -> FALSE | DJ11: =AND(DJ13>=$F$11,DJ13<$G$11) -> FALSE | DK11: =AND(DK13>=$F$11,DK13<$G$11) -> FALSE | DL11: =AND(DL13>=$F$11,DL13<$G$11) -> FALSE | DM11: =AND(DM13>=$F$11,DM13<$G$11) -> FALSE | DN11: =AND(DN13>=$F$11,DN13<$G$11) -> FALSE | DO11: =AND(DO13>=$F$11,DO13<$G$11) -> FALSE | DP11: =AND(DP13>=$F$11,DP13<$G$11) -> FALSE | DQ11: =AND(DQ13>=$F$11,DQ13<$G$11) -> FALSE | DR11: =AND(DR13>=$F$11,DR13<$G$11) -> FALSE | DS11: =AND(DS13>=$F$11,DS13<$G$11) -> FALSE | DT11: =AND(DT13>=$F$11,DT13<$G$11) -> FALSE | DU11: =AND(DU13>=$F$11,DU13<$G$11) -> FALSE | DV11: =AND(DV13>=$F$11,DV13<$G$11) -> FALSE | DW11: =AND(DW13>=$F$11,DW13<$G$11) -> FALSE | DX11: =AND(DX13>=$F$11,DX13<$G$11) -> FALSE | DY11: =AND(DY13>=$F$11,DY13<$G$11) -> FALSE | DZ11: =AND(DZ13>=$F$11,DZ13<$G$11) -> FALSE | EA11: =AND(EA13>=$F$11,EA13<$G$11) -> FALSE | EB11: =AND(EB13>=$F$11,EB13<$G$11) -> FALSE | EC11: =AND(EC13>=$F$11,EC13<$G$11) -> FALSE | ED11: =AND(ED13>=$F$11,ED13<$G$11) -> FALSE | EE11: =AND(EE13>=$F$11,EE13<$G$11) -> FALSE | EF11: =AND(EF13>=$F$11,EF13<$G$11) -> FALSE | EG11: =AND(EG13>=$F$11,EG13<$G$11) -> FALSE | EH11: =AND(EH13>=$F$11,EH13<$G$11) -> FALSE | EI11: =AND(EI13>=$F$11,EI13<$G$11) -> FALSE | EJ11: =AND(EJ13>=$F$11,EJ13<$G$11) -> FALSE | EK11: =AND(EK13>=$F$11,EK13<$G$11) -> FALSE | EL11: =AND(EL13>=$F$11,EL13<$G$11) -> FALSE | EM11: =AND(EM13>=$F$11,EM13<$G$11) -> FALSE | EN11: =AND(EN13>=$F$11,EN13<$G$11) -> FALSE | EO11: =AND(EO13>=$F$11,EO13<$G$11) -> FALSE | EP11: =AND(EP13>=$F$11,EP13<$G$11) -> FALSE | EQ11: =AND(EQ13>=$F$11,EQ13<$G$11) -> FALSE | ER11: =AND(ER13>=$F$11,ER13<$G$11) -> FALSE | ES11: =AND(ES13>=$F$11,ES13<$G$11) -> FALSE | ET11: =AND(ET13>=$F$11,ET13<$G$11) -> FALSE | EU11: =AND(EU13>=$F$11,EU13<$G$11) -> FALSE | EV11: =AND(EV13>=$F$11,EV13<$G$11) -> FALSE | EW11: =AND(EW13>=$F$11,EW13<$G$11) -> FALSE | EX11: =AND(EX13>=$F$11,EX13<$G$11) -> FALSE | EY11: =AND(EY13>=$F$11,EY13<$G$11) -> FALSE | EZ11: =AND(EZ13>=$F$11,EZ13<$G$11) -> FALSE | FA11: =AND(FA13>=$F$11,FA13<$G$11) -> FALSE | FB11: =AND(FB13>=$F$11,FB13<$G$11) -> FALSE | FC11: =AND(FC13>=$F$11,FC13<$G$11) -> FALSE | FD11: =AND(FD13>=$F$11,FD13<$G$11) -> FALSE | FE11: =AND(FE13>=$F$11,FE13<$G$11) -> FALSE | FF11: =AND(FF13>=$F$11,FF13<$G$11) -> FALSE | FG11: =AND(FG13>=$F$11,FG13<$G$11) -> FALSE | FH11: =AND(FH13>=$F$11,FH13<$G$11) -> FALSE | FI11: =AND(FI13>=$F$11,FI13<$G$11) -> FALSE | FJ11: =AND(FJ13>=$F$11,FJ13<$G$11) -> FALSE | FK11: =AND(FK13>=$F$11,FK13<$G$11) -> FALSE | FL11: =AND(FL13>=$F$11,FL13<$G$11) -> FALSE | FM11: =AND(FM13>=$F$11,FM13<$G$11) -> FALSE | FN11: =AND(FN13>=$F$11,FN13<$G$11) -> FALSE | FO11: =AND(FO13>=$F$11,FO13<$G$11) -> FALSE | FP11: =AND(FP13>=$F$11,FP13<$G$11) -> FALSE | FQ11: =AND(FQ13>=$F$11,FQ13<$G$11) -> FALSE | FR11: =AND(FR13>=$F$11,FR13<$G$11) -> FALSE | FS11: =AND(FS13>=$F$11,FS13<$G$11) -> FALSE | FT11: =AND(FT13>=$F$11,FT13<$G$11) -> FALSE | FU11: =AND(FU13>=$F$11,FU13<$G$11) -> FALSE | FV11: =AND(FV13>=$F$11,FV13<$G$11) -> FALSE | FW11: =AND(FW13>=$F$11,FW13<$G$11) -> FALSE | FX11: =AND(FX13>=$F$11,FX13<$G$11) -> FALSE | FY11: =AND(FY13>=$F$11,FY13<$G$11) -> FALSE | FZ11: =AND(FZ13>=$F$11,FZ13<$G$11) -> FALSE | GA11: =AND(GA13>=$F$11,GA13<$G$11) -> FALSE | GB11: =AND(GB13>=$F$11,GB13<$G$11) -> FALSE | GC11: =AND(GC13>=$F$11,GC13<$G$11) -> FALSE | GD11: =AND(GD13>=$F$11,GD13<$G$11) -> FALSE | GE11: =AND(GE13>=$F$11,GE13<$G$11) -> FALSE | GF11: =AND(GF13>=$F$11,GF13<$G$11) -> FALSE | GG11: =AND(GG13>=$F$11,GG13<$G$11) -> FALSE | GH11: =AND(GH13>=$F$11,GH13<$G$11) -> FALSE | GI11: =AND(GI13>=$F$11,GI13<$G$11) -> FALSE | GJ11: =AND(GJ13>=$F$11,GJ13<$G$11) -> FALSE | GK11: =AND(GK13>=$F$11,GK13<$G$11) -> FALSE | GL11: =AND(GL13>=$F$11,GL13<$G$11) -> FALSE | GM11: =AND(GM13>=$F$11,GM13<$G$11) -> FALSE | GN11: =AND(GN13>=$F$11,GN13<$G$11) -> FALSE | GO11: =AND(GO13>=$F$11,GO13<$G$11) -> FALSE | GP11: =AND(GP13>=$F$11,GP13<$G$11) -> FALSE | GQ11: =AND(GQ13>=$F$11,GQ13<$G$11) -> FALSE | GR11: =AND(GR13>=$F$11,GR13<$G$11) -> FALSE | GS11: =AND(GS13>=$F$11,GS13<$G$11) -> FALSE | GT11: =AND(GT13>=$F$11,GT13<$G$11) -> FALSE | GU11: =AND(GU13>=$F$11,GU13<$G$11) -> FALSE | GV11: =AND(GV13>=$F$11,GV13<$G$11) -> FALSE | GW11: =AND(GW13>=$F$11,GW13<$G$11) -> FALSE | GX11: =AND(GX13>=$F$11,GX13<$G$11) -> FALSE | GY11: =AND(GY13>=$F$11,GY13<$G$11) -> FALSE | GZ11: =AND(GZ13>=$F$11,GZ13<$G$11) -> FALSE | HA11: =AND(HA13>=$F$11,HA13<$G$11) -> FALSE
B12: Months in Period | H12: =G18 -> 1 | I12: =G20 -> 6 | J12: =IF(J10,$H$12,$I$12) -> 1 | K12: =IF(K10,$H$12,$I$12) -> 1 | L12: =IF(L10,$H$12,$I$12) -> 1 | M12: =IF(M10,$H$12,$I$12) -> 1 | N12: =IF(N10,$H$12,$I$12) -> 1 | O12: =IF(O10,$H$12,$I$12) -> 1 | P12: =IF(P10,$H$12,$I$12) -> 1 | Q12: =IF(Q10,$H$12,$I$12) -> 1 | R12: =IF(R10,$H$12,$I$12) -> 1 | S12: =IF(S10,$H$12,$I$12) -> 1 | T12: =IF(T10,$H$12,$I$12) -> 1 | U12: =IF(U10,$H$12,$I$12) -> 1 | V12: =IF(V10,$H$12,$I$12) -> 1 | W12: =IF(W10,$H$12,$I$12) -> 1 | X12: =IF(X10,$H$12,$I$12) -> 1 | Y12: =IF(Y10,$H$12,$I$12) -> 1 | Z12: =IF(Z10,$H$12,$I$12) -> 1 | AA12: =IF(AA10,$H$12,$I$12) -> 1 | AB12: =IF(AB10,$H$12,$I$12) -> 1 | AC12: =IF(AC10,$H$12,$I$12) -> 1 | AD12: =IF(AD10,$H$12,$I$12) -> 1 | AE12: =IF(AE10,$H$12,$I$12) -> 1 | AF12: =IF(AF10,$H$12,$I$12) -> 1 | AG12: =IF(AG10,$H$12,$I$12) -> 1 | AH12: =IF(AH10,$H$12,$I$12) -> 1 | AI12: =IF(AI10,$H$12,$I$12) -> 1 | AJ12: =IF(AJ10,$H$12,$I$12) -> 1 | AK12: =IF(AK10,$H$12,$I$12) -> 1 | AL12: =IF(AL10,$H$12,$I$12) -> 1 | AM12: =IF(AM10,$H$12,$I$12) -> 1 | AN12: =IF(AN10,$H$12,$I$12) -> 1 | AO12: =IF(AO10,$H$12,$I$12) -> 1 | AP12: =IF(AP10,$H$12,$I$12) -> 1 | AQ12: =IF(AQ10,$H$12,$I$12) -> 1 | AR12: =IF(AR10,$H$12,$I$12) -> 1 | AS12: =IF(AS10,$H$12,$I$12) -> 1 | AT12: =IF(AT10,$H$12,$I$12) -> 1 | AU12: =IF(AU10,$H$12,$I$12) -> 1 | AV12: =IF(AV10,$H$12,$I$12) -> 6 | AW12: =IF(AW10,$H$12,$I$12) -> 6 | AX12: =IF(AX10,$H$12,$I$12) -> 6 | AY12: =IF(AY10,$H$12,$I$12) -> 6 | AZ12: =IF(AZ10,$H$12,$I$12) -> 6 | BA12: =IF(BA10,$H$12,$I$12) -> 6 | BB12: =IF(BB10,$H$12,$I$12) -> 6 | BC12: =IF(BC10,$H$12,$I$12) -> 6 | BD12: =IF(BD10,$H$12,$I$12) -> 6 | BE12: =IF(BE10,$H$12,$I$12) -> 6 | BF12: =IF(BF10,$H$12,$I$12) -> 6 | BG12: =IF(BG10,$H$12,$I$12) -> 6 | BH12: =IF(BH10,$H$12,$I$12) -> 6 | BI12: =IF(BI10,$H$12,$I$12) -> 6 | BJ12: =IF(BJ10,$H$12,$I$12) -> 6 | BK12: =IF(BK10,$H$12,$I$12) -> 6 | BL12: =IF(BL10,$H$12,$I$12) -> 6 | BM12: =IF(BM10,$H$12,$I$12) -> 6 | BN12: =IF(BN10,$H$12,$I$12) -> 6 | BO12: =IF(BO10,$H$12,$I$12) -> 6 | BP12: =IF(BP10,$H$12,$I$12) -> 6 | BQ12: =IF(BQ10,$H$12,$I$12) -> 6 | BR12: =IF(BR10,$H$12,$I$12) -> 6 | BS12: =IF(BS10,$H$12,$I$12) -> 6 | BT12: =IF(BT10,$H$12,$I$12) -> 6 | BU12: =IF(BU10,$H$12,$I$12) -> 6 | BV12: =IF(BV10,$H$12,$I$12) -> 6 | BW12: =IF(BW10,$H$12,$I$12) -> 6 | BX12: =IF(BX10,$H$12,$I$12) -> 6 | BY12: =IF(BY10,$H$12,$I$12) -> 6 | BZ12: =IF(BZ10,$H$12,$I$12) -> 6 | CA12: =IF(CA10,$H$12,$I$12) -> 6 | CB12: =IF(CB10,$H$12,$I$12) -> 6 | CC12: =IF(CC10,$H$12,$I$12) -> 6 | CD12: =IF(CD10,$H$12,$I$12) -> 6 | CE12: =IF(CE10,$H$12,$I$12) -> 6 | CF12: =IF(CF10,$H$12,$I$12) -> 6 | CG12: =IF(CG10,$H$12,$I$12) -> 6 | CH12: =IF(CH10,$H$12,$I$12) -> 6 | CI12: =IF(CI10,$H$12,$I$12) -> 6 | CJ12: =IF(CJ10,$H$12,$I$12) -> 6 | CK12: =IF(CK10,$H$12,$I$12) -> 6 | CL12: =IF(CL10,$H$12,$I$12) -> 6 | CM12: =IF(CM10,$H$12,$I$12) -> 6 | CN12: =IF(CN10,$H$12,$I$12) -> 6 | CO12: =IF(CO10,$H$12,$I$12) -> 6 | CP12: =IF(CP10,$H$12,$I$12) -> 6 | CQ12: =IF(CQ10,$H$12,$I$12) -> 6 | CR12: =IF(CR10,$H$12,$I$12) -> 6 | CS12: =IF(CS10,$H$12,$I$12) -> 6 | CT12: =IF(CT10,$H$12,$I$12) -> 6 | CU12: =IF(CU10,$H$12,$I$12) -> 6 | CV12: =IF(CV10,$H$12,$I$12) -> 6 | CW12: =IF(CW10,$H$12,$I$12) -> 6 | CX12: =IF(CX10,$H$12,$I$12) -> 6 | CY12: =IF(CY10,$H$12,$I$12) -> 6 | CZ12: =IF(CZ10,$H$12,$I$12) -> 6 | DA12: =IF(DA10,$H$12,$I$12) -> 6 | DB12: =IF(DB10,$H$12,$I$12) -> 6 | DC12: =IF(DC10,$H$12,$I$12) -> 6 | DD12: =IF(DD10,$H$12,$I$12) -> 6 | DE12: =IF(DE10,$H$12,$I$12) -> 6 | DF12: =IF(DF10,$H$12,$I$12) -> 6 | DG12: =IF(DG10,$H$12,$I$12) -> 6 | DH12: =IF(DH10,$H$12,$I$12) -> 6 | DI12: =IF(DI10,$H$12,$I$12) -> 6 | DJ12: =IF(DJ10,$H$12,$I$12) -> 6 | DK12: =IF(DK10,$H$12,$I$12) -> 6 | DL12: =IF(DL10,$H$12,$I$12) -> 6 | DM12: =IF(DM10,$H$12,$I$12) -> 6 | DN12: =IF(DN10,$H$12,$I$12) -> 6 | DO12: =IF(DO10,$H$12,$I$12) -> 6 | DP12: =IF(DP10,$H$12,$I$12) -> 6 | DQ12: =IF(DQ10,$H$12,$I$12) -> 6 | DR12: =IF(DR10,$H$12,$I$12) -> 6 | DS12: =IF(DS10,$H$12,$I$12) -> 6 | DT12: =IF(DT10,$H$12,$I$12) -> 6 | DU12: =IF(DU10,$H$12,$I$12) -> 6 | DV12: =IF(DV10,$H$12,$I$12) -> 6 | DW12: =IF(DW10,$H$12,$I$12) -> 6 | DX12: =IF(DX10,$H$12,$I$12) -> 6 | DY12: =IF(DY10,$H$12,$I$12) -> 6 | DZ12: =IF(DZ10,$H$12,$I$12) -> 6 | EA12: =IF(EA10,$H$12,$I$12) -> 6 | EB12: =IF(EB10,$H$12,$I$12) -> 6 | EC12: =IF(EC10,$H$12,$I$12) -> 6 | ED12: =IF(ED10,$H$12,$I$12) -> 6 | EE12: =IF(EE10,$H$12,$I$12) -> 6 | EF12: =IF(EF10,$H$12,$I$12) -> 6 | EG12: =IF(EG10,$H$12,$I$12) -> 6 | EH12: =IF(EH10,$H$12,$I$12) -> 6 | EI12: =IF(EI10,$H$12,$I$12) -> 6 | EJ12: =IF(EJ10,$H$12,$I$12) -> 6 | EK12: =IF(EK10,$H$12,$I$12) -> 6 | EL12: =IF(EL10,$H$12,$I$12) -> 6 | EM12: =IF(EM10,$H$12,$I$12) -> 6 | EN12: =IF(EN10,$H$12,$I$12) -> 6 | EO12: =IF(EO10,$H$12,$I$12) -> 6 | EP12: =IF(EP10,$H$12,$I$12) -> 6 | EQ12: =IF(EQ10,$H$12,$I$12) -> 6 | ER12: =IF(ER10,$H$12,$I$12) -> 6 | ES12: =IF(ES10,$H$12,$I$12) -> 6 | ET12: =IF(ET10,$H$12,$I$12) -> 6 | EU12: =IF(EU10,$H$12,$I$12) -> 6 | EV12: =IF(EV10,$H$12,$I$12) -> 6 | EW12: =IF(EW10,$H$12,$I$12) -> 6 | EX12: =IF(EX10,$H$12,$I$12) -> 6 | EY12: =IF(EY10,$H$12,$I$12) -> 6 | EZ12: =IF(EZ10,$H$12,$I$12) -> 6 | FA12: =IF(FA10,$H$12,$I$12) -> 6 | FB12: =IF(FB10,$H$12,$I$12) -> 6 | FC12: =IF(FC10,$H$12,$I$12) -> 6 | FD12: =IF(FD10,$H$12,$I$12) -> 6 | FE12: =IF(FE10,$H$12,$I$12) -> 6 | FF12: =IF(FF10,$H$12,$I$12) -> 6 | FG12: =IF(FG10,$H$12,$I$12) -> 6 | FH12: =IF(FH10,$H$12,$I$12) -> 6 | FI12: =IF(FI10,$H$12,$I$12) -> 6 | FJ12: =IF(FJ10,$H$12,$I$12) -> 6 | FK12: =IF(FK10,$H$12,$I$12) -> 6 | FL12: =IF(FL10,$H$12,$I$12) -> 6 | FM12: =IF(FM10,$H$12,$I$12) -> 6 | FN12: =IF(FN10,$H$12,$I$12) -> 6 | FO12: =IF(FO10,$H$12,$I$12) -> 6 | FP12: =IF(FP10,$H$12,$I$12) -> 6 | FQ12: =IF(FQ10,$H$12,$I$12) -> 6 | FR12: =IF(FR10,$H$12,$I$12) -> 6 | FS12: =IF(FS10,$H$12,$I$12) -> 6 | FT12: =IF(FT10,$H$12,$I$12) -> 6 | FU12: =IF(FU10,$H$12,$I$12) -> 6 | FV12: =IF(FV10,$H$12,$I$12) -> 6 | FW12: =IF(FW10,$H$12,$I$12) -> 6 | FX12: =IF(FX10,$H$12,$I$12) -> 6 | FY12: =IF(FY10,$H$12,$I$12) -> 6 | FZ12: =IF(FZ10,$H$12,$I$12) -> 6 | GA12: =IF(GA10,$H$12,$I$12) -> 6 | GB12: =IF(GB10,$H$12,$I$12) -> 6 | GC12: =IF(GC10,$H$12,$I$12) -> 6 | GD12: =IF(GD10,$H$12,$I$12) -> 6 | GE12: =IF(GE10,$H$12,$I$12) -> 6 | GF12: =IF(GF10,$H$12,$I$12) -> 6 | GG12: =IF(GG10,$H$12,$I$12) -> 6 | GH12: =IF(GH10,$H$12,$I$12) -> 6 | GI12: =IF(GI10,$H$12,$I$12) -> 6 | GJ12: =IF(GJ10,$H$12,$I$12) -> 6 | GK12: =IF(GK10,$H$12,$I$12) -> 6 | GL12: =IF(GL10,$H$12,$I$12) -> 6 | GM12: =IF(GM10,$H$12,$I$12) -> 6 | GN12: =IF(GN10,$H$12,$I$12) -> 6 | GO12: =IF(GO10,$H$12,$I$12) -> 6 | GP12: =IF(GP10,$H$12,$I$12) -> 6 | GQ12: =IF(GQ10,$H$12,$I$12) -> 6 | GR12: =IF(GR10,$H$12,$I$12) -> 6 | GS12: =IF(GS10,$H$12,$I$12) -> 6 | GT12: =IF(GT10,$H$12,$I$12) -> 6 | GU12: =IF(GU10,$H$12,$I$12) -> 6 | GV12: =IF(GV10,$H$12,$I$12) -> 6 | GW12: =IF(GW10,$H$12,$I$12) -> 6 | GX12: =IF(GX10,$H$12,$I$12) -> 6 | GY12: =IF(GY10,$H$12,$I$12) -> 6 | GZ12: =IF(GZ10,$H$12,$I$12) -> 6 | HA12: =IF(HA10,$H$12,$I$12) -> 6
B13: Start of Period | J13: =I14+1 -> 2016-01-01 | K13: =J14+1 -> 2016-02-01 | L13: 2016-03-01 | M13: 2016-04-01 | N13: 2016-05-01 | O13: 2016-06-01 | P13: 2016-07-01 | Q13: 2016-08-01 | R13: 2016-09-01 | S13: 2016-10-01 | T13: 2016-11-01 | U13: 2016-12-01 | V13: 2017-01-01 | W13: 2017-02-01 | X13: 2017-03-01 | Y13: 2017-04-01 | Z13: 2017-05-01 | AA13: 2017-06-01 | AB13: 2017-07-01 | AC13: 2017-08-01 | AD13: 2017-09-01 | AE13: 2017-10-01 | AF13: 2017-11-01 | AG13: 2017-12-01 | AH13: 2018-01-01 | AI13: 2018-02-01 | AJ13: 2018-03-01 | AK13: 2018-04-01 | AL13: 2018-05-01 | AM13: 2018-06-01 | AN13: 2018-07-01 | AO13: 2018-08-01 | AP13: 2018-09-01 | AQ13: 2018-10-01 | AR13: 2018-11-01 | AS13: 2018-12-01 | AT13: 2019-01-01 | AU13: 2019-02-01 | AV13: 2019-03-01 | AW13: 2019-09-01 | AX13: 2020-03-01 | AY13: 2020-09-01 | AZ13: 2021-03-01 | BA13: 2021-09-01 | BB13: 2022-03-01 | BC13: 2022-09-01 | BD13: 2023-03-01 | BE13: 2023-09-01 | BF13: 2024-03-01 | BG13: 2024-09-01 | BH13: 2025-03-01 | BI13: 2025-09-01 | BJ13: 2026-03-01 | BK13: 2026-09-01 | BL13: 2027-03-01 | BM13: 2027-09-01 | BN13: 2028-03-01 | BO13: 2028-09-01 | BP13: 2029-03-01 | BQ13: 2029-09-01 | BR13: 2030-03-01 | BS13: 2030-09-01 | BT13: 2031-03-01 | BU13: 2031-09-01 | BV13: 2032-03-01 | BW13: =BV14+1 -> 2032-09-01 | BX13: 2033-03-01 | BY13: 2033-09-01 | BZ13: 2034-03-01 | CA13: 2034-09-01 | CB13: 2035-03-01 | CC13: 2035-09-01 | CD13: 2036-03-01 | CE13: 2036-09-01 | CF13: 2037-03-01 | CG13: 2037-09-01 | CH13: 2038-03-01 | CI13: 2038-09-01 | CJ13: 2039-03-01 | CK13: 2039-09-01 | CL13: 2040-03-01 | CM13: 2040-09-01 | CN13: 2041-03-01 | CO13: 2041-09-01 | CP13: 2042-03-01 | CQ13: 2042-09-01 | CR13: 2043-03-01 | CS13: 2043-09-01 | CT13: 2044-03-01 | CU13: 2044-09-01 | CV13: 2045-03-01 | CW13: 2045-09-01 | CX13: 2046-03-01 | CY13: 2046-09-01 | CZ13: 2047-03-01 | DA13: 2047-09-01 | DB13: 2048-03-01 | DC13: 2048-09-01 | DD13: 2049-03-01 | DE13: 2049-09-01 | DF13: 2050-03-01 | DG13: 2050-09-01 | DH13: 2051-03-01 | DI13: 2051-09-01 | DJ13: 2052-03-01 | DK13: 2052-09-01 | DL13: 2053-03-01 | DM13: 2053-09-01 | DN13: 2054-03-01 | DO13: 2054-09-01 | DP13: 2055-03-01 | DQ13: 2055-09-01 | DR13: 2056-03-01 | DS13: 2056-09-01 | DT13: 2057-03-01 | DU13: 2057-09-01 | DV13: 2058-03-01 | DW13: 2058-09-01 | DX13: 2059-03-01 | DY13: 2059-09-01 | DZ13: 2060-03-01 | EA13: 2060-09-01 | EB13: 2061-03-01 | EC13: 2061-09-01 | ED13: 2062-03-01 | EE13: 2062-09-01 | EF13: 2063-03-01 | EG13: 2063-09-01 | EH13: 2064-03-01 | EI13: =EH14+1 -> 2064-09-01 | EJ13: 2065-03-01 | EK13: 2065-09-01 | EL13: 2066-03-01 | EM13: 2066-09-01 | EN13: 2067-03-01 | EO13: 2067-09-01 | EP13: 2068-03-01 | EQ13: 2068-09-01 | ER13: 2069-03-01 | ES13: 2069-09-01 | ET13: 2070-03-01 | EU13: 2070-09-01 | EV13: 2071-03-01 | EW13: 2071-09-01 | EX13: 2072-03-01 | EY13: 2072-09-01 | EZ13: 2073-03-01 | FA13: 2073-09-01 | FB13: 2074-03-01 | FC13: 2074-09-01 | FD13: 2075-03-01 | FE13: 2075-09-01 | FF13: 2076-03-01 | FG13: 2076-09-01 | FH13: 2077-03-01 | FI13: 2077-09-01 | FJ13: 2078-03-01 | FK13: 2078-09-01 | FL13: 2079-03-01 | FM13: 2079-09-01 | FN13: 2080-03-01 | FO13: 2080-09-01 | FP13: 2081-03-01 | FQ13: 2081-09-01 | FR13: 2082-03-01 | FS13: 2082-09-01 | FT13: 2083-03-01 | FU13: 2083-09-01 | FV13: 2084-03-01 | FW13: 2084-09-01 | FX13: 2085-03-01 | FY13: 2085-09-01 | FZ13: 2086-03-01 | GA13: 2086-09-01 | GB13: 2087-03-01 | GC13: 2087-09-01 | GD13: 2088-03-01 | GE13: 2088-09-01 | GF13: 2089-03-01 | GG13: 2089-09-01 | GH13: 2090-03-01 | GI13: 2090-09-01 | GJ13: 2091-03-01 | GK13: 2091-09-01 | GL13: 2092-03-01 | GM13: 2092-09-01 | GN13: 2093-03-01 | GO13: 2093-09-01 | GP13: 2094-03-01 | GQ13: 2094-09-01 | GR13: 2095-03-01 | GS13: 2095-09-01 | GT13: 2096-03-01 | GU13: =GT14+1 -> 2096-09-01 | GV13: 2097-03-01 | GW13: 2097-09-01 | GX13: 2098-03-01 | GY13: 2098-09-01 | GZ13: 2099-03-01 | HA13: 2099-09-01
B14: End of Period | I14: =F17-1 -> 2015-12-31 | J14: =EOMONTH(J13,J12-1) -> 2016-01-31 | K14: =EOMONTH(K13,K12-1) -> 2016-02-29 | L14: 2016-03-31 | M14: 2016-04-30 | N14: 2016-05-31 | O14: 2016-06-30 | P14: 2016-07-31 | Q14: 2016-08-31 | R14: 2016-09-30 | S14: 2016-10-31 | T14: 2016-11-30 | U14: 2016-12-31 | V14: 2017-01-31 | W14: 2017-02-28 | X14: 2017-03-31 | Y14: 2017-04-30 | Z14: 2017-05-31 | AA14: 2017-06-30 | AB14: 2017-07-31 | AC14: 2017-08-31 | AD14: 2017-09-30 | AE14: 2017-10-31 | AF14: 2017-11-30 | AG14: 2017-12-31 | AH14: 2018-01-31 | AI14: 2018-02-28 | AJ14: 2018-03-31 | AK14: 2018-04-30 | AL14: 2018-05-31 | AM14: 2018-06-30 | AN14: 2018-07-31 | AO14: 2018-08-31 | AP14: 2018-09-30 | AQ14: 2018-10-31 | AR14: 2018-11-30 | AS14: 2018-12-31 | AT14: 2019-01-31 | AU14: 2019-02-28 | AV14: 2019-08-31 | AW14: 2020-02-29 | AX14: 2020-08-31 | AY14: 2021-02-28 | AZ14: 2021-08-31 | BA14: 2022-02-28 | BB14: 2022-08-31 | BC14: 2023-02-28 | BD14: 2023-08-31 | BE14: 2024-02-29 | BF14: 2024-08-31 | BG14: 2025-02-28 | BH14: 2025-08-31 | BI14: 2026-02-28 | BJ14: 2026-08-31 | BK14: 2027-02-28 | BL14: 2027-08-31 | BM14: 2028-02-29 | BN14: 2028-08-31 | BO14: 2029-02-28 | BP14: 2029-08-31 | BQ14: 2030-02-28 | BR14: 2030-08-31 | BS14: 2031-02-28 | BT14: 2031-08-31 | BU14: 2032-02-29 | BV14: 2032-08-31 | BW14: =EOMONTH(BW13,BW12-1) -> 2033-02-28 | BX14: 2033-08-31 | BY14: 2034-02-28 | BZ14: 2034-08-31 | CA14: 2035-02-28 | CB14: 2035-08-31 | CC14: 2036-02-29 | CD14: 2036-08-31 | CE14: 2037-02-28 | CF14: 2037-08-31 | CG14: 2038-02-28 | CH14: 2038-08-31 | CI14: 2039-02-28 | CJ14: 2039-08-31 | CK14: 2040-02-29 | CL14: 2040-08-31 | CM14: 2041-02-28 | CN14: 2041-08-31 | CO14: 2042-02-28 | CP14: 2042-08-31 | CQ14: 2043-02-28 | CR14: 2043-08-31 | CS14: 2044-02-29 | CT14: 2044-08-31 | CU14: 2045-02-28 | CV14: 2045-08-31 | CW14: 2046-02-28 | CX14: 2046-08-31 | CY14: 2047-02-28 | CZ14: 2047-08-31 | DA14: 2048-02-29 | DB14: 2048-08-31 | DC14: 2049-02-28 | DD14: 2049-08-31 | DE14: 2050-02-28 | DF14: 2050-08-31 | DG14: 2051-02-28 | DH14: 2051-08-31 | DI14: 2052-02-29 | DJ14: 2052-08-31 | DK14: 2053-02-28 | DL14: 2053-08-31 | DM14: 2054-02-28 | DN14: 2054-08-31 | DO14: 2055-02-28 | DP14: 2055-08-31 | DQ14: 2056-02-29 | DR14: 2056-08-31 | DS14: 2057-02-28 | DT14: 2057-08-31 | DU14: 2058-02-28 | DV14: 2058-08-31 | DW14: 2059-02-28 | DX14: 2059-08-31 | DY14: 2060-02-29 | DZ14: 2060-08-31 | EA14: 2061-02-28 | EB14: 2061-08-31 | EC14: 2062-02-28 | ED14: 2062-08-31 | EE14: 2063-02-28 | EF14: 2063-08-31 | EG14: 2064-02-29 | EH14: 2064-08-31 | EI14: =EOMONTH(EI13,EI12-1) -> 2065-02-28 | EJ14: 2065-08-31 | EK14: 2066-02-28 | EL14: 2066-08-31 | EM14: 2067-02-28 | EN14: 2067-08-31 | EO14: 2068-02-29 | EP14: 2068-08-31 | EQ14: 2069-02-28 | ER14: 2069-08-31 | ES14: 2070-02-28 | ET14: 2070-08-31 | EU14: 2071-02-28 | EV14: 2071-08-31 | EW14: 2072-02-29 | EX14: 2072-08-31 | EY14: 2073-02-28 | EZ14: 2073-08-31 | FA14: 2074-02-28 | FB14: 2074-08-31 | FC14: 2075-02-28 | FD14: 2075-08-31 | FE14: 2076-02-29 | FF14: 2076-08-31 | FG14: 2077-02-28 | FH14: 2077-08-31 | FI14: 2078-02-28 | FJ14: 2078-08-31 | FK14: 2079-02-28 | FL14: 2079-08-31 | FM14: 2080-02-29 | FN14: 2080-08-31 | FO14: 2081-02-28 | FP14: 2081-08-31 | FQ14: 2082-02-28 | FR14: 2082-08-31 | FS14: 2083-02-28 | FT14: 2083-08-31 | FU14: 2084-02-29 | FV14: 2084-08-31 | FW14: 2085-02-28 | FX14: 2085-08-31 | FY14: 2086-02-28 | FZ14: 2086-08-31 | GA14: 2087-02-28 | GB14: 2087-08-31 | GC14: 2088-02-29 | GD14: 2088-08-31 | GE14: 2089-02-28 | GF14: 2089-08-31 | GG14: 2090-02-28 | GH14: 2090-08-31 | GI14: 2091-02-28 | GJ14: 2091-08-31 | GK14: 2092-02-29 | GL14: 2092-08-31 | GM14: 2093-02-28 | GN14: 2093-08-31 | GO14: 2094-02-28 | GP14: 2094-08-31 | GQ14: 2095-02-28 | GR14: 2095-08-31 | GS14: 2096-02-29 | GT14: 2096-08-31 | GU14: =EOMONTH(GU13,GU12-1) -> 2097-02-28 | GV14: 2097-08-31 | GW14: 2098-02-28 | GX14: 2098-08-31 | GY14: 2099-02-28 | GZ14: 2099-08-31 | HA14: 2100-02-28
A15: Assumptions
B16: Timing | G16: Months
C17: FC Date | E17: Date | F17: 2016-01-01
C18: Construction | E18: Months | F18: 38 | G18: 1
C19: COD | E19: Date | F19: =EDATE(F17,F18) -> 2019-03-01
C20: Life | E20: Years | F20: 20 | G20: 6
C21: Decommissioning | E21: Date | F21: =EDATE(F19,F20*12) -> 2039-03-01
A23: Cash Flow
C24: Project Cost | E24: Euro 000's | F24: 10000
C25: DSRA | E25: Euro 000's | F25: 0
C27: EBITDA | E27: Annual Euro 000's | F27: 890
C28: Growth | E28: Annual % | F28: =H28/100 -> 0.03 | H28: 3
A30: Debt Assumptions
C31: Fixed LIBOR Rate | E31: Annual % | F31: 0.02
C32: Debt Amount | E32: Euro 000's | F32: 4000
C33: Repayment Years | E33: Years | F33: ='Debt Scenarios'!E13 -> 15
C34: Interest Rates | E34: Date | F34: =F17 -> 2016-01-01 | G34: =F19 -> 2019-03-01 | H34: =EDATE(G34,24) -> 2021-03-01 | I34: =EDATE(H34,24) -> 2023-03-01 | J34: 2025-03-01 | K34: 2027-03-01
D35: Margin | E35: Annual % | F35: ='Debt Scenarios'!G13 -> 0.02 | G35: ='Debt Scenarios'!H13 -> 0.02 | H35: ='Debt Scenarios'!I13 -> 0.02 | I35: ='Debt Scenarios'!J13 -> 0.02 | J35: ='Debt Scenarios'!K13 -> 0.02 | K35: ='Debt Scenarios'!L13 -> 0.02
C37: Debt Amount | E37: Euro 000's | F37: 3000
C38: Repayment Years | E38: Years | F38: ='Debt Scenarios'!F13 -> 15
C39: Interest Rates | E39: Date | F39: =F17 -> 2016-01-01 | G39: =F19 -> 2019-03-01 | H39: =EDATE(G39,24) -> 2021-03-01 | I39: =EDATE(H39,24) -> 2023-03-01 | J39: 2025-03-01 | K39: 2027-03-01
D40: Margin | E40: Annual % | F40: ='Debt Scenarios'!M13 -> 0.02 | G40: ='Debt Scenarios'!N13 -> 0.02 | H40: ='Debt Scenarios'!O13 -> 0.02 | I40: ='Debt Scenarios'!P13 -> 0.02 | J40: ='Debt Scenarios'!Q13 -> 0.02 | K40: ='Debt Scenarios'!R13 -> 0.02
A42: Operating
B43: Capital Expenditure | F43: =F24 -> 10000 | G43: =F18 -> 38 | J43: =$F$43/$G$43*J10 -> 263.1578947 | K43: =$F$43/$G$43*K10 -> 263.1578947 | L43: =$F$43/$G$43*L10 -> 263.1578947 | M43: =$F$43/$G$43*M10 -> 263.1578947 | N43: =$F$43/$G$43*N10 -> 263.1578947 | O43: =$F$43/$G$43*O10 -> 263.1578947 | P43: =$F$43/$G$43*P10 -> 263.1578947 | Q43: =$F$43/$G$43*Q10 -> 263.1578947 | R43: =$F$43/$G$43*R10 -> 263.1578947 | S43: =$F$43/$G$43*S10 -> 263.1578947 | T43: =$F$43/$G$43*T10 -> 263.1578947 | U43: =$F$43/$G$43*U10 -> 263.1578947 | V43: =$F$43/$G$43*V10 -> 263.1578947 | W43: =$F$43/$G$43*W10 -> 263.1578947 | X43: =$F$43/$G$43*X10 -> 263.1578947 | Y43: =$F$43/$G$43*Y10 -> 263.1578947 | Z43: =$F$43/$G$43*Z10 -> 263.1578947 | AA43: =$F$43/$G$43*AA10 -> 263.1578947 | AB43: =$F$43/$G$43*AB10 -> 263.1578947 | AC43: =$F$43/$G$43*AC10 -> 263.1578947 | AD43: =$F$43/$G$43*AD10 -> 263.1578947 | AE43: =$F$43/$G$43*AE10 -> 263.1578947 | AF43: =$F$43/$G$43*AF10 -> 263.1578947 | AG43: =$F$43/$G$43*AG10 -> 263.1578947 | AH43: =$F$43/$G$43*AH10 -> 263.1578947 | AI43: =$F$43/$G$43*AI10 -> 263.1578947 | AJ43: =$F$43/$G$43*AJ10 -> 263.1578947 | AK43: =$F$43/$G$43*AK10 -> 263.1578947 | AL43: =$F$43/$G$43*AL10 -> 263.1578947 | AM43: =$F$43/$G$43*AM10 -> 263.1578947 | AN43: =$F$43/$G$43*AN10 -> 263.1578947 | AO43: =$F$43/$G$43*AO10 -> 263.1578947 | AP43: =$F$43/$G$43*AP10 -> 263.1578947 | AQ43: =$F$43/$G$43*AQ10 -> 263.1578947 | AR43: =$F$43/$G$43*AR10 -> 263.1578947 | AS43: =$F$43/$G$43*AS10 -> 263.1578947 | AT43: =$F$43/$G$43*AT10 -> 263.1578947 | AU43: =$F$43/$G$43*AU10 -> 263.1578947 | AV43: =$F$43/$G$43*AV10 -> 0 | AW43: =$F$43/$G$43*AW10 -> 0 | AX43: =$F$43/$G$43*AX10 -> 0 | AY43: =$F$43/$G$43*AY10 -> 0 | AZ43: =$F$43/$G$43*AZ10 -> 0 | BA43: =$F$43/$G$43*BA10 -> 0 | BB43: =$F$43/$G$43*BB10 -> 0 | BC43: =$F$43/$G$43*BC10 -> 0 | BD43: =$F$43/$G$43*BD10 -> 0 | BE43: =$F$43/$G$43*BE10 -> 0 | BF43: =$F$43/$G$43*BF10 -> 0 | BG43: =$F$43/$G$43*BG10 -> 0 | BH43: =$F$43/$G$43*BH10 -> 0 | BI43: =$F$43/$G$43*BI10 -> 0 | BJ43: =$F$43/$G$43*BJ10 -> 0 | BK43: =$F$43/$G$43*BK10 -> 0 | BL43: =$F$43/$G$43*BL10 -> 0 | BM43: =$F$43/$G$43*BM10 -> 0 | BN43: =$F$43/$G$43*BN10 -> 0 | BO43: =$F$43/$G$43*BO10 -> 0 | BP43: =$F$43/$G$43*BP10 -> 0 | BQ43: =$F$43/$G$43*BQ10 -> 0 | BR43: =$F$43/$G$43*BR10 -> 0 | BS43: =$F$43/$G$43*BS10 -> 0 | BT43: =$F$43/$G$43*BT10 -> 0 | BU43: =$F$43/$G$43*BU10 -> 0 | BV43: =$F$43/$G$43*BV10 -> 0 | BW43: =$F$43/$G$43*BW10 -> 0 | BX43: =$F$43/$G$43*BX10 -> 0 | BY43: =$F$43/$G$43*BY10 -> 0 | BZ43: =$F$43/$G$43*BZ10 -> 0 | CA43: =$F$43/$G$43*CA10 -> 0 | CB43: =$F$43/$G$43*CB10 -> 0 | CC43: =$F$43/$G$43*CC10 -> 0 | CD43: =$F$43/$G$43*CD10 -> 0 | CE43: =$F$43/$G$43*CE10 -> 0 | CF43: =$F$43/$G$43*CF10 -> 0 | CG43: =$F$43/$G$43*CG10 -> 0 | CH43: =$F$43/$G$43*CH10 -> 0 | CI43: =$F$43/$G$43*CI10 -> 0 | CJ43: =$F$43/$G$43*CJ10 -> 0 | CK43: =$F$43/$G$43*CK10 -> 0 | CL43: =$F$43/$G$43*CL10 -> 0 | CM43: =$F$43/$G$43*CM10 -> 0 | CN43: =$F$43/$G$43*CN10 -> 0 | CO43: =$F$43/$G$43*CO10 -> 0 | CP43: =$F$43/$G$43*CP10 -> 0 | CQ43: =$F$43/$G$43*CQ10 -> 0 | CR43: =$F$43/$G$43*CR10 -> 0 | CS43: =$F$43/$G$43*CS10 -> 0 | CT43: =$F$43/$G$43*CT10 -> 0 | CU43: =$F$43/$G$43*CU10 -> 0 | CV43: =$F$43/$G$43*CV10 -> 0 | CW43: =$F$43/$G$43*CW10 -> 0 | CX43: =$F$43/$G$43*CX10 -> 0 | CY43: =$F$43/$G$43*CY10 -> 0 | CZ43: =$F$43/$G$43*CZ10 -> 0 | DA43: =$F$43/$G$43*DA10 -> 0 | DB43: =$F$43/$G$43*DB10 -> 0 | DC43: =$F$43/$G$43*DC10 -> 0 | DD43: =$F$43/$G$43*DD10 -> 0 | DE43: =$F$43/$G$43*DE10 -> 0 | DF43: =$F$43/$G$43*DF10 -> 0 | DG43: =$F$43/$G$43*DG10 -> 0 | DH43: =$F$43/$G$43*DH10 -> 0 | DI43: =$F$43/$G$43*DI10 -> 0 | DJ43: =$F$43/$G$43*DJ10 -> 0 | DK43: =$F$43/$G$43*DK10 -> 0 | DL43: =$F$43/$G$43*DL10 -> 0 | DM43: =$F$43/$G$43*DM10 -> 0 | DN43: =$F$43/$G$43*DN10 -> 0 | DO43: =$F$43/$G$43*DO10 -> 0 | DP43: =$F$43/$G$43*DP10 -> 0 | DQ43: =$F$43/$G$43*DQ10 -> 0 | DR43: =$F$43/$G$43*DR10 -> 0 | DS43: =$F$43/$G$43*DS10 -> 0 | DT43: =$F$43/$G$43*DT10 -> 0 | DU43: =$F$43/$G$43*DU10 -> 0 | DV43: =$F$43/$G$43*DV10 -> 0 | DW43: =$F$43/$G$43*DW10 -> 0 | DX43: =$F$43/$G$43*DX10 -> 0 | DY43: =$F$43/$G$43*DY10 -> 0 | DZ43: =$F$43/$G$43*DZ10 -> 0 | EA43: =$F$43/$G$43*EA10 -> 0 | EB43: =$F$43/$G$43*EB10 -> 0 | EC43: =$F$43/$G$43*EC10 -> 0 | ED43: =$F$43/$G$43*ED10 -> 0 | EE43: =$F$43/$G$43*EE10 -> 0 | EF43: =$F$43/$G$43*EF10 -> 0 | EG43: =$F$43/$G$43*EG10 -> 0 | EH43: =$F$43/$G$43*EH10 -> 0 | EI43: =$F$43/$G$43*EI10 -> 0 | EJ43: =$F$43/$G$43*EJ10 -> 0 | EK43: =$F$43/$G$43*EK10 -> 0 | EL43: =$F$43/$G$43*EL10 -> 0 | EM43: =$F$43/$G$43*EM10 -> 0 | EN43: =$F$43/$G$43*EN10 -> 0 | EO43: =$F$43/$G$43*EO10 -> 0 | EP43: =$F$43/$G$43*EP10 -> 0 | EQ43: =$F$43/$G$43*EQ10 -> 0 | ER43: =$F$43/$G$43*ER10 -> 0 | ES43: =$F$43/$G$43*ES10 -> 0 | ET43: =$F$43/$G$43*ET10 -> 0 | EU43: =$F$43/$G$43*EU10 -> 0 | EV43: =$F$43/$G$43*EV10 -> 0 | EW43: =$F$43/$G$43*EW10 -> 0 | EX43: =$F$43/$G$43*EX10 -> 0 | EY43: =$F$43/$G$43*EY10 -> 0 | EZ43: =$F$43/$G$43*EZ10 -> 0 | FA43: =$F$43/$G$43*FA10 -> 0 | FB43: =$F$43/$G$43*FB10 -> 0 | FC43: =$F$43/$G$43*FC10 -> 0 | FD43: =$F$43/$G$43*FD10 -> 0 | FE43: =$F$43/$G$43*FE10 -> 0 | FF43: =$F$43/$G$43*FF10 -> 0 | FG43: =$F$43/$G$43*FG10 -> 0 | FH43: =$F$43/$G$43*FH10 -> 0 | FI43: =$F$43/$G$43*FI10 -> 0 | FJ43: =$F$43/$G$43*FJ10 -> 0 | FK43: =$F$43/$G$43*FK10 -> 0 | FL43: =$F$43/$G$43*FL10 -> 0 | FM43: =$F$43/$G$43*FM10 -> 0 | FN43: =$F$43/$G$43*FN10 -> 0 | FO43: =$F$43/$G$43*FO10 -> 0 | FP43: =$F$43/$G$43*FP10 -> 0 | FQ43: =$F$43/$G$43*FQ10 -> 0 | FR43: =$F$43/$G$43*FR10 -> 0 | FS43: =$F$43/$G$43*FS10 -> 0 | FT43: =$F$43/$G$43*FT10 -> 0 | FU43: =$F$43/$G$43*FU10 -> 0 | FV43: =$F$43/$G$43*FV10 -> 0 | FW43: =$F$43/$G$43*FW10 -> 0 | FX43: =$F$43/$G$43*FX10 -> 0 | FY43: =$F$43/$G$43*FY10 -> 0 | FZ43: =$F$43/$G$43*FZ10 -> 0 | GA43: =$F$43/$G$43*GA10 -> 0 | GB43: =$F$43/$G$43*GB10 -> 0 | GC43: =$F$43/$G$43*GC10 -> 0 | GD43: =$F$43/$G$43*GD10 -> 0 | GE43: =$F$43/$G$43*GE10 -> 0 | GF43: =$F$43/$G$43*GF10 -> 0 | GG43: =$F$43/$G$43*GG10 -> 0 | GH43: =$F$43/$G$43*GH10 -> 0 | GI43: =$F$43/$G$43*GI10 -> 0 | GJ43: =$F$43/$G$43*GJ10 -> 0 | GK43: =$F$43/$G$43*GK10 -> 0 | GL43: =$F$43/$G$43*GL10 -> 0 | GM43: =$F$43/$G$43*GM10 -> 0 | GN43: =$F$43/$G$43*GN10 -> 0 | GO43: =$F$43/$G$43*GO10 -> 0 | GP43: =$F$43/$G$43*GP10 -> 0 | GQ43: =$F$43/$G$43*GQ10 -> 0 | GR43: =$F$43/$G$43*GR10 -> 0 | GS43: =$F$43/$G$43*GS10 -> 0 | GT43: =$F$43/$G$43*GT10 -> 0 | GU43: =$F$43/$G$43*GU10 -> 0 | GV43: =$F$43/$G$43*GV10 -> 0 | GW43: =$F$43/$G$43*GW10 -> 0 | GX43: =$F$43/$G$43*GX10 -> 0 | GY43: =$F$43/$G$43*GY10 -> 0 | GZ43: =$F$43/$G$43*GZ10 -> 0 | HA43: =$F$43/$G$43*HA10 -> 0
B44: EBITDA Growth | F44: =F28 -> 0.03 | I44: 1 | J44: =IF(J11,(1+(I44*(1+$F$44)^(J12/12)-1)),1) -> 1 | K44: =IF(K11,(1+(J44*(1+$F$44)^(K12/12)-1)),1) -> 1 | L44: =IF(L11,(1+(K44*(1+$F$44)^(L12/12)-1)),1) -> 1 | M44: =IF(M11,(1+(L44*(1+$F$44)^(M12/12)-1)),1) -> 1 | N44: =IF(N11,(1+(M44*(1+$F$44)^(N12/12)-1)),1) -> 1 | O44: =IF(O11,(1+(N44*(1+$F$44)^(O12/12)-1)),1) -> 1 | P44: =IF(P11,(1+(O44*(1+$F$44)^(P12/12)-1)),1) -> 1 | Q44: =IF(Q11,(1+(P44*(1+$F$44)^(Q12/12)-1)),1) -> 1 | R44: =IF(R11,(1+(Q44*(1+$F$44)^(R12/12)-1)),1) -> 1 | S44: =IF(S11,(1+(R44*(1+$F$44)^(S12/12)-1)),1) -> 1 | T44: =IF(T11,(1+(S44*(1+$F$44)^(T12/12)-1)),1) -> 1 | U44: =IF(U11,(1+(T44*(1+$F$44)^(U12/12)-1)),1) -> 1 | V44: =IF(V11,(1+(U44*(1+$F$44)^(V12/12)-1)),1) -> 1 | W44: =IF(W11,(1+(V44*(1+$F$44)^(W12/12)-1)),1) -> 1 | X44: =IF(X11,(1+(W44*(1+$F$44)^(X12/12)-1)),1) -> 1 | Y44: =IF(Y11,(1+(X44*(1+$F$44)^(Y12/12)-1)),1) -> 1 | Z44: =IF(Z11,(1+(Y44*(1+$F$44)^(Z12/12)-1)),1) -> 1 | AA44: =IF(AA11,(1+(Z44*(1+$F$44)^(AA12/12)-1)),1) -> 1 | AB44: =IF(AB11,(1+(AA44*(1+$F$44)^(AB12/12)-1)),1) -> 1 | AC44: =IF(AC11,(1+(AB44*(1+$F$44)^(AC12/12)-1)),1) -> 1 | AD44: =IF(AD11,(1+(AC44*(1+$F$44)^(AD12/12)-1)),1) -> 1 | AE44: =IF(AE11,(1+(AD44*(1+$F$44)^(AE12/12)-1)),1) -> 1 | AF44: =IF(AF11,(1+(AE44*(1+$F$44)^(AF12/12)-1)),1) -> 1 | AG44: =IF(AG11,(1+(AF44*(1+$F$44)^(AG12/12)-1)),1) -> 1 | AH44: =IF(AH11,(1+(AG44*(1+$F$44)^(AH12/12)-1)),1) -> 1 | AI44: =IF(AI11,(1+(AH44*(1+$F$44)^(AI12/12)-1)),1) -> 1 | AJ44: =IF(AJ11,(1+(AI44*(1+$F$44)^(AJ12/12)-1)),1) -> 1 | AK44: =IF(AK11,(1+(AJ44*(1+$F$44)^(AK12/12)-1)),1) -> 1 | AL44: =IF(AL11,(1+(AK44*(1+$F$44)^(AL12/12)-1)),1) -> 1 | AM44: =IF(AM11,(1+(AL44*(1+$F$44)^(AM12/12)-1)),1) -> 1 | AN44: =IF(AN11,(1+(AM44*(1+$F$44)^(AN12/12)-1)),1) -> 1 | AO44: =IF(AO11,(1+(AN44*(1+$F$44)^(AO12/12)-1)),1) -> 1 | AP44: =IF(AP11,(1+(AO44*(1+$F$44)^(AP12/12)-1)),1) -> 1 | AQ44: =IF(AQ11,(1+(AP44*(1+$F$44)^(AQ12/12)-1)),1) -> 1 | AR44: =IF(AR11,(1+(AQ44*(1+$F$44)^(AR12/12)-1)),1) -> 1 | AS44: =IF(AS11,(1+(AR44*(1+$F$44)^(AS12/12)-1)),1) -> 1 | AT44: =IF(AT11,(1+(AS44*(1+$F$44)^(AT12/12)-1)),1) -> 1 | AU44: =IF(AU11,(1+(AT44*(1+$F$44)^(AU12/12)-1)),1) -> 1 | AV44: =IF(AV11,(1+(AU44*(1+$F$44)^(AV12/12)-1)),1) -> 1.014889157 | AW44: =IF(AW11,(1+(AV44*(1+$F$44)^(AW12/12)-1)),1) -> 1.03 | AX44: =IF(AX11,(1+(AW44*(1+$F$44)^(AX12/12)-1)),1) -> 1.045335831 | AY44: =IF(AY11,(1+(AX44*(1+$F$44)^(AY12/12)-1)),1) -> 1.0609 | AZ44: =IF(AZ11,(1+(AY44*(1+$F$44)^(AZ12/12)-1)),1) -> 1.076695906 | BA44: =IF(BA11,(1+(AZ44*(1+$F$44)^(BA12/12)-1)),1) -> 1.092727 | BB44: =IF(BB11,(1+(BA44*(1+$F$44)^(BB12/12)-1)),1) -> 1.108996783 | BC44: =IF(BC11,(1+(BB44*(1+$F$44)^(BC12/12)-1)),1) -> 1.12550881 | BD44: =IF(BD11,(1+(BC44*(1+$F$44)^(BD12/12)-1)),1) -> 1.142266687 | BE44: =IF(BE11,(1+(BD44*(1+$F$44)^(BE12/12)-1)),1) -> 1.159274074 | BF44: =IF(BF11,(1+(BE44*(1+$F$44)^(BF12/12)-1)),1) -> 1.176534687 | BG44: =IF(BG11,(1+(BF44*(1+$F$44)^(BG12/12)-1)),1) -> 1.194052297 | BH44: =IF(BH11,(1+(BG44*(1+$F$44)^(BH12/12)-1)),1) -> 1.211830728 | BI44: =IF(BI11,(1+(BH44*(1+$F$44)^(BI12/12)-1)),1) -> 1.229873865 | BJ44: =IF(BJ11,(1+(BI44*(1+$F$44)^(BJ12/12)-1)),1) -> 1.24818565 | BK44: =IF(BK11,(1+(BJ44*(1+$F$44)^(BK12/12)-1)),1) -> 1.266770081 | BL44: =IF(BL11,(1+(BK44*(1+$F$44)^(BL12/12)-1)),1) -> 1.285631219 | BM44: =IF(BM11,(1+(BL44*(1+$F$44)^(BM12/12)-1)),1) -> 1.304773184 | BN44: =IF(BN11,(1+(BM44*(1+$F$44)^(BN12/12)-1)),1) -> 1.324200156 | BO44: =IF(BO11,(1+(BN44*(1+$F$44)^(BO12/12)-1)),1) -> 1.343916379 | BP44: =IF(BP11,(1+(BO44*(1+$F$44)^(BP12/12)-1)),1) -> 1.363926161 | BQ44: =IF(BQ11,(1+(BP44*(1+$F$44)^(BQ12/12)-1)),1) -> 1.384233871 | BR44: =IF(BR11,(1+(BQ44*(1+$F$44)^(BR12/12)-1)),1) -> 1.404843945 | BS44: =IF(BS11,(1+(BR44*(1+$F$44)^(BS12/12)-1)),1) -> 1.425760887 | BT44: =IF(BT11,(1+(BS44*(1+$F$44)^(BT12/12)-1)),1) -> 1.446989264 | BU44: =IF(BU11,(1+(BT44*(1+$F$44)^(BU12/12)-1)),1) -> 1.468533713 | BV44: =IF(BV11,(1+(BU44*(1+$F$44)^(BV12/12)-1)),1) -> 1.490398942 | BW44: =IF(BW11,(1+(BV44*(1+$F$44)^(BW12/12)-1)),1) -> 1.512589725 | BX44: =IF(BX11,(1+(BW44*(1+$F$44)^(BX12/12)-1)),1) -> 1.53511091 | BY44: =IF(BY11,(1+(BX44*(1+$F$44)^(BY12/12)-1)),1) -> 1.557967417 | BZ44: =IF(BZ11,(1+(BY44*(1+$F$44)^(BZ12/12)-1)),1) -> 1.581164237 | CA44: =IF(CA11,(1+(BZ44*(1+$F$44)^(CA12/12)-1)),1) -> 1.604706439 | CB44: =IF(CB11,(1+(CA44*(1+$F$44)^(CB12/12)-1)),1) -> 1.628599164 | CC44: =IF(CC11,(1+(CB44*(1+$F$44)^(CC12/12)-1)),1) -> 1.652847632 | CD44: =IF(CD11,(1+(CC44*(1+$F$44)^(CD12/12)-1)),1) -> 1.677457139 | CE44: =IF(CE11,(1+(CD44*(1+$F$44)^(CE12/12)-1)),1) -> 1.702433061 | CF44: =IF(CF11,(1+(CE44*(1+$F$44)^(CF12/12)-1)),1) -> 1.727780854 | CG44: =IF(CG11,(1+(CF44*(1+$F$44)^(CG12/12)-1)),1) -> 1.753506053 | CH44: =IF(CH11,(1+(CG44*(1+$F$44)^(CH12/12)-1)),1) -> 1.779614279 | CI44: =IF(CI11,(1+(CH44*(1+$F$44)^(CI12/12)-1)),1) -> 1.806111235 | CJ44: =IF(CJ11,(1+(CI44*(1+$F$44)^(CJ12/12)-1)),1) -> 1 | CK44: =IF(CK11,(1+(CJ44*(1+$F$44)^(CK12/12)-1)),1) -> 1 | CL44: =IF(CL11,(1+(CK44*(1+$F$44)^(CL12/12)-1)),1) -> 1 | CM44: =IF(CM11,(1+(CL44*(1+$F$44)^(CM12/12)-1)),1) -> 1 | CN44: =IF(CN11,(1+(CM44*(1+$F$44)^(CN12/12)-1)),1) -> 1 | CO44: =IF(CO11,(1+(CN44*(1+$F$44)^(CO12/12)-1)),1) -> 1 | CP44: =IF(CP11,(1+(CO44*(1+$F$44)^(CP12/12)-1)),1) -> 1 | CQ44: =IF(CQ11,(1+(CP44*(1+$F$44)^(CQ12/12)-1)),1) -> 1 | CR44: =IF(CR11,(1+(CQ44*(1+$F$44)^(CR12/12)-1)),1) -> 1 | CS44: =IF(CS11,(1+(CR44*(1+$F$44)^(CS12/12)-1)),1) -> 1 | CT44: =IF(CT11,(1+(CS44*(1+$F$44)^(CT12/12)-1)),1) -> 1 | CU44: =IF(CU11,(1+(CT44*(1+$F$44)^(CU12/12)-1)),1) -> 1 | CV44: =IF(CV11,(1+(CU44*(1+$F$44)^(CV12/12)-1)),1) -> 1 | CW44: =IF(CW11,(1+(CV44*(1+$F$44)^(CW12/12)-1)),1) -> 1 | CX44: =IF(CX11,(1+(CW44*(1+$F$44)^(CX12/12)-1)),1) -> 1 | CY44: =IF(CY11,(1+(CX44*(1+$F$44)^(CY12/12)-1)),1) -> 1 | CZ44: =IF(CZ11,(1+(CY44*(1+$F$44)^(CZ12/12)-1)),1) -> 1 | DA44: =IF(DA11,(1+(CZ44*(1+$F$44)^(DA12/12)-1)),1) -> 1 | DB44: =IF(DB11,(1+(DA44*(1+$F$44)^(DB12/12)-1)),1) -> 1 | DC44: =IF(DC11,(1+(DB44*(1+$F$44)^(DC12/12)-1)),1) -> 1 | DD44: =IF(DD11,(1+(DC44*(1+$F$44)^(DD12/12)-1)),1) -> 1 | DE44: =IF(DE11,(1+(DD44*(1+$F$44)^(DE12/12)-1)),1) -> 1 | DF44: =IF(DF11,(1+(DE44*(1+$F$44)^(DF12/12)-1)),1) -> 1 | DG44: =IF(DG11,(1+(DF44*(1+$F$44)^(DG12/12)-1)),1) -> 1 | DH44: =IF(DH11,(1+(DG44*(1+$F$44)^(DH12/12)-1)),1) -> 1 | DI44: =IF(DI11,(1+(DH44*(1+$F$44)^(DI12/12)-1)),1) -> 1 | DJ44: =IF(DJ11,(1+(DI44*(1+$F$44)^(DJ12/12)-1)),1) -> 1 | DK44: =IF(DK11,(1+(DJ44*(1+$F$44)^(DK12/12)-1)),1) -> 1 | DL44: =IF(DL11,(1+(DK44*(1+$F$44)^(DL12/12)-1)),1) -> 1 | DM44: =IF(DM11,(1+(DL44*(1+$F$44)^(DM12/12)-1)),1) -> 1 | DN44: =IF(DN11,(1+(DM44*(1+$F$44)^(DN12/12)-1)),1) -> 1 | DO44: =IF(DO11,(1+(DN44*(1+$F$44)^(DO12/12)-1)),1) -> 1 | DP44: =IF(DP11,(1+(DO44*(1+$F$44)^(DP12/12)-1)),1) -> 1 | DQ44: =IF(DQ11,(1+(DP44*(1+$F$44)^(DQ12/12)-1)),1) -> 1 | DR44: =IF(DR11,(1+(DQ44*(1+$F$44)^(DR12/12)-1)),1) -> 1 | DS44: =IF(DS11,(1+(DR44*(1+$F$44)^(DS12/12)-1)),1) -> 1 | DT44: =IF(DT11,(1+(DS44*(1+$F$44)^(DT12/12)-1)),1) -> 1 | DU44: =IF(DU11,(1+(DT44*(1+$F$44)^(DU12/12)-1)),1) -> 1 | DV44: =IF(DV11,(1+(DU44*(1+$F$44)^(DV12/12)-1)),1) -> 1 | DW44: =IF(DW11,(1+(DV44*(1+$F$44)^(DW12/12)-1)),1) -> 1 | DX44: =IF(DX11,(1+(DW44*(1+$F$44)^(DX12/12)-1)),1) -> 1 | DY44: =IF(DY11,(1+(DX44*(1+$F$44)^(DY12/12)-1)),1) -> 1 | DZ44: =IF(DZ11,(1+(DY44*(1+$F$44)^(DZ12/12)-1)),1) -> 1 | EA44: =IF(EA11,(1+(DZ44*(1+$F$44)^(EA12/12)-1)),1) -> 1 | EB44: =IF(EB11,(1+(EA44*(1+$F$44)^(EB12/12)-1)),1) -> 1 | EC44: =IF(EC11,(1+(EB44*(1+$F$44)^(EC12/12)-1)),1) -> 1 | ED44: =IF(ED11,(1+(EC44*(1+$F$44)^(ED12/12)-1)),1) -> 1 | EE44: =IF(EE11,(1+(ED44*(1+$F$44)^(EE12/12)-1)),1) -> 1 | EF44: =IF(EF11,(1+(EE44*(1+$F$44)^(EF12/12)-1)),1) -> 1 | EG44: =IF(EG11,(1+(EF44*(1+$F$44)^(EG12/12)-1)),1) -> 1 | EH44: =IF(EH11,(1+(EG44*(1+$F$44)^(EH12/12)-1)),1) -> 1 | EI44: =IF(EI11,(1+(EH44*(1+$F$44)^(EI12/12)-1)),1) -> 1 | EJ44: =IF(EJ11,(1+(EI44*(1+$F$44)^(EJ12/12)-1)),1) -> 1 | EK44: =IF(EK11,(1+(EJ44*(1+$F$44)^(EK12/12)-1)),1) -> 1 | EL44: =IF(EL11,(1+(EK44*(1+$F$44)^(EL12/12)-1)),1) -> 1 | EM44: =IF(EM11,(1+(EL44*(1+$F$44)^(EM12/12)-1)),1) -> 1 | EN44: =IF(EN11,(1+(EM44*(1+$F$44)^(EN12/12)-1)),1) -> 1 | EO44: =IF(EO11,(1+(EN44*(1+$F$44)^(EO12/12)-1)),1) -> 1 | EP44: =IF(EP11,(1+(EO44*(1+$F$44)^(EP12/12)-1)),1) -> 1 | EQ44: =IF(EQ11,(1+(EP44*(1+$F$44)^(EQ12/12)-1)),1) -> 1 | ER44: =IF(ER11,(1+(EQ44*(1+$F$44)^(ER12/12)-1)),1) -> 1 | ES44: =IF(ES11,(1+(ER44*(1+$F$44)^(ES12/12)-1)),1) -> 1 | ET44: =IF(ET11,(1+(ES44*(1+$F$44)^(ET12/12)-1)),1) -> 1 | EU44: =IF(EU11,(1+(ET44*(1+$F$44)^(EU12/12)-1)),1) -> 1 | EV44: =IF(EV11,(1+(EU44*(1+$F$44)^(EV12/12)-1)),1) -> 1 | EW44: =IF(EW11,(1+(EV44*(1+$F$44)^(EW12/12)-1)),1) -> 1 | EX44: =IF(EX11,(1+(EW44*(1+$F$44)^(EX12/12)-1)),1) -> 1 | EY44: =IF(EY11,(1+(EX44*(1+$F$44)^(EY12/12)-1)),1) -> 1 | EZ44: =IF(EZ11,(1+(EY44*(1+$F$44)^(EZ12/12)-1)),1) -> 1 | FA44: =IF(FA11,(1+(EZ44*(1+$F$44)^(FA12/12)-1)),1) -> 1 | FB44: =IF(FB11,(1+(FA44*(1+$F$44)^(FB12/12)-1)),1) -> 1 | FC44: =IF(FC11,(1+(FB44*(1+$F$44)^(FC12/12)-1)),1) -> 1 | FD44: =IF(FD11,(1+(FC44*(1+$F$44)^(FD12/12)-1)),1) -> 1 | FE44: =IF(FE11,(1+(FD44*(1+$F$44)^(FE12/12)-1)),1) -> 1 | FF44: =IF(FF11,(1+(FE44*(1+$F$44)^(FF12/12)-1)),1) -> 1 | FG44: =IF(FG11,(1+(FF44*(1+$F$44)^(FG12/12)-1)),1) -> 1 | FH44: =IF(FH11,(1+(FG44*(1+$F$44)^(FH12/12)-1)),1) -> 1 | FI44: =IF(FI11,(1+(FH44*(1+$F$44)^(FI12/12)-1)),1) -> 1 | FJ44: =IF(FJ11,(1+(FI44*(1+$F$44)^(FJ12/12)-1)),1) -> 1 | FK44: =IF(FK11,(1+(FJ44*(1+$F$44)^(FK12/12)-1)),1) -> 1 | FL44: =IF(FL11,(1+(FK44*(1+$F$44)^(FL12/12)-1)),1) -> 1 | FM44: =IF(FM11,(1+(FL44*(1+$F$44)^(FM12/12)-1)),1) -> 1 | FN44: =IF(FN11,(1+(FM44*(1+$F$44)^(FN12/12)-1)),1) -> 1 | FO44: =IF(FO11,(1+(FN44*(1+$F$44)^(FO12/12)-1)),1) -> 1 | FP44: =IF(FP11,(1+(FO44*(1+$F$44)^(FP12/12)-1)),1) -> 1 | FQ44: =IF(FQ11,(1+(FP44*(1+$F$44)^(FQ12/12)-1)),1) -> 1 | FR44: =IF(FR11,(1+(FQ44*(1+$F$44)^(FR12/12)-1)),1) -> 1 | FS44: =IF(FS11,(1+(FR44*(1+$F$44)^(FS12/12)-1)),1) -> 1 | FT44: =IF(FT11,(1+(FS44*(1+$F$44)^(FT12/12)-1)),1) -> 1 | FU44: =IF(FU11,(1+(FT44*(1+$F$44)^(FU12/12)-1)),1) -> 1 | FV44: =IF(FV11,(1+(FU44*(1+$F$44)^(FV12/12)-1)),1) -> 1 | FW44: =IF(FW11,(1+(FV44*(1+$F$44)^(FW12/12)-1)),1) -> 1 | FX44: =IF(FX11,(1+(FW44*(1+$F$44)^(FX12/12)-1)),1) -> 1 | FY44: =IF(FY11,(1+(FX44*(1+$F$44)^(FY12/12)-1)),1) -> 1 | FZ44: =IF(FZ11,(1+(FY44*(1+$F$44)^(FZ12/12)-1)),1) -> 1 | GA44: =IF(GA11,(1+(FZ44*(1+$F$44)^(GA12/12)-1)),1) -> 1 | GB44: =IF(GB11,(1+(GA44*(1+$F$44)^(GB12/12)-1)),1) -> 1 | GC44: =IF(GC11,(1+(GB44*(1+$F$44)^(GC12/12)-1)),1) -> 1 | GD44: =IF(GD11,(1+(GC44*(1+$F$44)^(GD12/12)-1)),1) -> 1 | GE44: =IF(GE11,(1+(GD44*(1+$F$44)^(GE12/12)-1)),1) -> 1 | GF44: =IF(GF11,(1+(GE44*(1+$F$44)^(GF12/12)-1)),1) -> 1 | GG44: =IF(GG11,(1+(GF44*(1+$F$44)^(GG12/12)-1)),1) -> 1 | GH44: =IF(GH11,(1+(GG44*(1+$F$44)^(GH12/12)-1)),1) -> 1 | GI44: =IF(GI11,(1+(GH44*(1+$F$44)^(GI12/12)-1)),1) -> 1 | GJ44: =IF(GJ11,(1+(GI44*(1+$F$44)^(GJ12/12)-1)),1) -> 1 | GK44: =IF(GK11,(1+(GJ44*(1+$F$44)^(GK12/12)-1)),1) -> 1 | GL44: =IF(GL11,(1+(GK44*(1+$F$44)^(GL12/12)-1)),1) -> 1 | GM44: =IF(GM11,(1+(GL44*(1+$F$44)^(GM12/12)-1)),1) -> 1 | GN44: =IF(GN11,(1+(GM44*(1+$F$44)^(GN12/12)-1)),1) -> 1 | GO44: =IF(GO11,(1+(GN44*(1+$F$44)^(GO12/12)-1)),1) -> 1 | GP44: =IF(GP11,(1+(GO44*(1+$F$44)^(GP12/12)-1)),1) -> 1 | GQ44: =IF(GQ11,(1+(GP44*(1+$F$44)^(GQ12/12)-1)),1) -> 1 | GR44: =IF(GR11,(1+(GQ44*(1+$F$44)^(GR12/12)-1)),1) -> 1 | GS44: =IF(GS11,(1+(GR44*(1+$F$44)^(GS12/12)-1)),1) -> 1 | GT44: =IF(GT11,(1+(GS44*(1+$F$44)^(GT12/12)-1)),1) -> 1 | GU44: =IF(GU11,(1+(GT44*(1+$F$44)^(GU12/12)-1)),1) -> 1 | GV44: =IF(GV11,(1+(GU44*(1+$F$44)^(GV12/12)-1)),1) -> 1 | GW44: =IF(GW11,(1+(GV44*(1+$F$44)^(GW12/12)-1)),1) -> 1 | GX44: =IF(GX11,(1+(GW44*(1+$F$44)^(GX12/12)-1)),1) -> 1 | GY44: =IF(GY11,(1+(GX44*(1+$F$44)^(GY12/12)-1)),1) -> 1 | GZ44: =IF(GZ11,(1+(GY44*(1+$F$44)^(GZ12/12)-1)),1) -> 1 | HA44: =IF(HA11,(1+(GZ44*(1+$F$44)^(HA12/12)-1)),1) -> 1
B45: EBITDA | F45: =F27 -> 890 | G45: =$F$28 -> 0.03 | J45: =$F$45/12*J12*J11*J44 -> 0 | K45: =$F$45/12*K12*K11*K44 -> 0 | L45: =$F$45/12*L12*L11*L44 -> 0 | M45: =$F$45/12*M12*M11*M44 -> 0 | N45: =$F$45/12*N12*N11*N44 -> 0 | O45: =$F$45/12*O12*O11*O44 -> 0 | P45: =$F$45/12*P12*P11*P44 -> 0 | Q45: =$F$45/12*Q12*Q11*Q44 -> 0 | R45: =$F$45/12*R12*R11*R44 -> 0 | S45: =$F$45/12*S12*S11*S44 -> 0 | T45: =$F$45/12*T12*T11*T44 -> 0 | U45: =$F$45/12*U12*U11*U44 -> 0 | V45: =$F$45/12*V12*V11*V44 -> 0 | W45: =$F$45/12*W12*W11*W44 -> 0 | X45: =$F$45/12*X12*X11*X44 -> 0 | Y45: =$F$45/12*Y12*Y11*Y44 -> 0 | Z45: =$F$45/12*Z12*Z11*Z44 -> 0 | AA45: =$F$45/12*AA12*AA11*AA44 -> 0 | AB45: =$F$45/12*AB12*AB11*AB44 -> 0 | AC45: =$F$45/12*AC12*AC11*AC44 -> 0 | AD45: =$F$45/12*AD12*AD11*AD44 -> 0 | AE45: =$F$45/12*AE12*AE11*AE44 -> 0 | AF45: =$F$45/12*AF12*AF11*AF44 -> 0 | AG45: =$F$45/12*AG12*AG11*AG44 -> 0 | AH45: =$F$45/12*AH12*AH11*AH44 -> 0 | AI45: =$F$45/12*AI12*AI11*AI44 -> 0 | AJ45: =$F$45/12*AJ12*AJ11*AJ44 -> 0 | AK45: =$F$45/12*AK12*AK11*AK44 -> 0 | AL45: =$F$45/12*AL12*AL11*AL44 -> 0 | AM45: =$F$45/12*AM12*AM11*AM44 -> 0 | AN45: =$F$45/12*AN12*AN11*AN44 -> 0 | AO45: =$F$45/12*AO12*AO11*AO44 -> 0 | AP45: =$F$45/12*AP12*AP11*AP44 -> 0 | AQ45: =$F$45/12*AQ12*AQ11*AQ44 -> 0 | AR45: =$F$45/12*AR12*AR11*AR44 -> 0 | AS45: =$F$45/12*AS12*AS11*AS44 -> 0 | AT45: =$F$45/12*AT12*AT11*AT44 -> 0 | AU45: =$F$45/12*AU12*AU11*AU44 -> 0 | AV45: =$F$45/12*AV12*AV11*AV44 -> 451.6256746 | AW45: =$F$45/12*AW12*AW11*AW44 -> 458.35 | AX45: =$F$45/12*AX12*AX11*AX44 -> 465.1744449 | AY45: =$F$45/12*AY12*AY11*AY44 -> 472.1005 | AZ45: =$F$45/12*AZ12*AZ11*AZ44 -> 479.1296782 | BA45: =$F$45/12*BA12*BA11*BA44 -> 486.263515 | BB45: =$F$45/12*BB12*BB11*BB44 -> 493.5035686 | BC45: =$F$45/12*BC12*BC11*BC44 -> 500.8514205 | BD45: =$F$45/12*BD12*BD11*BD44 -> 508.3086756 | BE45: =$F$45/12*BE12*BE11*BE44 -> 515.8769631 | BF45: =$F$45/12*BF12*BF11*BF44 -> 523.5579359 | BG45: =$F$45/12*BG12*BG11*BG44 -> 531.353272 | BH45: =$F$45/12*BH12*BH11*BH44 -> 539.264674 | BI45: =$F$45/12*BI12*BI11*BI44 -> 547.2938701 | BJ45: =$F$45/12*BJ12*BJ11*BJ44 -> 555.4426142 | BK45: =$F$45/12*BK12*BK11*BK44 -> 563.7126862 | BL45: =$F$45/12*BL12*BL11*BL44 -> 572.1058926 | BM45: =$F$45/12*BM12*BM11*BM44 -> 580.6240668 | BN45: =$F$45/12*BN12*BN11*BN44 -> 589.2690694 | BO45: =$F$45/12*BO12*BO11*BO44 -> 598.0427888 | BP45: =$F$45/12*BP12*BP11*BP44 -> 606.9471415 | BQ45: =$F$45/12*BQ12*BQ11*BQ44 -> 615.9840725 | BR45: =$F$45/12*BR12*BR11*BR44 -> 625.1555557 | BS45: =$F$45/12*BS12*BS11*BS44 -> 634.4635946 | BT45: =$F$45/12*BT12*BT11*BT44 -> 643.9102224 | BU45: =$F$45/12*BU12*BU11*BU44 -> 653.4975025 | BV45: =$F$45/12*BV12*BV11*BV44 -> 663.2275291 | BW45: =$F$45/12*BW12*BW11*BW44 -> 673.1024276 | BX45: =$F$45/12*BX12*BX11*BX44 -> 683.124355 | BY45: =$F$45/12*BY12*BY11*BY44 -> 693.2955004 | BZ45: =$F$45/12*BZ12*BZ11*BZ44 -> 703.6180856 | CA45: =$F$45/12*CA12*CA11*CA44 -> 714.0943654 | CB45: =$F$45/12*CB12*CB11*CB44 -> 724.7266282 | CC45: =$F$45/12*CC12*CC11*CC44 -> 735.5171964 | CD45: =$F$45/12*CD12*CD11*CD44 -> 746.468427 | CE45: =$F$45/12*CE12*CE11*CE44 -> 757.5827123 | CF45: =$F$45/12*CF12*CF11*CF44 -> 768.8624798 | CG45: =$F$45/12*CG12*CG11*CG44 -> 780.3101936 | CH45: =$F$45/12*CH12*CH11*CH44 -> 791.9283542 | CI45: =$F$45/12*CI12*CI11*CI44 -> 803.7194994 | CJ45: =$F$45/12*CJ12*CJ11*CJ44 -> 0 | CK45: =$F$45/12*CK12*CK11*CK44 -> 0 | CL45: =$F$45/12*CL12*CL11*CL44 -> 0 | CM45: =$F$45/12*CM12*CM11*CM44 -> 0 | CN45: =$F$45/12*CN12*CN11*CN44 -> 0 | CO45: =$F$45/12*CO12*CO11*CO44 -> 0 | CP45: =$F$45/12*CP12*CP11*CP44 -> 0 | CQ45: =$F$45/12*CQ12*CQ11*CQ44 -> 0 | CR45: =$F$45/12*CR12*CR11*CR44 -> 0 | CS45: =$F$45/12*CS12*CS11*CS44 -> 0 | CT45: =$F$45/12*CT12*CT11*CT44 -> 0 | CU45: =$F$45/12*CU12*CU11*CU44 -> 0 | CV45: =$F$45/12*CV12*CV11*CV44 -> 0 | CW45: =$F$45/12*CW12*CW11*CW44 -> 0 | CX45: =$F$45/12*CX12*CX11*CX44 -> 0 | CY45: =$F$45/12*CY12*CY11*CY44 -> 0 | CZ45: =$F$45/12*CZ12*CZ11*CZ44 -> 0 | DA45: =$F$45/12*DA12*DA11*DA44 -> 0 | DB45: =$F$45/12*DB12*DB11*DB44 -> 0 | DC45: =$F$45/12*DC12*DC11*DC44 -> 0 | DD45: =$F$45/12*DD12*DD11*DD44 -> 0 | DE45: =$F$45/12*DE12*DE11*DE44 -> 0 | DF45: =$F$45/12*DF12*DF11*DF44 -> 0 | DG45: =$F$45/12*DG12*DG11*DG44 -> 0 | DH45: =$F$45/12*DH12*DH11*DH44 -> 0 | DI45: =$F$45/12*DI12*DI11*DI44 -> 0 | DJ45: =$F$45/12*DJ12*DJ11*DJ44 -> 0 | DK45: =$F$45/12*DK12*DK11*DK44 -> 0 | DL45: =$F$45/12*DL12*DL11*DL44 -> 0 | DM45: =$F$45/12*DM12*DM11*DM44 -> 0 | DN45: =$F$45/12*DN12*DN11*DN44 -> 0 | DO45: =$F$45/12*DO12*DO11*DO44 -> 0 | DP45: =$F$45/12*DP12*DP11*DP44 -> 0 | DQ45: =$F$45/12*DQ12*DQ11*DQ44 -> 0 | DR45: =$F$45/12*DR12*DR11*DR44 -> 0 | DS45: =$F$45/12*DS12*DS11*DS44 -> 0 | DT45: =$F$45/12*DT12*DT11*DT44 -> 0 | DU45: =$F$45/12*DU12*DU11*DU44 -> 0 | DV45: =$F$45/12*DV12*DV11*DV44 -> 0 | DW45: =$F$45/12*DW12*DW11*DW44 -> 0 | DX45: =$F$45/12*DX12*DX11*DX44 -> 0 | DY45: =$F$45/12*DY12*DY11*DY44 -> 0 | DZ45: =$F$45/12*DZ12*DZ11*DZ44 -> 0 | EA45: =$F$45/12*EA12*EA11*EA44 -> 0 | EB45: =$F$45/12*EB12*EB11*EB44 -> 0 | EC45: =$F$45/12*EC12*EC11*EC44 -> 0 | ED45: =$F$45/12*ED12*ED11*ED44 -> 0 | EE45: =$F$45/12*EE12*EE11*EE44 -> 0 | EF45: =$F$45/12*EF12*EF11*EF44 -> 0 | EG45: =$F$45/12*EG12*EG11*EG44 -> 0 | EH45: =$F$45/12*EH12*EH11*EH44 -> 0 | EI45: =$F$45/12*EI12*EI11*EI44 -> 0 | EJ45: =$F$45/12*EJ12*EJ11*EJ44 -> 0 | EK45: =$F$45/12*EK12*EK11*EK44 -> 0 | EL45: =$F$45/12*EL12*EL11*EL44 -> 0 | EM45: =$F$45/12*EM12*EM11*EM44 -> 0 | EN45: =$F$45/12*EN12*EN11*EN44 -> 0 | EO45: =$F$45/12*EO12*EO11*EO44 -> 0 | EP45: =$F$45/12*EP12*EP11*EP44 -> 0 | EQ45: =$F$45/12*EQ12*EQ11*EQ44 -> 0 | ER45: =$F$45/12*ER12*ER11*ER44 -> 0 | ES45: =$F$45/12*ES12*ES11*ES44 -> 0 | ET45: =$F$45/12*ET12*ET11*ET44 -> 0 | EU45: =$F$45/12*EU12*EU11*EU44 -> 0 | EV45: =$F$45/12*EV12*EV11*EV44 -> 0 | EW45: =$F$45/12*EW12*EW11*EW44 -> 0 | EX45: =$F$45/12*EX12*EX11*EX44 -> 0 | EY45: =$F$45/12*EY12*EY11*EY44 -> 0 | EZ45: =$F$45/12*EZ12*EZ11*EZ44 -> 0 | FA45: =$F$45/12*FA12*FA11*FA44 -> 0 | FB45: =$F$45/12*FB12*FB11*FB44 -> 0 | FC45: =$F$45/12*FC12*FC11*FC44 -> 0 | FD45: =$F$45/12*FD12*FD11*FD44 -> 0 | FE45: =$F$45/12*FE12*FE11*FE44 -> 0 | FF45: =$F$45/12*FF12*FF11*FF44 -> 0 | FG45: =$F$45/12*FG12*FG11*FG44 -> 0 | FH45: =$F$45/12*FH12*FH11*FH44 -> 0 | FI45: =$F$45/12*FI12*FI11*FI44 -> 0 | FJ45: =$F$45/12*FJ12*FJ11*FJ44 -> 0 | FK45: =$F$45/12*FK12*FK11*FK44 -> 0 | FL45: =$F$45/12*FL12*FL11*FL44 -> 0 | FM45: =$F$45/12*FM12*FM11*FM44 -> 0 | FN45: =$F$45/12*FN12*FN11*FN44 -> 0 | FO45: =$F$45/12*FO12*FO11*FO44 -> 0 | FP45: =$F$45/12*FP12*FP11*FP44 -> 0 | FQ45: =$F$45/12*FQ12*FQ11*FQ44 -> 0 | FR45: =$F$45/12*FR12*FR11*FR44 -> 0 | FS45: =$F$45/12*FS12*FS11*FS44 -> 0 | FT45: =$F$45/12*FT12*FT11*FT44 -> 0 | FU45: =$F$45/12*FU12*FU11*FU44 -> 0 | FV45: =$F$45/12*FV12*FV11*FV44 -> 0 | FW45: =$F$45/12*FW12*FW11*FW44 -> 0 | FX45: =$F$45/12*FX12*FX11*FX44 -> 0 | FY45: =$F$45/12*FY12*FY11*FY44 -> 0 | FZ45: =$F$45/12*FZ12*FZ11*FZ44 -> 0 | GA45: =$F$45/12*GA12*GA11*GA44 -> 0 | GB45: =$F$45/12*GB12*GB11*GB44 -> 0 | GC45: =$F$45/12*GC12*GC11*GC44 -> 0 | GD45: =$F$45/12*GD12*GD11*GD44 -> 0 | GE45: =$F$45/12*GE12*GE11*GE44 -> 0 | GF45: =$F$45/12*GF12*GF11*GF44 -> 0 | GG45: =$F$45/12*GG12*GG11*GG44 -> 0 | GH45: =$F$45/12*GH12*GH11*GH44 -> 0 | GI45: =$F$45/12*GI12*GI11*GI44 -> 0 | GJ45: =$F$45/12*GJ12*GJ11*GJ44 -> 0 | GK45: =$F$45/12*GK12*GK11*GK44 -> 0 | GL45: =$F$45/12*GL12*GL11*GL44 -> 0 | GM45: =$F$45/12*GM12*GM11*GM44 -> 0 | GN45: =$F$45/12*GN12*GN11*GN44 -> 0 | GO45: =$F$45/12*GO12*GO11*GO44 -> 0 | GP45: =$F$45/12*GP12*GP11*GP44 -> 0 | GQ45: =$F$45/12*GQ12*GQ11*GQ44 -> 0 | GR45: =$F$45/12*GR12*GR11*GR44 -> 0 | GS45: =$F$45/12*GS12*GS11*GS44 -> 0 | GT45: =$F$45/12*GT12*GT11*GT44 -> 0 | GU45: =$F$45/12*GU12*GU11*GU44 -> 0 | GV45: =$F$45/12*GV12*GV11*GV44 -> 0 | GW45: =$F$45/12*GW12*GW11*GW44 -> 0 | GX45: =$F$45/12*GX12*GX11*GX44 -> 0 | GY45: =$F$45/12*GY12*GY11*GY44 -> 0 | GZ45: =$F$45/12*GZ12*GZ11*GZ44 -> 0 | HA45: =$F$45/12*HA12*HA11*HA44 -> 0
B46: Pre-tax Cash Flow | J46: =J45-J43 -> -263.1578947 | K46: =K45-K43 -> -263.1578947 | L46: -263.1578947 | M46: -263.1578947 | N46: -263.1578947 | O46: -263.1578947 | P46: -263.1578947 | Q46: -263.1578947 | R46: -263.1578947 | S46: -263.1578947 | T46: -263.1578947 | U46: -263.1578947 | V46: -263.1578947 | W46: -263.1578947 | X46: -263.1578947 | Y46: -263.1578947 | Z46: -263.1578947 | AA46: -263.1578947 | AB46: -263.1578947 | AC46: -263.1578947 | AD46: -263.1578947 | AE46: -263.1578947 | AF46: -263.1578947 | AG46: -263.1578947 | AH46: -263.1578947 | AI46: -263.1578947 | AJ46: -263.1578947 | AK46: -263.1578947 | AL46: -263.1578947 | AM46: -263.1578947 | AN46: -263.1578947 | AO46: -263.1578947 | AP46: -263.1578947 | AQ46: -263.1578947 | AR46: -263.1578947 | AS46: -263.1578947 | AT46: -263.1578947 | AU46: -263.1578947 | AV46: 451.6256746 | AW46: 458.35 | AX46: 465.1744449 | AY46: 472.1005 | AZ46: 479.1296782 | BA46: 486.263515 | BB46: 493.5035686 | BC46: 500.8514205 | BD46: 508.3086756 | BE46: 515.8769631 | BF46: 523.5579359 | BG46: 531.353272 | BH46: 539.264674 | BI46: 547.2938701 | BJ46: 555.4426142 | BK46: 563.7126862 | BL46: 572.1058926 | BM46: 580.6240668 | BN46: 589.2690694 | BO46: 598.0427888 | BP46: 606.9471415 | BQ46: 615.9840725 | BR46: 625.1555557 | BS46: 634.4635946 | BT46: 643.9102224 | BU46: 653.4975025 | BV46: 663.2275291 | BW46: =BW45-BW43 -> 673.1024276 | BX46: 683.124355 | BY46: 693.2955004 | BZ46: 703.6180856 | CA46: 714.0943654 | CB46: 724.7266282 | CC46: 735.5171964 | CD46: 746.468427 | CE46: 757.5827123 | CF46: 768.8624798 | CG46: 780.3101936 | CH46: 791.9283542 | CI46: 803.7194994 | CJ46: 0 | CK46: 0 | CL46: 0 | CM46: 0 | CN46: 0 | CO46: 0 | CP46: 0 | CQ46: 0 | CR46: 0 | CS46: 0 | CT46: 0 | CU46: 0 | CV46: 0 | CW46: 0 | CX46: 0 | CY46: 0 | CZ46: 0 | DA46: 0 | DB46: 0 | DC46: 0 | DD46: 0 | DE46: 0 | DF46: 0 | DG46: 0 | DH46: 0 | DI46: 0 | DJ46: 0 | DK46: 0 | DL46: 0 | DM46: 0 | DN46: 0 | DO46: 0 | DP46: 0 | DQ46: 0 | DR46: 0 | DS46: 0 | DT46: 0 | DU46: 0 | DV46: 0 | DW46: 0 | DX46: 0 | DY46: 0 | DZ46: 0 | EA46: 0 | EB46: 0 | EC46: 0 | ED46: 0 | EE46: 0 | EF46: 0 | EG46: 0 | EH46: 0 | EI46: =EI45-EI43 -> 0 | EJ46: 0 | EK46: 0 | EL46: 0 | EM46: 0 | EN46: 0 | EO46: 0 | EP46: 0 | EQ46: 0 | ER46: 0 | ES46: 0 | ET46: 0 | EU46: 0 | EV46: 0 | EW46: 0 | EX46: 0 | EY46: 0 | EZ46: 0 | FA46: 0 | FB46: 0 | FC46: 0 | FD46: 0 | FE46: 0 | FF46: 0 | FG46: 0 | FH46: 0 | FI46: 0 | FJ46: 0 | FK46: 0 | FL46: 0 | FM46: 0 | FN46: 0 | FO46: 0 | FP46: 0 | FQ46: 0 | FR46: 0 | FS46: 0 | FT46: 0 | FU46: 0 | FV46: 0 | FW46: 0 | FX46: 0 | FY46: 0 | FZ46: 0 | GA46: 0 | GB46: 0 | GC46: 0 | GD46: 0 | GE46: 0 | GF46: 0 | GG46: 0 | GH46: 0 | GI46: 0 | GJ46: 0 | GK46: 0 | GL46: 0 | GM46: 0 | GN46: 0 | GO46: 0 | GP46: 0 | GQ46: 0 | GR46: 0 | GS46: 0 | GT46: 0 | GU46: =GU45-GU43 -> 0 | GV46: 0 | GW46: 0 | GX46: 0 | GY46: 0 | GZ46: 0 | HA46: 0
B47: Pre-tax IRR | F47: =XIRR(J46:HA46,J14:HA14) -> 0.080660972
A49: Financing
B50: Uses
C51: Capital Expenditure | J51: =J43 -> 263.1578947 | K51: =K43 -> 263.1578947 | L51: 263.1578947 | M51: 263.1578947 | N51: 263.1578947 | O51: 263.1578947 | P51: 263.1578947 | Q51: 263.1578947 | R51: 263.1578947 | S51: 263.1578947 | T51: 263.1578947 | U51: 263.1578947 | V51: 263.1578947 | W51: 263.1578947 | X51: 263.1578947 | Y51: 263.1578947 | Z51: 263.1578947 | AA51: 263.1578947 | AB51: 263.1578947 | AC51: 263.1578947 | AD51: 263.1578947 | AE51: 263.1578947 | AF51: 263.1578947 | AG51: 263.1578947 | AH51: 263.1578947 | AI51: 263.1578947 | AJ51: 263.1578947 | AK51: 263.1578947 | AL51: 263.1578947 | AM51: 263.1578947 | AN51: 263.1578947 | AO51: 263.1578947 | AP51: 263.1578947 | AQ51: 263.1578947 | AR51: 263.1578947 | AS51: 263.1578947 | AT51: 263.1578947 | AU51: 263.1578947 | AV51: 0 | AW51: 0 | AX51: 0 | AY51: 0 | AZ51: 0 | BA51: 0 | BB51: 0 | BC51: 0 | BD51: 0 | BE51: 0 | BF51: 0 | BG51: 0 | BH51: 0 | BI51: 0 | BJ51: 0 | BK51: 0 | BL51: 0 | BM51: 0 | BN51: 0 | BO51: 0 | BP51: 0 | BQ51: 0 | BR51: 0 | BS51: 0 | BT51: 0 | BU51: 0 | BV51: 0 | BW51: =BW43 -> 0 | BX51: 0 | BY51: 0 | BZ51: 0 | CA51: 0 | CB51: 0 | CC51: 0 | CD51: 0 | CE51: 0 | CF51: 0 | CG51: 0 | CH51: 0 | CI51: 0 | CJ51: 0 | CK51: 0 | CL51: 0 | CM51: 0 | CN51: 0 | CO51: 0 | CP51: 0 | CQ51: 0 | CR51: 0 | CS51: 0 | CT51: 0 | CU51: 0 | CV51: 0 | CW51: 0 | CX51: 0 | CY51: 0 | CZ51: 0 | DA51: 0 | DB51: 0 | DC51: 0 | DD51: 0 | DE51: 0 | DF51: 0 | DG51: 0 | DH51: 0 | DI51: 0 | DJ51: 0 | DK51: 0 | DL51: 0 | DM51: 0 | DN51: 0 | DO51: 0 | DP51: 0 | DQ51: 0 | DR51: 0 | DS51: 0 | DT51: 0 | DU51: 0 | DV51: 0 | DW51: 0 | DX51: 0 | DY51: 0 | DZ51: 0 | EA51: 0 | EB51: 0 | EC51: 0 | ED51: 0 | EE51: 0 | EF51: 0 | EG51: 0 | EH51: 0 | EI51: =EI43 -> 0 | EJ51: 0 | EK51: 0 | EL51: 0 | EM51: 0 | EN51: 0 | EO51: 0 | EP51: 0 | EQ51: 0 | ER51: 0 | ES51: 0 | ET51: 0 | EU51: 0 | EV51: 0 | EW51: 0 | EX51: 0 | EY51: 0 | EZ51: 0 | FA51: 0 | FB51: 0 | FC51: 0 | FD51: 0 | FE51: 0 | FF51: 0 | FG51: 0 | FH51: 0 | FI51: 0 | FJ51: 0 | FK51: 0 | FL51: 0 | FM51: 0 | FN51: 0 | FO51: 0 | FP51: 0 | FQ51: 0 | FR51: 0 | FS51: 0 | FT51: 0 | FU51: 0 | FV51: 0 | FW51: 0 | FX51: 0 | FY51: 0 | FZ51: 0 | GA51: 0 | GB51: 0 | GC51: 0 | GD51: 0 | GE51: 0 | GF51: 0 | GG51: 0 | GH51: 0 | GI51: 0 | GJ51: 0 | GK51: 0 | GL51: 0 | GM51: 0 | GN51: 0 | GO51: 0 | GP51: 0 | GQ51: 0 | GR51: 0 | GS51: 0 | GT51: 0 | GU51: =GU43 -> 0 | GV51: 0 | GW51: 0 | GX51: 0 | GY51: 0 | GZ51: 0 | HA51: 0
C52: IDC | J52: =J69+J81 -> 0 | K52: =K69+K81 -> 0.6140350877 | L52: 1.228070175 | M52: 1.842105263 | N52: 2.456140351 | O52: 3.070175439 | P52: 3.684210526 | Q52: 4.298245614 | R52: 4.912280702 | S52: 5.526315789 | T52: 6.140350877 | U52: 6.754385965 | V52: 7.368421053 | W52: 7.98245614 | X52: 8.596491228 | Y52: 9.210526316 | Z52: 9.824561404 | AA52: 10.43859649 | AB52: 11.05263158 | AC52: 11.66666667 | AD52: 12.28070175 | AE52: 12.89473684 | AF52: 13.50877193 | AG52: 14.12280702 | AH52: 14.73684211 | AI52: 15.35087719 | AJ52: 15.96491228 | AK52: 16.57894737 | AL52: 17.19298246 | AM52: 17.80701754 | AN52: 18.42105263 | AO52: 19.03508772 | AP52: 19.64912281 | AQ52: 20.26315789 | AR52: 20.87719298 | AS52: 21.49122807 | AT52: 22.10526316 | AU52: 22.71929825 | AV52: 0 | AW52: 0 | AX52: 0 | AY52: 0 | AZ52: 0 | BA52: 0 | BB52: 0 | BC52: 0 | BD52: 0 | BE52: 0 | BF52: 0 | BG52: 0 | BH52: 0 | BI52: 0 | BJ52: 0 | BK52: 0 | BL52: 0 | BM52: 0 | BN52: 0 | BO52: 0 | BP52: 0 | BQ52: 0 | BR52: 0 | BS52: 0 | BT52: 0 | BU52: 0 | BV52: 0 | BW52: =BW69+BW81 -> 0 | BX52: 0 | BY52: 0 | BZ52: 0 | CA52: 0 | CB52: 0 | CC52: 0 | CD52: 0 | CE52: 0 | CF52: 0 | CG52: 0 | CH52: 0 | CI52: 0 | CJ52: 0 | CK52: 0 | CL52: 0 | CM52: 0 | CN52: 0 | CO52: 0 | CP52: 0 | CQ52: 0 | CR52: 0 | CS52: 0 | CT52: 0 | CU52: 0 | CV52: 0 | CW52: 0 | CX52: 0 | CY52: 0 | CZ52: 0 | DA52: 0 | DB52: 0 | DC52: 0 | DD52: 0 | DE52: 0 | DF52: 0 | DG52: 0 | DH52: 0 | DI52: 0 | DJ52: 0 | DK52: 0 | DL52: 0 | DM52: 0 | DN52: 0 | DO52: 0 | DP52: 0 | DQ52: 0 | DR52: 0 | DS52: 0 | DT52: 0 | DU52: 0 | DV52: 0 | DW52: 0 | DX52: 0 | DY52: 0 | DZ52: 0 | EA52: 0 | EB52: 0 | EC52: 0 | ED52: 0 | EE52: 0 | EF52: 0 | EG52: 0 | EH52: 0 | EI52: =EI69+EI81 -> 0 | EJ52: 0 | EK52: 0 | EL52: 0 | EM52: 0 | EN52: 0 | EO52: 0 | EP52: 0 | EQ52: 0 | ER52: 0 | ES52: 0 | ET52: 0 | EU52: 0 | EV52: 0 | EW52: 0 | EX52: 0 | EY52: 0 | EZ52: 0 | FA52: 0 | FB52: 0 | FC52: 0 | FD52: 0 | FE52: 0 | FF52: 0 | FG52: 0 | FH52: 0 | FI52: 0 | FJ52: 0 | FK52: 0 | FL52: 0 | FM52: 0 | FN52: 0 | FO52: 0 | FP52: 0 | FQ52: 0 | FR52: 0 | FS52: 0 | FT52: 0 | FU52: 0 | FV52: 0 | FW52: 0 | FX52: 0 | FY52: 0 | FZ52: 0 | GA52: 0 | GB52: 0 | GC52: 0 | GD52: 0 | GE52: 0 | GF52: 0 | GG52: 0 | GH52: 0 | GI52: 0 | GJ52: 0 | GK52: 0 | GL52: 0 | GM52: 0 | GN52: 0 | GO52: 0 | GP52: 0 | GQ52: 0 | GR52: 0 | GS52: 0 | GT52: 0 | GU52: =GU69+GU81 -> 0 | GV52: 0 | GW52: 0 | GX52: 0 | GY52: 0 | GZ52: 0 | HA52: 0
D53: Total | J53: =SUM(J51:J52) -> 263.1578947 | K53: =SUM(K51:K52) -> 263.7719298 | L53: 264.3859649 | M53: 265 | N53: 265.6140351 | O53: 266.2280702 | P53: 266.8421053 | Q53: 267.4561404 | R53: 268.0701754 | S53: 268.6842105 | T53: 269.2982456 | U53: 269.9122807 | V53: 270.5263158 | W53: 271.1403509 | X53: 271.754386 | Y53: 272.3684211 | Z53: 272.9824561 | AA53: 273.5964912 | AB53: 274.2105263 | AC53: 274.8245614 | AD53: 275.4385965 | AE53: 276.0526316 | AF53: 276.6666667 | AG53: 277.2807018 | AH53: 277.8947368 | AI53: 278.5087719 | AJ53: 279.122807 | AK53: 279.7368421 | AL53: 280.3508772 | AM53: 280.9649123 | AN53: 281.5789474 | AO53: 282.1929825 | AP53: 282.8070175 | AQ53: 283.4210526 | AR53: 284.0350877 | AS53: 284.6491228 | AT53: 285.2631579 | AU53: 285.877193 | AV53: 0 | AW53: 0 | AX53: 0 | AY53: 0 | AZ53: 0 | BA53: 0 | BB53: 0 | BC53: 0 | BD53: 0 | BE53: 0 | BF53: 0 | BG53: 0 | BH53: 0 | BI53: 0 | BJ53: 0 | BK53: 0 | BL53: 0 | BM53: 0 | BN53: 0 | BO53: 0 | BP53: 0 | BQ53: 0 | BR53: 0 | BS53: 0 | BT53: 0 | BU53: 0 | BV53: 0 | BW53: =SUM(BW51:BW52) -> 0 | BX53: 0 | BY53: 0 | BZ53: 0 | CA53: 0 | CB53: 0 | CC53: 0 | CD53: 0 | CE53: 0 | CF53: 0 | CG53: 0 | CH53: 0 | CI53: 0 | CJ53: 0 | CK53: 0 | CL53: 0 | CM53: 0 | CN53: 0 | CO53: 0 | CP53: 0 | CQ53: 0 | CR53: 0 | CS53: 0 | CT53: 0 | CU53: 0 | CV53: 0 | CW53: 0 | CX53: 0 | CY53: 0 | CZ53: 0 | DA53: 0 | DB53: 0 | DC53: 0 | DD53: 0 | DE53: 0 | DF53: 0 | DG53: 0 | DH53: 0 | DI53: 0 | DJ53: 0 | DK53: 0 | DL53: 0 | DM53: 0 | DN53: 0 | DO53: 0 | DP53: 0 | DQ53: 0 | DR53: 0 | DS53: 0 | DT53: 0 | DU53: 0 | DV53: 0 | DW53: 0 | DX53: 0 | DY53: 0 | DZ53: 0 | EA53: 0 | EB53: 0 | EC53: 0 | ED53: 0 | EE53: 0 | EF53: 0 | EG53: 0 | EH53: 0 | EI53: =SUM(EI51:EI52) -> 0 | EJ53: 0 | EK53: 0 | EL53: 0 | EM53: 0 | EN53: 0 | EO53: 0 | EP53: 0 | EQ53: 0 | ER53: 0 | ES53: 0 | ET53: 0 | EU53: 0 | EV53: 0 | EW53: 0 | EX53: 0 | EY53: 0 | EZ53: 0 | FA53: 0 | FB53: 0 | FC53: 0 | FD53: 0 | FE53: 0 | FF53: 0 | FG53: 0 | FH53: 0 | FI53: 0 | FJ53: 0 | FK53: 0 | FL53: 0 | FM53: 0 | FN53: 0 | FO53: 0 | FP53: 0 | FQ53: 0 | FR53: 0 | FS53: 0 | FT53: 0 | FU53: 0 | FV53: 0 | FW53: 0 | FX53: 0 | FY53: 0 | FZ53: 0 | GA53: 0 | GB53: 0 | GC53: 0 | GD53: 0 | GE53: 0 | GF53: 0 | GG53: 0 | GH53: 0 | GI53: 0 | GJ53: 0 | GK53: 0 | GL53: 0 | GM53: 0 | GN53: 0 | GO53: 0 | GP53: 0 | GQ53: 0 | GR53: 0 | GS53: 0 | GT53: 0 | GU53: =SUM(GU51:GU52) -> 0 | GV53: 0 | GW53: 0 | GX53: 0 | GY53: 0 | GZ53: 0 | HA53: 0
B55: Sources
C56: Debt 1 | F56: =F32 -> 4000 | J56: =J51/SUM(51:51)*$F$56 -> 105.2631579 | K56: =K51/SUM(51:51)*$F$56 -> 105.2631579 | L56: 105.2631579 | M56: 105.2631579 | N56: 105.2631579 | O56: 105.2631579 | P56: 105.2631579 | Q56: 105.2631579 | R56: 105.2631579 | S56: 105.2631579 | T56: 105.2631579 | U56: 105.2631579 | V56: 105.2631579 | W56: 105.2631579 | X56: 105.2631579 | Y56: 105.2631579 | Z56: 105.2631579 | AA56: 105.2631579 | AB56: 105.2631579 | AC56: 105.2631579 | AD56: 105.2631579 | AE56: 105.2631579 | AF56: 105.2631579 | AG56: 105.2631579 | AH56: 105.2631579 | AI56: 105.2631579 | AJ56: 105.2631579 | AK56: 105.2631579 | AL56: 105.2631579 | AM56: 105.2631579 | AN56: 105.2631579 | AO56: 105.2631579 | AP56: 105.2631579 | AQ56: 105.2631579 | AR56: 105.2631579 | AS56: 105.2631579 | AT56: 105.2631579 | AU56: 105.2631579 | AV56: 0 | AW56: 0 | AX56: 0 | AY56: 0 | AZ56: 0 | BA56: 0 | BB56: 0 | BC56: 0 | BD56: 0 | BE56: 0 | BF56: 0 | BG56: 0 | BH56: 0 | BI56: 0 | BJ56: 0 | BK56: 0 | BL56: 0 | BM56: 0 | BN56: 0 | BO56: 0 | BP56: 0 | BQ56: 0 | BR56: 0 | BS56: 0 | BT56: 0 | BU56: 0 | BV56: 0 | BW56: =BW51/SUM(51:51)*$F$56 -> 0 | BX56: 0 | BY56: 0 | BZ56: 0 | CA56: 0 | CB56: 0 | CC56: 0 | CD56: 0 | CE56: 0 | CF56: 0 | CG56: 0 | CH56: 0 | CI56: 0 | CJ56: 0 | CK56: 0 | CL56: 0 | CM56: 0 | CN56: 0 | CO56: 0 | CP56: 0 | CQ56: 0 | CR56: 0 | CS56: 0 | CT56: 0 | CU56: 0 | CV56: 0 | CW56: 0 | CX56: 0 | CY56: 0 | CZ56: 0 | DA56: 0 | DB56: 0 | DC56: 0 | DD56: 0 | DE56: 0 | DF56: 0 | DG56: 0 | DH56: 0 | DI56: 0 | DJ56: 0 | DK56: 0 | DL56: 0 | DM56: 0 | DN56: 0 | DO56: 0 | DP56: 0 | DQ56: 0 | DR56: 0 | DS56: 0 | DT56: 0 | DU56: 0 | DV56: 0 | DW56: 0 | DX56: 0 | DY56: 0 | DZ56: 0 | EA56: 0 | EB56: 0 | EC56: 0 | ED56: 0 | EE56: 0 | EF56: 0 | EG56: 0 | EH56: 0 | EI56: =EI51/SUM(51:51)*$F$56 -> 0 | EJ56: 0 | EK56: 0 | EL56: 0 | EM56: 0 | EN56: 0 | EO56: 0 | EP56: 0 | EQ56: 0 | ER56: 0 | ES56: 0 | ET56: 0 | EU56: 0 | EV56: 0 | EW56: 0 | EX56: 0 | EY56: 0 | EZ56: 0 | FA56: 0 | FB56: 0 | FC56: 0 | FD56: 0 | FE56: 0 | FF56: 0 | FG56: 0 | FH56: 0 | FI56: 0 | FJ56: 0 | FK56: 0 | FL56: 0 | FM56: 0 | FN56: 0 | FO56: 0 | FP56: 0 | FQ56: 0 | FR56: 0 | FS56: 0 | FT56: 0 | FU56: 0 | FV56: 0 | FW56: 0 | FX56: 0 | FY56: 0 | FZ56: 0 | GA56: 0 | GB56: 0 | GC56: 0 | GD56: 0 | GE56: 0 | GF56: 0 | GG56: 0 | GH56: 0 | GI56: 0 | GJ56: 0 | GK56: 0 | GL56: 0 | GM56: 0 | GN56: 0 | GO56: 0 | GP56: 0 | GQ56: 0 | GR56: 0 | GS56: 0 | GT56: 0 | GU56: =GU51/SUM(51:51)*$F$56 -> 0 | GV56: 0 | GW56: 0 | GX56: 0 | GY56: 0 | GZ56: 0 | HA56: 0
C57: Debt 2 | F57: =F37 -> 3000 | J57: =J51/SUM(51:51)*$F$57 -> 78.94736842 | K57: =K51/SUM(51:51)*$F$57 -> 78.94736842 | L57: 78.94736842 | M57: 78.94736842 | N57: 78.94736842 | O57: 78.94736842 | P57: 78.94736842 | Q57: 78.94736842 | R57: 78.94736842 | S57: 78.94736842 | T57: 78.94736842 | U57: 78.94736842 | V57: 78.94736842 | W57: 78.94736842 | X57: 78.94736842 | Y57: 78.94736842 | Z57: 78.94736842 | AA57: 78.94736842 | AB57: 78.94736842 | AC57: 78.94736842 | AD57: 78.94736842 | AE57: 78.94736842 | AF57: 78.94736842 | AG57: 78.94736842 | AH57: 78.94736842 | AI57: 78.94736842 | AJ57: 78.94736842 | AK57: 78.94736842 | AL57: 78.94736842 | AM57: 78.94736842 | AN57: 78.94736842 | AO57: 78.94736842 | AP57: 78.94736842 | AQ57: 78.94736842 | AR57: 78.94736842 | AS57: 78.94736842 | AT57: 78.94736842 | AU57: 78.94736842 | AV57: 0 | AW57: 0 | AX57: 0 | AY57: 0 | AZ57: 0 | BA57: 0 | BB57: 0 | BC57: 0 | BD57: 0 | BE57: 0 | BF57: 0 | BG57: 0 | BH57: 0 | BI57: 0 | BJ57: 0 | BK57: 0 | BL57: 0 | BM57: 0 | BN57: 0 | BO57: 0 | BP57: 0 | BQ57: 0 | BR57: 0 | BS57: 0 | BT57: 0 | BU57: 0 | BV57: 0 | BW57: =BW51/SUM(51:51)*$F$57 -> 0 | BX57: 0 | BY57: 0 | BZ57: 0 | CA57: 0 | CB57: 0 | CC57: 0 | CD57: 0 | CE57: 0 | CF57: 0 | CG57: 0 | CH57: 0 | CI57: 0 | CJ57: 0 | CK57: 0 | CL57: 0 | CM57: 0 | CN57: 0 | CO57: 0 | CP57: 0 | CQ57: 0 | CR57: 0 | CS57: 0 | CT57: 0 | CU57: 0 | CV57: 0 | CW57: 0 | CX57: 0 | CY57: 0 | CZ57: 0 | DA57: 0 | DB57: 0 | DC57: 0 | DD57: 0 | DE57: 0 | DF57: 0 | DG57: 0 | DH57: 0 | DI57: 0 | DJ57: 0 | DK57: 0 | DL57: 0 | DM57: 0 | DN57: 0 | DO57: 0 | DP57: 0 | DQ57: 0 | DR57: 0 | DS57: 0 | DT57: 0 | DU57: 0 | DV57: 0 | DW57: 0 | DX57: 0 | DY57: 0 | DZ57: 0 | EA57: 0 | EB57: 0 | EC57: 0 | ED57: 0 | EE57: 0 | EF57: 0 | EG57: 0 | EH57: 0 | EI57: =EI51/SUM(51:51)*$F$57 -> 0 | EJ57: 0 | EK57: 0 | EL57: 0 | EM57: 0 | EN57: 0 | EO57: 0 | EP57: 0 | EQ57: 0 | ER57: 0 | ES57: 0 | ET57: 0 | EU57: 0 | EV57: 0 | EW57: 0 | EX57: 0 | EY57: 0 | EZ57: 0 | FA57: 0 | FB57: 0 | FC57: 0 | FD57: 0 | FE57: 0 | FF57: 0 | FG57: 0 | FH57: 0 | FI57: 0 | FJ57: 0 | FK57: 0 | FL57: 0 | FM57: 0 | FN57: 0 | FO57: 0 | FP57: 0 | FQ57: 0 | FR57: 0 | FS57: 0 | FT57: 0 | FU57: 0 | FV57: 0 | FW57: 0 | FX57: 0 | FY57: 0 | FZ57: 0 | GA57: 0 | GB57: 0 | GC57: 0 | GD57: 0 | GE57: 0 | GF57: 0 | GG57: 0 | GH57: 0 | GI57: 0 | GJ57: 0 | GK57: 0 | GL57: 0 | GM57: 0 | GN57: 0 | GO57: 0 | GP57: 0 | GQ57: 0 | GR57: 0 | GS57: 0 | GT57: 0 | GU57: =GU51/SUM(51:51)*$F$57 -> 0 | GV57: 0 | GW57: 0 | GX57: 0 | GY57: 0 | GZ57: 0 | HA57: 0
C58: Equity | J58: =J53-J56-J57 -> 78.94736842 | K58: =K53-K56-K57 -> 79.56140351 | L58: 80.1754386 | M58: 80.78947368 | N58: 81.40350877 | O58: 82.01754386 | P58: 82.63157895 | Q58: 83.24561404 | R58: 83.85964912 | S58: 84.47368421 | T58: 85.0877193 | U58: 85.70175439 | V58: 86.31578947 | W58: 86.92982456 | X58: 87.54385965 | Y58: 88.15789474 | Z58: 88.77192982 | AA58: 89.38596491 | AB58: 90 | AC58: 90.61403509 | AD58: 91.22807018 | AE58: 91.84210526 | AF58: 92.45614035 | AG58: 93.07017544 | AH58: 93.68421053 | AI58: 94.29824561 | AJ58: 94.9122807 | AK58: 95.52631579 | AL58: 96.14035088 | AM58: 96.75438596 | AN58: 97.36842105 | AO58: 97.98245614 | AP58: 98.59649123 | AQ58: 99.21052632 | AR58: 99.8245614 | AS58: 100.4385965 | AT58: 101.0526316 | AU58: 101.6666667 | AV58: 0 | AW58: 0 | AX58: 0 | AY58: 0 | AZ58: 0 | BA58: 0 | BB58: 0 | BC58: 0 | BD58: 0 | BE58: 0 | BF58: 0 | BG58: 0 | BH58: 0 | BI58: 0 | BJ58: 0 | BK58: 0 | BL58: 0 | BM58: 0 | BN58: 0 | BO58: 0 | BP58: 0 | BQ58: 0 | BR58: 0 | BS58: 0 | BT58: 0 | BU58: 0 | BV58: 0 | BW58: =BW53-BW56-BW57 -> 0 | BX58: 0 | BY58: 0 | BZ58: 0 | CA58: 0 | CB58: 0 | CC58: 0 | CD58: 0 | CE58: 0 | CF58: 0 | CG58: 0 | CH58: 0 | CI58: 0 | CJ58: 0 | CK58: 0 | CL58: 0 | CM58: 0 | CN58: 0 | CO58: 0 | CP58: 0 | CQ58: 0 | CR58: 0 | CS58: 0 | CT58: 0 | CU58: 0 | CV58: 0 | CW58: 0 | CX58: 0 | CY58: 0 | CZ58: 0 | DA58: 0 | DB58: 0 | DC58: 0 | DD58: 0 | DE58: 0 | DF58: 0 | DG58: 0 | DH58: 0 | DI58: 0 | DJ58: 0 | DK58: 0 | DL58: 0 | DM58: 0 | DN58: 0 | DO58: 0 | DP58: 0 | DQ58: 0 | DR58: 0 | DS58: 0 | DT58: 0 | DU58: 0 | DV58: 0 | DW58: 0 | DX58: 0 | DY58: 0 | DZ58: 0 | EA58: 0 | EB58: 0 | EC58: 0 | ED58: 0 | EE58: 0 | EF58: 0 | EG58: 0 | EH58: 0 | EI58: =EI53-EI56-EI57 -> 0 | EJ58: 0 | EK58: 0 | EL58: 0 | EM58: 0 | EN58: 0 | EO58: 0 | EP58: 0 | EQ58: 0 | ER58: 0 | ES58: 0 | ET58: 0 | EU58: 0 | EV58: 0 | EW58: 0 | EX58: 0 | EY58: 0 | EZ58: 0 | FA58: 0 | FB58: 0 | FC58: 0 | FD58: 0 | FE58: 0 | FF58: 0 | FG58: 0 | FH58: 0 | FI58: 0 | FJ58: 0 | FK58: 0 | FL58: 0 | FM58: 0 | FN58: 0 | FO58: 0 | FP58: 0 | FQ58: 0 | FR58: 0 | FS58: 0 | FT58: 0 | FU58: 0 | FV58: 0 | FW58: 0 | FX58: 0 | FY58: 0 | FZ58: 0 | GA58: 0 | GB58: 0 | GC58: 0 | GD58: 0 | GE58: 0 | GF58: 0 | GG58: 0 | GH58: 0 | GI58: 0 | GJ58: 0 | GK58: 0 | GL58: 0 | GM58: 0 | GN58: 0 | GO58: 0 | GP58: 0 | GQ58: 0 | GR58: 0 | GS58: 0 | GT58: 0 | GU58: =GU53-GU56-GU57 -> 0 | GV58: 0 | GW58: 0 | GX58: 0 | GY58: 0 | GZ58: 0 | HA58: 0
D59: Total | J59: =SUM(J56:J58) -> 263.1578947 | K59: =SUM(K56:K58) -> 263.7719298 | L59: 264.3859649 | M59: 265 | N59: 265.6140351 | O59: 266.2280702 | P59: 266.8421053 | Q59: 267.4561404 | R59: 268.0701754 | S59: 268.6842105 | T59: 269.2982456 | U59: 269.9122807 | V59: 270.5263158 | W59: 271.1403509 | X59: 271.754386 | Y59: 272.3684211 | Z59: 272.9824561 | AA59: 273.5964912 | AB59: 274.2105263 | AC59: 274.8245614 | AD59: 275.4385965 | AE59: 276.0526316 | AF59: 276.6666667 | AG59: 277.2807018 | AH59: 277.8947368 | AI59: 278.5087719 | AJ59: 279.122807 | AK59: 279.7368421 | AL59: 280.3508772 | AM59: 280.9649123 | AN59: 281.5789474 | AO59: 282.1929825 | AP59: 282.8070175 | AQ59: 283.4210526 | AR59: 284.0350877 | AS59: 284.6491228 | AT59: 285.2631579 | AU59: 285.877193 | AV59: 0 | AW59: 0 | AX59: 0 | AY59: 0 | AZ59: 0 | BA59: 0 | BB59: 0 | BC59: 0 | BD59: 0 | BE59: 0 | BF59: 0 | BG59: 0 | BH59: 0 | BI59: 0 | BJ59: 0 | BK59: 0 | BL59: 0 | BM59: 0 | BN59: 0 | BO59: 0 | BP59: 0 | BQ59: 0 | BR59: 0 | BS59: 0 | BT59: 0 | BU59: 0 | BV59: 0 | BW59: =SUM(BW56:BW58) -> 0 | BX59: 0 | BY59: 0 | BZ59: 0 | CA59: 0 | CB59: 0 | CC59: 0 | CD59: 0 | CE59: 0 | CF59: 0 | CG59: 0 | CH59: 0 | CI59: 0 | CJ59: 0 | CK59: 0 | CL59: 0 | CM59: 0 | CN59: 0 | CO59: 0 | CP59: 0 | CQ59: 0 | CR59: 0 | CS59: 0 | CT59: 0 | CU59: 0 | CV59: 0 | CW59: 0 | CX59: 0 | CY59: 0 | CZ59: 0 | DA59: 0 | DB59: 0 | DC59: 0 | DD59: 0 | DE59: 0 | DF59: 0 | DG59: 0 | DH59: 0 | DI59: 0 | DJ59: 0 | DK59: 0 | DL59: 0 | DM59: 0 | DN59: 0 | DO59: 0 | DP59: 0 | DQ59: 0 | DR59: 0 | DS59: 0 | DT59: 0 | DU59: 0 | DV59: 0 | DW59: 0 | DX59: 0 | DY59: 0 | DZ59: 0 | EA59: 0 | EB59: 0 | EC59: 0 | ED59: 0 | EE59: 0 | EF59: 0 | EG59: 0 | EH59: 0 | EI59: =SUM(EI56:EI58) -> 0 | EJ59: 0 | EK59: 0 | EL59: 0 | EM59: 0 | EN59: 0 | EO59: 0 | EP59: 0 | EQ59: 0 | ER59: 0 | ES59: 0 | ET59: 0 | EU59: 0 | EV59: 0 | EW59: 0 | EX59: 0 | EY59: 0 | EZ59: 0 | FA59: 0 | FB59: 0 | FC59: 0 | FD59: 0 | FE59: 0 | FF59: 0 | FG59: 0 | FH59: 0 | FI59: 0 | FJ59: 0 | FK59: 0 | FL59: 0 | FM59: 0 | FN59: 0 | FO59: 0 | FP59: 0 | FQ59: 0 | FR59: 0 | FS59: 0 | FT59: 0 | FU59: 0 | FV59: 0 | FW59: 0 | FX59: 0 | FY59: 0 | FZ59: 0 | GA59: 0 | GB59: 0 | GC59: 0 | GD59: 0 | GE59: 0 | GF59: 0 | GG59: 0 | GH59: 0 | GI59: 0 | GJ59: 0 | GK59: 0 | GL59: 0 | GM59: 0 | GN59: 0 | GO59: 0 | GP59: 0 | GQ59: 0 | GR59: 0 | GS59: 0 | GT59: 0 | GU59: =SUM(GU56:GU58) -> 0 | GV59: 0 | GW59: 0 | GX59: 0 | GY59: 0 | GZ59: 0 | HA59: 0
A61: Debt Schedule
B62: Debt 1
C63: Opening Balance | J63: =I66 -> 0 | K63: =J66 -> 105.2631579 | L63: 210.5263158 | M63: 315.7894737 | N63: 421.0526316 | O63: 526.3157895 | P63: 631.5789474 | Q63: 736.8421053 | R63: 842.1052632 | S63: 947.3684211 | T63: 1052.631579 | U63: 1157.894737 | V63: 1263.157895 | W63: 1368.421053 | X63: 1473.684211 | Y63: 1578.947368 | Z63: 1684.210526 | AA63: 1789.473684 | AB63: 1894.736842 | AC63: 2000 | AD63: 2105.263158 | AE63: 2210.526316 | AF63: 2315.789474 | AG63: 2421.052632 | AH63: 2526.315789 | AI63: 2631.578947 | AJ63: 2736.842105 | AK63: 2842.105263 | AL63: 2947.368421 | AM63: 3052.631579 | AN63: 3157.894737 | AO63: 3263.157895 | AP63: 3368.421053 | AQ63: 3473.684211 | AR63: 3578.947368 | AS63: 3684.210526 | AT63: 3789.473684 | AU63: 3894.736842 | AV63: 4000 | AW63: 3866.666667 | AX63: 3733.333333 | AY63: 3600 | AZ63: 3466.666667 | BA63: 3333.333333 | BB63: 3200 | BC63: 3066.666667 | BD63: 2933.333333 | BE63: 2800 | BF63: 2666.666667 | BG63: 2533.333333 | BH63: 2400 | BI63: 2266.666667 | BJ63: 2133.333333 | BK63: 2000 | BL63: 1866.666667 | BM63: 1733.333333 | BN63: 1600 | BO63: 1466.666667 | BP63: 1333.333333 | BQ63: 1200 | BR63: 1066.666667 | BS63: 933.3333333 | BT63: 800 | BU63: 666.6666667 | BV63: 533.3333333 | BW63: =BV66 -> 400 | BX63: 266.6666667 | BY63: 133.3333333 | BZ63: 4.604316928e-12 | CA63: 0 | CB63: 0 | CC63: 0 | CD63: 0 | CE63: 0 | CF63: 0 | CG63: 0 | CH63: 0 | CI63: 0 | CJ63: 0 | CK63: 0 | CL63: 0 | CM63: 0 | CN63: 0 | CO63: 0 | CP63: 0 | CQ63: 0 | CR63: 0 | CS63: 0 | CT63: 0 | CU63: 0 | CV63: 0 | CW63: 0 | CX63: 0 | CY63: 0 | CZ63: 0 | DA63: 0 | DB63: 0 | DC63: 0 | DD63: 0 | DE63: 0 | DF63: 0 | DG63: 0 | DH63: 0 | DI63: 0 | DJ63: 0 | DK63: 0 | DL63: 0 | DM63: 0 | DN63: 0 | DO63: 0 | DP63: 0 | DQ63: 0 | DR63: 0 | DS63: 0 | DT63: 0 | DU63: 0 | DV63: 0 | DW63: 0 | DX63: 0 | DY63: 0 | DZ63: 0 | EA63: 0 | EB63: 0 | EC63: 0 | ED63: 0 | EE63: 0 | EF63: 0 | EG63: 0 | EH63: 0 | EI63: =EH66 -> 0 | EJ63: 0 | EK63: 0 | EL63: 0 | EM63: 0 | EN63: 0 | EO63: 0 | EP63: 0 | EQ63: 0 | ER63: 0 | ES63: 0 | ET63: 0 | EU63: 0 | EV63: 0 | EW63: 0 | EX63: 0 | EY63: 0 | EZ63: 0 | FA63: 0 | FB63: 0 | FC63: 0 | FD63: 0 | FE63: 0 | FF63: 0 | FG63: 0 | FH63: 0 | FI63: 0 | FJ63: 0 | FK63: 0 | FL63: 0 | FM63: 0 | FN63: 0 | FO63: 0 | FP63: 0 | FQ63: 0 | FR63: 0 | FS63: 0 | FT63: 0 | FU63: 0 | FV63: 0 | FW63: 0 | FX63: 0 | FY63: 0 | FZ63: 0 | GA63: 0 | GB63: 0 | GC63: 0 | GD63: 0 | GE63: 0 | GF63: 0 | GG63: 0 | GH63: 0 | GI63: 0 | GJ63: 0 | GK63: 0 | GL63: 0 | GM63: 0 | GN63: 0 | GO63: 0 | GP63: 0 | GQ63: 0 | GR63: 0 | GS63: 0 | GT63: 0 | GU63: =GT66 -> 0 | GV63: 0 | GW63: 0 | GX63: 0 | GY63: 0 | GZ63: 0 | HA63: 0
C64: Add: Draws | J64: =J56 -> 105.2631579 | K64: =K56 -> 105.2631579 | L64: 105.2631579 | M64: 105.2631579 | N64: 105.2631579 | O64: 105.2631579 | P64: 105.2631579 | Q64: 105.2631579 | R64: 105.2631579 | S64: 105.2631579 | T64: 105.2631579 | U64: 105.2631579 | V64: 105.2631579 | W64: 105.2631579 | X64: 105.2631579 | Y64: 105.2631579 | Z64: 105.2631579 | AA64: 105.2631579 | AB64: 105.2631579 | AC64: 105.2631579 | AD64: 105.2631579 | AE64: 105.2631579 | AF64: 105.2631579 | AG64: 105.2631579 | AH64: 105.2631579 | AI64: 105.2631579 | AJ64: 105.2631579 | AK64: 105.2631579 | AL64: 105.2631579 | AM64: 105.2631579 | AN64: 105.2631579 | AO64: 105.2631579 | AP64: 105.2631579 | AQ64: 105.2631579 | AR64: 105.2631579 | AS64: 105.2631579 | AT64: 105.2631579 | AU64: 105.2631579 | AV64: 0 | AW64: 0 | AX64: 0 | AY64: 0 | AZ64: 0 | BA64: 0 | BB64: 0 | BC64: 0 | BD64: 0 | BE64: 0 | BF64: 0 | BG64: 0 | BH64: 0 | BI64: 0 | BJ64: 0 | BK64: 0 | BL64: 0 | BM64: 0 | BN64: 0 | BO64: 0 | BP64: 0 | BQ64: 0 | BR64: 0 | BS64: 0 | BT64: 0 | BU64: 0 | BV64: 0 | BW64: =BW56 -> 0 | BX64: 0 | BY64: 0 | BZ64: 0 | CA64: 0 | CB64: 0 | CC64: 0 | CD64: 0 | CE64: 0 | CF64: 0 | CG64: 0 | CH64: 0 | CI64: 0 | CJ64: 0 | CK64: 0 | CL64: 0 | CM64: 0 | CN64: 0 | CO64: 0 | CP64: 0 | CQ64: 0 | CR64: 0 | CS64: 0 | CT64: 0 | CU64: 0 | CV64: 0 | CW64: 0 | CX64: 0 | CY64: 0 | CZ64: 0 | DA64: 0 | DB64: 0 | DC64: 0 | DD64: 0 | DE64: 0 | DF64: 0 | DG64: 0 | DH64: 0 | DI64: 0 | DJ64: 0 | DK64: 0 | DL64: 0 | DM64: 0 | DN64: 0 | DO64: 0 | DP64: 0 | DQ64: 0 | DR64: 0 | DS64: 0 | DT64: 0 | DU64: 0 | DV64: 0 | DW64: 0 | DX64: 0 | DY64: 0 | DZ64: 0 | EA64: 0 | EB64: 0 | EC64: 0 | ED64: 0 | EE64: 0 | EF64: 0 | EG64: 0 | EH64: 0 | EI64: =EI56 -> 0 | EJ64: 0 | EK64: 0 | EL64: 0 | EM64: 0 | EN64: 0 | EO64: 0 | EP64: 0 | EQ64: 0 | ER64: 0 | ES64: 0 | ET64: 0 | EU64: 0 | EV64: 0 | EW64: 0 | EX64: 0 | EY64: 0 | EZ64: 0 | FA64: 0 | FB64: 0 | FC64: 0 | FD64: 0 | FE64: 0 | FF64: 0 | FG64: 0 | FH64: 0 | FI64: 0 | FJ64: 0 | FK64: 0 | FL64: 0 | FM64: 0 | FN64: 0 | FO64: 0 | FP64: 0 | FQ64: 0 | FR64: 0 | FS64: 0 | FT64: 0 | FU64: 0 | FV64: 0 | FW64: 0 | FX64: 0 | FY64: 0 | FZ64: 0 | GA64: 0 | GB64: 0 | GC64: 0 | GD64: 0 | GE64: 0 | GF64: 0 | GG64: 0 | GH64: 0 | GI64: 0 | GJ64: 0 | GK64: 0 | GL64: 0 | GM64: 0 | GN64: 0 | GO64: 0 | GP64: 0 | GQ64: 0 | GR64: 0 | GS64: 0 | GT64: 0 | GU64: =GU56 -> 0 | GV64: 0 | GW64: 0 | GX64: 0 | GY64: 0 | GZ64: 0 | HA64: 0
C65: Less: Repayments | F65: =$F$56 -> 4000 | G65: =F33*2 -> 30 | J65: =MIN(J63,($F$65/$G$65)*J11) -> 0 | K65: =MIN(K63,($F$65/$G$65)*K11) -> 0 | L65: =MIN(L63,($F$65/$G$65)*L11) -> 0 | M65: =MIN(M63,($F$65/$G$65)*M11) -> 0 | N65: =MIN(N63,($F$65/$G$65)*N11) -> 0 | O65: =MIN(O63,($F$65/$G$65)*O11) -> 0 | P65: =MIN(P63,($F$65/$G$65)*P11) -> 0 | Q65: =MIN(Q63,($F$65/$G$65)*Q11) -> 0 | R65: =MIN(R63,($F$65/$G$65)*R11) -> 0 | S65: =MIN(S63,($F$65/$G$65)*S11) -> 0 | T65: =MIN(T63,($F$65/$G$65)*T11) -> 0 | U65: =MIN(U63,($F$65/$G$65)*U11) -> 0 | V65: =MIN(V63,($F$65/$G$65)*V11) -> 0 | W65: =MIN(W63,($F$65/$G$65)*W11) -> 0 | X65: =MIN(X63,($F$65/$G$65)*X11) -> 0 | Y65: =MIN(Y63,($F$65/$G$65)*Y11) -> 0 | Z65: =MIN(Z63,($F$65/$G$65)*Z11) -> 0 | AA65: =MIN(AA63,($F$65/$G$65)*AA11) -> 0 | AB65: =MIN(AB63,($F$65/$G$65)*AB11) -> 0 | AC65: =MIN(AC63,($F$65/$G$65)*AC11) -> 0 | AD65: =MIN(AD63,($F$65/$G$65)*AD11) -> 0 | AE65: =MIN(AE63,($F$65/$G$65)*AE11) -> 0 | AF65: =MIN(AF63,($F$65/$G$65)*AF11) -> 0 | AG65: =MIN(AG63,($F$65/$G$65)*AG11) -> 0 | AH65: =MIN(AH63,($F$65/$G$65)*AH11) -> 0 | AI65: =MIN(AI63,($F$65/$G$65)*AI11) -> 0 | AJ65: =MIN(AJ63,($F$65/$G$65)*AJ11) -> 0 | AK65: =MIN(AK63,($F$65/$G$65)*AK11) -> 0 | AL65: =MIN(AL63,($F$65/$G$65)*AL11) -> 0 | AM65: =MIN(AM63,($F$65/$G$65)*AM11) -> 0 | AN65: =MIN(AN63,($F$65/$G$65)*AN11) -> 0 | AO65: =MIN(AO63,($F$65/$G$65)*AO11) -> 0 | AP65: =MIN(AP63,($F$65/$G$65)*AP11) -> 0 | AQ65: =MIN(AQ63,($F$65/$G$65)*AQ11) -> 0 | AR65: =MIN(AR63,($F$65/$G$65)*AR11) -> 0 | AS65: =MIN(AS63,($F$65/$G$65)*AS11) -> 0 | AT65: =MIN(AT63,($F$65/$G$65)*AT11) -> 0 | AU65: =MIN(AU63,($F$65/$G$65)*AU11) -> 0 | AV65: =MIN(AV63,($F$65/$G$65)*AV11) -> 133.3333333 | AW65: =MIN(AW63,($F$65/$G$65)*AW11) -> 133.3333333 | AX65: =MIN(AX63,($F$65/$G$65)*AX11) -> 133.3333333 | AY65: =MIN(AY63,($F$65/$G$65)*AY11) -> 133.3333333 | AZ65: =MIN(AZ63,($F$65/$G$65)*AZ11) -> 133.3333333 | BA65: =MIN(BA63,($F$65/$G$65)*BA11) -> 133.3333333 | BB65: =MIN(BB63,($F$65/$G$65)*BB11) -> 133.3333333 | BC65: =MIN(BC63,($F$65/$G$65)*BC11) -> 133.3333333 | BD65: =MIN(BD63,($F$65/$G$65)*BD11) -> 133.3333333 | BE65: =MIN(BE63,($F$65/$G$65)*BE11) -> 133.3333333 | BF65: =MIN(BF63,($F$65/$G$65)*BF11) -> 133.3333333 | BG65: =MIN(BG63,($F$65/$G$65)*BG11) -> 133.3333333 | BH65: =MIN(BH63,($F$65/$G$65)*BH11) -> 133.3333333 | BI65: =MIN(BI63,($F$65/$G$65)*BI11) -> 133.3333333 | BJ65: =MIN(BJ63,($F$65/$G$65)*BJ11) -> 133.3333333 | BK65: =MIN(BK63,($F$65/$G$65)*BK11) -> 133.3333333 | BL65: =MIN(BL63,($F$65/$G$65)*BL11) -> 133.3333333 | BM65: =MIN(BM63,($F$65/$G$65)*BM11) -> 133.3333333 | BN65: =MIN(BN63,($F$65/$G$65)*BN11) -> 133.3333333 | BO65: =MIN(BO63,($F$65/$G$65)*BO11) -> 133.3333333 | BP65: =MIN(BP63,($F$65/$G$65)*BP11) -> 133.3333333 | BQ65: =MIN(BQ63,($F$65/$G$65)*BQ11) -> 133.3333333 | BR65: =MIN(BR63,($F$65/$G$65)*BR11) -> 133.3333333 | BS65: =MIN(BS63,($F$65/$G$65)*BS11) -> 133.3333333 | BT65: =MIN(BT63,($F$65/$G$65)*BT11) -> 133.3333333 | BU65: =MIN(BU63,($F$65/$G$65)*BU11) -> 133.3333333 | BV65: =MIN(BV63,($F$65/$G$65)*BV11) -> 133.3333333 | BW65: =MIN(BW63,($F$65/$G$65)*BW11) -> 133.3333333 | BX65: =MIN(BX63,($F$65/$G$65)*BX11) -> 133.3333333 | BY65: =MIN(BY63,($F$65/$G$65)*BY11) -> 133.3333333 | BZ65: =MIN(BZ63,($F$65/$G$65)*BZ11) -> 4.604316928e-12 | CA65: =MIN(CA63,($F$65/$G$65)*CA11) -> 0 | CB65: =MIN(CB63,($F$65/$G$65)*CB11) -> 0 | CC65: =MIN(CC63,($F$65/$G$65)*CC11) -> 0 | CD65: =MIN(CD63,($F$65/$G$65)*CD11) -> 0 | CE65: =MIN(CE63,($F$65/$G$65)*CE11) -> 0 | CF65: =MIN(CF63,($F$65/$G$65)*CF11) -> 0 | CG65: =MIN(CG63,($F$65/$G$65)*CG11) -> 0 | CH65: =MIN(CH63,($F$65/$G$65)*CH11) -> 0 | CI65: =MIN(CI63,($F$65/$G$65)*CI11) -> 0 | CJ65: =MIN(CJ63,($F$65/$G$65)*CJ11) -> 0 | CK65: =MIN(CK63,($F$65/$G$65)*CK11) -> 0 | CL65: =MIN(CL63,($F$65/$G$65)*CL11) -> 0 | CM65: =MIN(CM63,($F$65/$G$65)*CM11) -> 0 | CN65: =MIN(CN63,($F$65/$G$65)*CN11) -> 0 | CO65: =MIN(CO63,($F$65/$G$65)*CO11) -> 0 | CP65: =MIN(CP63,($F$65/$G$65)*CP11) -> 0 | CQ65: =MIN(CQ63,($F$65/$G$65)*CQ11) -> 0 | CR65: =MIN(CR63,($F$65/$G$65)*CR11) -> 0 | CS65: =MIN(CS63,($F$65/$G$65)*CS11) -> 0 | CT65: =MIN(CT63,($F$65/$G$65)*CT11) -> 0 | CU65: =MIN(CU63,($F$65/$G$65)*CU11) -> 0 | CV65: =MIN(CV63,($F$65/$G$65)*CV11) -> 0 | CW65: =MIN(CW63,($F$65/$G$65)*CW11) -> 0 | CX65: =MIN(CX63,($F$65/$G$65)*CX11) -> 0 | CY65: =MIN(CY63,($F$65/$G$65)*CY11) -> 0 | CZ65: =MIN(CZ63,($F$65/$G$65)*CZ11) -> 0 | DA65: =MIN(DA63,($F$65/$G$65)*DA11) -> 0 | DB65: =MIN(DB63,($F$65/$G$65)*DB11) -> 0 | DC65: =MIN(DC63,($F$65/$G$65)*DC11) -> 0 | DD65: =MIN(DD63,($F$65/$G$65)*DD11) -> 0 | DE65: =MIN(DE63,($F$65/$G$65)*DE11) -> 0 | DF65: =MIN(DF63,($F$65/$G$65)*DF11) -> 0 | DG65: =MIN(DG63,($F$65/$G$65)*DG11) -> 0 | DH65: =MIN(DH63,($F$65/$G$65)*DH11) -> 0 | DI65: =MIN(DI63,($F$65/$G$65)*DI11) -> 0 | DJ65: =MIN(DJ63,($F$65/$G$65)*DJ11) -> 0 | DK65: =MIN(DK63,($F$65/$G$65)*DK11) -> 0 | DL65: =MIN(DL63,($F$65/$G$65)*DL11) -> 0 | DM65: =MIN(DM63,($F$65/$G$65)*DM11) -> 0 | DN65: =MIN(DN63,($F$65/$G$65)*DN11) -> 0 | DO65: =MIN(DO63,($F$65/$G$65)*DO11) -> 0 | DP65: =MIN(DP63,($F$65/$G$65)*DP11) -> 0 | DQ65: =MIN(DQ63,($F$65/$G$65)*DQ11) -> 0 | DR65: =MIN(DR63,($F$65/$G$65)*DR11) -> 0 | DS65: =MIN(DS63,($F$65/$G$65)*DS11) -> 0 | DT65: =MIN(DT63,($F$65/$G$65)*DT11) -> 0 | DU65: =MIN(DU63,($F$65/$G$65)*DU11) -> 0 | DV65: =MIN(DV63,($F$65/$G$65)*DV11) -> 0 | DW65: =MIN(DW63,($F$65/$G$65)*DW11) -> 0 | DX65: =MIN(DX63,($F$65/$G$65)*DX11) -> 0 | DY65: =MIN(DY63,($F$65/$G$65)*DY11) -> 0 | DZ65: =MIN(DZ63,($F$65/$G$65)*DZ11) -> 0 | EA65: =MIN(EA63,($F$65/$G$65)*EA11) -> 0 | EB65: =MIN(EB63,($F$65/$G$65)*EB11) -> 0 | EC65: =MIN(EC63,($F$65/$G$65)*EC11) -> 0 | ED65: =MIN(ED63,($F$65/$G$65)*ED11) -> 0 | EE65: =MIN(EE63,($F$65/$G$65)*EE11) -> 0 | EF65: =MIN(EF63,($F$65/$G$65)*EF11) -> 0 | EG65: =MIN(EG63,($F$65/$G$65)*EG11) -> 0 | EH65: =MIN(EH63,($F$65/$G$65)*EH11) -> 0 | EI65: =MIN(EI63,($F$65/$G$65)*EI11) -> 0 | EJ65: =MIN(EJ63,($F$65/$G$65)*EJ11) -> 0 | EK65: =MIN(EK63,($F$65/$G$65)*EK11) -> 0 | EL65: =MIN(EL63,($F$65/$G$65)*EL11) -> 0 | EM65: =MIN(EM63,($F$65/$G$65)*EM11) -> 0 | EN65: =MIN(EN63,($F$65/$G$65)*EN11) -> 0 | EO65: =MIN(EO63,($F$65/$G$65)*EO11) -> 0 | EP65: =MIN(EP63,($F$65/$G$65)*EP11) -> 0 | EQ65: =MIN(EQ63,($F$65/$G$65)*EQ11) -> 0 | ER65: =MIN(ER63,($F$65/$G$65)*ER11) -> 0 | ES65: =MIN(ES63,($F$65/$G$65)*ES11) -> 0 | ET65: =MIN(ET63,($F$65/$G$65)*ET11) -> 0 | EU65: =MIN(EU63,($F$65/$G$65)*EU11) -> 0 | EV65: =MIN(EV63,($F$65/$G$65)*EV11) -> 0 | EW65: =MIN(EW63,($F$65/$G$65)*EW11) -> 0 | EX65: =MIN(EX63,($F$65/$G$65)*EX11) -> 0 | EY65: =MIN(EY63,($F$65/$G$65)*EY11) -> 0 | EZ65: =MIN(EZ63,($F$65/$G$65)*EZ11) -> 0 | FA65: =MIN(FA63,($F$65/$G$65)*FA11) -> 0 | FB65: =MIN(FB63,($F$65/$G$65)*FB11) -> 0 | FC65: =MIN(FC63,($F$65/$G$65)*FC11) -> 0 | FD65: =MIN(FD63,($F$65/$G$65)*FD11) -> 0 | FE65: =MIN(FE63,($F$65/$G$65)*FE11) -> 0 | FF65: =MIN(FF63,($F$65/$G$65)*FF11) -> 0 | FG65: =MIN(FG63,($F$65/$G$65)*FG11) -> 0 | FH65: =MIN(FH63,($F$65/$G$65)*FH11) -> 0 | FI65: =MIN(FI63,($F$65/$G$65)*FI11) -> 0 | FJ65: =MIN(FJ63,($F$65/$G$65)*FJ11) -> 0 | FK65: =MIN(FK63,($F$65/$G$65)*FK11) -> 0 | FL65: =MIN(FL63,($F$65/$G$65)*FL11) -> 0 | FM65: =MIN(FM63,($F$65/$G$65)*FM11) -> 0 | FN65: =MIN(FN63,($F$65/$G$65)*FN11) -> 0 | FO65: =MIN(FO63,($F$65/$G$65)*FO11) -> 0 | FP65: =MIN(FP63,($F$65/$G$65)*FP11) -> 0 | FQ65: =MIN(FQ63,($F$65/$G$65)*FQ11) -> 0 | FR65: =MIN(FR63,($F$65/$G$65)*FR11) -> 0 | FS65: =MIN(FS63,($F$65/$G$65)*FS11) -> 0 | FT65: =MIN(FT63,($F$65/$G$65)*FT11) -> 0 | FU65: =MIN(FU63,($F$65/$G$65)*FU11) -> 0 | FV65: =MIN(FV63,($F$65/$G$65)*FV11) -> 0 | FW65: =MIN(FW63,($F$65/$G$65)*FW11) -> 0 | FX65: =MIN(FX63,($F$65/$G$65)*FX11) -> 0 | FY65: =MIN(FY63,($F$65/$G$65)*FY11) -> 0 | FZ65: =MIN(FZ63,($F$65/$G$65)*FZ11) -> 0 | GA65: =MIN(GA63,($F$65/$G$65)*GA11) -> 0 | GB65: =MIN(GB63,($F$65/$G$65)*GB11) -> 0 | GC65: =MIN(GC63,($F$65/$G$65)*GC11) -> 0 | GD65: =MIN(GD63,($F$65/$G$65)*GD11) -> 0 | GE65: =MIN(GE63,($F$65/$G$65)*GE11) -> 0 | GF65: =MIN(GF63,($F$65/$G$65)*GF11) -> 0 | GG65: =MIN(GG63,($F$65/$G$65)*GG11) -> 0 | GH65: =MIN(GH63,($F$65/$G$65)*GH11) -> 0 | GI65: =MIN(GI63,($F$65/$G$65)*GI11) -> 0 | GJ65: =MIN(GJ63,($F$65/$G$65)*GJ11) -> 0 | GK65: =MIN(GK63,($F$65/$G$65)*GK11) -> 0 | GL65: =MIN(GL63,($F$65/$G$65)*GL11) -> 0 | GM65: =MIN(GM63,($F$65/$G$65)*GM11) -> 0 | GN65: =MIN(GN63,($F$65/$G$65)*GN11) -> 0 | GO65: =MIN(GO63,($F$65/$G$65)*GO11) -> 0 | GP65: =MIN(GP63,($F$65/$G$65)*GP11) -> 0 | GQ65: =MIN(GQ63,($F$65/$G$65)*GQ11) -> 0 | GR65: =MIN(GR63,($F$65/$G$65)*GR11) -> 0 | GS65: =MIN(GS63,($F$65/$G$65)*GS11) -> 0 | GT65: =MIN(GT63,($F$65/$G$65)*GT11) -> 0 | GU65: =MIN(GU63,($F$65/$G$65)*GU11) -> 0 | GV65: =MIN(GV63,($F$65/$G$65)*GV11) -> 0 | GW65: =MIN(GW63,($F$65/$G$65)*GW11) -> 0 | GX65: =MIN(GX63,($F$65/$G$65)*GX11) -> 0 | GY65: =MIN(GY63,($F$65/$G$65)*GY11) -> 0 | GZ65: =MIN(GZ63,($F$65/$G$65)*GZ11) -> 0 | HA65: =MIN(HA63,($F$65/$G$65)*HA11) -> 0
C66: Closing Balance | J66: =J63+J64-J65 -> 105.2631579 | K66: =K63+K64-K65 -> 210.5263158 | L66: 315.7894737 | M66: 421.0526316 | N66: 526.3157895 | O66: 631.5789474 | P66: 736.8421053 | Q66: 842.1052632 | R66: 947.3684211 | S66: 1052.631579 | T66: 1157.894737 | U66: 1263.157895 | V66: 1368.421053 | W66: 1473.684211 | X66: 1578.947368 | Y66: 1684.210526 | Z66: 1789.473684 | AA66: 1894.736842 | AB66: 2000 | AC66: 2105.263158 | AD66: 2210.526316 | AE66: 2315.789474 | AF66: 2421.052632 | AG66: 2526.315789 | AH66: 2631.578947 | AI66: 2736.842105 | AJ66: 2842.105263 | AK66: 2947.368421 | AL66: 3052.631579 | AM66: 3157.894737 | AN66: 3263.157895 | AO66: 3368.421053 | AP66: 3473.684211 | AQ66: 3578.947368 | AR66: 3684.210526 | AS66: 3789.473684 | AT66: 3894.736842 | AU66: 4000 | AV66: 3866.666667 | AW66: 3733.333333 | AX66: 3600 | AY66: 3466.666667 | AZ66: 3333.333333 | BA66: 3200 | BB66: 3066.666667 | BC66: 2933.333333 | BD66: 2800 | BE66: 2666.666667 | BF66: 2533.333333 | BG66: 2400 | BH66: 2266.666667 | BI66: 2133.333333 | BJ66: 2000 | BK66: 1866.666667 | BL66: 1733.333333 | BM66: 1600 | BN66: 1466.666667 | BO66: 1333.333333 | BP66: 1200 | BQ66: 1066.666667 | BR66: 933.3333333 | BS66: 800 | BT66: 666.6666667 | BU66: 533.3333333 | BV66: 400 | BW66: =BW63+BW64-BW65 -> 266.6666667 | BX66: 133.3333333 | BY66: 4.604316928e-12 | BZ66: 0 | CA66: 0 | CB66: 0 | CC66: 0 | CD66: 0 | CE66: 0 | CF66: 0 | CG66: 0 | CH66: 0 | CI66: 0 | CJ66: 0 | CK66: 0 | CL66: 0 | CM66: 0 | CN66: 0 | CO66: 0 | CP66: 0 | CQ66: 0 | CR66: 0 | CS66: 0 | CT66: 0 | CU66: 0 | CV66: 0 | CW66: 0 | CX66: 0 | CY66: 0 | CZ66: 0 | DA66: 0 | DB66: 0 | DC66: 0 | DD66: 0 | DE66: 0 | DF66: 0 | DG66: 0 | DH66: 0 | DI66: 0 | DJ66: 0 | DK66: 0 | DL66: 0 | DM66: 0 | DN66: 0 | DO66: 0 | DP66: 0 | DQ66: 0 | DR66: 0 | DS66: 0 | DT66: 0 | DU66: 0 | DV66: 0 | DW66: 0 | DX66: 0 | DY66: 0 | DZ66: 0 | EA66: 0 | EB66: 0 | EC66: 0 | ED66: 0 | EE66: 0 | EF66: 0 | EG66: 0 | EH66: 0 | EI66: =EI63+EI64-EI65 -> 0 | EJ66: 0 | EK66: 0 | EL66: 0 | EM66: 0 | EN66: 0 | EO66: 0 | EP66: 0 | EQ66: 0 | ER66: 0 | ES66: 0 | ET66: 0 | EU66: 0 | EV66: 0 | EW66: 0 | EX66: 0 | EY66: 0 | EZ66: 0 | FA66: 0 | FB66: 0 | FC66: 0 | FD66: 0 | FE66: 0 | FF66: 0 | FG66: 0 | FH66: 0 | FI66: 0 | FJ66: 0 | FK66: 0 | FL66: 0 | FM66: 0 | FN66: 0 | FO66: 0 | FP66: 0 | FQ66: 0 | FR66: 0 | FS66: 0 | FT66: 0 | FU66: 0 | FV66: 0 | FW66: 0 | FX66: 0 | FY66: 0 | FZ66: 0 | GA66: 0 | GB66: 0 | GC66: 0 | GD66: 0 | GE66: 0 | GF66: 0 | GG66: 0 | GH66: 0 | GI66: 0 | GJ66: 0 | GK66: 0 | GL66: 0 | GM66: 0 | GN66: 0 | GO66: 0 | GP66: 0 | GQ66: 0 | GR66: 0 | GS66: 0 | GT66: 0 | GU66: =GU63+GU64-GU65 -> 0 | GV66: 0 | GW66: 0 | GX66: 0 | GY66: 0 | GZ66: 0 | HA66: 0
C67: Interest Rate | J67: =(LOOKUP(J13,34:34,35:35)+$F$31)/12*J12 -> 0.003333333333 | K67: =(LOOKUP(K13,34:34,35:35)+$F$31)/12*K12 -> 0.003333333333 | L67: =(LOOKUP(L13,34:34,35:35)+$F$31)/12*L12 -> 0.003333333333 | M67: =(LOOKUP(M13,34:34,35:35)+$F$31)/12*M12 -> 0.003333333333 | N67: =(LOOKUP(N13,34:34,35:35)+$F$31)/12*N12 -> 0.003333333333 | O67: =(LOOKUP(O13,34:34,35:35)+$F$31)/12*O12 -> 0.003333333333 | P67: =(LOOKUP(P13,34:34,35:35)+$F$31)/12*P12 -> 0.003333333333 | Q67: =(LOOKUP(Q13,34:34,35:35)+$F$31)/12*Q12 -> 0.003333333333 | R67: =(LOOKUP(R13,34:34,35:35)+$F$31)/12*R12 -> 0.003333333333 | S67: =(LOOKUP(S13,34:34,35:35)+$F$31)/12*S12 -> 0.003333333333 | T67: =(LOOKUP(T13,34:34,35:35)+$F$31)/12*T12 -> 0.003333333333 | U67: =(LOOKUP(U13,34:34,35:35)+$F$31)/12*U12 -> 0.003333333333 | V67: =(LOOKUP(V13,34:34,35:35)+$F$31)/12*V12 -> 0.003333333333 | W67: =(LOOKUP(W13,34:34,35:35)+$F$31)/12*W12 -> 0.003333333333 | X67: =(LOOKUP(X13,34:34,35:35)+$F$31)/12*X12 -> 0.003333333333 | Y67: =(LOOKUP(Y13,34:34,35:35)+$F$31)/12*Y12 -> 0.003333333333 | Z67: =(LOOKUP(Z13,34:34,35:35)+$F$31)/12*Z12 -> 0.003333333333 | AA67: =(LOOKUP(AA13,34:34,35:35)+$F$31)/12*AA12 -> 0.003333333333 | AB67: =(LOOKUP(AB13,34:34,35:35)+$F$31)/12*AB12 -> 0.003333333333 | AC67: =(LOOKUP(AC13,34:34,35:35)+$F$31)/12*AC12 -> 0.003333333333 | AD67: =(LOOKUP(AD13,34:34,35:35)+$F$31)/12*AD12 -> 0.003333333333 | AE67: =(LOOKUP(AE13,34:34,35:35)+$F$31)/12*AE12 -> 0.003333333333 | AF67: =(LOOKUP(AF13,34:34,35:35)+$F$31)/12*AF12 -> 0.003333333333 | AG67: =(LOOKUP(AG13,34:34,35:35)+$F$31)/12*AG12 -> 0.003333333333 | AH67: =(LOOKUP(AH13,34:34,35:35)+$F$31)/12*AH12 -> 0.003333333333 | AI67: =(LOOKUP(AI13,34:34,35:35)+$F$31)/12*AI12 -> 0.003333333333 | AJ67: =(LOOKUP(AJ13,34:34,35:35)+$F$31)/12*AJ12 -> 0.003333333333 | AK67: =(LOOKUP(AK13,34:34,35:35)+$F$31)/12*AK12 -> 0.003333333333 | AL67: =(LOOKUP(AL13,34:34,35:35)+$F$31)/12*AL12 -> 0.003333333333 | AM67: =(LOOKUP(AM13,34:34,35:35)+$F$31)/12*AM12 -> 0.003333333333 | AN67: =(LOOKUP(AN13,34:34,35:35)+$F$31)/12*AN12 -> 0.003333333333 | AO67: =(LOOKUP(AO13,34:34,35:35)+$F$31)/12*AO12 -> 0.003333333333 | AP67: =(LOOKUP(AP13,34:34,35:35)+$F$31)/12*AP12 -> 0.003333333333 | AQ67: =(LOOKUP(AQ13,34:34,35:35)+$F$31)/12*AQ12 -> 0.003333333333 | AR67: =(LOOKUP(AR13,34:34,35:35)+$F$31)/12*AR12 -> 0.003333333333 | AS67: =(LOOKUP(AS13,34:34,35:35)+$F$31)/12*AS12 -> 0.003333333333 | AT67: =(LOOKUP(AT13,34:34,35:35)+$F$31)/12*AT12 -> 0.003333333333 | AU67: =(LOOKUP(AU13,34:34,35:35)+$F$31)/12*AU12 -> 0.003333333333 | AV67: =(LOOKUP(AV13,34:34,35:35)+$F$31)/12*AV12 -> 0.02 | AW67: =(LOOKUP(AW13,34:34,35:35)+$F$31)/12*AW12 -> 0.02 | AX67: =(LOOKUP(AX13,34:34,35:35)+$F$31)/12*AX12 -> 0.02 | AY67: =(LOOKUP(AY13,34:34,35:35)+$F$31)/12*AY12 -> 0.02 | AZ67: =(LOOKUP(AZ13,34:34,35:35)+$F$31)/12*AZ12 -> 0.02 | BA67: =(LOOKUP(BA13,34:34,35:35)+$F$31)/12*BA12 -> 0.02 | BB67: =(LOOKUP(BB13,34:34,35:35)+$F$31)/12*BB12 -> 0.02 | BC67: =(LOOKUP(BC13,34:34,35:35)+$F$31)/12*BC12 -> 0.02 | BD67: =(LOOKUP(BD13,34:34,35:35)+$F$31)/12*BD12 -> 0.02 | BE67: =(LOOKUP(BE13,34:34,35:35)+$F$31)/12*BE12 -> 0.02 | BF67: =(LOOKUP(BF13,34:34,35:35)+$F$31)/12*BF12 -> 0.02 | BG67: =(LOOKUP(BG13,34:34,35:35)+$F$31)/12*BG12 -> 0.02 | BH67: =(LOOKUP(BH13,34:34,35:35)+$F$31)/12*BH12 -> 0.02 | BI67: =(LOOKUP(BI13,34:34,35:35)+$F$31)/12*BI12 -> 0.02 | BJ67: =(LOOKUP(BJ13,34:34,35:35)+$F$31)/12*BJ12 -> 0.02 | BK67: =(LOOKUP(BK13,34:34,35:35)+$F$31)/12*BK12 -> 0.02 | BL67: =(LOOKUP(BL13,34:34,35:35)+$F$31)/12*BL12 -> 0.02 | BM67: =(LOOKUP(BM13,34:34,35:35)+$F$31)/12*BM12 -> 0.02 | BN67: =(LOOKUP(BN13,34:34,35:35)+$F$31)/12*BN12 -> 0.02 | BO67: =(LOOKUP(BO13,34:34,35:35)+$F$31)/12*BO12 -> 0.02 | BP67: =(LOOKUP(BP13,34:34,35:35)+$F$31)/12*BP12 -> 0.02 | BQ67: =(LOOKUP(BQ13,34:34,35:35)+$F$31)/12*BQ12 -> 0.02 | BR67: =(LOOKUP(BR13,34:34,35:35)+$F$31)/12*BR12 -> 0.02 | BS67: =(LOOKUP(BS13,34:34,35:35)+$F$31)/12*BS12 -> 0.02 | BT67: =(LOOKUP(BT13,34:34,35:35)+$F$31)/12*BT12 -> 0.02 | BU67: =(LOOKUP(BU13,34:34,35:35)+$F$31)/12*BU12 -> 0.02 | BV67: =(LOOKUP(BV13,34:34,35:35)+$F$31)/12*BV12 -> 0.02 | BW67: =(LOOKUP(BW13,34:34,35:35)+$F$31)/12*BW12 -> 0.02 | BX67: =(LOOKUP(BX13,34:34,35:35)+$F$31)/12*BX12 -> 0.02 | BY67: =(LOOKUP(BY13,34:34,35:35)+$F$31)/12*BY12 -> 0.02 | BZ67: =(LOOKUP(BZ13,34:34,35:35)+$F$31)/12*BZ12 -> 0.02 | CA67: =(LOOKUP(CA13,34:34,35:35)+$F$31)/12*CA12 -> 0.02 | CB67: =(LOOKUP(CB13,34:34,35:35)+$F$31)/12*CB12 -> 0.02 | CC67: =(LOOKUP(CC13,34:34,35:35)+$F$31)/12*CC12 -> 0.02 | CD67: =(LOOKUP(CD13,34:34,35:35)+$F$31)/12*CD12 -> 0.02 | CE67: =(LOOKUP(CE13,34:34,35:35)+$F$31)/12*CE12 -> 0.02 | CF67: =(LOOKUP(CF13,34:34,35:35)+$F$31)/12*CF12 -> 0.02 | CG67: =(LOOKUP(CG13,34:34,35:35)+$F$31)/12*CG12 -> 0.02 | CH67: =(LOOKUP(CH13,34:34,35:35)+$F$31)/12*CH12 -> 0.02 | CI67: =(LOOKUP(CI13,34:34,35:35)+$F$31)/12*CI12 -> 0.02 | CJ67: =(LOOKUP(CJ13,34:34,35:35)+$F$31)/12*CJ12 -> 0.02 | CK67: =(LOOKUP(CK13,34:34,35:35)+$F$31)/12*CK12 -> 0.02 | CL67: =(LOOKUP(CL13,34:34,35:35)+$F$31)/12*CL12 -> 0.02 | CM67: =(LOOKUP(CM13,34:34,35:35)+$F$31)/12*CM12 -> 0.02 | CN67: =(LOOKUP(CN13,34:34,35:35)+$F$31)/12*CN12 -> 0.02 | CO67: =(LOOKUP(CO13,34:34,35:35)+$F$31)/12*CO12 -> 0.02 | CP67: =(LOOKUP(CP13,34:34,35:35)+$F$31)/12*CP12 -> 0.02 | CQ67: =(LOOKUP(CQ13,34:34,35:35)+$F$31)/12*CQ12 -> 0.02 | CR67: =(LOOKUP(CR13,34:34,35:35)+$F$31)/12*CR12 -> 0.02 | CS67: =(LOOKUP(CS13,34:34,35:35)+$F$31)/12*CS12 -> 0.02 | CT67: =(LOOKUP(CT13,34:34,35:35)+$F$31)/12*CT12 -> 0.02 | CU67: =(LOOKUP(CU13,34:34,35:35)+$F$31)/12*CU12 -> 0.02 | CV67: =(LOOKUP(CV13,34:34,35:35)+$F$31)/12*CV12 -> 0.02 | CW67: =(LOOKUP(CW13,34:34,35:35)+$F$31)/12*CW12 -> 0.02 | CX67: =(LOOKUP(CX13,34:34,35:35)+$F$31)/12*CX12 -> 0.02 | CY67: =(LOOKUP(CY13,34:34,35:35)+$F$31)/12*CY12 -> 0.02 | CZ67: =(LOOKUP(CZ13,34:34,35:35)+$F$31)/12*CZ12 -> 0.02 | DA67: =(LOOKUP(DA13,34:34,35:35)+$F$31)/12*DA12 -> 0.02 | DB67: =(LOOKUP(DB13,34:34,35:35)+$F$31)/12*DB12 -> 0.02 | DC67: =(LOOKUP(DC13,34:34,35:35)+$F$31)/12*DC12 -> 0.02 | DD67: =(LOOKUP(DD13,34:34,35:35)+$F$31)/12*DD12 -> 0.02 | DE67: =(LOOKUP(DE13,34:34,35:35)+$F$31)/12*DE12 -> 0.02 | DF67: =(LOOKUP(DF13,34:34,35:35)+$F$31)/12*DF12 -> 0.02 | DG67: =(LOOKUP(DG13,34:34,35:35)+$F$31)/12*DG12 -> 0.02 | DH67: =(LOOKUP(DH13,34:34,35:35)+$F$31)/12*DH12 -> 0.02 | DI67: =(LOOKUP(DI13,34:34,35:35)+$F$31)/12*DI12 -> 0.02 | DJ67: =(LOOKUP(DJ13,34:34,35:35)+$F$31)/12*DJ12 -> 0.02 | DK67: =(LOOKUP(DK13,34:34,35:35)+$F$31)/12*DK12 -> 0.02 | DL67: =(LOOKUP(DL13,34:34,35:35)+$F$31)/12*DL12 -> 0.02 | DM67: =(LOOKUP(DM13,34:34,35:35)+$F$31)/12*DM12 -> 0.02 | DN67: =(LOOKUP(DN13,34:34,35:35)+$F$31)/12*DN12 -> 0.02 | DO67: =(LOOKUP(DO13,34:34,35:35)+$F$31)/12*DO12 -> 0.02 | DP67: =(LOOKUP(DP13,34:34,35:35)+$F$31)/12*DP12 -> 0.02 | DQ67: =(LOOKUP(DQ13,34:34,35:35)+$F$31)/12*DQ12 -> 0.02 | DR67: =(LOOKUP(DR13,34:34,35:35)+$F$31)/12*DR12 -> 0.02 | DS67: =(LOOKUP(DS13,34:34,35:35)+$F$31)/12*DS12 -> 0.02 | DT67: =(LOOKUP(DT13,34:34,35:35)+$F$31)/12*DT12 -> 0.02 | DU67: =(LOOKUP(DU13,34:34,35:35)+$F$31)/12*DU12 -> 0.02 | DV67: =(LOOKUP(DV13,34:34,35:35)+$F$31)/12*DV12 -> 0.02 | DW67: =(LOOKUP(DW13,34:34,35:35)+$F$31)/12*DW12 -> 0.02 | DX67: =(LOOKUP(DX13,34:34,35:35)+$F$31)/12*DX12 -> 0.02 | DY67: =(LOOKUP(DY13,34:34,35:35)+$F$31)/12*DY12 -> 0.02 | DZ67: =(LOOKUP(DZ13,34:34,35:35)+$F$31)/12*DZ12 -> 0.02 | EA67: =(LOOKUP(EA13,34:34,35:35)+$F$31)/12*EA12 -> 0.02 | EB67: =(LOOKUP(EB13,34:34,35:35)+$F$31)/12*EB12 -> 0.02 | EC67: =(LOOKUP(EC13,34:34,35:35)+$F$31)/12*EC12 -> 0.02 | ED67: =(LOOKUP(ED13,34:34,35:35)+$F$31)/12*ED12 -> 0.02 | EE67: =(LOOKUP(EE13,34:34,35:35)+$F$31)/12*EE12 -> 0.02 | EF67: =(LOOKUP(EF13,34:34,35:35)+$F$31)/12*EF12 -> 0.02 | EG67: =(LOOKUP(EG13,34:34,35:35)+$F$31)/12*EG12 -> 0.02 | EH67: =(LOOKUP(EH13,34:34,35:35)+$F$31)/12*EH12 -> 0.02 | EI67: =(LOOKUP(EI13,34:34,35:35)+$F$31)/12*EI12 -> 0.02 | EJ67: =(LOOKUP(EJ13,34:34,35:35)+$F$31)/12*EJ12 -> 0.02 | EK67: =(LOOKUP(EK13,34:34,35:35)+$F$31)/12*EK12 -> 0.02 | EL67: =(LOOKUP(EL13,34:34,35:35)+$F$31)/12*EL12 -> 0.02 | EM67: =(LOOKUP(EM13,34:34,35:35)+$F$31)/12*EM12 -> 0.02 | EN67: =(LOOKUP(EN13,34:34,35:35)+$F$31)/12*EN12 -> 0.02 | EO67: =(LOOKUP(EO13,34:34,35:35)+$F$31)/12*EO12 -> 0.02 | EP67: =(LOOKUP(EP13,34:34,35:35)+$F$31)/12*EP12 -> 0.02 | EQ67: =(LOOKUP(EQ13,34:34,35:35)+$F$31)/12*EQ12 -> 0.02 | ER67: =(LOOKUP(ER13,34:34,35:35)+$F$31)/12*ER12 -> 0.02 | ES67: =(LOOKUP(ES13,34:34,35:35)+$F$31)/12*ES12 -> 0.02 | ET67: =(LOOKUP(ET13,34:34,35:35)+$F$31)/12*ET12 -> 0.02 | EU67: =(LOOKUP(EU13,34:34,35:35)+$F$31)/12*EU12 -> 0.02 | EV67: =(LOOKUP(EV13,34:34,35:35)+$F$31)/12*EV12 -> 0.02 | EW67: =(LOOKUP(EW13,34:34,35:35)+$F$31)/12*EW12 -> 0.02 | EX67: =(LOOKUP(EX13,34:34,35:35)+$F$31)/12*EX12 -> 0.02 | EY67: =(LOOKUP(EY13,34:34,35:35)+$F$31)/12*EY12 -> 0.02 | EZ67: =(LOOKUP(EZ13,34:34,35:35)+$F$31)/12*EZ12 -> 0.02 | FA67: =(LOOKUP(FA13,34:34,35:35)+$F$31)/12*FA12 -> 0.02 | FB67: =(LOOKUP(FB13,34:34,35:35)+$F$31)/12*FB12 -> 0.02 | FC67: =(LOOKUP(FC13,34:34,35:35)+$F$31)/12*FC12 -> 0.02 | FD67: =(LOOKUP(FD13,34:34,35:35)+$F$31)/12*FD12 -> 0.02 | FE67: =(LOOKUP(FE13,34:34,35:35)+$F$31)/12*FE12 -> 0.02 | FF67: =(LOOKUP(FF13,34:34,35:35)+$F$31)/12*FF12 -> 0.02 | FG67: =(LOOKUP(FG13,34:34,35:35)+$F$31)/12*FG12 -> 0.02 | FH67: =(LOOKUP(FH13,34:34,35:35)+$F$31)/12*FH12 -> 0.02 | FI67: =(LOOKUP(FI13,34:34,35:35)+$F$31)/12*FI12 -> 0.02 | FJ67: =(LOOKUP(FJ13,34:34,35:35)+$F$31)/12*FJ12 -> 0.02 | FK67: =(LOOKUP(FK13,34:34,35:35)+$F$31)/12*FK12 -> 0.02 | FL67: =(LOOKUP(FL13,34:34,35:35)+$F$31)/12*FL12 -> 0.02 | FM67: =(LOOKUP(FM13,34:34,35:35)+$F$31)/12*FM12 -> 0.02 | FN67: =(LOOKUP(FN13,34:34,35:35)+$F$31)/12*FN12 -> 0.02 | FO67: =(LOOKUP(FO13,34:34,35:35)+$F$31)/12*FO12 -> 0.02 | FP67: =(LOOKUP(FP13,34:34,35:35)+$F$31)/12*FP12 -> 0.02 | FQ67: =(LOOKUP(FQ13,34:34,35:35)+$F$31)/12*FQ12 -> 0.02 | FR67: =(LOOKUP(FR13,34:34,35:35)+$F$31)/12*FR12 -> 0.02 | FS67: =(LOOKUP(FS13,34:34,35:35)+$F$31)/12*FS12 -> 0.02 | FT67: =(LOOKUP(FT13,34:34,35:35)+$F$31)/12*FT12 -> 0.02 | FU67: =(LOOKUP(FU13,34:34,35:35)+$F$31)/12*FU12 -> 0.02 | FV67: =(LOOKUP(FV13,34:34,35:35)+$F$31)/12*FV12 -> 0.02 | FW67: =(LOOKUP(FW13,34:34,35:35)+$F$31)/12*FW12 -> 0.02 | FX67: =(LOOKUP(FX13,34:34,35:35)+$F$31)/12*FX12 -> 0.02 | FY67: =(LOOKUP(FY13,34:34,35:35)+$F$31)/12*FY12 -> 0.02 | FZ67: =(LOOKUP(FZ13,34:34,35:35)+$F$31)/12*FZ12 -> 0.02 | GA67: =(LOOKUP(GA13,34:34,35:35)+$F$31)/12*GA12 -> 0.02 | GB67: =(LOOKUP(GB13,34:34,35:35)+$F$31)/12*GB12 -> 0.02 | GC67: =(LOOKUP(GC13,34:34,35:35)+$F$31)/12*GC12 -> 0.02 | GD67: =(LOOKUP(GD13,34:34,35:35)+$F$31)/12*GD12 -> 0.02 | GE67: =(LOOKUP(GE13,34:34,35:35)+$F$31)/12*GE12 -> 0.02 | GF67: =(LOOKUP(GF13,34:34,35:35)+$F$31)/12*GF12 -> 0.02 | GG67: =(LOOKUP(GG13,34:34,35:35)+$F$31)/12*GG12 -> 0.02 | GH67: =(LOOKUP(GH13,34:34,35:35)+$F$31)/12*GH12 -> 0.02 | GI67: =(LOOKUP(GI13,34:34,35:35)+$F$31)/12*GI12 -> 0.02 | GJ67: =(LOOKUP(GJ13,34:34,35:35)+$F$31)/12*GJ12 -> 0.02 | GK67: =(LOOKUP(GK13,34:34,35:35)+$F$31)/12*GK12 -> 0.02 | GL67: =(LOOKUP(GL13,34:34,35:35)+$F$31)/12*GL12 -> 0.02 | GM67: =(LOOKUP(GM13,34:34,35:35)+$F$31)/12*GM12 -> 0.02 | GN67: =(LOOKUP(GN13,34:34,35:35)+$F$31)/12*GN12 -> 0.02 | GO67: =(LOOKUP(GO13,34:34,35:35)+$F$31)/12*GO12 -> 0.02 | GP67: =(LOOKUP(GP13,34:34,35:35)+$F$31)/12*GP12 -> 0.02 | GQ67: =(LOOKUP(GQ13,34:34,35:35)+$F$31)/12*GQ12 -> 0.02 | GR67: =(LOOKUP(GR13,34:34,35:35)+$F$31)/12*GR12 -> 0.02 | GS67: =(LOOKUP(GS13,34:34,35:35)+$F$31)/12*GS12 -> 0.02 | GT67: =(LOOKUP(GT13,34:34,35:35)+$F$31)/12*GT12 -> 0.02 | GU67: =(LOOKUP(GU13,34:34,35:35)+$F$31)/12*GU12 -> 0.02 | GV67: =(LOOKUP(GV13,34:34,35:35)+$F$31)/12*GV12 -> 0.02 | GW67: =(LOOKUP(GW13,34:34,35:35)+$F$31)/12*GW12 -> 0.02 | GX67: =(LOOKUP(GX13,34:34,35:35)+$F$31)/12*GX12 -> 0.02 | GY67: =(LOOKUP(GY13,34:34,35:35)+$F$31)/12*GY12 -> 0.02 | GZ67: =(LOOKUP(GZ13,34:34,35:35)+$F$31)/12*GZ12 -> 0.02 | HA67: =(LOOKUP(HA13,34:34,35:35)+$F$31)/12*HA12 -> 0.02
C68: Interest Cost | J68: =J67*J63 -> 0 | K68: =K67*K63 -> 0.350877193 | L68: 0.701754386 | M68: 1.052631579 | N68: 1.403508772 | O68: 1.754385965 | P68: 2.105263158 | Q68: 2.456140351 | R68: 2.807017544 | S68: 3.157894737 | T68: 3.50877193 | U68: 3.859649123 | V68: 4.210526316 | W68: 4.561403509 | X68: 4.912280702 | Y68: 5.263157895 | Z68: 5.614035088 | AA68: 5.964912281 | AB68: 6.315789474 | AC68: 6.666666667 | AD68: 7.01754386 | AE68: 7.368421053 | AF68: 7.719298246 | AG68: 8.070175439 | AH68: 8.421052632 | AI68: 8.771929825 | AJ68: 9.122807018 | AK68: 9.473684211 | AL68: 9.824561404 | AM68: 10.1754386 | AN68: 10.52631579 | AO68: 10.87719298 | AP68: 11.22807018 | AQ68: 11.57894737 | AR68: 11.92982456 | AS68: 12.28070175 | AT68: 12.63157895 | AU68: 12.98245614 | AV68: 80 | AW68: 77.33333333 | AX68: 74.66666667 | AY68: 72 | AZ68: 69.33333333 | BA68: 66.66666667 | BB68: 64 | BC68: 61.33333333 | BD68: 58.66666667 | BE68: 56 | BF68: 53.33333333 | BG68: 50.66666667 | BH68: 48 | BI68: 45.33333333 | BJ68: 42.66666667 | BK68: 40 | BL68: 37.33333333 | BM68: 34.66666667 | BN68: 32 | BO68: 29.33333333 | BP68: 26.66666667 | BQ68: 24 | BR68: 21.33333333 | BS68: 18.66666667 | BT68: 16 | BU68: 13.33333333 | BV68: 10.66666667 | BW68: =BW67*BW63 -> 8 | BX68: 5.333333333 | BY68: 2.666666667 | BZ68: 9.208633855e-14 | CA68: 0 | CB68: 0 | CC68: 0 | CD68: 0 | CE68: 0 | CF68: 0 | CG68: 0 | CH68: 0 | CI68: 0 | CJ68: 0 | CK68: 0 | CL68: 0 | CM68: 0 | CN68: 0 | CO68: 0 | CP68: 0 | CQ68: 0 | CR68: 0 | CS68: 0 | CT68: 0 | CU68: 0 | CV68: 0 | CW68: 0 | CX68: 0 | CY68: 0 | CZ68: 0 | DA68: 0 | DB68: 0 | DC68: 0 | DD68: 0 | DE68: 0 | DF68: 0 | DG68: 0 | DH68: 0 | DI68: 0 | DJ68: 0 | DK68: 0 | DL68: 0 | DM68: 0 | DN68: 0 | DO68: 0 | DP68: 0 | DQ68: 0 | DR68: 0 | DS68: 0 | DT68: 0 | DU68: 0 | DV68: 0 | DW68: 0 | DX68: 0 | DY68: 0 | DZ68: 0 | EA68: 0 | EB68: 0 | EC68: 0 | ED68: 0 | EE68: 0 | EF68: 0 | EG68: 0 | EH68: 0 | EI68: =EI67*EI63 -> 0 | EJ68: 0 | EK68: 0 | EL68: 0 | EM68: 0 | EN68: 0 | EO68: 0 | EP68: 0 | EQ68: 0 | ER68: 0 | ES68: 0 | ET68: 0 | EU68: 0 | EV68: 0 | EW68: 0 | EX68: 0 | EY68: 0 | EZ68: 0 | FA68: 0 | FB68: 0 | FC68: 0 | FD68: 0 | FE68: 0 | FF68: 0 | FG68: 0 | FH68: 0 | FI68: 0 | FJ68: 0 | FK68: 0 | FL68: 0 | FM68: 0 | FN68: 0 | FO68: 0 | FP68: 0 | FQ68: 0 | FR68: 0 | FS68: 0 | FT68: 0 | FU68: 0 | FV68: 0 | FW68: 0 | FX68: 0 | FY68: 0 | FZ68: 0 | GA68: 0 | GB68: 0 | GC68: 0 | GD68: 0 | GE68: 0 | GF68: 0 | GG68: 0 | GH68: 0 | GI68: 0 | GJ68: 0 | GK68: 0 | GL68: 0 | GM68: 0 | GN68: 0 | GO68: 0 | GP68: 0 | GQ68: 0 | GR68: 0 | GS68: 0 | GT68: 0 | GU68: =GU67*GU63 -> 0 | GV68: 0 | GW68: 0 | GX68: 0 | GY68: 0 | GZ68: 0 | HA68: 0
C69: IDC | J69: =J68*J10 -> 0 | K69: =K68*K10 -> 0.350877193 | L69: =L68*L10 -> 0.701754386 | M69: =M68*M10 -> 1.052631579 | N69: =N68*N10 -> 1.403508772 | O69: =O68*O10 -> 1.754385965 | P69: =P68*P10 -> 2.105263158 | Q69: =Q68*Q10 -> 2.456140351 | R69: =R68*R10 -> 2.807017544 | S69: =S68*S10 -> 3.157894737 | T69: =T68*T10 -> 3.50877193 | U69: =U68*U10 -> 3.859649123 | V69: =V68*V10 -> 4.210526316 | W69: =W68*W10 -> 4.561403509 | X69: =X68*X10 -> 4.912280702 | Y69: =Y68*Y10 -> 5.263157895 | Z69: =Z68*Z10 -> 5.614035088 | AA69: =AA68*AA10 -> 5.964912281 | AB69: =AB68*AB10 -> 6.315789474 | AC69: =AC68*AC10 -> 6.666666667 | AD69: =AD68*AD10 -> 7.01754386 | AE69: =AE68*AE10 -> 7.368421053 | AF69: =AF68*AF10 -> 7.719298246 | AG69: =AG68*AG10 -> 8.070175439 | AH69: =AH68*AH10 -> 8.421052632 | AI69: =AI68*AI10 -> 8.771929825 | AJ69: =AJ68*AJ10 -> 9.122807018 | AK69: =AK68*AK10 -> 9.473684211 | AL69: =AL68*AL10 -> 9.824561404 | AM69: =AM68*AM10 -> 10.1754386 | AN69: =AN68*AN10 -> 10.52631579 | AO69: =AO68*AO10 -> 10.87719298 | AP69: =AP68*AP10 -> 11.22807018 | AQ69: =AQ68*AQ10 -> 11.57894737 | AR69: =AR68*AR10 -> 11.92982456 | AS69: =AS68*AS10 -> 12.28070175 | AT69: =AT68*AT10 -> 12.63157895 | AU69: =AU68*AU10 -> 12.98245614 | AV69: =AV68*AV10 -> 0 | AW69: =AW68*AW10 -> 0 | AX69: =AX68*AX10 -> 0 | AY69: =AY68*AY10 -> 0 | AZ69: =AZ68*AZ10 -> 0 | BA69: =BA68*BA10 -> 0 | BB69: =BB68*BB10 -> 0 | BC69: =BC68*BC10 -> 0 | BD69: =BD68*BD10 -> 0 | BE69: =BE68*BE10 -> 0 | BF69: =BF68*BF10 -> 0 | BG69: =BG68*BG10 -> 0 | BH69: =BH68*BH10 -> 0 | BI69: =BI68*BI10 -> 0 | BJ69: =BJ68*BJ10 -> 0 | BK69: =BK68*BK10 -> 0 | BL69: =BL68*BL10 -> 0 | BM69: =BM68*BM10 -> 0 | BN69: =BN68*BN10 -> 0 | BO69: =BO68*BO10 -> 0 | BP69: =BP68*BP10 -> 0 | BQ69: =BQ68*BQ10 -> 0 | BR69: =BR68*BR10 -> 0 | BS69: =BS68*BS10 -> 0 | BT69: =BT68*BT10 -> 0 | BU69: =BU68*BU10 -> 0 | BV69: =BV68*BV10 -> 0 | BW69: =BW68*BW10 -> 0 | BX69: =BX68*BX10 -> 0 | BY69: =BY68*BY10 -> 0 | BZ69: =BZ68*BZ10 -> 0 | CA69: =CA68*CA10 -> 0 | CB69: =CB68*CB10 -> 0 | CC69: =CC68*CC10 -> 0 | CD69: =CD68*CD10 -> 0 | CE69: =CE68*CE10 -> 0 | CF69: =CF68*CF10 -> 0 | CG69: =CG68*CG10 -> 0 | CH69: =CH68*CH10 -> 0 | CI69: =CI68*CI10 -> 0 | CJ69: =CJ68*CJ10 -> 0 | CK69: =CK68*CK10 -> 0 | CL69: =CL68*CL10 -> 0 | CM69: =CM68*CM10 -> 0 | CN69: =CN68*CN10 -> 0 | CO69: =CO68*CO10 -> 0 | CP69: =CP68*CP10 -> 0 | CQ69: =CQ68*CQ10 -> 0 | CR69: =CR68*CR10 -> 0 | CS69: =CS68*CS10 -> 0 | CT69: =CT68*CT10 -> 0 | CU69: =CU68*CU10 -> 0 | CV69: =CV68*CV10 -> 0 | CW69: =CW68*CW10 -> 0 | CX69: =CX68*CX10 -> 0 | CY69: =CY68*CY10 -> 0 | CZ69: =CZ68*CZ10 -> 0 | DA69: =DA68*DA10 -> 0 | DB69: =DB68*DB10 -> 0 | DC69: =DC68*DC10 -> 0 | DD69: =DD68*DD10 -> 0 | DE69: =DE68*DE10 -> 0 | DF69: =DF68*DF10 -> 0 | DG69: =DG68*DG10 -> 0 | DH69: =DH68*DH10 -> 0 | DI69: =DI68*DI10 -> 0 | DJ69: =DJ68*DJ10 -> 0 | DK69: =DK68*DK10 -> 0 | DL69: =DL68*DL10 -> 0 | DM69: =DM68*DM10 -> 0 | DN69: =DN68*DN10 -> 0 | DO69: =DO68*DO10 -> 0 | DP69: =DP68*DP10 -> 0 | DQ69: =DQ68*DQ10 -> 0 | DR69: =DR68*DR10 -> 0 | DS69: =DS68*DS10 -> 0 | DT69: =DT68*DT10 -> 0 | DU69: =DU68*DU10 -> 0 | DV69: =DV68*DV10 -> 0 | DW69: =DW68*DW10 -> 0 | DX69: =DX68*DX10 -> 0 | DY69: =DY68*DY10 -> 0 | DZ69: =DZ68*DZ10 -> 0 | EA69: =EA68*EA10 -> 0 | EB69: =EB68*EB10 -> 0 | EC69: =EC68*EC10 -> 0 | ED69: =ED68*ED10 -> 0 | EE69: =EE68*EE10 -> 0 | EF69: =EF68*EF10 -> 0 | EG69: =EG68*EG10 -> 0 | EH69: =EH68*EH10 -> 0 | EI69: =EI68*EI10 -> 0 | EJ69: =EJ68*EJ10 -> 0 | EK69: =EK68*EK10 -> 0 | EL69: =EL68*EL10 -> 0 | EM69: =EM68*EM10 -> 0 | EN69: =EN68*EN10 -> 0 | EO69: =EO68*EO10 -> 0 | EP69: =EP68*EP10 -> 0 | EQ69: =EQ68*EQ10 -> 0 | ER69: =ER68*ER10 -> 0 | ES69: =ES68*ES10 -> 0 | ET69: =ET68*ET10 -> 0 | EU69: =EU68*EU10 -> 0 | EV69: =EV68*EV10 -> 0 | EW69: =EW68*EW10 -> 0 | EX69: =EX68*EX10 -> 0 | EY69: =EY68*EY10 -> 0 | EZ69: =EZ68*EZ10 -> 0 | FA69: =FA68*FA10 -> 0 | FB69: =FB68*FB10 -> 0 | FC69: =FC68*FC10 -> 0 | FD69: =FD68*FD10 -> 0 | FE69: =FE68*FE10 -> 0 | FF69: =FF68*FF10 -> 0 | FG69: =FG68*FG10 -> 0 | FH69: =FH68*FH10 -> 0 | FI69: =FI68*FI10 -> 0 | FJ69: =FJ68*FJ10 -> 0 | FK69: =FK68*FK10 -> 0 | FL69: =FL68*FL10 -> 0 | FM69: =FM68*FM10 -> 0 | FN69: =FN68*FN10 -> 0 | FO69: =FO68*FO10 -> 0 | FP69: =FP68*FP10 -> 0 | FQ69: =FQ68*FQ10 -> 0 | FR69: =FR68*FR10 -> 0 | FS69: =FS68*FS10 -> 0 | FT69: =FT68*FT10 -> 0 | FU69: =FU68*FU10 -> 0 | FV69: =FV68*FV10 -> 0 | FW69: =FW68*FW10 -> 0 | FX69: =FX68*FX10 -> 0 | FY69: =FY68*FY10 -> 0 | FZ69: =FZ68*FZ10 -> 0 | GA69: =GA68*GA10 -> 0 | GB69: =GB68*GB10 -> 0 | GC69: =GC68*GC10 -> 0 | GD69: =GD68*GD10 -> 0 | GE69: =GE68*GE10 -> 0 | GF69: =GF68*GF10 -> 0 | GG69: =GG68*GG10 -> 0 | GH69: =GH68*GH10 -> 0 | GI69: =GI68*GI10 -> 0 | GJ69: =GJ68*GJ10 -> 0 | GK69: =GK68*GK10 -> 0 | GL69: =GL68*GL10 -> 0 | GM69: =GM68*GM10 -> 0 | GN69: =GN68*GN10 -> 0 | GO69: =GO68*GO10 -> 0 | GP69: =GP68*GP10 -> 0 | GQ69: =GQ68*GQ10 -> 0 | GR69: =GR68*GR10 -> 0 | GS69: =GS68*GS10 -> 0 | GT69: =GT68*GT10 -> 0 | GU69: =GU68*GU10 -> 0 | GV69: =GV68*GV10 -> 0 | GW69: =GW68*GW10 -> 0 | GX69: =GX68*GX10 -> 0 | GY69: =GY68*GY10 -> 0 | GZ69: =GZ68*GZ10 -> 0 | HA69: =HA68*HA10 -> 0
C70: Interest Expense | J70: =J68*J11 -> 0 | K70: =K68*K11 -> 0 | L70: =L68*L11 -> 0 | M70: =M68*M11 -> 0 | N70: =N68*N11 -> 0 | O70: =O68*O11 -> 0 | P70: =P68*P11 -> 0 | Q70: =Q68*Q11 -> 0 | R70: =R68*R11 -> 0 | S70: =S68*S11 -> 0 | T70: =T68*T11 -> 0 | U70: =U68*U11 -> 0 | V70: =V68*V11 -> 0 | W70: =W68*W11 -> 0 | X70: =X68*X11 -> 0 | Y70: =Y68*Y11 -> 0 | Z70: =Z68*Z11 -> 0 | AA70: =AA68*AA11 -> 0 | AB70: =AB68*AB11 -> 0 | AC70: =AC68*AC11 -> 0 | AD70: =AD68*AD11 -> 0 | AE70: =AE68*AE11 -> 0 | AF70: =AF68*AF11 -> 0 | AG70: =AG68*AG11 -> 0 | AH70: =AH68*AH11 -> 0 | AI70: =AI68*AI11 -> 0 | AJ70: =AJ68*AJ11 -> 0 | AK70: =AK68*AK11 -> 0 | AL70: =AL68*AL11 -> 0 | AM70: =AM68*AM11 -> 0 | AN70: =AN68*AN11 -> 0 | AO70: =AO68*AO11 -> 0 | AP70: =AP68*AP11 -> 0 | AQ70: =AQ68*AQ11 -> 0 | AR70: =AR68*AR11 -> 0 | AS70: =AS68*AS11 -> 0 | AT70: =AT68*AT11 -> 0 | AU70: =AU68*AU11 -> 0 | AV70: =AV68*AV11 -> 80 | AW70: =AW68*AW11 -> 77.33333333 | AX70: =AX68*AX11 -> 74.66666667 | AY70: =AY68*AY11 -> 72 | AZ70: =AZ68*AZ11 -> 69.33333333 | BA70: =BA68*BA11 -> 66.66666667 | BB70: =BB68*BB11 -> 64 | BC70: =BC68*BC11 -> 61.33333333 | BD70: =BD68*BD11 -> 58.66666667 | BE70: =BE68*BE11 -> 56 | BF70: =BF68*BF11 -> 53.33333333 | BG70: =BG68*BG11 -> 50.66666667 | BH70: =BH68*BH11 -> 48 | BI70: =BI68*BI11 -> 45.33333333 | BJ70: =BJ68*BJ11 -> 42.66666667 | BK70: =BK68*BK11 -> 40 | BL70: =BL68*BL11 -> 37.33333333 | BM70: =BM68*BM11 -> 34.66666667 | BN70: =BN68*BN11 -> 32 | BO70: =BO68*BO11 -> 29.33333333 | BP70: =BP68*BP11 -> 26.66666667 | BQ70: =BQ68*BQ11 -> 24 | BR70: =BR68*BR11 -> 21.33333333 | BS70: =BS68*BS11 -> 18.66666667 | BT70: =BT68*BT11 -> 16 | BU70: =BU68*BU11 -> 13.33333333 | BV70: =BV68*BV11 -> 10.66666667 | BW70: =BW68*BW11 -> 8 | BX70: =BX68*BX11 -> 5.333333333 | BY70: =BY68*BY11 -> 2.666666667 | BZ70: =BZ68*BZ11 -> 9.208633855e-14 | CA70: =CA68*CA11 -> 0 | CB70: =CB68*CB11 -> 0 | CC70: =CC68*CC11 -> 0 | CD70: =CD68*CD11 -> 0 | CE70: =CE68*CE11 -> 0 | CF70: =CF68*CF11 -> 0 | CG70: =CG68*CG11 -> 0 | CH70: =CH68*CH11 -> 0 | CI70: =CI68*CI11 -> 0 | CJ70: =CJ68*CJ11 -> 0 | CK70: =CK68*CK11 -> 0 | CL70: =CL68*CL11 -> 0 | CM70: =CM68*CM11 -> 0 | CN70: =CN68*CN11 -> 0 | CO70: =CO68*CO11 -> 0 | CP70: =CP68*CP11 -> 0 | CQ70: =CQ68*CQ11 -> 0 | CR70: =CR68*CR11 -> 0 | CS70: =CS68*CS11 -> 0 | CT70: =CT68*CT11 -> 0 | CU70: =CU68*CU11 -> 0 | CV70: =CV68*CV11 -> 0 | CW70: =CW68*CW11 -> 0 | CX70: =CX68*CX11 -> 0 | CY70: =CY68*CY11 -> 0 | CZ70: =CZ68*CZ11 -> 0 | DA70: =DA68*DA11 -> 0 | DB70: =DB68*DB11 -> 0 | DC70: =DC68*DC11 -> 0 | DD70: =DD68*DD11 -> 0 | DE70: =DE68*DE11 -> 0 | DF70: =DF68*DF11 -> 0 | DG70: =DG68*DG11 -> 0 | DH70: =DH68*DH11 -> 0 | DI70: =DI68*DI11 -> 0 | DJ70: =DJ68*DJ11 -> 0 | DK70: =DK68*DK11 -> 0 | DL70: =DL68*DL11 -> 0 | DM70: =DM68*DM11 -> 0 | DN70: =DN68*DN11 -> 0 | DO70: =DO68*DO11 -> 0 | DP70: =DP68*DP11 -> 0 | DQ70: =DQ68*DQ11 -> 0 | DR70: =DR68*DR11 -> 0 | DS70: =DS68*DS11 -> 0 | DT70: =DT68*DT11 -> 0 | DU70: =DU68*DU11 -> 0 | DV70: =DV68*DV11 -> 0 | DW70: =DW68*DW11 -> 0 | DX70: =DX68*DX11 -> 0 | DY70: =DY68*DY11 -> 0 | DZ70: =DZ68*DZ11 -> 0 | EA70: =EA68*EA11 -> 0 | EB70: =EB68*EB11 -> 0 | EC70: =EC68*EC11 -> 0 | ED70: =ED68*ED11 -> 0 | EE70: =EE68*EE11 -> 0 | EF70: =EF68*EF11 -> 0 | EG70: =EG68*EG11 -> 0 | EH70: =EH68*EH11 -> 0 | EI70: =EI68*EI11 -> 0 | EJ70: =EJ68*EJ11 -> 0 | EK70: =EK68*EK11 -> 0 | EL70: =EL68*EL11 -> 0 | EM70: =EM68*EM11 -> 0 | EN70: =EN68*EN11 -> 0 | EO70: =EO68*EO11 -> 0 | EP70: =EP68*EP11 -> 0 | EQ70: =EQ68*EQ11 -> 0 | ER70: =ER68*ER11 -> 0 | ES70: =ES68*ES11 -> 0 | ET70: =ET68*ET11 -> 0 | EU70: =EU68*EU11 -> 0 | EV70: =EV68*EV11 -> 0 | EW70: =EW68*EW11 -> 0 | EX70: =EX68*EX11 -> 0 | EY70: =EY68*EY11 -> 0 | EZ70: =EZ68*EZ11 -> 0 | FA70: =FA68*FA11 -> 0 | FB70: =FB68*FB11 -> 0 | FC70: =FC68*FC11 -> 0 | FD70: =FD68*FD11 -> 0 | FE70: =FE68*FE11 -> 0 | FF70: =FF68*FF11 -> 0 | FG70: =FG68*FG11 -> 0 | FH70: =FH68*FH11 -> 0 | FI70: =FI68*FI11 -> 0 | FJ70: =FJ68*FJ11 -> 0 | FK70: =FK68*FK11 -> 0 | FL70: =FL68*FL11 -> 0 | FM70: =FM68*FM11 -> 0 | FN70: =FN68*FN11 -> 0 | FO70: =FO68*FO11 -> 0 | FP70: =FP68*FP11 -> 0 | FQ70: =FQ68*FQ11 -> 0 | FR70: =FR68*FR11 -> 0 | FS70: =FS68*FS11 -> 0 | FT70: =FT68*FT11 -> 0 | FU70: =FU68*FU11 -> 0 | FV70: =FV68*FV11 -> 0 | FW70: =FW68*FW11 -> 0 | FX70: =FX68*FX11 -> 0 | FY70: =FY68*FY11 -> 0 | FZ70: =FZ68*FZ11 -> 0 | GA70: =GA68*GA11 -> 0 | GB70: =GB68*GB11 -> 0 | GC70: =GC68*GC11 -> 0 | GD70: =GD68*GD11 -> 0 | GE70: =GE68*GE11 -> 0 | GF70: =GF68*GF11 -> 0 | GG70: =GG68*GG11 -> 0 | GH70: =GH68*GH11 -> 0 | GI70: =GI68*GI11 -> 0 | GJ70: =GJ68*GJ11 -> 0 | GK70: =GK68*GK11 -> 0 | GL70: =GL68*GL11 -> 0 | GM70: =GM68*GM11 -> 0 | GN70: =GN68*GN11 -> 0 | GO70: =GO68*GO11 -> 0 | GP70: =GP68*GP11 -> 0 | GQ70: =GQ68*GQ11 -> 0 | GR70: =GR68*GR11 -> 0 | GS70: =GS68*GS11 -> 0 | GT70: =GT68*GT11 -> 0 | GU70: =GU68*GU11 -> 0 | GV70: =GV68*GV11 -> 0 | GW70: =GW68*GW11 -> 0 | GX70: =GX68*GX11 -> 0 | GY70: =GY68*GY11 -> 0 | GZ70: =GZ68*GZ11 -> 0 | HA70: =HA68*HA11 -> 0
B72: Debt 2
C73: Debt Repayment Period | J73: =I73+J11 -> 0 | K73: =J73+K11 -> 0 | L73: =K73+L11 -> 0 | M73: =L73+M11 -> 0 | N73: =M73+N11 -> 0 | O73: =N73+O11 -> 0 | P73: =O73+P11 -> 0 | Q73: =P73+Q11 -> 0 | R73: =Q73+R11 -> 0 | S73: =R73+S11 -> 0 | T73: =S73+T11 -> 0 | U73: =T73+U11 -> 0 | V73: =U73+V11 -> 0 | W73: =V73+W11 -> 0 | X73: =W73+X11 -> 0 | Y73: =X73+Y11 -> 0 | Z73: =Y73+Z11 -> 0 | AA73: =Z73+AA11 -> 0 | AB73: =AA73+AB11 -> 0 | AC73: =AB73+AC11 -> 0 | AD73: =AC73+AD11 -> 0 | AE73: =AD73+AE11 -> 0 | AF73: =AE73+AF11 -> 0 | AG73: =AF73+AG11 -> 0 | AH73: =AG73+AH11 -> 0 | AI73: =AH73+AI11 -> 0 | AJ73: =AI73+AJ11 -> 0 | AK73: =AJ73+AK11 -> 0 | AL73: =AK73+AL11 -> 0 | AM73: =AL73+AM11 -> 0 | AN73: =AM73+AN11 -> 0 | AO73: =AN73+AO11 -> 0 | AP73: =AO73+AP11 -> 0 | AQ73: =AP73+AQ11 -> 0 | AR73: =AQ73+AR11 -> 0 | AS73: =AR73+AS11 -> 0 | AT73: =AS73+AT11 -> 0 | AU73: =AT73+AU11 -> 0 | AV73: =AU73+AV11 -> 1 | AW73: =AV73+AW11 -> 2 | AX73: =AW73+AX11 -> 3 | AY73: =AX73+AY11 -> 4 | AZ73: =AY73+AZ11 -> 5 | BA73: =AZ73+BA11 -> 6 | BB73: =BA73+BB11 -> 7 | BC73: =BB73+BC11 -> 8 | BD73: =BC73+BD11 -> 9 | BE73: =BD73+BE11 -> 10 | BF73: =BE73+BF11 -> 11 | BG73: =BF73+BG11 -> 12 | BH73: =BG73+BH11 -> 13 | BI73: =BH73+BI11 -> 14 | BJ73: =BI73+BJ11 -> 15 | BK73: =BJ73+BK11 -> 16 | BL73: =BK73+BL11 -> 17 | BM73: =BL73+BM11 -> 18 | BN73: =BM73+BN11 -> 19 | BO73: =BN73+BO11 -> 20 | BP73: =BO73+BP11 -> 21 | BQ73: =BP73+BQ11 -> 22 | BR73: =BQ73+BR11 -> 23 | BS73: =BR73+BS11 -> 24 | BT73: =BS73+BT11 -> 25 | BU73: =BT73+BU11 -> 26 | BV73: =BU73+BV11 -> 27 | BW73: =BV73+BW11 -> 28 | BX73: =BW73+BX11 -> 29 | BY73: =BX73+BY11 -> 30 | BZ73: =BY73+BZ11 -> 31 | CA73: =BZ73+CA11 -> 32 | CB73: =CA73+CB11 -> 33 | CC73: =CB73+CC11 -> 34 | CD73: =CC73+CD11 -> 35 | CE73: =CD73+CE11 -> 36 | CF73: =CE73+CF11 -> 37 | CG73: =CF73+CG11 -> 38 | CH73: =CG73+CH11 -> 39 | CI73: =CH73+CI11 -> 40 | CJ73: =CI73+CJ11 -> 40 | CK73: =CJ73+CK11 -> 40 | CL73: =CK73+CL11 -> 40 | CM73: =CL73+CM11 -> 40 | CN73: =CM73+CN11 -> 40 | CO73: =CN73+CO11 -> 40 | CP73: =CO73+CP11 -> 40 | CQ73: =CP73+CQ11 -> 40 | CR73: =CQ73+CR11 -> 40 | CS73: =CR73+CS11 -> 40 | CT73: =CS73+CT11 -> 40 | CU73: =CT73+CU11 -> 40 | CV73: =CU73+CV11 -> 40 | CW73: =CV73+CW11 -> 40 | CX73: =CW73+CX11 -> 40 | CY73: =CX73+CY11 -> 40 | CZ73: =CY73+CZ11 -> 40 | DA73: =CZ73+DA11 -> 40 | DB73: =DA73+DB11 -> 40 | DC73: =DB73+DC11 -> 40 | DD73: =DC73+DD11 -> 40 | DE73: =DD73+DE11 -> 40 | DF73: =DE73+DF11 -> 40 | DG73: =DF73+DG11 -> 40 | DH73: =DG73+DH11 -> 40 | DI73: =DH73+DI11 -> 40 | DJ73: =DI73+DJ11 -> 40 | DK73: =DJ73+DK11 -> 40 | DL73: =DK73+DL11 -> 40 | DM73: =DL73+DM11 -> 40 | DN73: =DM73+DN11 -> 40 | DO73: =DN73+DO11 -> 40 | DP73: =DO73+DP11 -> 40 | DQ73: =DP73+DQ11 -> 40 | DR73: =DQ73+DR11 -> 40 | DS73: =DR73+DS11 -> 40 | DT73: =DS73+DT11 -> 40 | DU73: =DT73+DU11 -> 40 | DV73: =DU73+DV11 -> 40 | DW73: =DV73+DW11 -> 40 | DX73: =DW73+DX11 -> 40 | DY73: =DX73+DY11 -> 40 | DZ73: =DY73+DZ11 -> 40 | EA73: =DZ73+EA11 -> 40 | EB73: =EA73+EB11 -> 40 | EC73: =EB73+EC11 -> 40 | ED73: =EC73+ED11 -> 40 | EE73: =ED73+EE11 -> 40 | EF73: =EE73+EF11 -> 40 | EG73: =EF73+EG11 -> 40 | EH73: =EG73+EH11 -> 40 | EI73: =EH73+EI11 -> 40 | EJ73: =EI73+EJ11 -> 40 | EK73: =EJ73+EK11 -> 40 | EL73: =EK73+EL11 -> 40 | EM73: =EL73+EM11 -> 40 | EN73: =EM73+EN11 -> 40 | EO73: =EN73+EO11 -> 40 | EP73: =EO73+EP11 -> 40 | EQ73: =EP73+EQ11 -> 40 | ER73: =EQ73+ER11 -> 40 | ES73: =ER73+ES11 -> 40 | ET73: =ES73+ET11 -> 40 | EU73: =ET73+EU11 -> 40 | EV73: =EU73+EV11 -> 40 | EW73: =EV73+EW11 -> 40 | EX73: =EW73+EX11 -> 40 | EY73: =EX73+EY11 -> 40 | EZ73: =EY73+EZ11 -> 40 | FA73: =EZ73+FA11 -> 40 | FB73: =FA73+FB11 -> 40 | FC73: =FB73+FC11 -> 40 | FD73: =FC73+FD11 -> 40 | FE73: =FD73+FE11 -> 40 | FF73: =FE73+FF11 -> 40 | FG73: =FF73+FG11 -> 40 | FH73: =FG73+FH11 -> 40 | FI73: =FH73+FI11 -> 40 | FJ73: =FI73+FJ11 -> 40 | FK73: =FJ73+FK11 -> 40 | FL73: =FK73+FL11 -> 40 | FM73: =FL73+FM11 -> 40 | FN73: =FM73+FN11 -> 40 | FO73: =FN73+FO11 -> 40 | FP73: =FO73+FP11 -> 40 | FQ73: =FP73+FQ11 -> 40 | FR73: =FQ73+FR11 -> 40 | FS73: =FR73+FS11 -> 40 | FT73: =FS73+FT11 -> 40 | FU73: =FT73+FU11 -> 40 | FV73: =FU73+FV11 -> 40 | FW73: =FV73+FW11 -> 40 | FX73: =FW73+FX11 -> 40 | FY73: =FX73+FY11 -> 40 | FZ73: =FY73+FZ11 -> 40 | GA73: =FZ73+GA11 -> 40 | GB73: =GA73+GB11 -> 40 | GC73: =GB73+GC11 -> 40 | GD73: =GC73+GD11 -> 40 | GE73: =GD73+GE11 -> 40 | GF73: =GE73+GF11 -> 40 | GG73: =GF73+GG11 -> 40 | GH73: =GG73+GH11 -> 40 | GI73: =GH73+GI11 -> 40 | GJ73: =GI73+GJ11 -> 40 | GK73: =GJ73+GK11 -> 40 | GL73: =GK73+GL11 -> 40 | GM73: =GL73+GM11 -> 40 | GN73: =GM73+GN11 -> 40 | GO73: =GN73+GO11 -> 40 | GP73: =GO73+GP11 -> 40 | GQ73: =GP73+GQ11 -> 40 | GR73: =GQ73+GR11 -> 40 | GS73: =GR73+GS11 -> 40 | GT73: =GS73+GT11 -> 40 | GU73: =GT73+GU11 -> 40 | GV73: =GU73+GV11 -> 40 | GW73: =GV73+GW11 -> 40 | GX73: =GW73+GX11 -> 40 | GY73: =GX73+GY11 -> 40 | GZ73: =GY73+GZ11 -> 40 | HA73: =GZ73+HA11 -> 40
C74: Debt Repament Switch | J74: =AND(J73>0,J73<=$G$77) -> FALSE | K74: =AND(K73>0,K73<=$G$77) -> FALSE | L74: FALSE | M74: FALSE | N74: FALSE | O74: FALSE | P74: FALSE | Q74: FALSE | R74: FALSE | S74: FALSE | T74: FALSE | U74: FALSE | V74: FALSE | W74: FALSE | X74: FALSE | Y74: FALSE | Z74: FALSE | AA74: FALSE | AB74: FALSE | AC74: FALSE | AD74: FALSE | AE74: FALSE | AF74: FALSE | AG74: FALSE | AH74: FALSE | AI74: FALSE | AJ74: FALSE | AK74: FALSE | AL74: FALSE | AM74: FALSE | AN74: FALSE | AO74: FALSE | AP74: FALSE | AQ74: FALSE | AR74: FALSE | AS74: FALSE | AT74: FALSE | AU74: FALSE | AV74: TRUE | AW74: TRUE | AX74: TRUE | AY74: TRUE | AZ74: TRUE | BA74: TRUE | BB74: TRUE | BC74: TRUE | BD74: TRUE | BE74: TRUE | BF74: TRUE | BG74: TRUE | BH74: TRUE | BI74: TRUE | BJ74: TRUE | BK74: TRUE | BL74: TRUE | BM74: TRUE | BN74: TRUE | BO74: TRUE | BP74: TRUE | BQ74: TRUE | BR74: TRUE | BS74: TRUE | BT74: TRUE | BU74: TRUE | BV74: TRUE | BW74: =AND(BW73>0,BW73<=$G$77) -> TRUE | BX74: TRUE | BY74: TRUE | BZ74: FALSE | CA74: FALSE | CB74: FALSE | CC74: FALSE | CD74: FALSE | CE74: FALSE | CF74: FALSE | CG74: FALSE | CH74: FALSE | CI74: FALSE | CJ74: FALSE | CK74: FALSE | CL74: FALSE | CM74: FALSE | CN74: FALSE | CO74: FALSE | CP74: FALSE | CQ74: FALSE | CR74: FALSE | CS74: FALSE | CT74: FALSE | CU74: FALSE | CV74: FALSE | CW74: FALSE | CX74: FALSE | CY74: FALSE | CZ74: FALSE | DA74: FALSE | DB74: FALSE | DC74: FALSE | DD74: FALSE | DE74: FALSE | DF74: FALSE | DG74: FALSE | DH74: FALSE | DI74: FALSE | DJ74: FALSE | DK74: FALSE | DL74: FALSE | DM74: FALSE | DN74: FALSE | DO74: FALSE | DP74: FALSE | DQ74: FALSE | DR74: FALSE | DS74: FALSE | DT74: FALSE | DU74: FALSE | DV74: FALSE | DW74: FALSE | DX74: FALSE | DY74: FALSE | DZ74: FALSE | EA74: FALSE | EB74: FALSE | EC74: FALSE | ED74: FALSE | EE74: FALSE | EF74: FALSE | EG74: FALSE | EH74: FALSE | EI74: =AND(EI73>0,EI73<=$G$77) -> FALSE | EJ74: FALSE | EK74: FALSE | EL74: FALSE | EM74: FALSE | EN74: FALSE | EO74: FALSE | EP74: FALSE | EQ74: FALSE | ER74: FALSE | ES74: FALSE | ET74: FALSE | EU74: FALSE | EV74: FALSE | EW74: FALSE | EX74: FALSE | EY74: FALSE | EZ74: FALSE | FA74: FALSE | FB74: FALSE | FC74: FALSE | FD74: FALSE | FE74: FALSE | FF74: FALSE | FG74: FALSE | FH74: FALSE | FI74: FALSE | FJ74: FALSE | FK74: FALSE | FL74: FALSE | FM74: FALSE | FN74: FALSE | FO74: FALSE | FP74: FALSE | FQ74: FALSE | FR74: FALSE | FS74: FALSE | FT74: FALSE | FU74: FALSE | FV74: FALSE | FW74: FALSE | FX74: FALSE | FY74: FALSE | FZ74: FALSE | GA74: FALSE | GB74: FALSE | GC74: FALSE | GD74: FALSE | GE74: FALSE | GF74: FALSE | GG74: FALSE | GH74: FALSE | GI74: FALSE | GJ74: FALSE | GK74: FALSE | GL74: FALSE | GM74: FALSE | GN74: FALSE | GO74: FALSE | GP74: FALSE | GQ74: FALSE | GR74: FALSE | GS74: FALSE | GT74: FALSE | GU74: =AND(GU73>0,GU73<=$G$77) -> FALSE | GV74: FALSE | GW74: FALSE | GX74: FALSE | GY74: FALSE | GZ74: FALSE | HA74: FALSE
C75: Opening Balance | J75: =I78 -> 0 | K75: =J78 -> 78.94736842 | L75: 157.8947368 | M75: 236.8421053 | N75: 315.7894737 | O75: 394.7368421 | P75: 473.6842105 | Q75: 552.6315789 | R75: 631.5789474 | S75: 710.5263158 | T75: 789.4736842 | U75: 868.4210526 | V75: 947.3684211 | W75: 1026.315789 | X75: 1105.263158 | Y75: 1184.210526 | Z75: 1263.157895 | AA75: 1342.105263 | AB75: 1421.052632 | AC75: 1500 | AD75: 1578.947368 | AE75: 1657.894737 | AF75: 1736.842105 | AG75: 1815.789474 | AH75: 1894.736842 | AI75: 1973.684211 | AJ75: 2052.631579 | AK75: 2131.578947 | AL75: 2210.526316 | AM75: 2289.473684 | AN75: 2368.421053 | AO75: 2447.368421 | AP75: 2526.315789 | AQ75: 2605.263158 | AR75: 2684.210526 | AS75: 2763.157895 | AT75: 2842.105263 | AU75: 2921.052632 | AV75: 3000 | AW75: 2926.050233 | AX75: 2850.621471 | AY75: 2773.684133 | AZ75: 2695.208049 | BA75: 2615.162443 | BB75: 2533.515925 | BC75: 2450.236477 | BD75: 2365.29144 | BE75: 2278.647502 | BF75: 2190.270685 | BG75: 2100.126331 | BH75: 2008.179091 | BI75: 1914.392906 | BJ75: 1818.730997 | BK75: 1721.15585 | BL75: 1621.629201 | BM75: 1520.112018 | BN75: 1416.564491 | BO75: 1310.946014 | BP75: 1203.215168 | BQ75: 1093.329704 | BR75: 981.2465312 | BS75: 866.921695 | BT75: 750.310362 | BU75: 631.3668024 | BV75: 510.0443715 | BW75: =BV78 -> 386.2954921 | BX75: 260.071635 | BY75: 131.3233009 | BZ75: 4.831690603e-13 | CA75: 4.831690603e-13 | CB75: 4.831690603e-13 | CC75: 4.831690603e-13 | CD75: 4.831690603e-13 | CE75: 4.831690603e-13 | CF75: 4.831690603e-13 | CG75: 4.831690603e-13 | CH75: 4.831690603e-13 | CI75: 4.831690603e-13 | CJ75: 4.831690603e-13 | CK75: 4.831690603e-13 | CL75: 4.831690603e-13 | CM75: 4.831690603e-13 | CN75: 4.831690603e-13 | CO75: 4.831690603e-13 | CP75: 4.831690603e-13 | CQ75: 4.831690603e-13 | CR75: 4.831690603e-13 | CS75: 4.831690603e-13 | CT75: 4.831690603e-13 | CU75: 4.831690603e-13 | CV75: 4.831690603e-13 | CW75: 4.831690603e-13 | CX75: 4.831690603e-13 | CY75: 4.831690603e-13 | CZ75: 4.831690603e-13 | DA75: 4.831690603e-13 | DB75: 4.831690603e-13 | DC75: 4.831690603e-13 | DD75: 4.831690603e-13 | DE75: 4.831690603e-13 | DF75: 4.831690603e-13 | DG75: 4.831690603e-13 | DH75: 4.831690603e-13 | DI75: 4.831690603e-13 | DJ75: 4.831690603e-13 | DK75: 4.831690603e-13 | DL75: 4.831690603e-13 | DM75: 4.831690603e-13 | DN75: 4.831690603e-13 | DO75: 4.831690603e-13 | DP75: 4.831690603e-13 | DQ75: 4.831690603e-13 | DR75: 4.831690603e-13 | DS75: 4.831690603e-13 | DT75: 4.831690603e-13 | DU75: 4.831690603e-13 | DV75: 4.831690603e-13 | DW75: 4.831690603e-13 | DX75: 4.831690603e-13 | DY75: 4.831690603e-13 | DZ75: 4.831690603e-13 | EA75: 4.831690603e-13 | EB75: 4.831690603e-13 | EC75: 4.831690603e-13 | ED75: 4.831690603e-13 | EE75: 4.831690603e-13 | EF75: 4.831690603e-13 | EG75: 4.831690603e-13 | EH75: 4.831690603e-13 | EI75: =EH78 -> 4.831690603e-13 | EJ75: 4.831690603e-13 | EK75: 4.831690603e-13 | EL75: 4.831690603e-13 | EM75: 4.831690603e-13 | EN75: 4.831690603e-13 | EO75: 4.831690603e-13 | EP75: 4.831690603e-13 | EQ75: 4.831690603e-13 | ER75: 4.831690603e-13 | ES75: 4.831690603e-13 | ET75: 4.831690603e-13 | EU75: 4.831690603e-13 | EV75: 4.831690603e-13 | EW75: 4.831690603e-13 | EX75: 4.831690603e-13 | EY75: 4.831690603e-13 | EZ75: 4.831690603e-13 | FA75: 4.831690603e-13 | FB75: 4.831690603e-13 | FC75: 4.831690603e-13 | FD75: 4.831690603e-13 | FE75: 4.831690603e-13 | FF75: 4.831690603e-13 | FG75: 4.831690603e-13 | FH75: 4.831690603e-13 | FI75: 4.831690603e-13 | FJ75: 4.831690603e-13 | FK75: 4.831690603e-13 | FL75: 4.831690603e-13 | FM75: 4.831690603e-13 | FN75: 4.831690603e-13 | FO75: 4.831690603e-13 | FP75: 4.831690603e-13 | FQ75: 4.831690603e-13 | FR75: 4.831690603e-13 | FS75: 4.831690603e-13 | FT75: 4.831690603e-13 | FU75: 4.831690603e-13 | FV75: 4.831690603e-13 | FW75: 4.831690603e-13 | FX75: 4.831690603e-13 | FY75: 4.831690603e-13 | FZ75: 4.831690603e-13 | GA75: 4.831690603e-13 | GB75: 4.831690603e-13 | GC75: 4.831690603e-13 | GD75: 4.831690603e-13 | GE75: 4.831690603e-13 | GF75: 4.831690603e-13 | GG75: 4.831690603e-13 | GH75: 4.831690603e-13 | GI75: 4.831690603e-13 | GJ75: 4.831690603e-13 | GK75: 4.831690603e-13 | GL75: 4.831690603e-13 | GM75: 4.831690603e-13 | GN75: 4.831690603e-13 | GO75: 4.831690603e-13 | GP75: 4.831690603e-13 | GQ75: 4.831690603e-13 | GR75: 4.831690603e-13 | GS75: 4.831690603e-13 | GT75: 4.831690603e-13 | GU75: =GT78 -> 4.831690603e-13 | GV75: 4.831690603e-13 | GW75: 4.831690603e-13 | GX75: 4.831690603e-13 | GY75: 4.831690603e-13 | GZ75: 4.831690603e-13 | HA75: 4.831690603e-13
C76: Add: Draws | J76: =J57 -> 78.94736842 | K76: =K57 -> 78.94736842 | L76: 78.94736842 | M76: 78.94736842 | N76: 78.94736842 | O76: 78.94736842 | P76: 78.94736842 | Q76: 78.94736842 | R76: 78.94736842 | S76: 78.94736842 | T76: 78.94736842 | U76: 78.94736842 | V76: 78.94736842 | W76: 78.94736842 | X76: 78.94736842 | Y76: 78.94736842 | Z76: 78.94736842 | AA76: 78.94736842 | AB76: 78.94736842 | AC76: 78.94736842 | AD76: 78.94736842 | AE76: 78.94736842 | AF76: 78.94736842 | AG76: 78.94736842 | AH76: 78.94736842 | AI76: 78.94736842 | AJ76: 78.94736842 | AK76: 78.94736842 | AL76: 78.94736842 | AM76: 78.94736842 | AN76: 78.94736842 | AO76: 78.94736842 | AP76: 78.94736842 | AQ76: 78.94736842 | AR76: 78.94736842 | AS76: 78.94736842 | AT76: 78.94736842 | AU76: 78.94736842 | AV76: 0 | AW76: 0 | AX76: 0 | AY76: 0 | AZ76: 0 | BA76: 0 | BB76: 0 | BC76: 0 | BD76: 0 | BE76: 0 | BF76: 0 | BG76: 0 | BH76: 0 | BI76: 0 | BJ76: 0 | BK76: 0 | BL76: 0 | BM76: 0 | BN76: 0 | BO76: 0 | BP76: 0 | BQ76: 0 | BR76: 0 | BS76: 0 | BT76: 0 | BU76: 0 | BV76: 0 | BW76: =BW57 -> 0 | BX76: 0 | BY76: 0 | BZ76: 0 | CA76: 0 | CB76: 0 | CC76: 0 | CD76: 0 | CE76: 0 | CF76: 0 | CG76: 0 | CH76: 0 | CI76: 0 | CJ76: 0 | CK76: 0 | CL76: 0 | CM76: 0 | CN76: 0 | CO76: 0 | CP76: 0 | CQ76: 0 | CR76: 0 | CS76: 0 | CT76: 0 | CU76: 0 | CV76: 0 | CW76: 0 | CX76: 0 | CY76: 0 | CZ76: 0 | DA76: 0 | DB76: 0 | DC76: 0 | DD76: 0 | DE76: 0 | DF76: 0 | DG76: 0 | DH76: 0 | DI76: 0 | DJ76: 0 | DK76: 0 | DL76: 0 | DM76: 0 | DN76: 0 | DO76: 0 | DP76: 0 | DQ76: 0 | DR76: 0 | DS76: 0 | DT76: 0 | DU76: 0 | DV76: 0 | DW76: 0 | DX76: 0 | DY76: 0 | DZ76: 0 | EA76: 0 | EB76: 0 | EC76: 0 | ED76: 0 | EE76: 0 | EF76: 0 | EG76: 0 | EH76: 0 | EI76: =EI57 -> 0 | EJ76: 0 | EK76: 0 | EL76: 0 | EM76: 0 | EN76: 0 | EO76: 0 | EP76: 0 | EQ76: 0 | ER76: 0 | ES76: 0 | ET76: 0 | EU76: 0 | EV76: 0 | EW76: 0 | EX76: 0 | EY76: 0 | EZ76: 0 | FA76: 0 | FB76: 0 | FC76: 0 | FD76: 0 | FE76: 0 | FF76: 0 | FG76: 0 | FH76: 0 | FI76: 0 | FJ76: 0 | FK76: 0 | FL76: 0 | FM76: 0 | FN76: 0 | FO76: 0 | FP76: 0 | FQ76: 0 | FR76: 0 | FS76: 0 | FT76: 0 | FU76: 0 | FV76: 0 | FW76: 0 | FX76: 0 | FY76: 0 | FZ76: 0 | GA76: 0 | GB76: 0 | GC76: 0 | GD76: 0 | GE76: 0 | GF76: 0 | GG76: 0 | GH76: 0 | GI76: 0 | GJ76: 0 | GK76: 0 | GL76: 0 | GM76: 0 | GN76: 0 | GO76: 0 | GP76: 0 | GQ76: 0 | GR76: 0 | GS76: 0 | GT76: 0 | GU76: =GU57 -> 0 | GV76: 0 | GW76: 0 | GX76: 0 | GY76: 0 | GZ76: 0 | HA76: 0
C77: Less: Repayments | F77: =F37 -> 3000 | G77: =F38*2 -> 30 | J77: =MIN(IF(J74,PPMT(J79,J73,$G$77,-$F$77))*1,J75) -> 0 | K77: =MIN(IF(K74,PPMT(K79,K73,$G$77,-$F$77))*1,K75) -> 0 | L77: 0 | M77: 0 | N77: 0 | O77: 0 | P77: 0 | Q77: 0 | R77: 0 | S77: 0 | T77: 0 | U77: 0 | V77: 0 | W77: 0 | X77: 0 | Y77: 0 | Z77: 0 | AA77: 0 | AB77: 0 | AC77: 0 | AD77: 0 | AE77: 0 | AF77: 0 | AG77: 0 | AH77: 0 | AI77: 0 | AJ77: 0 | AK77: 0 | AL77: 0 | AM77: 0 | AN77: 0 | AO77: 0 | AP77: 0 | AQ77: 0 | AR77: 0 | AS77: 0 | AT77: 0 | AU77: 0 | AV77: 73.94976688 | AW77: 75.42876222 | AX77: 76.93733746 | AY77: 78.47608421 | AZ77: 80.0456059 | BA77: 81.64651801 | BB77: 83.27944837 | BC77: 84.94503734 | BD77: 86.64393809 | BE77: 88.37681685 | BF77: 90.14435319 | BG77: 91.94724025 | BH77: 93.78618506 | BI77: 95.66190876 | BJ77: 97.57514693 | BK77: 99.52664987 | BL77: 101.5171829 | BM77: 103.5475265 | BN77: 105.6184771 | BO77: 107.7308466 | BP77: 109.8854635 | BQ77: 112.0831728 | BR77: 114.3248363 | BS77: 116.611333 | BT77: 118.9435596 | BU77: 121.3224308 | BV77: 123.7488794 | BW77: =MIN(IF(BW74,PPMT(BW79,BW73,$G$77,-$F$77))*1,BW75) -> 126.223857 | BX77: 128.7483342 | BY77: 131.3233009 | BZ77: 0 | CA77: 0 | CB77: 0 | CC77: 0 | CD77: 0 | CE77: 0 | CF77: 0 | CG77: 0 | CH77: 0 | CI77: 0 | CJ77: 0 | CK77: 0 | CL77: 0 | CM77: 0 | CN77: 0 | CO77: 0 | CP77: 0 | CQ77: 0 | CR77: 0 | CS77: 0 | CT77: 0 | CU77: 0 | CV77: 0 | CW77: 0 | CX77: 0 | CY77: 0 | CZ77: 0 | DA77: 0 | DB77: 0 | DC77: 0 | DD77: 0 | DE77: 0 | DF77: 0 | DG77: 0 | DH77: 0 | DI77: 0 | DJ77: 0 | DK77: 0 | DL77: 0 | DM77: 0 | DN77: 0 | DO77: 0 | DP77: 0 | DQ77: 0 | DR77: 0 | DS77: 0 | DT77: 0 | DU77: 0 | DV77: 0 | DW77: 0 | DX77: 0 | DY77: 0 | DZ77: 0 | EA77: 0 | EB77: 0 | EC77: 0 | ED77: 0 | EE77: 0 | EF77: 0 | EG77: 0 | EH77: 0 | EI77: =MIN(IF(EI74,PPMT(EI79,EI73,$G$77,-$F$77))*1,EI75) -> 0 | EJ77: 0 | EK77: 0 | EL77: 0 | EM77: 0 | EN77: 0 | EO77: 0 | EP77: 0 | EQ77: 0 | ER77: 0 | ES77: 0 | ET77: 0 | EU77: 0 | EV77: 0 | EW77: 0 | EX77: 0 | EY77: 0 | EZ77: 0 | FA77: 0 | FB77: 0 | FC77: 0 | FD77: 0 | FE77: 0 | FF77: 0 | FG77: 0 | FH77: 0 | FI77: 0 | FJ77: 0 | FK77: 0 | FL77: 0 | FM77: 0 | FN77: 0 | FO77: 0 | FP77: 0 | FQ77: 0 | FR77: 0 | FS77: 0 | FT77: 0 | FU77: 0 | FV77: 0 | FW77: 0 | FX77: 0 | FY77: 0 | FZ77: 0 | GA77: 0 | GB77: 0 | GC77: 0 | GD77: 0 | GE77: 0 | GF77: 0 | GG77: 0 | GH77: 0 | GI77: 0 | GJ77: 0 | GK77: 0 | GL77: 0 | GM77: 0 | GN77: 0 | GO77: 0 | GP77: 0 | GQ77: 0 | GR77: 0 | GS77: 0 | GT77: 0 | GU77: =MIN(IF(GU74,PPMT(GU79,GU73,$G$77,-$F$77))*1,GU75) -> 0 | GV77: 0 | GW77: 0 | GX77: 0 | GY77: 0 | GZ77: 0 | HA77: 0
C78: Closing Balance | J78: =J75+J76-J77 -> 78.94736842 | K78: =K75+K76-K77 -> 157.8947368 | L78: 236.8421053 | M78: 315.7894737 | N78: 394.7368421 | O78: 473.6842105 | P78: 552.6315789 | Q78: 631.5789474 | R78: 710.5263158 | S78: 789.4736842 | T78: 868.4210526 | U78: 947.3684211 | V78: 1026.315789 | W78: 1105.263158 | X78: 1184.210526 | Y78: 1263.157895 | Z78: 1342.105263 | AA78: 1421.052632 | AB78: 1500 | AC78: 1578.947368 | AD78: 1657.894737 | AE78: 1736.842105 | AF78: 1815.789474 | AG78: 1894.736842 | AH78: 1973.684211 | AI78: 2052.631579 | AJ78: 2131.578947 | AK78: 2210.526316 | AL78: 2289.473684 | AM78: 2368.421053 | AN78: 2447.368421 | AO78: 2526.315789 | AP78: 2605.263158 | AQ78: 2684.210526 | AR78: 2763.157895 | AS78: 2842.105263 | AT78: 2921.052632 | AU78: 3000 | AV78: 2926.050233 | AW78: 2850.621471 | AX78: 2773.684133 | AY78: 2695.208049 | AZ78: 2615.162443 | BA78: 2533.515925 | BB78: 2450.236477 | BC78: 2365.29144 | BD78: 2278.647502 | BE78: 2190.270685 | BF78: 2100.126331 | BG78: 2008.179091 | BH78: 1914.392906 | BI78: 1818.730997 | BJ78: 1721.15585 | BK78: 1621.629201 | BL78: 1520.112018 | BM78: 1416.564491 | BN78: 1310.946014 | BO78: 1203.215168 | BP78: 1093.329704 | BQ78: 981.2465312 | BR78: 866.921695 | BS78: 750.310362 | BT78: 631.3668024 | BU78: 510.0443715 | BV78: 386.2954921 | BW78: =BW75+BW76-BW77 -> 260.071635 | BX78: 131.3233009 | BY78: 4.831690603e-13 | BZ78: 4.831690603e-13 | CA78: 4.831690603e-13 | CB78: 4.831690603e-13 | CC78: 4.831690603e-13 | CD78: 4.831690603e-13 | CE78: 4.831690603e-13 | CF78: 4.831690603e-13 | CG78: 4.831690603e-13 | CH78: 4.831690603e-13 | CI78: 4.831690603e-13 | CJ78: 4.831690603e-13 | CK78: 4.831690603e-13 | CL78: 4.831690603e-13 | CM78: 4.831690603e-13 | CN78: 4.831690603e-13 | CO78: 4.831690603e-13 | CP78: 4.831690603e-13 | CQ78: 4.831690603e-13 | CR78: 4.831690603e-13 | CS78: 4.831690603e-13 | CT78: 4.831690603e-13 | CU78: 4.831690603e-13 | CV78: 4.831690603e-13 | CW78: 4.831690603e-13 | CX78: 4.831690603e-13 | CY78: 4.831690603e-13 | CZ78: 4.831690603e-13 | DA78: 4.831690603e-13 | DB78: 4.831690603e-13 | DC78: 4.831690603e-13 | DD78: 4.831690603e-13 | DE78: 4.831690603e-13 | DF78: 4.831690603e-13 | DG78: 4.831690603e-13 | DH78: 4.831690603e-13 | DI78: 4.831690603e-13 | DJ78: 4.831690603e-13 | DK78: 4.831690603e-13 | DL78: 4.831690603e-13 | DM78: 4.831690603e-13 | DN78: 4.831690603e-13 | DO78: 4.831690603e-13 | DP78: 4.831690603e-13 | DQ78: 4.831690603e-13 | DR78: 4.831690603e-13 | DS78: 4.831690603e-13 | DT78: 4.831690603e-13 | DU78: 4.831690603e-13 | DV78: 4.831690603e-13 | DW78: 4.831690603e-13 | DX78: 4.831690603e-13 | DY78: 4.831690603e-13 | DZ78: 4.831690603e-13 | EA78: 4.831690603e-13 | EB78: 4.831690603e-13 | EC78: 4.831690603e-13 | ED78: 4.831690603e-13 | EE78: 4.831690603e-13 | EF78: 4.831690603e-13 | EG78: 4.831690603e-13 | EH78: 4.831690603e-13 | EI78: =EI75+EI76-EI77 -> 4.831690603e-13 | EJ78: 4.831690603e-13 | EK78: 4.831690603e-13 | EL78: 4.831690603e-13 | EM78: 4.831690603e-13 | EN78: 4.831690603e-13 | EO78: 4.831690603e-13 | EP78: 4.831690603e-13 | EQ78: 4.831690603e-13 | ER78: 4.831690603e-13 | ES78: 4.831690603e-13 | ET78: 4.831690603e-13 | EU78: 4.831690603e-13 | EV78: 4.831690603e-13 | EW78: 4.831690603e-13 | EX78: 4.831690603e-13 | EY78: 4.831690603e-13 | EZ78: 4.831690603e-13 | FA78: 4.831690603e-13 | FB78: 4.831690603e-13 | FC78: 4.831690603e-13 | FD78: 4.831690603e-13 | FE78: 4.831690603e-13 | FF78: 4.831690603e-13 | FG78: 4.831690603e-13 | FH78: 4.831690603e-13 | FI78: 4.831690603e-13 | FJ78: 4.831690603e-13 | FK78: 4.831690603e-13 | FL78: 4.831690603e-13 | FM78: 4.831690603e-13 | FN78: 4.831690603e-13 | FO78: 4.831690603e-13 | FP78: 4.831690603e-13 | FQ78: 4.831690603e-13 | FR78: 4.831690603e-13 | FS78: 4.831690603e-13 | FT78: 4.831690603e-13 | FU78: 4.831690603e-13 | FV78: 4.831690603e-13 | FW78: 4.831690603e-13 | FX78: 4.831690603e-13 | FY78: 4.831690603e-13 | FZ78: 4.831690603e-13 | GA78: 4.831690603e-13 | GB78: 4.831690603e-13 | GC78: 4.831690603e-13 | GD78: 4.831690603e-13 | GE78: 4.831690603e-13 | GF78: 4.831690603e-13 | GG78: 4.831690603e-13 | GH78: 4.831690603e-13 | GI78: 4.831690603e-13 | GJ78: 4.831690603e-13 | GK78: 4.831690603e-13 | GL78: 4.831690603e-13 | GM78: 4.831690603e-13 | GN78: 4.831690603e-13 | GO78: 4.831690603e-13 | GP78: 4.831690603e-13 | GQ78: 4.831690603e-13 | GR78: 4.831690603e-13 | GS78: 4.831690603e-13 | GT78: 4.831690603e-13 | GU78: =GU75+GU76-GU77 -> 4.831690603e-13 | GV78: 4.831690603e-13 | GW78: 4.831690603e-13 | GX78: 4.831690603e-13 | GY78: 4.831690603e-13 | GZ78: 4.831690603e-13 | HA78: 4.831690603e-13
C79: Interest Rate | J79: =(LOOKUP(J13,39:39,40:40)+$F$31)/12*J12 -> 0.003333333333 | K79: =(LOOKUP(K13,39:39,40:40)+$F$31)/12*K12 -> 0.003333333333 | L79: =(LOOKUP(L13,39:39,40:40)+$F$31)/12*L12 -> 0.003333333333 | M79: =(LOOKUP(M13,39:39,40:40)+$F$31)/12*M12 -> 0.003333333333 | N79: =(LOOKUP(N13,39:39,40:40)+$F$31)/12*N12 -> 0.003333333333 | O79: =(LOOKUP(O13,39:39,40:40)+$F$31)/12*O12 -> 0.003333333333 | P79: =(LOOKUP(P13,39:39,40:40)+$F$31)/12*P12 -> 0.003333333333 | Q79: =(LOOKUP(Q13,39:39,40:40)+$F$31)/12*Q12 -> 0.003333333333 | R79: =(LOOKUP(R13,39:39,40:40)+$F$31)/12*R12 -> 0.003333333333 | S79: =(LOOKUP(S13,39:39,40:40)+$F$31)/12*S12 -> 0.003333333333 | T79: =(LOOKUP(T13,39:39,40:40)+$F$31)/12*T12 -> 0.003333333333 | U79: =(LOOKUP(U13,39:39,40:40)+$F$31)/12*U12 -> 0.003333333333 | V79: =(LOOKUP(V13,39:39,40:40)+$F$31)/12*V12 -> 0.003333333333 | W79: =(LOOKUP(W13,39:39,40:40)+$F$31)/12*W12 -> 0.003333333333 | X79: =(LOOKUP(X13,39:39,40:40)+$F$31)/12*X12 -> 0.003333333333 | Y79: =(LOOKUP(Y13,39:39,40:40)+$F$31)/12*Y12 -> 0.003333333333 | Z79: =(LOOKUP(Z13,39:39,40:40)+$F$31)/12*Z12 -> 0.003333333333 | AA79: =(LOOKUP(AA13,39:39,40:40)+$F$31)/12*AA12 -> 0.003333333333 | AB79: =(LOOKUP(AB13,39:39,40:40)+$F$31)/12*AB12 -> 0.003333333333 | AC79: =(LOOKUP(AC13,39:39,40:40)+$F$31)/12*AC12 -> 0.003333333333 | AD79: =(LOOKUP(AD13,39:39,40:40)+$F$31)/12*AD12 -> 0.003333333333 | AE79: =(LOOKUP(AE13,39:39,40:40)+$F$31)/12*AE12 -> 0.003333333333 | AF79: =(LOOKUP(AF13,39:39,40:40)+$F$31)/12*AF12 -> 0.003333333333 | AG79: =(LOOKUP(AG13,39:39,40:40)+$F$31)/12*AG12 -> 0.003333333333 | AH79: =(LOOKUP(AH13,39:39,40:40)+$F$31)/12*AH12 -> 0.003333333333 | AI79: =(LOOKUP(AI13,39:39,40:40)+$F$31)/12*AI12 -> 0.003333333333 | AJ79: =(LOOKUP(AJ13,39:39,40:40)+$F$31)/12*AJ12 -> 0.003333333333 | AK79: =(LOOKUP(AK13,39:39,40:40)+$F$31)/12*AK12 -> 0.003333333333 | AL79: =(LOOKUP(AL13,39:39,40:40)+$F$31)/12*AL12 -> 0.003333333333 | AM79: =(LOOKUP(AM13,39:39,40:40)+$F$31)/12*AM12 -> 0.003333333333 | AN79: =(LOOKUP(AN13,39:39,40:40)+$F$31)/12*AN12 -> 0.003333333333 | AO79: =(LOOKUP(AO13,39:39,40:40)+$F$31)/12*AO12 -> 0.003333333333 | AP79: =(LOOKUP(AP13,39:39,40:40)+$F$31)/12*AP12 -> 0.003333333333 | AQ79: =(LOOKUP(AQ13,39:39,40:40)+$F$31)/12*AQ12 -> 0.003333333333 | AR79: =(LOOKUP(AR13,39:39,40:40)+$F$31)/12*AR12 -> 0.003333333333 | AS79: =(LOOKUP(AS13,39:39,40:40)+$F$31)/12*AS12 -> 0.003333333333 | AT79: =(LOOKUP(AT13,39:39,40:40)+$F$31)/12*AT12 -> 0.003333333333 | AU79: =(LOOKUP(AU13,39:39,40:40)+$F$31)/12*AU12 -> 0.003333333333 | AV79: =(LOOKUP(AV13,39:39,40:40)+$F$31)/12*AV12 -> 0.02 | AW79: =(LOOKUP(AW13,39:39,40:40)+$F$31)/12*AW12 -> 0.02 | AX79: =(LOOKUP(AX13,39:39,40:40)+$F$31)/12*AX12 -> 0.02 | AY79: =(LOOKUP(AY13,39:39,40:40)+$F$31)/12*AY12 -> 0.02 | AZ79: =(LOOKUP(AZ13,39:39,40:40)+$F$31)/12*AZ12 -> 0.02 | BA79: =(LOOKUP(BA13,39:39,40:40)+$F$31)/12*BA12 -> 0.02 | BB79: =(LOOKUP(BB13,39:39,40:40)+$F$31)/12*BB12 -> 0.02 | BC79: =(LOOKUP(BC13,39:39,40:40)+$F$31)/12*BC12 -> 0.02 | BD79: =(LOOKUP(BD13,39:39,40:40)+$F$31)/12*BD12 -> 0.02 | BE79: =(LOOKUP(BE13,39:39,40:40)+$F$31)/12*BE12 -> 0.02 | BF79: =(LOOKUP(BF13,39:39,40:40)+$F$31)/12*BF12 -> 0.02 | BG79: =(LOOKUP(BG13,39:39,40:40)+$F$31)/12*BG12 -> 0.02 | BH79: =(LOOKUP(BH13,39:39,40:40)+$F$31)/12*BH12 -> 0.02 | BI79: =(LOOKUP(BI13,39:39,40:40)+$F$31)/12*BI12 -> 0.02 | BJ79: =(LOOKUP(BJ13,39:39,40:40)+$F$31)/12*BJ12 -> 0.02 | BK79: =(LOOKUP(BK13,39:39,40:40)+$F$31)/12*BK12 -> 0.02 | BL79: =(LOOKUP(BL13,39:39,40:40)+$F$31)/12*BL12 -> 0.02 | BM79: =(LOOKUP(BM13,39:39,40:40)+$F$31)/12*BM12 -> 0.02 | BN79: =(LOOKUP(BN13,39:39,40:40)+$F$31)/12*BN12 -> 0.02 | BO79: =(LOOKUP(BO13,39:39,40:40)+$F$31)/12*BO12 -> 0.02 | BP79: =(LOOKUP(BP13,39:39,40:40)+$F$31)/12*BP12 -> 0.02 | BQ79: =(LOOKUP(BQ13,39:39,40:40)+$F$31)/12*BQ12 -> 0.02 | BR79: =(LOOKUP(BR13,39:39,40:40)+$F$31)/12*BR12 -> 0.02 | BS79: =(LOOKUP(BS13,39:39,40:40)+$F$31)/12*BS12 -> 0.02 | BT79: =(LOOKUP(BT13,39:39,40:40)+$F$31)/12*BT12 -> 0.02 | BU79: =(LOOKUP(BU13,39:39,40:40)+$F$31)/12*BU12 -> 0.02 | BV79: =(LOOKUP(BV13,39:39,40:40)+$F$31)/12*BV12 -> 0.02 | BW79: =(LOOKUP(BW13,39:39,40:40)+$F$31)/12*BW12 -> 0.02 | BX79: =(LOOKUP(BX13,39:39,40:40)+$F$31)/12*BX12 -> 0.02 | BY79: =(LOOKUP(BY13,39:39,40:40)+$F$31)/12*BY12 -> 0.02 | BZ79: =(LOOKUP(BZ13,39:39,40:40)+$F$31)/12*BZ12 -> 0.02 | CA79: =(LOOKUP(CA13,39:39,40:40)+$F$31)/12*CA12 -> 0.02 | CB79: =(LOOKUP(CB13,39:39,40:40)+$F$31)/12*CB12 -> 0.02 | CC79: =(LOOKUP(CC13,39:39,40:40)+$F$31)/12*CC12 -> 0.02 | CD79: =(LOOKUP(CD13,39:39,40:40)+$F$31)/12*CD12 -> 0.02 | CE79: =(LOOKUP(CE13,39:39,40:40)+$F$31)/12*CE12 -> 0.02 | CF79: =(LOOKUP(CF13,39:39,40:40)+$F$31)/12*CF12 -> 0.02 | CG79: =(LOOKUP(CG13,39:39,40:40)+$F$31)/12*CG12 -> 0.02 | CH79: =(LOOKUP(CH13,39:39,40:40)+$F$31)/12*CH12 -> 0.02 | CI79: =(LOOKUP(CI13,39:39,40:40)+$F$31)/12*CI12 -> 0.02 | CJ79: =(LOOKUP(CJ13,39:39,40:40)+$F$31)/12*CJ12 -> 0.02 | CK79: =(LOOKUP(CK13,39:39,40:40)+$F$31)/12*CK12 -> 0.02 | CL79: =(LOOKUP(CL13,39:39,40:40)+$F$31)/12*CL12 -> 0.02 | CM79: =(LOOKUP(CM13,39:39,40:40)+$F$31)/12*CM12 -> 0.02 | CN79: =(LOOKUP(CN13,39:39,40:40)+$F$31)/12*CN12 -> 0.02 | CO79: =(LOOKUP(CO13,39:39,40:40)+$F$31)/12*CO12 -> 0.02 | CP79: =(LOOKUP(CP13,39:39,40:40)+$F$31)/12*CP12 -> 0.02 | CQ79: =(LOOKUP(CQ13,39:39,40:40)+$F$31)/12*CQ12 -> 0.02 | CR79: =(LOOKUP(CR13,39:39,40:40)+$F$31)/12*CR12 -> 0.02 | CS79: =(LOOKUP(CS13,39:39,40:40)+$F$31)/12*CS12 -> 0.02 | CT79: =(LOOKUP(CT13,39:39,40:40)+$F$31)/12*CT12 -> 0.02 | CU79: =(LOOKUP(CU13,39:39,40:40)+$F$31)/12*CU12 -> 0.02 | CV79: =(LOOKUP(CV13,39:39,40:40)+$F$31)/12*CV12 -> 0.02 | CW79: =(LOOKUP(CW13,39:39,40:40)+$F$31)/12*CW12 -> 0.02 | CX79: =(LOOKUP(CX13,39:39,40:40)+$F$31)/12*CX12 -> 0.02 | CY79: =(LOOKUP(CY13,39:39,40:40)+$F$31)/12*CY12 -> 0.02 | CZ79: =(LOOKUP(CZ13,39:39,40:40)+$F$31)/12*CZ12 -> 0.02 | DA79: =(LOOKUP(DA13,39:39,40:40)+$F$31)/12*DA12 -> 0.02 | DB79: =(LOOKUP(DB13,39:39,40:40)+$F$31)/12*DB12 -> 0.02 | DC79: =(LOOKUP(DC13,39:39,40:40)+$F$31)/12*DC12 -> 0.02 | DD79: =(LOOKUP(DD13,39:39,40:40)+$F$31)/12*DD12 -> 0.02 | DE79: =(LOOKUP(DE13,39:39,40:40)+$F$31)/12*DE12 -> 0.02 | DF79: =(LOOKUP(DF13,39:39,40:40)+$F$31)/12*DF12 -> 0.02 | DG79: =(LOOKUP(DG13,39:39,40:40)+$F$31)/12*DG12 -> 0.02 | DH79: =(LOOKUP(DH13,39:39,40:40)+$F$31)/12*DH12 -> 0.02 | DI79: =(LOOKUP(DI13,39:39,40:40)+$F$31)/12*DI12 -> 0.02 | DJ79: =(LOOKUP(DJ13,39:39,40:40)+$F$31)/12*DJ12 -> 0.02 | DK79: =(LOOKUP(DK13,39:39,40:40)+$F$31)/12*DK12 -> 0.02 | DL79: =(LOOKUP(DL13,39:39,40:40)+$F$31)/12*DL12 -> 0.02 | DM79: =(LOOKUP(DM13,39:39,40:40)+$F$31)/12*DM12 -> 0.02 | DN79: =(LOOKUP(DN13,39:39,40:40)+$F$31)/12*DN12 -> 0.02 | DO79: =(LOOKUP(DO13,39:39,40:40)+$F$31)/12*DO12 -> 0.02 | DP79: =(LOOKUP(DP13,39:39,40:40)+$F$31)/12*DP12 -> 0.02 | DQ79: =(LOOKUP(DQ13,39:39,40:40)+$F$31)/12*DQ12 -> 0.02 | DR79: =(LOOKUP(DR13,39:39,40:40)+$F$31)/12*DR12 -> 0.02 | DS79: =(LOOKUP(DS13,39:39,40:40)+$F$31)/12*DS12 -> 0.02 | DT79: =(LOOKUP(DT13,39:39,40:40)+$F$31)/12*DT12 -> 0.02 | DU79: =(LOOKUP(DU13,39:39,40:40)+$F$31)/12*DU12 -> 0.02 | DV79: =(LOOKUP(DV13,39:39,40:40)+$F$31)/12*DV12 -> 0.02 | DW79: =(LOOKUP(DW13,39:39,40:40)+$F$31)/12*DW12 -> 0.02 | DX79: =(LOOKUP(DX13,39:39,40:40)+$F$31)/12*DX12 -> 0.02 | DY79: =(LOOKUP(DY13,39:39,40:40)+$F$31)/12*DY12 -> 0.02 | DZ79: =(LOOKUP(DZ13,39:39,40:40)+$F$31)/12*DZ12 -> 0.02 | EA79: =(LOOKUP(EA13,39:39,40:40)+$F$31)/12*EA12 -> 0.02 | EB79: =(LOOKUP(EB13,39:39,40:40)+$F$31)/12*EB12 -> 0.02 | EC79: =(LOOKUP(EC13,39:39,40:40)+$F$31)/12*EC12 -> 0.02 | ED79: =(LOOKUP(ED13,39:39,40:40)+$F$31)/12*ED12 -> 0.02 | EE79: =(LOOKUP(EE13,39:39,40:40)+$F$31)/12*EE12 -> 0.02 | EF79: =(LOOKUP(EF13,39:39,40:40)+$F$31)/12*EF12 -> 0.02 | EG79: =(LOOKUP(EG13,39:39,40:40)+$F$31)/12*EG12 -> 0.02 | EH79: =(LOOKUP(EH13,39:39,40:40)+$F$31)/12*EH12 -> 0.02 | EI79: =(LOOKUP(EI13,39:39,40:40)+$F$31)/12*EI12 -> 0.02 | EJ79: =(LOOKUP(EJ13,39:39,40:40)+$F$31)/12*EJ12 -> 0.02 | EK79: =(LOOKUP(EK13,39:39,40:40)+$F$31)/12*EK12 -> 0.02 | EL79: =(LOOKUP(EL13,39:39,40:40)+$F$31)/12*EL12 -> 0.02 | EM79: =(LOOKUP(EM13,39:39,40:40)+$F$31)/12*EM12 -> 0.02 | EN79: =(LOOKUP(EN13,39:39,40:40)+$F$31)/12*EN12 -> 0.02 | EO79: =(LOOKUP(EO13,39:39,40:40)+$F$31)/12*EO12 -> 0.02 | EP79: =(LOOKUP(EP13,39:39,40:40)+$F$31)/12*EP12 -> 0.02 | EQ79: =(LOOKUP(EQ13,39:39,40:40)+$F$31)/12*EQ12 -> 0.02 | ER79: =(LOOKUP(ER13,39:39,40:40)+$F$31)/12*ER12 -> 0.02 | ES79: =(LOOKUP(ES13,39:39,40:40)+$F$31)/12*ES12 -> 0.02 | ET79: =(LOOKUP(ET13,39:39,40:40)+$F$31)/12*ET12 -> 0.02 | EU79: =(LOOKUP(EU13,39:39,40:40)+$F$31)/12*EU12 -> 0.02 | EV79: =(LOOKUP(EV13,39:39,40:40)+$F$31)/12*EV12 -> 0.02 | EW79: =(LOOKUP(EW13,39:39,40:40)+$F$31)/12*EW12 -> 0.02 | EX79: =(LOOKUP(EX13,39:39,40:40)+$F$31)/12*EX12 -> 0.02 | EY79: =(LOOKUP(EY13,39:39,40:40)+$F$31)/12*EY12 -> 0.02 | EZ79: =(LOOKUP(EZ13,39:39,40:40)+$F$31)/12*EZ12 -> 0.02 | FA79: =(LOOKUP(FA13,39:39,40:40)+$F$31)/12*FA12 -> 0.02 | FB79: =(LOOKUP(FB13,39:39,40:40)+$F$31)/12*FB12 -> 0.02 | FC79: =(LOOKUP(FC13,39:39,40:40)+$F$31)/12*FC12 -> 0.02 | FD79: =(LOOKUP(FD13,39:39,40:40)+$F$31)/12*FD12 -> 0.02 | FE79: =(LOOKUP(FE13,39:39,40:40)+$F$31)/12*FE12 -> 0.02 | FF79: =(LOOKUP(FF13,39:39,40:40)+$F$31)/12*FF12 -> 0.02 | FG79: =(LOOKUP(FG13,39:39,40:40)+$F$31)/12*FG12 -> 0.02 | FH79: =(LOOKUP(FH13,39:39,40:40)+$F$31)/12*FH12 -> 0.02 | FI79: =(LOOKUP(FI13,39:39,40:40)+$F$31)/12*FI12 -> 0.02 | FJ79: =(LOOKUP(FJ13,39:39,40:40)+$F$31)/12*FJ12 -> 0.02 | FK79: =(LOOKUP(FK13,39:39,40:40)+$F$31)/12*FK12 -> 0.02 | FL79: =(LOOKUP(FL13,39:39,40:40)+$F$31)/12*FL12 -> 0.02 | FM79: =(LOOKUP(FM13,39:39,40:40)+$F$31)/12*FM12 -> 0.02 | FN79: =(LOOKUP(FN13,39:39,40:40)+$F$31)/12*FN12 -> 0.02 | FO79: =(LOOKUP(FO13,39:39,40:40)+$F$31)/12*FO12 -> 0.02 | FP79: =(LOOKUP(FP13,39:39,40:40)+$F$31)/12*FP12 -> 0.02 | FQ79: =(LOOKUP(FQ13,39:39,40:40)+$F$31)/12*FQ12 -> 0.02 | FR79: =(LOOKUP(FR13,39:39,40:40)+$F$31)/12*FR12 -> 0.02 | FS79: =(LOOKUP(FS13,39:39,40:40)+$F$31)/12*FS12 -> 0.02 | FT79: =(LOOKUP(FT13,39:39,40:40)+$F$31)/12*FT12 -> 0.02 | FU79: =(LOOKUP(FU13,39:39,40:40)+$F$31)/12*FU12 -> 0.02 | FV79: =(LOOKUP(FV13,39:39,40:40)+$F$31)/12*FV12 -> 0.02 | FW79: =(LOOKUP(FW13,39:39,40:40)+$F$31)/12*FW12 -> 0.02 | FX79: =(LOOKUP(FX13,39:39,40:40)+$F$31)/12*FX12 -> 0.02 | FY79: =(LOOKUP(FY13,39:39,40:40)+$F$31)/12*FY12 -> 0.02 | FZ79: =(LOOKUP(FZ13,39:39,40:40)+$F$31)/12*FZ12 -> 0.02 | GA79: =(LOOKUP(GA13,39:39,40:40)+$F$31)/12*GA12 -> 0.02 | GB79: =(LOOKUP(GB13,39:39,40:40)+$F$31)/12*GB12 -> 0.02 | GC79: =(LOOKUP(GC13,39:39,40:40)+$F$31)/12*GC12 -> 0.02 | GD79: =(LOOKUP(GD13,39:39,40:40)+$F$31)/12*GD12 -> 0.02 | GE79: =(LOOKUP(GE13,39:39,40:40)+$F$31)/12*GE12 -> 0.02 | GF79: =(LOOKUP(GF13,39:39,40:40)+$F$31)/12*GF12 -> 0.02 | GG79: =(LOOKUP(GG13,39:39,40:40)+$F$31)/12*GG12 -> 0.02 | GH79: =(LOOKUP(GH13,39:39,40:40)+$F$31)/12*GH12 -> 0.02 | GI79: =(LOOKUP(GI13,39:39,40:40)+$F$31)/12*GI12 -> 0.02 | GJ79: =(LOOKUP(GJ13,39:39,40:40)+$F$31)/12*GJ12 -> 0.02 | GK79: =(LOOKUP(GK13,39:39,40:40)+$F$31)/12*GK12 -> 0.02 | GL79: =(LOOKUP(GL13,39:39,40:40)+$F$31)/12*GL12 -> 0.02 | GM79: =(LOOKUP(GM13,39:39,40:40)+$F$31)/12*GM12 -> 0.02 | GN79: =(LOOKUP(GN13,39:39,40:40)+$F$31)/12*GN12 -> 0.02 | GO79: =(LOOKUP(GO13,39:39,40:40)+$F$31)/12*GO12 -> 0.02 | GP79: =(LOOKUP(GP13,39:39,40:40)+$F$31)/12*GP12 -> 0.02 | GQ79: =(LOOKUP(GQ13,39:39,40:40)+$F$31)/12*GQ12 -> 0.02 | GR79: =(LOOKUP(GR13,39:39,40:40)+$F$31)/12*GR12 -> 0.02 | GS79: =(LOOKUP(GS13,39:39,40:40)+$F$31)/12*GS12 -> 0.02 | GT79: =(LOOKUP(GT13,39:39,40:40)+$F$31)/12*GT12 -> 0.02 | GU79: =(LOOKUP(GU13,39:39,40:40)+$F$31)/12*GU12 -> 0.02 | GV79: =(LOOKUP(GV13,39:39,40:40)+$F$31)/12*GV12 -> 0.02 | GW79: =(LOOKUP(GW13,39:39,40:40)+$F$31)/12*GW12 -> 0.02 | GX79: =(LOOKUP(GX13,39:39,40:40)+$F$31)/12*GX12 -> 0.02 | GY79: =(LOOKUP(GY13,39:39,40:40)+$F$31)/12*GY12 -> 0.02 | GZ79: =(LOOKUP(GZ13,39:39,40:40)+$F$31)/12*GZ12 -> 0.02 | HA79: =(LOOKUP(HA13,39:39,40:40)+$F$31)/12*HA12 -> 0.02
C80: Interest Cost | J80: =J79*J75 -> 0 | K80: =K79*K75 -> 0.2631578947 | L80: 0.5263157895 | M80: 0.7894736842 | N80: 1.052631579 | O80: 1.315789474 | P80: 1.578947368 | Q80: 1.842105263 | R80: 2.105263158 | S80: 2.368421053 | T80: 2.631578947 | U80: 2.894736842 | V80: 3.157894737 | W80: 3.421052632 | X80: 3.684210526 | Y80: 3.947368421 | Z80: 4.210526316 | AA80: 4.473684211 | AB80: 4.736842105 | AC80: 5 | AD80: 5.263157895 | AE80: 5.526315789 | AF80: 5.789473684 | AG80: 6.052631579 | AH80: 6.315789474 | AI80: 6.578947368 | AJ80: 6.842105263 | AK80: 7.105263158 | AL80: 7.368421053 | AM80: 7.631578947 | AN80: 7.894736842 | AO80: 8.157894737 | AP80: 8.421052632 | AQ80: 8.684210526 | AR80: 8.947368421 | AS80: 9.210526316 | AT80: 9.473684211 | AU80: 9.736842105 | AV80: 60 | AW80: 58.52100466 | AX80: 57.01242942 | AY80: 55.47368267 | AZ80: 53.90416098 | BA80: 52.30324887 | BB80: 50.67031851 | BC80: 49.00472954 | BD80: 47.30582879 | BE80: 45.57295003 | BF80: 43.80541369 | BG80: 42.00252663 | BH80: 40.16358182 | BI80: 38.28785812 | BJ80: 36.37461995 | BK80: 34.42311701 | BL80: 32.43258401 | BM80: 30.40224035 | BN80: 28.33128982 | BO80: 26.21892028 | BP80: 24.06430335 | BQ80: 21.86659408 | BR80: 19.62493062 | BS80: 17.3384339 | BT80: 15.00620724 | BU80: 12.62733605 | BV80: 10.20088743 | BW80: =BW79*BW75 -> 7.725909842 | BX80: 5.201432701 | BY80: 2.626466017 | BZ80: 9.663381206e-15 | CA80: 9.663381206e-15 | CB80: 9.663381206e-15 | CC80: 9.663381206e-15 | CD80: 9.663381206e-15 | CE80: 9.663381206e-15 | CF80: 9.663381206e-15 | CG80: 9.663381206e-15 | CH80: 9.663381206e-15 | CI80: 9.663381206e-15 | CJ80: 9.663381206e-15 | CK80: 9.663381206e-15 | CL80: 9.663381206e-15 | CM80: 9.663381206e-15 | CN80: 9.663381206e-15 | CO80: 9.663381206e-15 | CP80: 9.663381206e-15 | CQ80: 9.663381206e-15 | CR80: 9.663381206e-15 | CS80: 9.663381206e-15 | CT80: 9.663381206e-15 | CU80: 9.663381206e-15 | CV80: 9.663381206e-15 | CW80: 9.663381206e-15 | CX80: 9.663381206e-15 | CY80: 9.663381206e-15 | CZ80: 9.663381206e-15 | DA80: 9.663381206e-15 | DB80: 9.663381206e-15 | DC80: 9.663381206e-15 | DD80: 9.663381206e-15 | DE80: 9.663381206e-15 | DF80: 9.663381206e-15 | DG80: 9.663381206e-15 | DH80: 9.663381206e-15 | DI80: 9.663381206e-15 | DJ80: 9.663381206e-15 | DK80: 9.663381206e-15 | DL80: 9.663381206e-15 | DM80: 9.663381206e-15 | DN80: 9.663381206e-15 | DO80: 9.663381206e-15 | DP80: 9.663381206e-15 | DQ80: 9.663381206e-15 | DR80: 9.663381206e-15 | DS80: 9.663381206e-15 | DT80: 9.663381206e-15 | DU80: 9.663381206e-15 | DV80: 9.663381206e-15 | DW80: 9.663381206e-15 | DX80: 9.663381206e-15 | DY80: 9.663381206e-15 | DZ80: 9.663381206e-15 | EA80: 9.663381206e-15 | EB80: 9.663381206e-15 | EC80: 9.663381206e-15 | ED80: 9.663381206e-15 | EE80: 9.663381206e-15 | EF80: 9.663381206e-15 | EG80: 9.663381206e-15 | EH80: 9.663381206e-15 | EI80: =EI79*EI75 -> 9.663381206e-15 | EJ80: 9.663381206e-15 | EK80: 9.663381206e-15 | EL80: 9.663381206e-15 | EM80: 9.663381206e-15 | EN80: 9.663381206e-15 | EO80: 9.663381206e-15 | EP80: 9.663381206e-15 | EQ80: 9.663381206e-15 | ER80: 9.663381206e-15 | ES80: 9.663381206e-15 | ET80: 9.663381206e-15 | EU80: 9.663381206e-15 | EV80: 9.663381206e-15 | EW80: 9.663381206e-15 | EX80: 9.663381206e-15 | EY80: 9.663381206e-15 | EZ80: 9.663381206e-15 | FA80: 9.663381206e-15 | FB80: 9.663381206e-15 | FC80: 9.663381206e-15 | FD80: 9.663381206e-15 | FE80: 9.663381206e-15 | FF80: 9.663381206e-15 | FG80: 9.663381206e-15 | FH80: 9.663381206e-15 | FI80: 9.663381206e-15 | FJ80: 9.663381206e-15 | FK80: 9.663381206e-15 | FL80: 9.663381206e-15 | FM80: 9.663381206e-15 | FN80: 9.663381206e-15 | FO80: 9.663381206e-15 | FP80: 9.663381206e-15 | FQ80: 9.663381206e-15 | FR80: 9.663381206e-15 | FS80: 9.663381206e-15 | FT80: 9.663381206e-15 | FU80: 9.663381206e-15 | FV80: 9.663381206e-15 | FW80: 9.663381206e-15 | FX80: 9.663381206e-15 | FY80: 9.663381206e-15 | FZ80: 9.663381206e-15 | GA80: 9.663381206e-15 | GB80: 9.663381206e-15 | GC80: 9.663381206e-15 | GD80: 9.663381206e-15 | GE80: 9.663381206e-15 | GF80: 9.663381206e-15 | GG80: 9.663381206e-15 | GH80: 9.663381206e-15 | GI80: 9.663381206e-15 | GJ80: 9.663381206e-15 | GK80: 9.663381206e-15 | GL80: 9.663381206e-15 | GM80: 9.663381206e-15 | GN80: 9.663381206e-15 | GO80: 9.663381206e-15 | GP80: 9.663381206e-15 | GQ80: 9.663381206e-15 | GR80: 9.663381206e-15 | GS80: 9.663381206e-15 | GT80: 9.663381206e-15 | GU80: =GU79*GU75 -> 9.663381206e-15 | GV80: 9.663381206e-15 | GW80: 9.663381206e-15 | GX80: 9.663381206e-15 | GY80: 9.663381206e-15 | GZ80: 9.663381206e-15 | HA80: 9.663381206e-15
C81: IDC | J81: =J80*J10 -> 0 | K81: =K80*K10 -> 0.2631578947 | L81: =L80*L10 -> 0.5263157895 | M81: =M80*M10 -> 0.7894736842 | N81: =N80*N10 -> 1.052631579 | O81: =O80*O10 -> 1.315789474 | P81: =P80*P10 -> 1.578947368 | Q81: =Q80*Q10 -> 1.842105263 | R81: =R80*R10 -> 2.105263158 | S81: =S80*S10 -> 2.368421053 | T81: =T80*T10 -> 2.631578947 | U81: =U80*U10 -> 2.894736842 | V81: =V80*V10 -> 3.157894737 | W81: =W80*W10 -> 3.421052632 | X81: =X80*X10 -> 3.684210526 | Y81: =Y80*Y10 -> 3.947368421 | Z81: =Z80*Z10 -> 4.210526316 | AA81: =AA80*AA10 -> 4.473684211 | AB81: =AB80*AB10 -> 4.736842105 | AC81: =AC80*AC10 -> 5 | AD81: =AD80*AD10 -> 5.263157895 | AE81: =AE80*AE10 -> 5.526315789 | AF81: =AF80*AF10 -> 5.789473684 | AG81: =AG80*AG10 -> 6.052631579 | AH81: =AH80*AH10 -> 6.315789474 | AI81: =AI80*AI10 -> 6.578947368 | AJ81: =AJ80*AJ10 -> 6.842105263 | AK81: =AK80*AK10 -> 7.105263158 | AL81: =AL80*AL10 -> 7.368421053 | AM81: =AM80*AM10 -> 7.631578947 | AN81: =AN80*AN10 -> 7.894736842 | AO81: =AO80*AO10 -> 8.157894737 | AP81: =AP80*AP10 -> 8.421052632 | AQ81: =AQ80*AQ10 -> 8.684210526 | AR81: =AR80*AR10 -> 8.947368421 | AS81: =AS80*AS10 -> 9.210526316 | AT81: =AT80*AT10 -> 9.473684211 | AU81: =AU80*AU10 -> 9.736842105 | AV81: =AV80*AV10 -> 0 | AW81: =AW80*AW10 -> 0 | AX81: =AX80*AX10 -> 0 | AY81: =AY80*AY10 -> 0 | AZ81: =AZ80*AZ10 -> 0 | BA81: =BA80*BA10 -> 0 | BB81: =BB80*BB10 -> 0 | BC81: =BC80*BC10 -> 0 | BD81: =BD80*BD10 -> 0 | BE81: =BE80*BE10 -> 0 | BF81: =BF80*BF10 -> 0 | BG81: =BG80*BG10 -> 0 | BH81: =BH80*BH10 -> 0 | BI81: =BI80*BI10 -> 0 | BJ81: =BJ80*BJ10 -> 0 | BK81: =BK80*BK10 -> 0 | BL81: =BL80*BL10 -> 0 | BM81: =BM80*BM10 -> 0 | BN81: =BN80*BN10 -> 0 | BO81: =BO80*BO10 -> 0 | BP81: =BP80*BP10 -> 0 | BQ81: =BQ80*BQ10 -> 0 | BR81: =BR80*BR10 -> 0 | BS81: =BS80*BS10 -> 0 | BT81: =BT80*BT10 -> 0 | BU81: =BU80*BU10 -> 0 | BV81: =BV80*BV10 -> 0 | BW81: =BW80*BW10 -> 0 | BX81: =BX80*BX10 -> 0 | BY81: =BY80*BY10 -> 0 | BZ81: =BZ80*BZ10 -> 0 | CA81: =CA80*CA10 -> 0 | CB81: =CB80*CB10 -> 0 | CC81: =CC80*CC10 -> 0 | CD81: =CD80*CD10 -> 0 | CE81: =CE80*CE10 -> 0 | CF81: =CF80*CF10 -> 0 | CG81: =CG80*CG10 -> 0 | CH81: =CH80*CH10 -> 0 | CI81: =CI80*CI10 -> 0 | CJ81: =CJ80*CJ10 -> 0 | CK81: =CK80*CK10 -> 0 | CL81: =CL80*CL10 -> 0 | CM81: =CM80*CM10 -> 0 | CN81: =CN80*CN10 -> 0 | CO81: =CO80*CO10 -> 0 | CP81: =CP80*CP10 -> 0 | CQ81: =CQ80*CQ10 -> 0 | CR81: =CR80*CR10 -> 0 | CS81: =CS80*CS10 -> 0 | CT81: =CT80*CT10 -> 0 | CU81: =CU80*CU10 -> 0 | CV81: =CV80*CV10 -> 0 | CW81: =CW80*CW10 -> 0 | CX81: =CX80*CX10 -> 0 | CY81: =CY80*CY10 -> 0 | CZ81: =CZ80*CZ10 -> 0 | DA81: =DA80*DA10 -> 0 | DB81: =DB80*DB10 -> 0 | DC81: =DC80*DC10 -> 0 | DD81: =DD80*DD10 -> 0 | DE81: =DE80*DE10 -> 0 | DF81: =DF80*DF10 -> 0 | DG81: =DG80*DG10 -> 0 | DH81: =DH80*DH10 -> 0 | DI81: =DI80*DI10 -> 0 | DJ81: =DJ80*DJ10 -> 0 | DK81: =DK80*DK10 -> 0 | DL81: =DL80*DL10 -> 0 | DM81: =DM80*DM10 -> 0 | DN81: =DN80*DN10 -> 0 | DO81: =DO80*DO10 -> 0 | DP81: =DP80*DP10 -> 0 | DQ81: =DQ80*DQ10 -> 0 | DR81: =DR80*DR10 -> 0 | DS81: =DS80*DS10 -> 0 | DT81: =DT80*DT10 -> 0 | DU81: =DU80*DU10 -> 0 | DV81: =DV80*DV10 -> 0 | DW81: =DW80*DW10 -> 0 | DX81: =DX80*DX10 -> 0 | DY81: =DY80*DY10 -> 0 | DZ81: =DZ80*DZ10 -> 0 | EA81: =EA80*EA10 -> 0 | EB81: =EB80*EB10 -> 0 | EC81: =EC80*EC10 -> 0 | ED81: =ED80*ED10 -> 0 | EE81: =EE80*EE10 -> 0 | EF81: =EF80*EF10 -> 0 | EG81: =EG80*EG10 -> 0 | EH81: =EH80*EH10 -> 0 | EI81: =EI80*EI10 -> 0 | EJ81: =EJ80*EJ10 -> 0 | EK81: =EK80*EK10 -> 0 | EL81: =EL80*EL10 -> 0 | EM81: =EM80*EM10 -> 0 | EN81: =EN80*EN10 -> 0 | EO81: =EO80*EO10 -> 0 | EP81: =EP80*EP10 -> 0 | EQ81: =EQ80*EQ10 -> 0 | ER81: =ER80*ER10 -> 0 | ES81: =ES80*ES10 -> 0 | ET81: =ET80*ET10 -> 0 | EU81: =EU80*EU10 -> 0 | EV81: =EV80*EV10 -> 0 | EW81: =EW80*EW10 -> 0 | EX81: =EX80*EX10 -> 0 | EY81: =EY80*EY10 -> 0 | EZ81: =EZ80*EZ10 -> 0 | FA81: =FA80*FA10 -> 0 | FB81: =FB80*FB10 -> 0 | FC81: =FC80*FC10 -> 0 | FD81: =FD80*FD10 -> 0 | FE81: =FE80*FE10 -> 0 | FF81: =FF80*FF10 -> 0 | FG81: =FG80*FG10 -> 0 | FH81: =FH80*FH10 -> 0 | FI81: =FI80*FI10 -> 0 | FJ81: =FJ80*FJ10 -> 0 | FK81: =FK80*FK10 -> 0 | FL81: =FL80*FL10 -> 0 | FM81: =FM80*FM10 -> 0 | FN81: =FN80*FN10 -> 0 | FO81: =FO80*FO10 -> 0 | FP81: =FP80*FP10 -> 0 | FQ81: =FQ80*FQ10 -> 0 | FR81: =FR80*FR10 -> 0 | FS81: =FS80*FS10 -> 0 | FT81: =FT80*FT10 -> 0 | FU81: =FU80*FU10 -> 0 | FV81: =FV80*FV10 -> 0 | FW81: =FW80*FW10 -> 0 | FX81: =FX80*FX10 -> 0 | FY81: =FY80*FY10 -> 0 | FZ81: =FZ80*FZ10 -> 0 | GA81: =GA80*GA10 -> 0 | GB81: =GB80*GB10 -> 0 | GC81: =GC80*GC10 -> 0 | GD81: =GD80*GD10 -> 0 | GE81: =GE80*GE10 -> 0 | GF81: =GF80*GF10 -> 0 | GG81: =GG80*GG10 -> 0 | GH81: =GH80*GH10 -> 0 | GI81: =GI80*GI10 -> 0 | GJ81: =GJ80*GJ10 -> 0 | GK81: =GK80*GK10 -> 0 | GL81: =GL80*GL10 -> 0 | GM81: =GM80*GM10 -> 0 | GN81: =GN80*GN10 -> 0 | GO81: =GO80*GO10 -> 0 | GP81: =GP80*GP10 -> 0 | GQ81: =GQ80*GQ10 -> 0 | GR81: =GR80*GR10 -> 0 | GS81: =GS80*GS10 -> 0 | GT81: =GT80*GT10 -> 0 | GU81: =GU80*GU10 -> 0 | GV81: =GV80*GV10 -> 0 | GW81: =GW80*GW10 -> 0 | GX81: =GX80*GX10 -> 0 | GY81: =GY80*GY10 -> 0 | GZ81: =GZ80*GZ10 -> 0 | HA81: =HA80*HA10 -> 0
C82: Interest Expense | J82: =J80*J11 -> 0 | K82: =K80*K11 -> 0 | L82: =L80*L11 -> 0 | M82: =M80*M11 -> 0 | N82: =N80*N11 -> 0 | O82: =O80*O11 -> 0 | P82: =P80*P11 -> 0 | Q82: =Q80*Q11 -> 0 | R82: =R80*R11 -> 0 | S82: =S80*S11 -> 0 | T82: =T80*T11 -> 0 | U82: =U80*U11 -> 0 | V82: =V80*V11 -> 0 | W82: =W80*W11 -> 0 | X82: =X80*X11 -> 0 | Y82: =Y80*Y11 -> 0 | Z82: =Z80*Z11 -> 0 | AA82: =AA80*AA11 -> 0 | AB82: =AB80*AB11 -> 0 | AC82: =AC80*AC11 -> 0 | AD82: =AD80*AD11 -> 0 | AE82: =AE80*AE11 -> 0 | AF82: =AF80*AF11 -> 0 | AG82: =AG80*AG11 -> 0 | AH82: =AH80*AH11 -> 0 | AI82: =AI80*AI11 -> 0 | AJ82: =AJ80*AJ11 -> 0 | AK82: =AK80*AK11 -> 0 | AL82: =AL80*AL11 -> 0 | AM82: =AM80*AM11 -> 0 | AN82: =AN80*AN11 -> 0 | AO82: =AO80*AO11 -> 0 | AP82: =AP80*AP11 -> 0 | AQ82: =AQ80*AQ11 -> 0 | AR82: =AR80*AR11 -> 0 | AS82: =AS80*AS11 -> 0 | AT82: =AT80*AT11 -> 0 | AU82: =AU80*AU11 -> 0 | AV82: =AV80*AV11 -> 60 | AW82: =AW80*AW11 -> 58.52100466 | AX82: =AX80*AX11 -> 57.01242942 | AY82: =AY80*AY11 -> 55.47368267 | AZ82: =AZ80*AZ11 -> 53.90416098 | BA82: =BA80*BA11 -> 52.30324887 | BB82: =BB80*BB11 -> 50.67031851 | BC82: =BC80*BC11 -> 49.00472954 | BD82: =BD80*BD11 -> 47.30582879 | BE82: =BE80*BE11 -> 45.57295003 | BF82: =BF80*BF11 -> 43.80541369 | BG82: =BG80*BG11 -> 42.00252663 | BH82: =BH80*BH11 -> 40.16358182 | BI82: =BI80*BI11 -> 38.28785812 | BJ82: =BJ80*BJ11 -> 36.37461995 | BK82: =BK80*BK11 -> 34.42311701 | BL82: =BL80*BL11 -> 32.43258401 | BM82: =BM80*BM11 -> 30.40224035 | BN82: =BN80*BN11 -> 28.33128982 | BO82: =BO80*BO11 -> 26.21892028 | BP82: =BP80*BP11 -> 24.06430335 | BQ82: =BQ80*BQ11 -> 21.86659408 | BR82: =BR80*BR11 -> 19.62493062 | BS82: =BS80*BS11 -> 17.3384339 | BT82: =BT80*BT11 -> 15.00620724 | BU82: =BU80*BU11 -> 12.62733605 | BV82: =BV80*BV11 -> 10.20088743 | BW82: =BW80*BW11 -> 7.725909842 | BX82: =BX80*BX11 -> 5.201432701 | BY82: =BY80*BY11 -> 2.626466017 | BZ82: =BZ80*BZ11 -> 9.663381206e-15 | CA82: =CA80*CA11 -> 9.663381206e-15 | CB82: =CB80*CB11 -> 9.663381206e-15 | CC82: =CC80*CC11 -> 9.663381206e-15 | CD82: =CD80*CD11 -> 9.663381206e-15 | CE82: =CE80*CE11 -> 9.663381206e-15 | CF82: =CF80*CF11 -> 9.663381206e-15 | CG82: =CG80*CG11 -> 9.663381206e-15 | CH82: =CH80*CH11 -> 9.663381206e-15 | CI82: =CI80*CI11 -> 9.663381206e-15 | CJ82: =CJ80*CJ11 -> 0 | CK82: =CK80*CK11 -> 0 | CL82: =CL80*CL11 -> 0 | CM82: =CM80*CM11 -> 0 | CN82: =CN80*CN11 -> 0 | CO82: =CO80*CO11 -> 0 | CP82: =CP80*CP11 -> 0 | CQ82: =CQ80*CQ11 -> 0 | CR82: =CR80*CR11 -> 0 | CS82: =CS80*CS11 -> 0 | CT82: =CT80*CT11 -> 0 | CU82: =CU80*CU11 -> 0 | CV82: =CV80*CV11 -> 0 | CW82: =CW80*CW11 -> 0 | CX82: =CX80*CX11 -> 0 | CY82: =CY80*CY11 -> 0 | CZ82: =CZ80*CZ11 -> 0 | DA82: =DA80*DA11 -> 0 | DB82: =DB80*DB11 -> 0 | DC82: =DC80*DC11 -> 0 | DD82: =DD80*DD11 -> 0 | DE82: =DE80*DE11 -> 0 | DF82: =DF80*DF11 -> 0 | DG82: =DG80*DG11 -> 0 | DH82: =DH80*DH11 -> 0 | DI82: =DI80*DI11 -> 0 | DJ82: =DJ80*DJ11 -> 0 | DK82: =DK80*DK11 -> 0 | DL82: =DL80*DL11 -> 0 | DM82: =DM80*DM11 -> 0 | DN82: =DN80*DN11 -> 0 | DO82: =DO80*DO11 -> 0 | DP82: =DP80*DP11 -> 0 | DQ82: =DQ80*DQ11 -> 0 | DR82: =DR80*DR11 -> 0 | DS82: =DS80*DS11 -> 0 | DT82: =DT80*DT11 -> 0 | DU82: =DU80*DU11 -> 0 | DV82: =DV80*DV11 -> 0 | DW82: =DW80*DW11 -> 0 | DX82: =DX80*DX11 -> 0 | DY82: =DY80*DY11 -> 0 | DZ82: =DZ80*DZ11 -> 0 | EA82: =EA80*EA11 -> 0 | EB82: =EB80*EB11 -> 0 | EC82: =EC80*EC11 -> 0 | ED82: =ED80*ED11 -> 0 | EE82: =EE80*EE11 -> 0 | EF82: =EF80*EF11 -> 0 | EG82: =EG80*EG11 -> 0 | EH82: =EH80*EH11 -> 0 | EI82: =EI80*EI11 -> 0 | EJ82: =EJ80*EJ11 -> 0 | EK82: =EK80*EK11 -> 0 | EL82: =EL80*EL11 -> 0 | EM82: =EM80*EM11 -> 0 | EN82: =EN80*EN11 -> 0 | EO82: =EO80*EO11 -> 0 | EP82: =EP80*EP11 -> 0 | EQ82: =EQ80*EQ11 -> 0 | ER82: =ER80*ER11 -> 0 | ES82: =ES80*ES11 -> 0 | ET82: =ET80*ET11 -> 0 | EU82: =EU80*EU11 -> 0 | EV82: =EV80*EV11 -> 0 | EW82: =EW80*EW11 -> 0 | EX82: =EX80*EX11 -> 0 | EY82: =EY80*EY11 -> 0 | EZ82: =EZ80*EZ11 -> 0 | FA82: =FA80*FA11 -> 0 | FB82: =FB80*FB11 -> 0 | FC82: =FC80*FC11 -> 0 | FD82: =FD80*FD11 -> 0 | FE82: =FE80*FE11 -> 0 | FF82: =FF80*FF11 -> 0 | FG82: =FG80*FG11 -> 0 | FH82: =FH80*FH11 -> 0 | FI82: =FI80*FI11 -> 0 | FJ82: =FJ80*FJ11 -> 0 | FK82: =FK80*FK11 -> 0 | FL82: =FL80*FL11 -> 0 | FM82: =FM80*FM11 -> 0 | FN82: =FN80*FN11 -> 0 | FO82: =FO80*FO11 -> 0 | FP82: =FP80*FP11 -> 0 | FQ82: =FQ80*FQ11 -> 0 | FR82: =FR80*FR11 -> 0 | FS82: =FS80*FS11 -> 0 | FT82: =FT80*FT11 -> 0 | FU82: =FU80*FU11 -> 0 | FV82: =FV80*FV11 -> 0 | FW82: =FW80*FW11 -> 0 | FX82: =FX80*FX11 -> 0 | FY82: =FY80*FY11 -> 0 | FZ82: =FZ80*FZ11 -> 0 | GA82: =GA80*GA11 -> 0 | GB82: =GB80*GB11 -> 0 | GC82: =GC80*GC11 -> 0 | GD82: =GD80*GD11 -> 0 | GE82: =GE80*GE11 -> 0 | GF82: =GF80*GF11 -> 0 | GG82: =GG80*GG11 -> 0 | GH82: =GH80*GH11 -> 0 | GI82: =GI80*GI11 -> 0 | GJ82: =GJ80*GJ11 -> 0 | GK82: =GK80*GK11 -> 0 | GL82: =GL80*GL11 -> 0 | GM82: =GM80*GM11 -> 0 | GN82: =GN80*GN11 -> 0 | GO82: =GO80*GO11 -> 0 | GP82: =GP80*GP11 -> 0 | GQ82: =GQ80*GQ11 -> 0 | GR82: =GR80*GR11 -> 0 | GS82: =GS80*GS11 -> 0 | GT82: =GT80*GT11 -> 0 | GU82: =GU80*GU11 -> 0 | GV82: =GV80*GV11 -> 0 | GW82: =GW80*GW11 -> 0 | GX82: =GX80*GX11 -> 0 | GY82: =GY80*GY11 -> 0 | GZ82: =GZ80*GZ11 -> 0 | HA82: =HA80*HA11 -> 0
A84: Cash flow Watefall
J85: =IF(J11,J13,NA()) ->  | K85: =IF(K11,K13,NA()) ->  | L85: =IF(L11,L13,NA()) ->  | M85: =IF(M11,M13,NA()) ->  | N85: =IF(N11,N13,NA()) ->  | O85: =IF(O11,O13,NA()) ->  | P85: =IF(P11,P13,NA()) ->  | Q85: =IF(Q11,Q13,NA()) ->  | R85: =IF(R11,R13,NA()) ->  | S85: =IF(S11,S13,NA()) ->  | T85: =IF(T11,T13,NA()) ->  | U85: =IF(U11,U13,NA()) ->  | V85: =IF(V11,V13,NA()) ->  | W85: =IF(W11,W13,NA()) ->  | X85: =IF(X11,X13,NA()) ->  | Y85: =IF(Y11,Y13,NA()) ->  | Z85: =IF(Z11,Z13,NA()) ->  | AA85: =IF(AA11,AA13,NA()) ->  | AB85: =IF(AB11,AB13,NA()) ->  | AC85: =IF(AC11,AC13,NA()) ->  | AD85: =IF(AD11,AD13,NA()) ->  | AE85: =IF(AE11,AE13,NA()) ->  | AF85: =IF(AF11,AF13,NA()) ->  | AG85: =IF(AG11,AG13,NA()) ->  | AH85: =IF(AH11,AH13,NA()) ->  | AI85: =IF(AI11,AI13,NA()) ->  | AJ85: =IF(AJ11,AJ13,NA()) ->  | AK85: =IF(AK11,AK13,NA()) ->  | AL85: =IF(AL11,AL13,NA()) ->  | AM85: =IF(AM11,AM13,NA()) ->  | AN85: =IF(AN11,AN13,NA()) ->  | AO85: =IF(AO11,AO13,NA()) ->  | AP85: =IF(AP11,AP13,NA()) ->  | AQ85: =IF(AQ11,AQ13,NA()) ->  | AR85: =IF(AR11,AR13,NA()) ->  | AS85: =IF(AS11,AS13,NA()) ->  | AT85: =IF(AT11,AT13,NA()) ->  | AU85: =IF(AU11,AU13,NA()) ->  | AV85: =IF(AV11,AV13,NA()) -> 2019-03-01 | AW85: =IF(AW11,AW13,NA()) -> 2019-09-01 | AX85: =IF(AX11,AX13,NA()) -> 2020-03-01 | AY85: =IF(AY11,AY13,NA()) -> 2020-09-01 | AZ85: =IF(AZ11,AZ13,NA()) -> 2021-03-01 | BA85: =IF(BA11,BA13,NA()) -> 2021-09-01 | BB85: =IF(BB11,BB13,NA()) -> 2022-03-01 | BC85: =IF(BC11,BC13,NA()) -> 2022-09-01 | BD85: =IF(BD11,BD13,NA()) -> 2023-03-01 | BE85: =IF(BE11,BE13,NA()) -> 2023-09-01 | BF85: =IF(BF11,BF13,NA()) -> 2024-03-01 | BG85: =IF(BG11,BG13,NA()) -> 2024-09-01 | BH85: =IF(BH11,BH13,NA()) -> 2025-03-01 | BI85: =IF(BI11,BI13,NA()) -> 2025-09-01 | BJ85: =IF(BJ11,BJ13,NA()) -> 2026-03-01 | BK85: =IF(BK11,BK13,NA()) -> 2026-09-01 | BL85: =IF(BL11,BL13,NA()) -> 2027-03-01 | BM85: =IF(BM11,BM13,NA()) -> 2027-09-01 | BN85: =IF(BN11,BN13,NA()) -> 2028-03-01 | BO85: =IF(BO11,BO13,NA()) -> 2028-09-01 | BP85: =IF(BP11,BP13,NA()) -> 2029-03-01 | BQ85: =IF(BQ11,BQ13,NA()) -> 2029-09-01 | BR85: =IF(BR11,BR13,NA()) -> 2030-03-01 | BS85: =IF(BS11,BS13,NA()) -> 2030-09-01 | BT85: =IF(BT11,BT13,NA()) -> 2031-03-01 | BU85: =IF(BU11,BU13,NA()) -> 2031-09-01 | BV85: =IF(BV11,BV13,NA()) -> 2032-03-01 | BW85: =IF(BW11,BW13,NA()) -> 2032-09-01 | BX85: =IF(BX11,BX13,NA()) -> 2033-03-01 | BY85: =IF(BY11,BY13,NA()) -> 2033-09-01 | BZ85: =IF(BZ11,BZ13,NA()) -> 2034-03-01 | CA85: =IF(CA11,CA13,NA()) -> 2034-09-01 | CB85: =IF(CB11,CB13,NA()) -> 2035-03-01 | CC85: =IF(CC11,CC13,NA()) -> 2035-09-01 | CD85: =IF(CD11,CD13,NA()) -> 2036-03-01 | CE85: =IF(CE11,CE13,NA()) -> 2036-09-01 | CF85: =IF(CF11,CF13,NA()) -> 2037-03-01 | CG85: =IF(CG11,CG13,NA()) -> 2037-09-01 | CH85: =IF(CH11,CH13,NA()) -> 2038-03-01 | CI85: =IF(CI11,CI13,NA()) -> 2038-09-01 | CJ85: =IF(CJ11,CJ13,NA()) ->  | CK85: =IF(CK11,CK13,NA()) ->  | CL85: =IF(CL11,CL13,NA()) ->  | CM85: =IF(CM11,CM13,NA()) ->  | CN85: =IF(CN11,CN13,NA()) ->  | CO85: =IF(CO11,CO13,NA()) ->  | CP85: =IF(CP11,CP13,NA()) ->  | CQ85: =IF(CQ11,CQ13,NA()) ->  | CR85: =IF(CR11,CR13,NA()) ->  | CS85: =IF(CS11,CS13,NA()) ->  | CT85: =IF(CT11,CT13,NA()) ->  | CU85: =IF(CU11,CU13,NA()) ->  | CV85: =IF(CV11,CV13,NA()) ->  | CW85: =IF(CW11,CW13,NA()) ->  | CX85: =IF(CX11,CX13,NA()) ->  | CY85: =IF(CY11,CY13,NA()) ->  | CZ85: =IF(CZ11,CZ13,NA()) ->  | DA85: =IF(DA11,DA13,NA()) ->  | DB85: =IF(DB11,DB13,NA()) ->  | DC85: =IF(DC11,DC13,NA()) ->  | DD85: =IF(DD11,DD13,NA()) ->  | DE85: =IF(DE11,DE13,NA()) ->  | DF85: =IF(DF11,DF13,NA()) ->  | DG85: =IF(DG11,DG13,NA()) ->  | DH85: =IF(DH11,DH13,NA()) ->  | DI85: =IF(DI11,DI13,NA()) ->  | DJ85: =IF(DJ11,DJ13,NA()) ->  | DK85: =IF(DK11,DK13,NA()) ->  | DL85: =IF(DL11,DL13,NA()) ->  | DM85: =IF(DM11,DM13,NA()) ->  | DN85: =IF(DN11,DN13,NA()) ->  | DO85: =IF(DO11,DO13,NA()) ->  | DP85: =IF(DP11,DP13,NA()) ->  | DQ85: =IF(DQ11,DQ13,NA()) ->  | DR85: =IF(DR11,DR13,NA()) ->  | DS85: =IF(DS11,DS13,NA()) ->  | DT85: =IF(DT11,DT13,NA()) ->  | DU85: =IF(DU11,DU13,NA()) ->  | DV85: =IF(DV11,DV13,NA()) ->  | DW85: =IF(DW11,DW13,NA()) ->  | DX85: =IF(DX11,DX13,NA()) ->  | DY85: =IF(DY11,DY13,NA()) ->  | DZ85: =IF(DZ11,DZ13,NA()) ->  | EA85: =IF(EA11,EA13,NA()) ->  | EB85: =IF(EB11,EB13,NA()) ->  | EC85: =IF(EC11,EC13,NA()) ->  | ED85: =IF(ED11,ED13,NA()) ->  | EE85: =IF(EE11,EE13,NA()) ->  | EF85: =IF(EF11,EF13,NA()) ->  | EG85: =IF(EG11,EG13,NA()) ->  | EH85: =IF(EH11,EH13,NA()) ->  | EI85: =IF(EI11,EI13,NA()) ->  | EJ85: =IF(EJ11,EJ13,NA()) ->  | EK85: =IF(EK11,EK13,NA()) ->  | EL85: =IF(EL11,EL13,NA()) ->  | EM85: =IF(EM11,EM13,NA()) ->  | EN85: =IF(EN11,EN13,NA()) ->  | EO85: =IF(EO11,EO13,NA()) ->  | EP85: =IF(EP11,EP13,NA()) ->  | EQ85: =IF(EQ11,EQ13,NA()) ->  | ER85: =IF(ER11,ER13,NA()) ->  | ES85: =IF(ES11,ES13,NA()) ->  | ET85: =IF(ET11,ET13,NA()) ->  | EU85: =IF(EU11,EU13,NA()) ->  | EV85: =IF(EV11,EV13,NA()) ->  | EW85: =IF(EW11,EW13,NA()) ->  | EX85: =IF(EX11,EX13,NA()) ->  | EY85: =IF(EY11,EY13,NA()) ->  | EZ85: =IF(EZ11,EZ13,NA()) ->  | FA85: =IF(FA11,FA13,NA()) ->  | FB85: =IF(FB11,FB13,NA()) ->  | FC85: =IF(FC11,FC13,NA()) ->  | FD85: =IF(FD11,FD13,NA()) ->  | FE85: =IF(FE11,FE13,NA()) ->  | FF85: =IF(FF11,FF13,NA()) ->  | FG85: =IF(FG11,FG13,NA()) ->  | FH85: =IF(FH11,FH13,NA()) ->  | FI85: =IF(FI11,FI13,NA()) ->  | FJ85: =IF(FJ11,FJ13,NA()) ->  | FK85: =IF(FK11,FK13,NA()) ->  | FL85: =IF(FL11,FL13,NA()) ->  | FM85: =IF(FM11,FM13,NA()) ->  | FN85: =IF(FN11,FN13,NA()) ->  | FO85: =IF(FO11,FO13,NA()) ->  | FP85: =IF(FP11,FP13,NA()) ->  | FQ85: =IF(FQ11,FQ13,NA()) ->  | FR85: =IF(FR11,FR13,NA()) ->  | FS85: =IF(FS11,FS13,NA()) ->  | FT85: =IF(FT11,FT13,NA()) ->  | FU85: =IF(FU11,FU13,NA()) ->  | FV85: =IF(FV11,FV13,NA()) ->  | FW85: =IF(FW11,FW13,NA()) ->  | FX85: =IF(FX11,FX13,NA()) ->  | FY85: =IF(FY11,FY13,NA()) ->  | FZ85: =IF(FZ11,FZ13,NA()) ->  | GA85: =IF(GA11,GA13,NA()) ->  | GB85: =IF(GB11,GB13,NA()) ->  | GC85: =IF(GC11,GC13,NA()) ->  | GD85: =IF(GD11,GD13,NA()) ->  | GE85: =IF(GE11,GE13,NA()) ->  | GF85: =IF(GF11,GF13,NA()) ->  | GG85: =IF(GG11,GG13,NA()) ->  | GH85: =IF(GH11,GH13,NA()) ->  | GI85: =IF(GI11,GI13,NA()) ->  | GJ85: =IF(GJ11,GJ13,NA()) ->  | GK85: =IF(GK11,GK13,NA()) ->  | GL85: =IF(GL11,GL13,NA()) ->  | GM85: =IF(GM11,GM13,NA()) ->  | GN85: =IF(GN11,GN13,NA()) ->  | GO85: =IF(GO11,GO13,NA()) ->  | GP85: =IF(GP11,GP13,NA()) ->  | GQ85: =IF(GQ11,GQ13,NA()) ->  | GR85: =IF(GR11,GR13,NA()) ->  | GS85: =IF(GS11,GS13,NA()) ->  | GT85: =IF(GT11,GT13,NA()) ->  | GU85: =IF(GU11,GU13,NA()) ->  | GV85: =IF(GV11,GV13,NA()) ->  | GW85: =IF(GW11,GW13,NA()) ->  | GX85: =IF(GX11,GX13,NA()) ->  | GY85: =IF(GY11,GY13,NA()) ->  | GZ85: =IF(GZ11,GZ13,NA()) ->  | HA85: =IF(HA11,HA13,NA()) -> 
B86: CFADS | J86: =J45 -> 0 | K86: =K45 -> 0 | L86: 0 | M86: 0 | N86: 0 | O86: 0 | P86: 0 | Q86: 0 | R86: 0 | S86: 0 | T86: 0 | U86: 0 | V86: 0 | W86: 0 | X86: 0 | Y86: 0 | Z86: 0 | AA86: 0 | AB86: 0 | AC86: 0 | AD86: 0 | AE86: 0 | AF86: 0 | AG86: 0 | AH86: 0 | AI86: 0 | AJ86: 0 | AK86: 0 | AL86: 0 | AM86: 0 | AN86: 0 | AO86: 0 | AP86: 0 | AQ86: 0 | AR86: 0 | AS86: 0 | AT86: 0 | AU86: 0 | AV86: 451.6256746 | AW86: 458.35 | AX86: 465.1744449 | AY86: 472.1005 | AZ86: 479.1296782 | BA86: 486.263515 | BB86: 493.5035686 | BC86: 500.8514205 | BD86: 508.3086756 | BE86: 515.8769631 | BF86: 523.5579359 | BG86: 531.353272 | BH86: 539.264674 | BI86: 547.2938701 | BJ86: 555.4426142 | BK86: 563.7126862 | BL86: 572.1058926 | BM86: 580.6240668 | BN86: 589.2690694 | BO86: 598.0427888 | BP86: 606.9471415 | BQ86: 615.9840725 | BR86: 625.1555557 | BS86: 634.4635946 | BT86: 643.9102224 | BU86: 653.4975025 | BV86: 663.2275291 | BW86: =BW45 -> 673.1024276 | BX86: 683.124355 | BY86: 693.2955004 | BZ86: 703.6180856 | CA86: 714.0943654 | CB86: 724.7266282 | CC86: 735.5171964 | CD86: 746.468427 | CE86: 757.5827123 | CF86: 768.8624798 | CG86: 780.3101936 | CH86: 791.9283542 | CI86: 803.7194994 | CJ86: 0 | CK86: 0 | CL86: 0 | CM86: 0 | CN86: 0 | CO86: 0 | CP86: 0 | CQ86: 0 | CR86: 0 | CS86: 0 | CT86: 0 | CU86: 0 | CV86: 0 | CW86: 0 | CX86: 0 | CY86: 0 | CZ86: 0 | DA86: 0 | DB86: 0 | DC86: 0 | DD86: 0 | DE86: 0 | DF86: 0 | DG86: 0 | DH86: 0 | DI86: 0 | DJ86: 0 | DK86: 0 | DL86: 0 | DM86: 0 | DN86: 0 | DO86: 0 | DP86: 0 | DQ86: 0 | DR86: 0 | DS86: 0 | DT86: 0 | DU86: 0 | DV86: 0 | DW86: 0 | DX86: 0 | DY86: 0 | DZ86: 0 | EA86: 0 | EB86: 0 | EC86: 0 | ED86: 0 | EE86: 0 | EF86: 0 | EG86: 0 | EH86: 0 | EI86: =EI45 -> 0 | EJ86: 0 | EK86: 0 | EL86: 0 | EM86: 0 | EN86: 0 | EO86: 0 | EP86: 0 | EQ86: 0 | ER86: 0 | ES86: 0 | ET86: 0 | EU86: 0 | EV86: 0 | EW86: 0 | EX86: 0 | EY86: 0 | EZ86: 0 | FA86: 0 | FB86: 0 | FC86: 0 | FD86: 0 | FE86: 0 | FF86: 0 | FG86: 0 | FH86: 0 | FI86: 0 | FJ86: 0 | FK86: 0 | FL86: 0 | FM86: 0 | FN86: 0 | FO86: 0 | FP86: 0 | FQ86: 0 | FR86: 0 | FS86: 0 | FT86: 0 | FU86: 0 | FV86: 0 | FW86: 0 | FX86: 0 | FY86: 0 | FZ86: 0 | GA86: 0 | GB86: 0 | GC86: 0 | GD86: 0 | GE86: 0 | GF86: 0 | GG86: 0 | GH86: 0 | GI86: 0 | GJ86: 0 | GK86: 0 | GL86: 0 | GM86: 0 | GN86: 0 | GO86: 0 | GP86: 0 | GQ86: 0 | GR86: 0 | GS86: 0 | GT86: 0 | GU86: =GU45 -> 0 | GV86: 0 | GW86: 0 | GX86: 0 | GY86: 0 | GZ86: 0 | HA86: 0
B87: Interest Expense | J87: =J82+J70 -> 0 | K87: =K82+K70 -> 0 | L87: 0 | M87: 0 | N87: 0 | O87: 0 | P87: 0 | Q87: 0 | R87: 0 | S87: 0 | T87: 0 | U87: 0 | V87: 0 | W87: 0 | X87: 0 | Y87: 0 | Z87: 0 | AA87: 0 | AB87: 0 | AC87: 0 | AD87: 0 | AE87: 0 | AF87: 0 | AG87: 0 | AH87: 0 | AI87: 0 | AJ87: 0 | AK87: 0 | AL87: 0 | AM87: 0 | AN87: 0 | AO87: 0 | AP87: 0 | AQ87: 0 | AR87: 0 | AS87: 0 | AT87: 0 | AU87: 0 | AV87: 140 | AW87: 135.854338 | AX87: 131.6790961 | AY87: 127.4736827 | AZ87: 123.2374943 | BA87: 118.9699155 | BB87: 114.6703185 | BC87: 110.3380629 | BD87: 105.9724955 | BE87: 101.57295 | BF87: 97.13874703 | BG87: 92.6691933 | BH87: 88.16358182 | BI87: 83.62119146 | BJ87: 79.04128661 | BK87: 74.42311701 | BL87: 69.76591735 | BM87: 65.06890702 | BN87: 60.33128982 | BO87: 55.55225362 | BP87: 50.73097002 | BQ87: 45.86659408 | BR87: 40.95826396 | BS87: 36.00510057 | BT87: 31.00620724 | BU87: 25.96066938 | BV87: 20.8675541 | BW87: =BW82+BW70 -> 15.72590984 | BX87: 10.53476603 | BY87: 5.293132684 | BZ87: 1.017497198e-13 | CA87: 9.663381206e-15 | CB87: 9.663381206e-15 | CC87: 9.663381206e-15 | CD87: 9.663381206e-15 | CE87: 9.663381206e-15 | CF87: 9.663381206e-15 | CG87: 9.663381206e-15 | CH87: 9.663381206e-15 | CI87: 9.663381206e-15 | CJ87: 0 | CK87: 0 | CL87: 0 | CM87: 0 | CN87: 0 | CO87: 0 | CP87: 0 | CQ87: 0 | CR87: 0 | CS87: 0 | CT87: 0 | CU87: 0 | CV87: 0 | CW87: 0 | CX87: 0 | CY87: 0 | CZ87: 0 | DA87: 0 | DB87: 0 | DC87: 0 | DD87: 0 | DE87: 0 | DF87: 0 | DG87: 0 | DH87: 0 | DI87: 0 | DJ87: 0 | DK87: 0 | DL87: 0 | DM87: 0 | DN87: 0 | DO87: 0 | DP87: 0 | DQ87: 0 | DR87: 0 | DS87: 0 | DT87: 0 | DU87: 0 | DV87: 0 | DW87: 0 | DX87: 0 | DY87: 0 | DZ87: 0 | EA87: 0 | EB87: 0 | EC87: 0 | ED87: 0 | EE87: 0 | EF87: 0 | EG87: 0 | EH87: 0 | EI87: =EI82+EI70 -> 0 | EJ87: 0 | EK87: 0 | EL87: 0 | EM87: 0 | EN87: 0 | EO87: 0 | EP87: 0 | EQ87: 0 | ER87: 0 | ES87: 0 | ET87: 0 | EU87: 0 | EV87: 0 | EW87: 0 | EX87: 0 | EY87: 0 | EZ87: 0 | FA87: 0 | FB87: 0 | FC87: 0 | FD87: 0 | FE87: 0 | FF87: 0 | FG87: 0 | FH87: 0 | FI87: 0 | FJ87: 0 | FK87: 0 | FL87: 0 | FM87: 0 | FN87: 0 | FO87: 0 | FP87: 0 | FQ87: 0 | FR87: 0 | FS87: 0 | FT87: 0 | FU87: 0 | FV87: 0 | FW87: 0 | FX87: 0 | FY87: 0 | FZ87: 0 | GA87: 0 | GB87: 0 | GC87: 0 | GD87: 0 | GE87: 0 | GF87: 0 | GG87: 0 | GH87: 0 | GI87: 0 | GJ87: 0 | GK87: 0 | GL87: 0 | GM87: 0 | GN87: 0 | GO87: 0 | GP87: 0 | GQ87: 0 | GR87: 0 | GS87: 0 | GT87: 0 | GU87: =GU82+GU70 -> 0 | GV87: 0 | GW87: 0 | GX87: 0 | GY87: 0 | GZ87: 0 | HA87: 0
B88: Repayments | J88: =J77+J65 -> 0 | K88: =K77+K65 -> 0 | L88: 0 | M88: 0 | N88: 0 | O88: 0 | P88: 0 | Q88: 0 | R88: 0 | S88: 0 | T88: 0 | U88: 0 | V88: 0 | W88: 0 | X88: 0 | Y88: 0 | Z88: 0 | AA88: 0 | AB88: 0 | AC88: 0 | AD88: 0 | AE88: 0 | AF88: 0 | AG88: 0 | AH88: 0 | AI88: 0 | AJ88: 0 | AK88: 0 | AL88: 0 | AM88: 0 | AN88: 0 | AO88: 0 | AP88: 0 | AQ88: 0 | AR88: 0 | AS88: 0 | AT88: 0 | AU88: 0 | AV88: 207.2831002 | AW88: 208.7620956 | AX88: 210.2706708 | AY88: 211.8094175 | AZ88: 213.3789392 | BA88: 214.9798513 | BB88: 216.6127817 | BC88: 218.2783707 | BD88: 219.9772714 | BE88: 221.7101502 | BF88: 223.4776865 | BG88: 225.2805736 | BH88: 227.1195184 | BI88: 228.9952421 | BJ88: 230.9084803 | BK88: 232.8599832 | BL88: 234.8505162 | BM88: 236.8808599 | BN88: 238.9518104 | BO88: 241.0641799 | BP88: 243.2187969 | BQ88: 245.4165061 | BR88: 247.6581696 | BS88: 249.9446663 | BT88: 252.276893 | BU88: 254.6557642 | BV88: 257.0822128 | BW88: =BW77+BW65 -> 259.5571904 | BX88: 262.0816675 | BY88: 264.6566342 | BZ88: 4.604316928e-12 | CA88: 0 | CB88: 0 | CC88: 0 | CD88: 0 | CE88: 0 | CF88: 0 | CG88: 0 | CH88: 0 | CI88: 0 | CJ88: 0 | CK88: 0 | CL88: 0 | CM88: 0 | CN88: 0 | CO88: 0 | CP88: 0 | CQ88: 0 | CR88: 0 | CS88: 0 | CT88: 0 | CU88: 0 | CV88: 0 | CW88: 0 | CX88: 0 | CY88: 0 | CZ88: 0 | DA88: 0 | DB88: 0 | DC88: 0 | DD88: 0 | DE88: 0 | DF88: 0 | DG88: 0 | DH88: 0 | DI88: 0 | DJ88: 0 | DK88: 0 | DL88: 0 | DM88: 0 | DN88: 0 | DO88: 0 | DP88: 0 | DQ88: 0 | DR88: 0 | DS88: 0 | DT88: 0 | DU88: 0 | DV88: 0 | DW88: 0 | DX88: 0 | DY88: 0 | DZ88: 0 | EA88: 0 | EB88: 0 | EC88: 0 | ED88: 0 | EE88: 0 | EF88: 0 | EG88: 0 | EH88: 0 | EI88: =EI77+EI65 -> 0 | EJ88: 0 | EK88: 0 | EL88: 0 | EM88: 0 | EN88: 0 | EO88: 0 | EP88: 0 | EQ88: 0 | ER88: 0 | ES88: 0 | ET88: 0 | EU88: 0 | EV88: 0 | EW88: 0 | EX88: 0 | EY88: 0 | EZ88: 0 | FA88: 0 | FB88: 0 | FC88: 0 | FD88: 0 | FE88: 0 | FF88: 0 | FG88: 0 | FH88: 0 | FI88: 0 | FJ88: 0 | FK88: 0 | FL88: 0 | FM88: 0 | FN88: 0 | FO88: 0 | FP88: 0 | FQ88: 0 | FR88: 0 | FS88: 0 | FT88: 0 | FU88: 0 | FV88: 0 | FW88: 0 | FX88: 0 | FY88: 0 | FZ88: 0 | GA88: 0 | GB88: 0 | GC88: 0 | GD88: 0 | GE88: 0 | GF88: 0 | GG88: 0 | GH88: 0 | GI88: 0 | GJ88: 0 | GK88: 0 | GL88: 0 | GM88: 0 | GN88: 0 | GO88: 0 | GP88: 0 | GQ88: 0 | GR88: 0 | GS88: 0 | GT88: 0 | GU88: =GU77+GU65 -> 0 | GV88: 0 | GW88: 0 | GX88: 0 | GY88: 0 | GZ88: 0 | HA88: 0
B89: Dividends | J89: =J86-J87-J88 -> 0 | K89: =K86-K87-K88 -> 0 | L89: 0 | M89: 0 | N89: 0 | O89: 0 | P89: 0 | Q89: 0 | R89: 0 | S89: 0 | T89: 0 | U89: 0 | V89: 0 | W89: 0 | X89: 0 | Y89: 0 | Z89: 0 | AA89: 0 | AB89: 0 | AC89: 0 | AD89: 0 | AE89: 0 | AF89: 0 | AG89: 0 | AH89: 0 | AI89: 0 | AJ89: 0 | AK89: 0 | AL89: 0 | AM89: 0 | AN89: 0 | AO89: 0 | AP89: 0 | AQ89: 0 | AR89: 0 | AS89: 0 | AT89: 0 | AU89: 0 | AV89: 104.3425744 | AW89: 113.7335665 | AX89: 123.224678 | AY89: 132.8173998 | AZ89: 142.5132447 | BA89: 152.3137481 | BB89: 162.2204684 | BC89: 172.2349869 | BD89: 182.3589088 | BE89: 192.5938628 | BF89: 202.9415024 | BG89: 213.4035051 | BH89: 223.9815738 | BI89: 234.6774366 | BJ89: 245.4928473 | BK89: 256.429586 | BL89: 267.4894591 | BM89: 278.6742999 | BN89: 289.9859692 | BO89: 301.4263553 | BP89: 312.9973746 | BQ89: 324.7009723 | BR89: 336.5391222 | BS89: 348.5138278 | BT89: 360.6271222 | BU89: 372.8810689 | BV89: 385.2777622 | BW89: =BW86-BW87-BW88 -> 397.8193273 | BX89: 410.5079214 | BY89: 423.3457335 | BZ89: 703.6180856 | CA89: 714.0943654 | CB89: 724.7266282 | CC89: 735.5171964 | CD89: 746.468427 | CE89: 757.5827123 | CF89: 768.8624798 | CG89: 780.3101936 | CH89: 791.9283542 | CI89: 803.7194994 | CJ89: 0 | CK89: 0 | CL89: 0 | CM89: 0 | CN89: 0 | CO89: 0 | CP89: 0 | CQ89: 0 | CR89: 0 | CS89: 0 | CT89: 0 | CU89: 0 | CV89: 0 | CW89: 0 | CX89: 0 | CY89: 0 | CZ89: 0 | DA89: 0 | DB89: 0 | DC89: 0 | DD89: 0 | DE89: 0 | DF89: 0 | DG89: 0 | DH89: 0 | DI89: 0 | DJ89: 0 | DK89: 0 | DL89: 0 | DM89: 0 | DN89: 0 | DO89: 0 | DP89: 0 | DQ89: 0 | DR89: 0 | DS89: 0 | DT89: 0 | DU89: 0 | DV89: 0 | DW89: 0 | DX89: 0 | DY89: 0 | DZ89: 0 | EA89: 0 | EB89: 0 | EC89: 0 | ED89: 0 | EE89: 0 | EF89: 0 | EG89: 0 | EH89: 0 | EI89: =EI86-EI87-EI88 -> 0 | EJ89: 0 | EK89: 0 | EL89: 0 | EM89: 0 | EN89: 0 | EO89: 0 | EP89: 0 | EQ89: 0 | ER89: 0 | ES89: 0 | ET89: 0 | EU89: 0 | EV89: 0 | EW89: 0 | EX89: 0 | EY89: 0 | EZ89: 0 | FA89: 0 | FB89: 0 | FC89: 0 | FD89: 0 | FE89: 0 | FF89: 0 | FG89: 0 | FH89: 0 | FI89: 0 | FJ89: 0 | FK89: 0 | FL89: 0 | FM89: 0 | FN89: 0 | FO89: 0 | FP89: 0 | FQ89: 0 | FR89: 0 | FS89: 0 | FT89: 0 | FU89: 0 | FV89: 0 | FW89: 0 | FX89: 0 | FY89: 0 | FZ89: 0 | GA89: 0 | GB89: 0 | GC89: 0 | GD89: 0 | GE89: 0 | GF89: 0 | GG89: 0 | GH89: 0 | GI89: 0 | GJ89: 0 | GK89: 0 | GL89: 0 | GM89: 0 | GN89: 0 | GO89: 0 | GP89: 0 | GQ89: 0 | GR89: 0 | GS89: 0 | GT89: 0 | GU89: =GU86-GU87-GU88 -> 0 | GV89: 0 | GW89: 0 | GX89: 0 | GY89: 0 | GZ89: 0 | HA89: 0
A91: Outputs
B92: Equity Cash Flow
B93: Equity IRR
B95: CFADS | J95: =IF(J74,J86)*1 -> 0 | K95: =IF(K74,K86)*1 -> 0 | L95: 0 | M95: 0 | N95: 0 | O95: 0 | P95: 0 | Q95: 0 | R95: 0 | S95: 0 | T95: 0 | U95: 0 | V95: 0 | W95: 0 | X95: 0 | Y95: 0 | Z95: 0 | AA95: 0 | AB95: 0 | AC95: 0 | AD95: 0 | AE95: 0 | AF95: 0 | AG95: 0 | AH95: 0 | AI95: 0 | AJ95: 0 | AK95: 0 | AL95: 0 | AM95: 0 | AN95: 0 | AO95: 0 | AP95: 0 | AQ95: 0 | AR95: 0 | AS95: 0 | AT95: 0 | AU95: 0 | AV95: 451.6256746 | AW95: 458.35 | AX95: 465.1744449 | AY95: 472.1005 | AZ95: 479.1296782 | BA95: 486.263515 | BB95: 493.5035686 | BC95: 500.8514205 | BD95: 508.3086756 | BE95: 515.8769631 | BF95: 523.5579359 | BG95: 531.353272 | BH95: 539.264674 | BI95: 547.2938701 | BJ95: 555.4426142 | BK95: 563.7126862 | BL95: 572.1058926 | BM95: 580.6240668 | BN95: 589.2690694 | BO95: 598.0427888 | BP95: 606.9471415 | BQ95: 615.9840725 | BR95: 625.1555557 | BS95: 634.4635946 | BT95: 643.9102224 | BU95: 653.4975025 | BV95: 663.2275291 | BW95: =IF(BW74,BW86)*1 -> 673.1024276 | BX95: 683.124355 | BY95: 693.2955004 | BZ95: 0 | CA95: 0 | CB95: 0 | CC95: 0 | CD95: 0 | CE95: 0 | CF95: 0 | CG95: 0 | CH95: 0 | CI95: 0 | CJ95: 0 | CK95: 0 | CL95: 0 | CM95: 0 | CN95: 0 | CO95: 0 | CP95: 0 | CQ95: 0 | CR95: 0 | CS95: 0 | CT95: 0 | CU95: 0 | CV95: 0 | CW95: 0 | CX95: 0 | CY95: 0 | CZ95: 0 | DA95: 0 | DB95: 0 | DC95: 0 | DD95: 0 | DE95: 0 | DF95: 0 | DG95: 0 | DH95: 0 | DI95: 0 | DJ95: 0 | DK95: 0 | DL95: 0 | DM95: 0 | DN95: 0 | DO95: 0 | DP95: 0 | DQ95: 0 | DR95: 0 | DS95: 0 | DT95: 0 | DU95: 0 | DV95: 0 | DW95: 0 | DX95: 0 | DY95: 0 | DZ95: 0 | EA95: 0 | EB95: 0 | EC95: 0 | ED95: 0 | EE95: 0 | EF95: 0 | EG95: 0 | EH95: 0 | EI95: =IF(EI74,EI86)*1 -> 0 | EJ95: 0 | EK95: 0 | EL95: 0 | EM95: 0 | EN95: 0 | EO95: 0 | EP95: 0 | EQ95: 0 | ER95: 0 | ES95: 0 | ET95: 0 | EU95: 0 | EV95: 0 | EW95: 0 | EX95: 0 | EY95: 0 | EZ95: 0 | FA95: 0 | FB95: 0 | FC95: 0 | FD95: 0 | FE95: 0 | FF95: 0 | FG95: 0 | FH95: 0 | FI95: 0 | FJ95: 0 | FK95: 0 | FL95: 0 | FM95: 0 | FN95: 0 | FO95: 0 | FP95: 0 | FQ95: 0 | FR95: 0 | FS95: 0 | FT95: 0 | FU95: 0 | FV95: 0 | FW95: 0 | FX95: 0 | FY95: 0 | FZ95: 0 | GA95: 0 | GB95: 0 | GC95: 0 | GD95: 0 | GE95: 0 | GF95: 0 | GG95: 0 | GH95: 0 | GI95: 0 | GJ95: 0 | GK95: 0 | GL95: 0 | GM95: 0 | GN95: 0 | GO95: 0 | GP95: 0 | GQ95: 0 | GR95: 0 | GS95: 0 | GT95: 0 | GU95: =IF(GU74,GU86)*1 -> 0 | GV95: 0 | GW95: 0 | GX95: 0 | GY95: 0 | GZ95: 0 | HA95: 0
B96: Debt Service | J96: =J87+J88 -> 0 | K96: =K87+K88 -> 0 | L96: 0 | M96: 0 | N96: 0 | O96: 0 | P96: 0 | Q96: 0 | R96: 0 | S96: 0 | T96: 0 | U96: 0 | V96: 0 | W96: 0 | X96: 0 | Y96: 0 | Z96: 0 | AA96: 0 | AB96: 0 | AC96: 0 | AD96: 0 | AE96: 0 | AF96: 0 | AG96: 0 | AH96: 0 | AI96: 0 | AJ96: 0 | AK96: 0 | AL96: 0 | AM96: 0 | AN96: 0 | AO96: 0 | AP96: 0 | AQ96: 0 | AR96: 0 | AS96: 0 | AT96: 0 | AU96: 0 | AV96: 347.2831002 | AW96: 344.6164335 | AX96: 341.9497669 | AY96: 339.2831002 | AZ96: 336.6164335 | BA96: 333.9497669 | BB96: 331.2831002 | BC96: 328.6164335 | BD96: 325.9497669 | BE96: 323.2831002 | BF96: 320.6164335 | BG96: 317.9497669 | BH96: 315.2831002 | BI96: 312.6164335 | BJ96: 309.9497669 | BK96: 307.2831002 | BL96: 304.6164335 | BM96: 301.9497669 | BN96: 299.2831002 | BO96: 296.6164335 | BP96: 293.9497669 | BQ96: 291.2831002 | BR96: 288.6164335 | BS96: 285.9497669 | BT96: 283.2831002 | BU96: 280.6164335 | BV96: 277.9497669 | BW96: =BW87+BW88 -> 275.2831002 | BX96: 272.6164335 | BY96: 269.9497669 | BZ96: 4.706066647e-12 | CA96: 9.663381206e-15 | CB96: 9.663381206e-15 | CC96: 9.663381206e-15 | CD96: 9.663381206e-15 | CE96: 9.663381206e-15 | CF96: 9.663381206e-15 | CG96: 9.663381206e-15 | CH96: 9.663381206e-15 | CI96: 9.663381206e-15 | CJ96: 0 | CK96: 0 | CL96: 0 | CM96: 0 | CN96: 0 | CO96: 0 | CP96: 0 | CQ96: 0 | CR96: 0 | CS96: 0 | CT96: 0 | CU96: 0 | CV96: 0 | CW96: 0 | CX96: 0 | CY96: 0 | CZ96: 0 | DA96: 0 | DB96: 0 | DC96: 0 | DD96: 0 | DE96: 0 | DF96: 0 | DG96: 0 | DH96: 0 | DI96: 0 | DJ96: 0 | DK96: 0 | DL96: 0 | DM96: 0 | DN96: 0 | DO96: 0 | DP96: 0 | DQ96: 0 | DR96: 0 | DS96: 0 | DT96: 0 | DU96: 0 | DV96: 0 | DW96: 0 | DX96: 0 | DY96: 0 | DZ96: 0 | EA96: 0 | EB96: 0 | EC96: 0 | ED96: 0 | EE96: 0 | EF96: 0 | EG96: 0 | EH96: 0 | EI96: =EI87+EI88 -> 0 | EJ96: 0 | EK96: 0 | EL96: 0 | EM96: 0 | EN96: 0 | EO96: 0 | EP96: 0 | EQ96: 0 | ER96: 0 | ES96: 0 | ET96: 0 | EU96: 0 | EV96: 0 | EW96: 0 | EX96: 0 | EY96: 0 | EZ96: 0 | FA96: 0 | FB96: 0 | FC96: 0 | FD96: 0 | FE96: 0 | FF96: 0 | FG96: 0 | FH96: 0 | FI96: 0 | FJ96: 0 | FK96: 0 | FL96: 0 | FM96: 0 | FN96: 0 | FO96: 0 | FP96: 0 | FQ96: 0 | FR96: 0 | FS96: 0 | FT96: 0 | FU96: 0 | FV96: 0 | FW96: 0 | FX96: 0 | FY96: 0 | FZ96: 0 | GA96: 0 | GB96: 0 | GC96: 0 | GD96: 0 | GE96: 0 | GF96: 0 | GG96: 0 | GH96: 0 | GI96: 0 | GJ96: 0 | GK96: 0 | GL96: 0 | GM96: 0 | GN96: 0 | GO96: 0 | GP96: 0 | GQ96: 0 | GR96: 0 | GS96: 0 | GT96: 0 | GU96: =GU87+GU88 -> 0 | GV96: 0 | GW96: 0 | GX96: 0 | GY96: 0 | GZ96: 0 | HA96: 0
C97: DSCR | J97: =IF(J96>0.01,J95/J96) -> FALSE | K97: =IF(K96>0.01,K95/K96) -> FALSE | L97: FALSE | M97: FALSE | N97: FALSE | O97: FALSE | P97: FALSE | Q97: FALSE | R97: FALSE | S97: FALSE | T97: FALSE | U97: FALSE | V97: FALSE | W97: FALSE | X97: FALSE | Y97: FALSE | Z97: FALSE | AA97: FALSE | AB97: FALSE | AC97: FALSE | AD97: FALSE | AE97: FALSE | AF97: FALSE | AG97: FALSE | AH97: FALSE | AI97: FALSE | AJ97: FALSE | AK97: FALSE | AL97: FALSE | AM97: FALSE | AN97: FALSE | AO97: FALSE | AP97: FALSE | AQ97: FALSE | AR97: FALSE | AS97: FALSE | AT97: FALSE | AU97: FALSE | AV97: 1.300453936 | AW97: 1.330029434 | AX97: 1.360359006 | AY97: 1.391464826 | AZ97: 1.423369837 | BA97: 1.456097782 | BB97: 1.489673238 | BC97: 1.524121649 | BD97: 1.559469364 | BE97: 1.595743677 | BF97: 1.632972865 | BG97: 1.671186229 | BH97: 1.710414144 | BI97: 1.7506881 | BJ97: 1.792040755 | BK97: 1.834505984 | BL97: 1.878118938 | BM97: 1.922916096 | BN97: 1.968935329 | BO97: 2.016215965 | BP97: 2.064798853 | BQ97: 2.114726436 | BR97: 2.166042827 | BS97: 2.218793887 | BT97: 2.273027307 | BU97: 2.328792702 | BV97: 2.386141699 | BW97: =IF(BW96>0.01,BW95/BW96) -> 2.445128041 | BX97: 2.505807688 | BY97: 2.56823893 | BZ97: FALSE | CA97: FALSE | CB97: FALSE | CC97: FALSE | CD97: FALSE | CE97: FALSE | CF97: FALSE | CG97: FALSE | CH97: FALSE | CI97: FALSE | CJ97: FALSE | CK97: FALSE | CL97: FALSE | CM97: FALSE | CN97: FALSE | CO97: FALSE | CP97: FALSE | CQ97: FALSE | CR97: FALSE | CS97: FALSE | CT97: FALSE | CU97: FALSE | CV97: FALSE | CW97: FALSE | CX97: FALSE | CY97: FALSE | CZ97: FALSE | DA97: FALSE | DB97: FALSE | DC97: FALSE | DD97: FALSE | DE97: FALSE | DF97: FALSE | DG97: FALSE | DH97: FALSE | DI97: FALSE | DJ97: FALSE | DK97: FALSE | DL97: FALSE | DM97: FALSE | DN97: FALSE | DO97: FALSE | DP97: FALSE | DQ97: FALSE | DR97: FALSE | DS97: FALSE | DT97: FALSE | DU97: FALSE | DV97: FALSE | DW97: FALSE | DX97: FALSE | DY97: FALSE | DZ97: FALSE | EA97: FALSE | EB97: FALSE | EC97: FALSE | ED97: FALSE | EE97: FALSE | EF97: FALSE | EG97: FALSE | EH97: FALSE | EI97: =IF(EI96>0.01,EI95/EI96) -> FALSE | EJ97: FALSE | EK97: FALSE | EL97: FALSE | EM97: FALSE | EN97: FALSE | EO97: FALSE | EP97: FALSE | EQ97: FALSE | ER97: FALSE | ES97: FALSE | ET97: FALSE | EU97: FALSE | EV97: FALSE | EW97: FALSE | EX97: FALSE | EY97: FALSE | EZ97: FALSE | FA97: FALSE | FB97: FALSE | FC97: FALSE | FD97: FALSE | FE97: FALSE | FF97: FALSE | FG97: FALSE | FH97: FALSE | FI97: FALSE | FJ97: FALSE | FK97: FALSE | FL97: FALSE | FM97: FALSE | FN97: FALSE | FO97: FALSE | FP97: FALSE | FQ97: FALSE | FR97: FALSE | FS97: FALSE | FT97: FALSE | FU97: FALSE | FV97: FALSE | FW97: FALSE | FX97: FALSE | FY97: FALSE | FZ97: FALSE | GA97: FALSE | GB97: FALSE | GC97: FALSE | GD97: FALSE | GE97: FALSE | GF97: FALSE | GG97: FALSE | GH97: FALSE | GI97: FALSE | GJ97: FALSE | GK97: FALSE | GL97: FALSE | GM97: FALSE | GN97: FALSE | GO97: FALSE | GP97: FALSE | GQ97: FALSE | GR97: FALSE | GS97: FALSE | GT97: FALSE | GU97: =IF(GU96>0.01,GU95/GU96) -> FALSE | GV97: FALSE | GW97: FALSE | GX97: FALSE | GY97: FALSE | GZ97: FALSE | HA97: FALSE
B99: LLCR | E99: =E101/(E102-F25) -> 1.76595431
C100: Interest Rate Index | I100: 1 | J100: =I100*(1+J79*J11) -> 1 | K100: =J100*(1+K79*K11) -> 1 | L100: =K100*(1+L79*L11) -> 1 | M100: =L100*(1+M79*M11) -> 1 | N100: =M100*(1+N79*N11) -> 1 | O100: =N100*(1+O79*O11) -> 1 | P100: =O100*(1+P79*P11) -> 1 | Q100: =P100*(1+Q79*Q11) -> 1 | R100: =Q100*(1+R79*R11) -> 1 | S100: =R100*(1+S79*S11) -> 1 | T100: =S100*(1+T79*T11) -> 1 | U100: =T100*(1+U79*U11) -> 1 | V100: =U100*(1+V79*V11) -> 1 | W100: =V100*(1+W79*W11) -> 1 | X100: =W100*(1+X79*X11) -> 1 | Y100: =X100*(1+Y79*Y11) -> 1 | Z100: =Y100*(1+Z79*Z11) -> 1 | AA100: =Z100*(1+AA79*AA11) -> 1 | AB100: =AA100*(1+AB79*AB11) -> 1 | AC100: =AB100*(1+AC79*AC11) -> 1 | AD100: =AC100*(1+AD79*AD11) -> 1 | AE100: =AD100*(1+AE79*AE11) -> 1 | AF100: =AE100*(1+AF79*AF11) -> 1 | AG100: =AF100*(1+AG79*AG11) -> 1 | AH100: =AG100*(1+AH79*AH11) -> 1 | AI100: =AH100*(1+AI79*AI11) -> 1 | AJ100: =AI100*(1+AJ79*AJ11) -> 1 | AK100: =AJ100*(1+AK79*AK11) -> 1 | AL100: =AK100*(1+AL79*AL11) -> 1 | AM100: =AL100*(1+AM79*AM11) -> 1 | AN100: =AM100*(1+AN79*AN11) -> 1 | AO100: =AN100*(1+AO79*AO11) -> 1 | AP100: =AO100*(1+AP79*AP11) -> 1 | AQ100: =AP100*(1+AQ79*AQ11) -> 1 | AR100: =AQ100*(1+AR79*AR11) -> 1 | AS100: =AR100*(1+AS79*AS11) -> 1 | AT100: =AS100*(1+AT79*AT11) -> 1 | AU100: =AT100*(1+AU79*AU11) -> 1 | AV100: =AU100*(1+AV79*AV11) -> 1.02 | AW100: =AV100*(1+AW79*AW11) -> 1.0404 | AX100: =AW100*(1+AX79*AX11) -> 1.061208 | AY100: =AX100*(1+AY79*AY11) -> 1.08243216 | AZ100: =AY100*(1+AZ79*AZ11) -> 1.104080803 | BA100: =AZ100*(1+BA79*BA11) -> 1.126162419 | BB100: =BA100*(1+BB79*BB11) -> 1.148685668 | BC100: =BB100*(1+BC79*BC11) -> 1.171659381 | BD100: =BC100*(1+BD79*BD11) -> 1.195092569 | BE100: =BD100*(1+BE79*BE11) -> 1.21899442 | BF100: =BE100*(1+BF79*BF11) -> 1.243374308 | BG100: =BF100*(1+BG79*BG11) -> 1.268241795 | BH100: =BG100*(1+BH79*BH11) -> 1.29360663 | BI100: =BH100*(1+BI79*BI11) -> 1.319478763 | BJ100: =BI100*(1+BJ79*BJ11) -> 1.345868338 | BK100: =BJ100*(1+BK79*BK11) -> 1.372785705 | BL100: =BK100*(1+BL79*BL11) -> 1.400241419 | BM100: =BL100*(1+BM79*BM11) -> 1.428246248 | BN100: =BM100*(1+BN79*BN11) -> 1.456811173 | BO100: =BN100*(1+BO79*BO11) -> 1.485947396 | BP100: =BO100*(1+BP79*BP11) -> 1.515666344 | BQ100: =BP100*(1+BQ79*BQ11) -> 1.545979671 | BR100: =BQ100*(1+BR79*BR11) -> 1.576899264 | BS100: =BR100*(1+BS79*BS11) -> 1.608437249 | BT100: =BS100*(1+BT79*BT11) -> 1.640605994 | BU100: =BT100*(1+BU79*BU11) -> 1.673418114 | BV100: =BU100*(1+BV79*BV11) -> 1.706886477 | BW100: =BV100*(1+BW79*BW11) -> 1.741024206 | BX100: =BW100*(1+BX79*BX11) -> 1.77584469 | BY100: =BX100*(1+BY79*BY11) -> 1.811361584 | BZ100: =BY100*(1+BZ79*BZ11) -> 1.847588816 | CA100: =BZ100*(1+CA79*CA11) -> 1.884540592 | CB100: =CA100*(1+CB79*CB11) -> 1.922231404 | CC100: =CB100*(1+CC79*CC11) -> 1.960676032 | CD100: =CC100*(1+CD79*CD11) -> 1.999889553 | CE100: =CD100*(1+CE79*CE11) -> 2.039887344 | CF100: =CE100*(1+CF79*CF11) -> 2.080685091 | CG100: =CF100*(1+CG79*CG11) -> 2.122298792 | CH100: =CG100*(1+CH79*CH11) -> 2.164744768 | CI100: =CH100*(1+CI79*CI11) -> 2.208039664 | CJ100: =CI100*(1+CJ79*CJ11) -> 2.208039664 | CK100: =CJ100*(1+CK79*CK11) -> 2.208039664 | CL100: =CK100*(1+CL79*CL11) -> 2.208039664 | CM100: =CL100*(1+CM79*CM11) -> 2.208039664 | CN100: =CM100*(1+CN79*CN11) -> 2.208039664 | CO100: =CN100*(1+CO79*CO11) -> 2.208039664 | CP100: =CO100*(1+CP79*CP11) -> 2.208039664 | CQ100: =CP100*(1+CQ79*CQ11) -> 2.208039664 | CR100: =CQ100*(1+CR79*CR11) -> 2.208039664 | CS100: =CR100*(1+CS79*CS11) -> 2.208039664 | CT100: =CS100*(1+CT79*CT11) -> 2.208039664 | CU100: =CT100*(1+CU79*CU11) -> 2.208039664 | CV100: =CU100*(1+CV79*CV11) -> 2.208039664 | CW100: =CV100*(1+CW79*CW11) -> 2.208039664 | CX100: =CW100*(1+CX79*CX11) -> 2.208039664 | CY100: =CX100*(1+CY79*CY11) -> 2.208039664 | CZ100: =CY100*(1+CZ79*CZ11) -> 2.208039664 | DA100: =CZ100*(1+DA79*DA11) -> 2.208039664 | DB100: =DA100*(1+DB79*DB11) -> 2.208039664 | DC100: =DB100*(1+DC79*DC11) -> 2.208039664 | DD100: =DC100*(1+DD79*DD11) -> 2.208039664 | DE100: =DD100*(1+DE79*DE11) -> 2.208039664 | DF100: =DE100*(1+DF79*DF11) -> 2.208039664 | DG100: =DF100*(1+DG79*DG11) -> 2.208039664 | DH100: =DG100*(1+DH79*DH11) -> 2.208039664 | DI100: =DH100*(1+DI79*DI11) -> 2.208039664 | DJ100: =DI100*(1+DJ79*DJ11) -> 2.208039664 | DK100: =DJ100*(1+DK79*DK11) -> 2.208039664 | DL100: =DK100*(1+DL79*DL11) -> 2.208039664 | DM100: =DL100*(1+DM79*DM11) -> 2.208039664 | DN100: =DM100*(1+DN79*DN11) -> 2.208039664 | DO100: =DN100*(1+DO79*DO11) -> 2.208039664 | DP100: =DO100*(1+DP79*DP11) -> 2.208039664 | DQ100: =DP100*(1+DQ79*DQ11) -> 2.208039664 | DR100: =DQ100*(1+DR79*DR11) -> 2.208039664 | DS100: =DR100*(1+DS79*DS11) -> 2.208039664 | DT100: =DS100*(1+DT79*DT11) -> 2.208039664 | DU100: =DT100*(1+DU79*DU11) -> 2.208039664 | DV100: =DU100*(1+DV79*DV11) -> 2.208039664 | DW100: =DV100*(1+DW79*DW11) -> 2.208039664 | DX100: =DW100*(1+DX79*DX11) -> 2.208039664 | DY100: =DX100*(1+DY79*DY11) -> 2.208039664 | DZ100: =DY100*(1+DZ79*DZ11) -> 2.208039664 | EA100: =DZ100*(1+EA79*EA11) -> 2.208039664 | EB100: =EA100*(1+EB79*EB11) -> 2.208039664 | EC100: =EB100*(1+EC79*EC11) -> 2.208039664 | ED100: =EC100*(1+ED79*ED11) -> 2.208039664 | EE100: =ED100*(1+EE79*EE11) -> 2.208039664 | EF100: =EE100*(1+EF79*EF11) -> 2.208039664 | EG100: =EF100*(1+EG79*EG11) -> 2.208039664 | EH100: =EG100*(1+EH79*EH11) -> 2.208039664 | EI100: =EH100*(1+EI79*EI11) -> 2.208039664 | EJ100: =EI100*(1+EJ79*EJ11) -> 2.208039664 | EK100: =EJ100*(1+EK79*EK11) -> 2.208039664 | EL100: =EK100*(1+EL79*EL11) -> 2.208039664 | EM100: =EL100*(1+EM79*EM11) -> 2.208039664 | EN100: =EM100*(1+EN79*EN11) -> 2.208039664 | EO100: =EN100*(1+EO79*EO11) -> 2.208039664 | EP100: =EO100*(1+EP79*EP11) -> 2.208039664 | EQ100: =EP100*(1+EQ79*EQ11) -> 2.208039664 | ER100: =EQ100*(1+ER79*ER11) -> 2.208039664 | ES100: =ER100*(1+ES79*ES11) -> 2.208039664 | ET100: =ES100*(1+ET79*ET11) -> 2.208039664 | EU100: =ET100*(1+EU79*EU11) -> 2.208039664 | EV100: =EU100*(1+EV79*EV11) -> 2.208039664 | EW100: =EV100*(1+EW79*EW11) -> 2.208039664 | EX100: =EW100*(1+EX79*EX11) -> 2.208039664 | EY100: =EX100*(1+EY79*EY11) -> 2.208039664 | EZ100: =EY100*(1+EZ79*EZ11) -> 2.208039664 | FA100: =EZ100*(1+FA79*FA11) -> 2.208039664 | FB100: =FA100*(1+FB79*FB11) -> 2.208039664 | FC100: =FB100*(1+FC79*FC11) -> 2.208039664 | FD100: =FC100*(1+FD79*FD11) -> 2.208039664 | FE100: =FD100*(1+FE79*FE11) -> 2.208039664 | FF100: =FE100*(1+FF79*FF11) -> 2.208039664 | FG100: =FF100*(1+FG79*FG11) -> 2.208039664 | FH100: =FG100*(1+FH79*FH11) -> 2.208039664 | FI100: =FH100*(1+FI79*FI11) -> 2.208039664 | FJ100: =FI100*(1+FJ79*FJ11) -> 2.208039664 | FK100: =FJ100*(1+FK79*FK11) -> 2.208039664 | FL100: =FK100*(1+FL79*FL11) -> 2.208039664 | FM100: =FL100*(1+FM79*FM11) -> 2.208039664 | FN100: =FM100*(1+FN79*FN11) -> 2.208039664 | FO100: =FN100*(1+FO79*FO11) -> 2.208039664 | FP100: =FO100*(1+FP79*FP11) -> 2.208039664 | FQ100: =FP100*(1+FQ79*FQ11) -> 2.208039664 | FR100: =FQ100*(1+FR79*FR11) -> 2.208039664 | FS100: =FR100*(1+FS79*FS11) -> 2.208039664 | FT100: =FS100*(1+FT79*FT11) -> 2.208039664 | FU100: =FT100*(1+FU79*FU11) -> 2.208039664 | FV100: =FU100*(1+FV79*FV11) -> 2.208039664 | FW100: =FV100*(1+FW79*FW11) -> 2.208039664 | FX100: =FW100*(1+FX79*FX11) -> 2.208039664 | FY100: =FX100*(1+FY79*FY11) -> 2.208039664 | FZ100: =FY100*(1+FZ79*FZ11) -> 2.208039664 | GA100: =FZ100*(1+GA79*GA11) -> 2.208039664 | GB100: =GA100*(1+GB79*GB11) -> 2.208039664 | GC100: =GB100*(1+GC79*GC11) -> 2.208039664 | GD100: =GC100*(1+GD79*GD11) -> 2.208039664 | GE100: =GD100*(1+GE79*GE11) -> 2.208039664 | GF100: =GE100*(1+GF79*GF11) -> 2.208039664 | GG100: =GF100*(1+GG79*GG11) -> 2.208039664 | GH100: =GG100*(1+GH79*GH11) -> 2.208039664 | GI100: =GH100*(1+GI79*GI11) -> 2.208039664 | GJ100: =GI100*(1+GJ79*GJ11) -> 2.208039664 | GK100: =GJ100*(1+GK79*GK11) -> 2.208039664 | GL100: =GK100*(1+GL79*GL11) -> 2.208039664 | GM100: =GL100*(1+GM79*GM11) -> 2.208039664 | GN100: =GM100*(1+GN79*GN11) -> 2.208039664 | GO100: =GN100*(1+GO79*GO11) -> 2.208039664 | GP100: =GO100*(1+GP79*GP11) -> 2.208039664 | GQ100: =GP100*(1+GQ79*GQ11) -> 2.208039664 | GR100: =GQ100*(1+GR79*GR11) -> 2.208039664 | GS100: =GR100*(1+GS79*GS11) -> 2.208039664 | GT100: =GS100*(1+GT79*GT11) -> 2.208039664 | GU100: =GT100*(1+GU79*GU11) -> 2.208039664 | GV100: =GU100*(1+GV79*GV11) -> 2.208039664 | GW100: =GV100*(1+GW79*GW11) -> 2.208039664 | GX100: =GW100*(1+GX79*GX11) -> 2.208039664 | GY100: =GX100*(1+GY79*GY11) -> 2.208039664 | GZ100: =GY100*(1+GZ79*GZ11) -> 2.208039664 | HA100: =GZ100*(1+HA79*HA11) -> 2.208039664
C101: PV of CFADS | E101: =SUMPRODUCT(J95:HA95/J100:HA100) -> 12361.68017
C102: PV of Debt Service | E102: =SUMPRODUCT(J96:HA96/J100:HA100) -> 7000
C103: Debt at COD | E103: =F32+F37 -> 7000
C105: Discount Rate | E105: =HA79 -> 0.02
C106: CFADS | J106: =IF(J11,J95) -> FALSE | K106: =IF(K11,K95) -> FALSE | L106: =IF(L11,L95) -> FALSE | M106: =IF(M11,M95) -> FALSE | N106: =IF(N11,N95) -> FALSE | O106: =IF(O11,O95) -> FALSE | P106: =IF(P11,P95) -> FALSE | Q106: =IF(Q11,Q95) -> FALSE | R106: =IF(R11,R95) -> FALSE | S106: =IF(S11,S95) -> FALSE | T106: =IF(T11,T95) -> FALSE | U106: =IF(U11,U95) -> FALSE | V106: =IF(V11,V95) -> FALSE | W106: =IF(W11,W95) -> FALSE | X106: =IF(X11,X95) -> FALSE | Y106: =IF(Y11,Y95) -> FALSE | Z106: =IF(Z11,Z95) -> FALSE | AA106: =IF(AA11,AA95) -> FALSE | AB106: =IF(AB11,AB95) -> FALSE | AC106: =IF(AC11,AC95) -> FALSE | AD106: =IF(AD11,AD95) -> FALSE | AE106: =IF(AE11,AE95) -> FALSE | AF106: =IF(AF11,AF95) -> FALSE | AG106: =IF(AG11,AG95) -> FALSE | AH106: =IF(AH11,AH95) -> FALSE | AI106: =IF(AI11,AI95) -> FALSE | AJ106: =IF(AJ11,AJ95) -> FALSE | AK106: =IF(AK11,AK95) -> FALSE | AL106: =IF(AL11,AL95) -> FALSE | AM106: =IF(AM11,AM95) -> FALSE | AN106: =IF(AN11,AN95) -> FALSE | AO106: =IF(AO11,AO95) -> FALSE | AP106: =IF(AP11,AP95) -> FALSE | AQ106: =IF(AQ11,AQ95) -> FALSE | AR106: =IF(AR11,AR95) -> FALSE | AS106: =IF(AS11,AS95) -> FALSE | AT106: =IF(AT11,AT95) -> FALSE | AU106: =IF(AU11,AU95) -> FALSE | AV106: =IF(AV11,AV95) -> 451.6256746 | AW106: =IF(AW11,AW95) -> 458.35 | AX106: =IF(AX11,AX95) -> 465.1744449 | AY106: =IF(AY11,AY95) -> 472.1005 | AZ106: =IF(AZ11,AZ95) -> 479.1296782 | BA106: =IF(BA11,BA95) -> 486.263515 | BB106: =IF(BB11,BB95) -> 493.5035686 | BC106: =IF(BC11,BC95) -> 500.8514205 | BD106: =IF(BD11,BD95) -> 508.3086756 | BE106: =IF(BE11,BE95) -> 515.8769631 | BF106: =IF(BF11,BF95) -> 523.5579359 | BG106: =IF(BG11,BG95) -> 531.353272 | BH106: =IF(BH11,BH95) -> 539.264674 | BI106: =IF(BI11,BI95) -> 547.2938701 | BJ106: =IF(BJ11,BJ95) -> 555.4426142 | BK106: =IF(BK11,BK95) -> 563.7126862 | BL106: =IF(BL11,BL95) -> 572.1058926 | BM106: =IF(BM11,BM95) -> 580.6240668 | BN106: =IF(BN11,BN95) -> 589.2690694 | BO106: =IF(BO11,BO95) -> 598.0427888 | BP106: =IF(BP11,BP95) -> 606.9471415 | BQ106: =IF(BQ11,BQ95) -> 615.9840725 | BR106: =IF(BR11,BR95) -> 625.1555557 | BS106: =IF(BS11,BS95) -> 634.4635946 | BT106: =IF(BT11,BT95) -> 643.9102224 | BU106: =IF(BU11,BU95) -> 653.4975025 | BV106: =IF(BV11,BV95) -> 663.2275291 | BW106: =IF(BW11,BW95) -> 673.1024276 | BX106: =IF(BX11,BX95) -> 683.124355 | BY106: =IF(BY11,BY95) -> 693.2955004 | BZ106: =IF(BZ11,BZ95) -> 0 | CA106: =IF(CA11,CA95) -> 0 | CB106: =IF(CB11,CB95) -> 0 | CC106: =IF(CC11,CC95) -> 0 | CD106: =IF(CD11,CD95) -> 0 | CE106: =IF(CE11,CE95) -> 0 | CF106: =IF(CF11,CF95) -> 0 | CG106: =IF(CG11,CG95) -> 0 | CH106: =IF(CH11,CH95) -> 0 | CI106: =IF(CI11,CI95) -> 0 | CJ106: =IF(CJ11,CJ95) -> FALSE | CK106: =IF(CK11,CK95) -> FALSE | CL106: =IF(CL11,CL95) -> FALSE | CM106: =IF(CM11,CM95) -> FALSE | CN106: =IF(CN11,CN95) -> FALSE | CO106: =IF(CO11,CO95) -> FALSE | CP106: =IF(CP11,CP95) -> FALSE | CQ106: =IF(CQ11,CQ95) -> FALSE | CR106: =IF(CR11,CR95) -> FALSE | CS106: =IF(CS11,CS95) -> FALSE | CT106: =IF(CT11,CT95) -> FALSE | CU106: =IF(CU11,CU95) -> FALSE | CV106: =IF(CV11,CV95) -> FALSE | CW106: =IF(CW11,CW95) -> FALSE | CX106: =IF(CX11,CX95) -> FALSE | CY106: =IF(CY11,CY95) -> FALSE | CZ106: =IF(CZ11,CZ95) -> FALSE | DA106: =IF(DA11,DA95) -> FALSE | DB106: =IF(DB11,DB95) -> FALSE | DC106: =IF(DC11,DC95) -> FALSE | DD106: =IF(DD11,DD95) -> FALSE | DE106: =IF(DE11,DE95) -> FALSE | DF106: =IF(DF11,DF95) -> FALSE | DG106: =IF(DG11,DG95) -> FALSE | DH106: =IF(DH11,DH95) -> FALSE | DI106: =IF(DI11,DI95) -> FALSE | DJ106: =IF(DJ11,DJ95) -> FALSE | DK106: =IF(DK11,DK95) -> FALSE | DL106: =IF(DL11,DL95) -> FALSE | DM106: =IF(DM11,DM95) -> FALSE | DN106: =IF(DN11,DN95) -> FALSE | DO106: =IF(DO11,DO95) -> FALSE | DP106: =IF(DP11,DP95) -> FALSE | DQ106: =IF(DQ11,DQ95) -> FALSE | DR106: =IF(DR11,DR95) -> FALSE | DS106: =IF(DS11,DS95) -> FALSE | DT106: =IF(DT11,DT95) -> FALSE | DU106: =IF(DU11,DU95) -> FALSE | DV106: =IF(DV11,DV95) -> FALSE | DW106: =IF(DW11,DW95) -> FALSE | DX106: =IF(DX11,DX95) -> FALSE | DY106: =IF(DY11,DY95) -> FALSE | DZ106: =IF(DZ11,DZ95) -> FALSE | EA106: =IF(EA11,EA95) -> FALSE | EB106: =IF(EB11,EB95) -> FALSE | EC106: =IF(EC11,EC95) -> FALSE | ED106: =IF(ED11,ED95) -> FALSE | EE106: =IF(EE11,EE95) -> FALSE | EF106: =IF(EF11,EF95) -> FALSE | EG106: =IF(EG11,EG95) -> FALSE | EH106: =IF(EH11,EH95) -> FALSE | EI106: =IF(EI11,EI95) -> FALSE | EJ106: =IF(EJ11,EJ95) -> FALSE | EK106: =IF(EK11,EK95) -> FALSE | EL106: =IF(EL11,EL95) -> FALSE | EM106: =IF(EM11,EM95) -> FALSE | EN106: =IF(EN11,EN95) -> FALSE | EO106: =IF(EO11,EO95) -> FALSE | EP106: =IF(EP11,EP95) -> FALSE | EQ106: =IF(EQ11,EQ95) -> FALSE | ER106: =IF(ER11,ER95) -> FALSE | ES106: =IF(ES11,ES95) -> FALSE | ET106: =IF(ET11,ET95) -> FALSE | EU106: =IF(EU11,EU95) -> FALSE | EV106: =IF(EV11,EV95) -> FALSE | EW106: =IF(EW11,EW95) -> FALSE | EX106: =IF(EX11,EX95) -> FALSE | EY106: =IF(EY11,EY95) -> FALSE | EZ106: =IF(EZ11,EZ95) -> FALSE | FA106: =IF(FA11,FA95) -> FALSE | FB106: =IF(FB11,FB95) -> FALSE | FC106: =IF(FC11,FC95) -> FALSE | FD106: =IF(FD11,FD95) -> FALSE | FE106: =IF(FE11,FE95) -> FALSE | FF106: =IF(FF11,FF95) -> FALSE | FG106: =IF(FG11,FG95) -> FALSE | FH106: =IF(FH11,FH95) -> FALSE | FI106: =IF(FI11,FI95) -> FALSE | FJ106: =IF(FJ11,FJ95) -> FALSE | FK106: =IF(FK11,FK95) -> FALSE | FL106: =IF(FL11,FL95) -> FALSE | FM106: =IF(FM11,FM95) -> FALSE | FN106: =IF(FN11,FN95) -> FALSE | FO106: =IF(FO11,FO95) -> FALSE | FP106: =IF(FP11,FP95) -> FALSE | FQ106: =IF(FQ11,FQ95) -> FALSE | FR106: =IF(FR11,FR95) -> FALSE | FS106: =IF(FS11,FS95) -> FALSE | FT106: =IF(FT11,FT95) -> FALSE | FU106: =IF(FU11,FU95) -> FALSE | FV106: =IF(FV11,FV95) -> FALSE | FW106: =IF(FW11,FW95) -> FALSE | FX106: =IF(FX11,FX95) -> FALSE | FY106: =IF(FY11,FY95) -> FALSE | FZ106: =IF(FZ11,FZ95) -> FALSE | GA106: =IF(GA11,GA95) -> FALSE | GB106: =IF(GB11,GB95) -> FALSE | GC106: =IF(GC11,GC95) -> FALSE | GD106: =IF(GD11,GD95) -> FALSE | GE106: =IF(GE11,GE95) -> FALSE | GF106: =IF(GF11,GF95) -> FALSE | GG106: =IF(GG11,GG95) -> FALSE | GH106: =IF(GH11,GH95) -> FALSE | GI106: =IF(GI11,GI95) -> FALSE | GJ106: =IF(GJ11,GJ95) -> FALSE | GK106: =IF(GK11,GK95) -> FALSE | GL106: =IF(GL11,GL95) -> FALSE | GM106: =IF(GM11,GM95) -> FALSE | GN106: =IF(GN11,GN95) -> FALSE | GO106: =IF(GO11,GO95) -> FALSE | GP106: =IF(GP11,GP95) -> FALSE | GQ106: =IF(GQ11,GQ95) -> FALSE | GR106: =IF(GR11,GR95) -> FALSE | GS106: =IF(GS11,GS95) -> FALSE | GT106: =IF(GT11,GT95) -> FALSE | GU106: =IF(GU11,GU95) -> FALSE | GV106: =IF(GV11,GV95) -> FALSE | GW106: =IF(GW11,GW95) -> FALSE | GX106: =IF(GX11,GX95) -> FALSE | GY106: =IF(GY11,GY95) -> FALSE | GZ106: =IF(GZ11,GZ95) -> FALSE | HA106: =IF(HA11,HA95) -> FALSE
C107: Debt Service | J107: =IF(J11,J96) -> FALSE | K107: =IF(K11,K96) -> FALSE | L107: =IF(L11,L96) -> FALSE | M107: =IF(M11,M96) -> FALSE | N107: =IF(N11,N96) -> FALSE | O107: =IF(O11,O96) -> FALSE | P107: =IF(P11,P96) -> FALSE | Q107: =IF(Q11,Q96) -> FALSE | R107: =IF(R11,R96) -> FALSE | S107: =IF(S11,S96) -> FALSE | T107: =IF(T11,T96) -> FALSE | U107: =IF(U11,U96) -> FALSE | V107: =IF(V11,V96) -> FALSE | W107: =IF(W11,W96) -> FALSE | X107: =IF(X11,X96) -> FALSE | Y107: =IF(Y11,Y96) -> FALSE | Z107: =IF(Z11,Z96) -> FALSE | AA107: =IF(AA11,AA96) -> FALSE | AB107: =IF(AB11,AB96) -> FALSE | AC107: =IF(AC11,AC96) -> FALSE | AD107: =IF(AD11,AD96) -> FALSE | AE107: =IF(AE11,AE96) -> FALSE | AF107: =IF(AF11,AF96) -> FALSE | AG107: =IF(AG11,AG96) -> FALSE | AH107: =IF(AH11,AH96) -> FALSE | AI107: =IF(AI11,AI96) -> FALSE | AJ107: =IF(AJ11,AJ96) -> FALSE | AK107: =IF(AK11,AK96) -> FALSE | AL107: =IF(AL11,AL96) -> FALSE | AM107: =IF(AM11,AM96) -> FALSE | AN107: =IF(AN11,AN96) -> FALSE | AO107: =IF(AO11,AO96) -> FALSE | AP107: =IF(AP11,AP96) -> FALSE | AQ107: =IF(AQ11,AQ96) -> FALSE | AR107: =IF(AR11,AR96) -> FALSE | AS107: =IF(AS11,AS96) -> FALSE | AT107: =IF(AT11,AT96) -> FALSE | AU107: =IF(AU11,AU96) -> FALSE | AV107: =IF(AV11,AV96) -> 347.2831002 | AW107: =IF(AW11,AW96) -> 344.6164335 | AX107: =IF(AX11,AX96) -> 341.9497669 | AY107: =IF(AY11,AY96) -> 339.2831002 | AZ107: =IF(AZ11,AZ96) -> 336.6164335 | BA107: =IF(BA11,BA96) -> 333.9497669 | BB107: =IF(BB11,BB96) -> 331.2831002 | BC107: =IF(BC11,BC96) -> 328.6164335 | BD107: =IF(BD11,BD96) -> 325.9497669 | BE107: =IF(BE11,BE96) -> 323.2831002 | BF107: =IF(BF11,BF96) -> 320.6164335 | BG107: =IF(BG11,BG96) -> 317.9497669 | BH107: =IF(BH11,BH96) -> 315.2831002 | BI107: =IF(BI11,BI96) -> 312.6164335 | BJ107: =IF(BJ11,BJ96) -> 309.9497669 | BK107: =IF(BK11,BK96) -> 307.2831002 | BL107: =IF(BL11,BL96) -> 304.6164335 | BM107: =IF(BM11,BM96) -> 301.9497669 | BN107: =IF(BN11,BN96) -> 299.2831002 | BO107: =IF(BO11,BO96) -> 296.6164335 | BP107: =IF(BP11,BP96) -> 293.9497669 | BQ107: =IF(BQ11,BQ96) -> 291.2831002 | BR107: =IF(BR11,BR96) -> 288.6164335 | BS107: =IF(BS11,BS96) -> 285.9497669 | BT107: =IF(BT11,BT96) -> 283.2831002 | BU107: =IF(BU11,BU96) -> 280.6164335 | BV107: =IF(BV11,BV96) -> 277.9497669 | BW107: =IF(BW11,BW96) -> 275.2831002 | BX107: =IF(BX11,BX96) -> 272.6164335 | BY107: =IF(BY11,BY96) -> 269.9497669 | BZ107: =IF(BZ11,BZ96) -> 4.706066647e-12 | CA107: =IF(CA11,CA96) -> 9.663381206e-15 | CB107: =IF(CB11,CB96) -> 9.663381206e-15 | CC107: =IF(CC11,CC96) -> 9.663381206e-15 | CD107: =IF(CD11,CD96) -> 9.663381206e-15 | CE107: =IF(CE11,CE96) -> 9.663381206e-15 | CF107: =IF(CF11,CF96) -> 9.663381206e-15 | CG107: =IF(CG11,CG96) -> 9.663381206e-15 | CH107: =IF(CH11,CH96) -> 9.663381206e-15 | CI107: =IF(CI11,CI96) -> 9.663381206e-15 | CJ107: =IF(CJ11,CJ96) -> FALSE | CK107: =IF(CK11,CK96) -> FALSE | CL107: =IF(CL11,CL96) -> FALSE | CM107: =IF(CM11,CM96) -> FALSE | CN107: =IF(CN11,CN96) -> FALSE | CO107: =IF(CO11,CO96) -> FALSE | CP107: =IF(CP11,CP96) -> FALSE | CQ107: =IF(CQ11,CQ96) -> FALSE | CR107: =IF(CR11,CR96) -> FALSE | CS107: =IF(CS11,CS96) -> FALSE | CT107: =IF(CT11,CT96) -> FALSE | CU107: =IF(CU11,CU96) -> FALSE | CV107: =IF(CV11,CV96) -> FALSE | CW107: =IF(CW11,CW96) -> FALSE | CX107: =IF(CX11,CX96) -> FALSE | CY107: =IF(CY11,CY96) -> FALSE | CZ107: =IF(CZ11,CZ96) -> FALSE | DA107: =IF(DA11,DA96) -> FALSE | DB107: =IF(DB11,DB96) -> FALSE | DC107: =IF(DC11,DC96) -> FALSE | DD107: =IF(DD11,DD96) -> FALSE | DE107: =IF(DE11,DE96) -> FALSE | DF107: =IF(DF11,DF96) -> FALSE | DG107: =IF(DG11,DG96) -> FALSE | DH107: =IF(DH11,DH96) -> FALSE | DI107: =IF(DI11,DI96) -> FALSE | DJ107: =IF(DJ11,DJ96) -> FALSE | DK107: =IF(DK11,DK96) -> FALSE | DL107: =IF(DL11,DL96) -> FALSE | DM107: =IF(DM11,DM96) -> FALSE | DN107: =IF(DN11,DN96) -> FALSE | DO107: =IF(DO11,DO96) -> FALSE | DP107: =IF(DP11,DP96) -> FALSE | DQ107: =IF(DQ11,DQ96) -> FALSE | DR107: =IF(DR11,DR96) -> FALSE | DS107: =IF(DS11,DS96) -> FALSE | DT107: =IF(DT11,DT96) -> FALSE | DU107: =IF(DU11,DU96) -> FALSE | DV107: =IF(DV11,DV96) -> FALSE | DW107: =IF(DW11,DW96) -> FALSE | DX107: =IF(DX11,DX96) -> FALSE | DY107: =IF(DY11,DY96) -> FALSE | DZ107: =IF(DZ11,DZ96) -> FALSE | EA107: =IF(EA11,EA96) -> FALSE | EB107: =IF(EB11,EB96) -> FALSE | EC107: =IF(EC11,EC96) -> FALSE | ED107: =IF(ED11,ED96) -> FALSE | EE107: =IF(EE11,EE96) -> FALSE | EF107: =IF(EF11,EF96) -> FALSE | EG107: =IF(EG11,EG96) -> FALSE | EH107: =IF(EH11,EH96) -> FALSE | EI107: =IF(EI11,EI96) -> FALSE | EJ107: =IF(EJ11,EJ96) -> FALSE | EK107: =IF(EK11,EK96) -> FALSE | EL107: =IF(EL11,EL96) -> FALSE | EM107: =IF(EM11,EM96) -> FALSE | EN107: =IF(EN11,EN96) -> FALSE | EO107: =IF(EO11,EO96) -> FALSE | EP107: =IF(EP11,EP96) -> FALSE | EQ107: =IF(EQ11,EQ96) -> FALSE | ER107: =IF(ER11,ER96) -> FALSE | ES107: =IF(ES11,ES96) -> FALSE | ET107: =IF(ET11,ET96) -> FALSE | EU107: =IF(EU11,EU96) -> FALSE | EV107: =IF(EV11,EV96) -> FALSE | EW107: =IF(EW11,EW96) -> FALSE | EX107: =IF(EX11,EX96) -> FALSE | EY107: =IF(EY11,EY96) -> FALSE | EZ107: =IF(EZ11,EZ96) -> FALSE | FA107: =IF(FA11,FA96) -> FALSE | FB107: =IF(FB11,FB96) -> FALSE | FC107: =IF(FC11,FC96) -> FALSE | FD107: =IF(FD11,FD96) -> FALSE | FE107: =IF(FE11,FE96) -> FALSE | FF107: =IF(FF11,FF96) -> FALSE | FG107: =IF(FG11,FG96) -> FALSE | FH107: =IF(FH11,FH96) -> FALSE | FI107: =IF(FI11,FI96) -> FALSE | FJ107: =IF(FJ11,FJ96) -> FALSE | FK107: =IF(FK11,FK96) -> FALSE | FL107: =IF(FL11,FL96) -> FALSE | FM107: =IF(FM11,FM96) -> FALSE | FN107: =IF(FN11,FN96) -> FALSE | FO107: =IF(FO11,FO96) -> FALSE | FP107: =IF(FP11,FP96) -> FALSE | FQ107: =IF(FQ11,FQ96) -> FALSE | FR107: =IF(FR11,FR96) -> FALSE | FS107: =IF(FS11,FS96) -> FALSE | FT107: =IF(FT11,FT96) -> FALSE | FU107: =IF(FU11,FU96) -> FALSE | FV107: =IF(FV11,FV96) -> FALSE | FW107: =IF(FW11,FW96) -> FALSE | FX107: =IF(FX11,FX96) -> FALSE | FY107: =IF(FY11,FY96) -> FALSE | FZ107: =IF(FZ11,FZ96) -> FALSE | GA107: =IF(GA11,GA96) -> FALSE | GB107: =IF(GB11,GB96) -> FALSE | GC107: =IF(GC11,GC96) -> FALSE | GD107: =IF(GD11,GD96) -> FALSE | GE107: =IF(GE11,GE96) -> FALSE | GF107: =IF(GF11,GF96) -> FALSE | GG107: =IF(GG11,GG96) -> FALSE | GH107: =IF(GH11,GH96) -> FALSE | GI107: =IF(GI11,GI96) -> FALSE | GJ107: =IF(GJ11,GJ96) -> FALSE | GK107: =IF(GK11,GK96) -> FALSE | GL107: =IF(GL11,GL96) -> FALSE | GM107: =IF(GM11,GM96) -> FALSE | GN107: =IF(GN11,GN96) -> FALSE | GO107: =IF(GO11,GO96) -> FALSE | GP107: =IF(GP11,GP96) -> FALSE | GQ107: =IF(GQ11,GQ96) -> FALSE | GR107: =IF(GR11,GR96) -> FALSE | GS107: =IF(GS11,GS96) -> FALSE | GT107: =IF(GT11,GT96) -> FALSE | GU107: =IF(GU11,GU96) -> FALSE | GV107: =IF(GV11,GV96) -> FALSE | GW107: =IF(GW11,GW96) -> FALSE | GX107: =IF(GX11,GX96) -> FALSE | GY107: =IF(GY11,GY96) -> FALSE | GZ107: =IF(GZ11,GZ96) -> FALSE | HA107: =IF(HA11,HA96) -> FALSE
C108: NPV | E108: =NPV(E105,106:106) -> 12361.68017
C109: NPV of Debt Service | E109: =NPV(E105,J107:HA107) -> 7000
J110: =IF(J11,J14,$F$19-1) -> 2019-02-28 | K110: =IF(K11,K14,$F$19-1) -> 2019-02-28 | L110: =IF(L11,L14,$F$19-1) -> 2019-02-28 | M110: =IF(M11,M14,$F$19-1) -> 2019-02-28 | N110: =IF(N11,N14,$F$19-1) -> 2019-02-28 | O110: =IF(O11,O14,$F$19-1) -> 2019-02-28 | P110: =IF(P11,P14,$F$19-1) -> 2019-02-28 | Q110: =IF(Q11,Q14,$F$19-1) -> 2019-02-28 | R110: =IF(R11,R14,$F$19-1) -> 2019-02-28 | S110: =IF(S11,S14,$F$19-1) -> 2019-02-28 | T110: =IF(T11,T14,$F$19-1) -> 2019-02-28 | U110: =IF(U11,U14,$F$19-1) -> 2019-02-28 | V110: =IF(V11,V14,$F$19-1) -> 2019-02-28 | W110: =IF(W11,W14,$F$19-1) -> 2019-02-28 | X110: =IF(X11,X14,$F$19-1) -> 2019-02-28 | Y110: =IF(Y11,Y14,$F$19-1) -> 2019-02-28 | Z110: =IF(Z11,Z14,$F$19-1) -> 2019-02-28 | AA110: =IF(AA11,AA14,$F$19-1) -> 2019-02-28 | AB110: =IF(AB11,AB14,$F$19-1) -> 2019-02-28 | AC110: =IF(AC11,AC14,$F$19-1) -> 2019-02-28 | AD110: =IF(AD11,AD14,$F$19-1) -> 2019-02-28 | AE110: =IF(AE11,AE14,$F$19-1) -> 2019-02-28 | AF110: =IF(AF11,AF14,$F$19-1) -> 2019-02-28 | AG110: =IF(AG11,AG14,$F$19-1) -> 2019-02-28 | AH110: =IF(AH11,AH14,$F$19-1) -> 2019-02-28 | AI110: =IF(AI11,AI14,$F$19-1) -> 2019-02-28 | AJ110: =IF(AJ11,AJ14,$F$19-1) -> 2019-02-28 | AK110: =IF(AK11,AK14,$F$19-1) -> 2019-02-28 | AL110: =IF(AL11,AL14,$F$19-1) -> 2019-02-28 | AM110: =IF(AM11,AM14,$F$19-1) -> 2019-02-28 | AN110: =IF(AN11,AN14,$F$19-1) -> 2019-02-28 | AO110: =IF(AO11,AO14,$F$19-1) -> 2019-02-28 | AP110: =IF(AP11,AP14,$F$19-1) -> 2019-02-28 | AQ110: =IF(AQ11,AQ14,$F$19-1) -> 2019-02-28 | AR110: =IF(AR11,AR14,$F$19-1) -> 2019-02-28 | AS110: =IF(AS11,AS14,$F$19-1) -> 2019-02-28 | AT110: =IF(AT11,AT14,$F$19-1) -> 2019-02-28 | AU110: =IF(AU11,AU14,$F$19-1) -> 2019-02-28 | AV110: =IF(AV11,AV14,$F$19-1) -> 2019-08-31 | AW110: =IF(AW11,AW14,$F$19-1) -> 2020-02-29 | AX110: =IF(AX11,AX14,$F$19-1) -> 2020-08-31 | AY110: =IF(AY11,AY14,$F$19-1) -> 2021-02-28 | AZ110: =IF(AZ11,AZ14,$F$19-1) -> 2021-08-31 | BA110: =IF(BA11,BA14,$F$19-1) -> 2022-02-28 | BB110: =IF(BB11,BB14,$F$19-1) -> 2022-08-31 | BC110: =IF(BC11,BC14,$F$19-1) -> 2023-02-28 | BD110: =IF(BD11,BD14,$F$19-1) -> 2023-08-31 | BE110: =IF(BE11,BE14,$F$19-1) -> 2024-02-29 | BF110: =IF(BF11,BF14,$F$19-1) -> 2024-08-31 | BG110: =IF(BG11,BG14,$F$19-1) -> 2025-02-28 | BH110: =IF(BH11,BH14,$F$19-1) -> 2025-08-31 | BI110: =IF(BI11,BI14,$F$19-1) -> 2026-02-28 | BJ110: =IF(BJ11,BJ14,$F$19-1) -> 2026-08-31 | BK110: =IF(BK11,BK14,$F$19-1) -> 2027-02-28 | BL110: =IF(BL11,BL14,$F$19-1) -> 2027-08-31 | BM110: =IF(BM11,BM14,$F$19-1) -> 2028-02-29 | BN110: =IF(BN11,BN14,$F$19-1) -> 2028-08-31 | BO110: =IF(BO11,BO14,$F$19-1) -> 2029-02-28 | BP110: =IF(BP11,BP14,$F$19-1) -> 2029-08-31 | BQ110: =IF(BQ11,BQ14,$F$19-1) -> 2030-02-28 | BR110: =IF(BR11,BR14,$F$19-1) -> 2030-08-31 | BS110: =IF(BS11,BS14,$F$19-1) -> 2031-02-28 | BT110: =IF(BT11,BT14,$F$19-1) -> 2031-08-31 | BU110: =IF(BU11,BU14,$F$19-1) -> 2032-02-29 | BV110: =IF(BV11,BV14,$F$19-1) -> 2032-08-31 | BW110: =IF(BW11,BW14,$F$19-1) -> 2033-02-28 | BX110: =IF(BX11,BX14,$F$19-1) -> 2033-08-31 | BY110: =IF(BY11,BY14,$F$19-1) -> 2034-02-28 | BZ110: =IF(BZ11,BZ14,$F$19-1) -> 2034-08-31 | CA110: =IF(CA11,CA14,$F$19-1) -> 2035-02-28 | CB110: =IF(CB11,CB14,$F$19-1) -> 2035-08-31 | CC110: =IF(CC11,CC14,$F$19-1) -> 2036-02-29 | CD110: =IF(CD11,CD14,$F$19-1) -> 2036-08-31 | CE110: =IF(CE11,CE14,$F$19-1) -> 2037-02-28 | CF110: =IF(CF11,CF14,$F$19-1) -> 2037-08-31 | CG110: =IF(CG11,CG14,$F$19-1) -> 2038-02-28 | CH110: =IF(CH11,CH14,$F$19-1) -> 2038-08-31 | CI110: =IF(CI11,CI14,$F$19-1) -> 2039-02-28 | CJ110: =IF(CJ11,CJ14,$F$19-1) -> 2019-02-28 | CK110: =IF(CK11,CK14,$F$19-1) -> 2019-02-28 | CL110: =IF(CL11,CL14,$F$19-1) -> 2019-02-28 | CM110: =IF(CM11,CM14,$F$19-1) -> 2019-02-28 | CN110: =IF(CN11,CN14,$F$19-1) -> 2019-02-28 | CO110: =IF(CO11,CO14,$F$19-1) -> 2019-02-28 | CP110: =IF(CP11,CP14,$F$19-1) -> 2019-02-28 | CQ110: =IF(CQ11,CQ14,$F$19-1) -> 2019-02-28 | CR110: =IF(CR11,CR14,$F$19-1) -> 2019-02-28 | CS110: =IF(CS11,CS14,$F$19-1) -> 2019-02-28 | CT110: =IF(CT11,CT14,$F$19-1) -> 2019-02-28 | CU110: =IF(CU11,CU14,$F$19-1) -> 2019-02-28 | CV110: =IF(CV11,CV14,$F$19-1) -> 2019-02-28 | CW110: =IF(CW11,CW14,$F$19-1) -> 2019-02-28 | CX110: =IF(CX11,CX14,$F$19-1) -> 2019-02-28 | CY110: =IF(CY11,CY14,$F$19-1) -> 2019-02-28 | CZ110: =IF(CZ11,CZ14,$F$19-1) -> 2019-02-28 | DA110: =IF(DA11,DA14,$F$19-1) -> 2019-02-28 | DB110: =IF(DB11,DB14,$F$19-1) -> 2019-02-28 | DC110: =IF(DC11,DC14,$F$19-1) -> 2019-02-28 | DD110: =IF(DD11,DD14,$F$19-1) -> 2019-02-28 | DE110: =IF(DE11,DE14,$F$19-1) -> 2019-02-28 | DF110: =IF(DF11,DF14,$F$19-1) -> 2019-02-28 | DG110: =IF(DG11,DG14,$F$19-1) -> 2019-02-28 | DH110: =IF(DH11,DH14,$F$19-1) -> 2019-02-28 | DI110: =IF(DI11,DI14,$F$19-1) -> 2019-02-28 | DJ110: =IF(DJ11,DJ14,$F$19-1) -> 2019-02-28 | DK110: =IF(DK11,DK14,$F$19-1) -> 2019-02-28 | DL110: =IF(DL11,DL14,$F$19-1) -> 2019-02-28 | DM110: =IF(DM11,DM14,$F$19-1) -> 2019-02-28 | DN110: =IF(DN11,DN14,$F$19-1) -> 2019-02-28 | DO110: =IF(DO11,DO14,$F$19-1) -> 2019-02-28 | DP110: =IF(DP11,DP14,$F$19-1) -> 2019-02-28 | DQ110: =IF(DQ11,DQ14,$F$19-1) -> 2019-02-28 | DR110: =IF(DR11,DR14,$F$19-1) -> 2019-02-28 | DS110: =IF(DS11,DS14,$F$19-1) -> 2019-02-28 | DT110: =IF(DT11,DT14,$F$19-1) -> 2019-02-28 | DU110: =IF(DU11,DU14,$F$19-1) -> 2019-02-28 | DV110: =IF(DV11,DV14,$F$19-1) -> 2019-02-28 | DW110: =IF(DW11,DW14,$F$19-1) -> 2019-02-28 | DX110: =IF(DX11,DX14,$F$19-1) -> 2019-02-28 | DY110: =IF(DY11,DY14,$F$19-1) -> 2019-02-28 | DZ110: =IF(DZ11,DZ14,$F$19-1) -> 2019-02-28 | EA110: =IF(EA11,EA14,$F$19-1) -> 2019-02-28 | EB110: =IF(EB11,EB14,$F$19-1) -> 2019-02-28 | EC110: =IF(EC11,EC14,$F$19-1) -> 2019-02-28 | ED110: =IF(ED11,ED14,$F$19-1) -> 2019-02-28 | EE110: =IF(EE11,EE14,$F$19-1) -> 2019-02-28 | EF110: =IF(EF11,EF14,$F$19-1) -> 2019-02-28 | EG110: =IF(EG11,EG14,$F$19-1) -> 2019-02-28 | EH110: =IF(EH11,EH14,$F$19-1) -> 2019-02-28 | EI110: =IF(EI11,EI14,$F$19-1) -> 2019-02-28 | EJ110: =IF(EJ11,EJ14,$F$19-1) -> 2019-02-28 | EK110: =IF(EK11,EK14,$F$19-1) -> 2019-02-28 | EL110: =IF(EL11,EL14,$F$19-1) -> 2019-02-28 | EM110: =IF(EM11,EM14,$F$19-1) -> 2019-02-28 | EN110: =IF(EN11,EN14,$F$19-1) -> 2019-02-28 | EO110: =IF(EO11,EO14,$F$19-1) -> 2019-02-28 | EP110: =IF(EP11,EP14,$F$19-1) -> 2019-02-28 | EQ110: =IF(EQ11,EQ14,$F$19-1) -> 2019-02-28 | ER110: =IF(ER11,ER14,$F$19-1) -> 2019-02-28 | ES110: =IF(ES11,ES14,$F$19-1) -> 2019-02-28 | ET110: =IF(ET11,ET14,$F$19-1) -> 2019-02-28 | EU110: =IF(EU11,EU14,$F$19-1) -> 2019-02-28 | EV110: =IF(EV11,EV14,$F$19-1) -> 2019-02-28 | EW110: =IF(EW11,EW14,$F$19-1) -> 2019-02-28 | EX110: =IF(EX11,EX14,$F$19-1) -> 2019-02-28 | EY110: =IF(EY11,EY14,$F$19-1) -> 2019-02-28 | EZ110: =IF(EZ11,EZ14,$F$19-1) -> 2019-02-28 | FA110: =IF(FA11,FA14,$F$19-1) -> 2019-02-28 | FB110: =IF(FB11,FB14,$F$19-1) -> 2019-02-28 | FC110: =IF(FC11,FC14,$F$19-1) -> 2019-02-28 | FD110: =IF(FD11,FD14,$F$19-1) -> 2019-02-28 | FE110: =IF(FE11,FE14,$F$19-1) -> 2019-02-28 | FF110: =IF(FF11,FF14,$F$19-1) -> 2019-02-28 | FG110: =IF(FG11,FG14,$F$19-1) -> 2019-02-28 | FH110: =IF(FH11,FH14,$F$19-1) -> 2019-02-28 | FI110: =IF(FI11,FI14,$F$19-1) -> 2019-02-28 | FJ110: =IF(FJ11,FJ14,$F$19-1) -> 2019-02-28 | FK110: =IF(FK11,FK14,$F$19-1) -> 2019-02-28 | FL110: =IF(FL11,FL14,$F$19-1) -> 2019-02-28 | FM110: =IF(FM11,FM14,$F$19-1) -> 2019-02-28 | FN110: =IF(FN11,FN14,$F$19-1) -> 2019-02-28 | FO110: =IF(FO11,FO14,$F$19-1) -> 2019-02-28 | FP110: =IF(FP11,FP14,$F$19-1) -> 2019-02-28 | FQ110: =IF(FQ11,FQ14,$F$19-1) -> 2019-02-28 | FR110: =IF(FR11,FR14,$F$19-1) -> 2019-02-28 | FS110: =IF(FS11,FS14,$F$19-1) -> 2019-02-28 | FT110: =IF(FT11,FT14,$F$19-1) -> 2019-02-28 | FU110: =IF(FU11,FU14,$F$19-1) -> 2019-02-28 | FV110: =IF(FV11,FV14,$F$19-1) -> 2019-02-28 | FW110: =IF(FW11,FW14,$F$19-1) -> 2019-02-28 | FX110: =IF(FX11,FX14,$F$19-1) -> 2019-02-28 | FY110: =IF(FY11,FY14,$F$19-1) -> 2019-02-28 | FZ110: =IF(FZ11,FZ14,$F$19-1) -> 2019-02-28 | GA110: =IF(GA11,GA14,$F$19-1) -> 2019-02-28 | GB110: =IF(GB11,GB14,$F$19-1) -> 2019-02-28 | GC110: =IF(GC11,GC14,$F$19-1) -> 2019-02-28 | GD110: =IF(GD11,GD14,$F$19-1) -> 2019-02-28 | GE110: =IF(GE11,GE14,$F$19-1) -> 2019-02-28 | GF110: =IF(GF11,GF14,$F$19-1) -> 2019-02-28 | GG110: =IF(GG11,GG14,$F$19-1) -> 2019-02-28 | GH110: =IF(GH11,GH14,$F$19-1) -> 2019-02-28 | GI110: =IF(GI11,GI14,$F$19-1) -> 2019-02-28 | GJ110: =IF(GJ11,GJ14,$F$19-1) -> 2019-02-28 | GK110: =IF(GK11,GK14,$F$19-1) -> 2019-02-28 | GL110: =IF(GL11,GL14,$F$19-1) -> 2019-02-28 | GM110: =IF(GM11,GM14,$F$19-1) -> 2019-02-28 | GN110: =IF(GN11,GN14,$F$19-1) -> 2019-02-28 | GO110: =IF(GO11,GO14,$F$19-1) -> 2019-02-28 | GP110: =IF(GP11,GP14,$F$19-1) -> 2019-02-28 | GQ110: =IF(GQ11,GQ14,$F$19-1) -> 2019-02-28 | GR110: =IF(GR11,GR14,$F$19-1) -> 2019-02-28 | GS110: =IF(GS11,GS14,$F$19-1) -> 2019-02-28 | GT110: =IF(GT11,GT14,$F$19-1) -> 2019-02-28 | GU110: =IF(GU11,GU14,$F$19-1) -> 2019-02-28 | GV110: =IF(GV11,GV14,$F$19-1) -> 2019-02-28 | GW110: =IF(GW11,GW14,$F$19-1) -> 2019-02-28 | GX110: =IF(GX11,GX14,$F$19-1) -> 2019-02-28 | GY110: =IF(GY11,GY14,$F$19-1) -> 2019-02-28 | GZ110: =IF(GZ11,GZ14,$F$19-1) -> 2019-02-28 | HA110: =IF(HA11,HA14,$F$19-1) -> 2019-02-28
C111: Discount Rate | E111: =(1+E105)^2-1 -> 0.0404
C112: XNPV | E112: =XNPV(E111,J95:HA95,J110:HA110) -> 12357.69532
A114: Going Forward LLCR
C115: Discount Rate | J115: =J79 -> 0.003333333333 | K115: =K79 -> 0.003333333333 | L115: 0.003333333333 | M115: 0.003333333333 | N115: 0.003333333333 | O115: 0.003333333333 | P115: 0.003333333333 | Q115: 0.003333333333 | R115: 0.003333333333 | S115: 0.003333333333 | T115: 0.003333333333 | U115: 0.003333333333 | V115: 0.003333333333 | W115: 0.003333333333 | X115: 0.003333333333 | Y115: 0.003333333333 | Z115: 0.003333333333 | AA115: 0.003333333333 | AB115: 0.003333333333 | AC115: 0.003333333333 | AD115: 0.003333333333 | AE115: 0.003333333333 | AF115: 0.003333333333 | AG115: 0.003333333333 | AH115: 0.003333333333 | AI115: 0.003333333333 | AJ115: 0.003333333333 | AK115: 0.003333333333 | AL115: 0.003333333333 | AM115: 0.003333333333 | AN115: 0.003333333333 | AO115: 0.003333333333 | AP115: 0.003333333333 | AQ115: 0.003333333333 | AR115: 0.003333333333 | AS115: 0.003333333333 | AT115: 0.003333333333 | AU115: 0.003333333333 | AV115: 0.02 | AW115: 0.02 | AX115: 0.02 | AY115: 0.02 | AZ115: 0.02 | BA115: 0.02 | BB115: 0.02 | BC115: 0.02 | BD115: 0.02 | BE115: 0.02 | BF115: 0.02 | BG115: 0.02 | BH115: 0.02 | BI115: 0.02 | BJ115: 0.02 | BK115: 0.02 | BL115: 0.02 | BM115: 0.02 | BN115: 0.02 | BO115: 0.02 | BP115: 0.02 | BQ115: 0.02 | BR115: 0.02 | BS115: 0.02 | BT115: 0.02 | BU115: 0.02 | BV115: 0.02 | BW115: =BW79 -> 0.02 | BX115: 0.02 | BY115: 0.02 | BZ115: 0.02 | CA115: 0.02 | CB115: 0.02 | CC115: 0.02 | CD115: 0.02 | CE115: 0.02 | CF115: 0.02 | CG115: 0.02 | CH115: 0.02 | CI115: 0.02 | CJ115: 0.02 | CK115: 0.02 | CL115: 0.02 | CM115: 0.02 | CN115: 0.02 | CO115: 0.02 | CP115: 0.02 | CQ115: 0.02 | CR115: 0.02 | CS115: 0.02 | CT115: 0.02 | CU115: 0.02 | CV115: 0.02 | CW115: 0.02 | CX115: 0.02 | CY115: 0.02 | CZ115: 0.02 | DA115: 0.02 | DB115: 0.02 | DC115: 0.02 | DD115: 0.02 | DE115: 0.02 | DF115: 0.02 | DG115: 0.02 | DH115: 0.02 | DI115: 0.02 | DJ115: 0.02 | DK115: 0.02 | DL115: 0.02 | DM115: 0.02 | DN115: 0.02 | DO115: 0.02 | DP115: 0.02 | DQ115: 0.02 | DR115: 0.02 | DS115: 0.02 | DT115: 0.02 | DU115: 0.02 | DV115: 0.02 | DW115: 0.02 | DX115: 0.02 | DY115: 0.02 | DZ115: 0.02 | EA115: 0.02 | EB115: 0.02 | EC115: 0.02 | ED115: 0.02 | EE115: 0.02 | EF115: 0.02 | EG115: 0.02 | EH115: 0.02 | EI115: =EI79 -> 0.02 | EJ115: 0.02 | EK115: 0.02 | EL115: 0.02 | EM115: 0.02 | EN115: 0.02 | EO115: 0.02 | EP115: 0.02 | EQ115: 0.02 | ER115: 0.02 | ES115: 0.02 | ET115: 0.02 | EU115: 0.02 | EV115: 0.02 | EW115: 0.02 | EX115: 0.02 | EY115: 0.02 | EZ115: 0.02 | FA115: 0.02 | FB115: 0.02 | FC115: 0.02 | FD115: 0.02 | FE115: 0.02 | FF115: 0.02 | FG115: 0.02 | FH115: 0.02 | FI115: 0.02 | FJ115: 0.02 | FK115: 0.02 | FL115: 0.02 | FM115: 0.02 | FN115: 0.02 | FO115: 0.02 | FP115: 0.02 | FQ115: 0.02 | FR115: 0.02 | FS115: 0.02 | FT115: 0.02 | FU115: 0.02 | FV115: 0.02 | FW115: 0.02 | FX115: 0.02 | FY115: 0.02 | FZ115: 0.02 | GA115: 0.02 | GB115: 0.02 | GC115: 0.02 | GD115: 0.02 | GE115: 0.02 | GF115: 0.02 | GG115: 0.02 | GH115: 0.02 | GI115: 0.02 | GJ115: 0.02 | GK115: 0.02 | GL115: 0.02 | GM115: 0.02 | GN115: 0.02 | GO115: 0.02 | GP115: 0.02 | GQ115: 0.02 | GR115: 0.02 | GS115: 0.02 | GT115: 0.02 | GU115: =GU79 -> 0.02 | GV115: 0.02 | GW115: 0.02 | GX115: 0.02 | GY115: 0.02 | GZ115: 0.02 | HA115: 0.02
C116: PV of CFADS Forward | J116: =IF(J11,NPV(J115,J106:HA106)) -> FALSE | K116: =IF(K11,NPV(K115,K106:HB106)) -> FALSE | L116: =IF(L11,NPV(L115,L106:HC106)) -> FALSE | M116: =IF(M11,NPV(M115,M106:HD106)) -> FALSE | N116: =IF(N11,NPV(N115,N106:HE106)) -> FALSE | O116: =IF(O11,NPV(O115,O106:HF106)) -> FALSE | P116: =IF(P11,NPV(P115,P106:HG106)) -> FALSE | Q116: =IF(Q11,NPV(Q115,Q106:HH106)) -> FALSE | R116: =IF(R11,NPV(R115,R106:HI106)) -> FALSE | S116: =IF(S11,NPV(S115,S106:HJ106)) -> FALSE | T116: =IF(T11,NPV(T115,T106:HK106)) -> FALSE | U116: =IF(U11,NPV(U115,U106:HL106)) -> FALSE | V116: =IF(V11,NPV(V115,V106:HM106)) -> FALSE | W116: =IF(W11,NPV(W115,W106:HN106)) -> FALSE | X116: =IF(X11,NPV(X115,X106:HO106)) -> FALSE | Y116: =IF(Y11,NPV(Y115,Y106:HP106)) -> FALSE | Z116: =IF(Z11,NPV(Z115,Z106:HQ106)) -> FALSE | AA116: =IF(AA11,NPV(AA115,AA106:HR106)) -> FALSE | AB116: =IF(AB11,NPV(AB115,AB106:HS106)) -> FALSE | AC116: =IF(AC11,NPV(AC115,AC106:HT106)) -> FALSE | AD116: =IF(AD11,NPV(AD115,AD106:HU106)) -> FALSE | AE116: =IF(AE11,NPV(AE115,AE106:HV106)) -> FALSE | AF116: =IF(AF11,NPV(AF115,AF106:HW106)) -> FALSE | AG116: =IF(AG11,NPV(AG115,AG106:HX106)) -> FALSE | AH116: =IF(AH11,NPV(AH115,AH106:HY106)) -> FALSE | AI116: =IF(AI11,NPV(AI115,AI106:HZ106)) -> FALSE | AJ116: =IF(AJ11,NPV(AJ115,AJ106:IA106)) -> FALSE | AK116: =IF(AK11,NPV(AK115,AK106:IB106)) -> FALSE | AL116: =IF(AL11,NPV(AL115,AL106:IC106)) -> FALSE | AM116: =IF(AM11,NPV(AM115,AM106:ID106)) -> FALSE | AN116: =IF(AN11,NPV(AN115,AN106:IE106)) -> FALSE | AO116: =IF(AO11,NPV(AO115,AO106:IF106)) -> FALSE | AP116: =IF(AP11,NPV(AP115,AP106:IG106)) -> FALSE | AQ116: =IF(AQ11,NPV(AQ115,AQ106:IH106)) -> FALSE | AR116: =IF(AR11,NPV(AR115,AR106:II106)) -> FALSE | AS116: =IF(AS11,NPV(AS115,AS106:IJ106)) -> FALSE | AT116: =IF(AT11,NPV(AT115,AT106:IK106)) -> FALSE | AU116: =IF(AU11,NPV(AU115,AU106:IL106)) -> FALSE | AV116: =IF(AV11,NPV(AV115,AV106:IM106)) -> 12361.68017 | AW116: =IF(AW11,NPV(AW115,AW106:IN106)) -> 12157.2881 | AX116: =IF(AX11,NPV(AX115,AX106:IO106)) -> 11942.08386 | AY116: =IF(AY11,NPV(AY115,AY106:IP106)) -> 11715.75109 | AZ116: =IF(AZ11,NPV(AZ115,AZ106:IQ106)) -> 11477.96561 | BA116: =IF(BA11,NPV(BA115,BA106:IR106)) -> 11228.39525 | BB116: =IF(BB11,NPV(BB115,BB106:IS106)) -> 10966.69964 | BC116: =IF(BC11,NPV(BC115,BC106:IT106)) -> 10692.53006 | BD116: =IF(BD11,NPV(BD115,BD106:IU106)) -> 10405.52924 | BE116: =IF(BE11,NPV(BE115,BE106:IV106)) -> 10105.33115 | BF116: =IF(BF11,NPV(BF115,BF106:IW106)) -> 9791.560812 | BG116: =IF(BG11,NPV(BG115,BG106:IX106)) -> 9463.834092 | BH116: =IF(BH11,NPV(BH115,BH106:IY106)) -> 9121.757502 | BI116: =IF(BI11,NPV(BI115,BI106:IZ106)) -> 8764.927978 | BJ116: =IF(BJ11,NPV(BJ115,BJ106:JA106)) -> 8392.932668 | BK116: =IF(BK11,NPV(BK115,BK106:JB106)) -> 8005.348707 | BL116: =IF(BL11,NPV(BL115,BL106:JC106)) -> 7601.742995 | BM116: =IF(BM11,NPV(BM115,BM106:JD106)) -> 7181.671962 | BN116: =IF(BN11,NPV(BN115,BN106:JE106)) -> 6744.681335 | BO116: =IF(BO11,NPV(BO115,BO106:JF106)) -> 6290.305892 | BP116: =IF(BP11,NPV(BP115,BP106:JG106)) -> 5818.069221 | BQ116: =IF(BQ11,NPV(BQ115,BQ106:JH106)) -> 5327.483464 | BR116: =IF(BR11,NPV(BR115,BR106:JI106)) -> 4818.049061 | BS116: =IF(BS11,NPV(BS115,BS106:JJ106)) -> 4289.254486 | BT116: =IF(BT11,NPV(BT115,BT106:JK106)) -> 3740.575981 | BU116: =IF(BU11,NPV(BU115,BU106:JL106)) -> 3171.477278 | BV116: =IF(BV11,NPV(BV115,BV106:JM106)) -> 2581.409322 | BW116: =IF(BW11,NPV(BW115,BW106:JN106)) -> 1969.809979 | BX116: =IF(BX11,NPV(BX115,BX106:JO106)) -> 1336.103751 | BY116: =IF(BY11,NPV(BY115,BY106:JP106)) -> 679.701471 | BZ116: =IF(BZ11,NPV(BZ115,BZ106:JQ106)) -> 0 | CA116: =IF(CA11,NPV(CA115,CA106:JR106)) -> 0 | CB116: =IF(CB11,NPV(CB115,CB106:JS106)) -> 0 | CC116: =IF(CC11,NPV(CC115,CC106:JT106)) -> 0 | CD116: =IF(CD11,NPV(CD115,CD106:JU106)) -> 0 | CE116: =IF(CE11,NPV(CE115,CE106:JV106)) -> 0 | CF116: =IF(CF11,NPV(CF115,CF106:JW106)) -> 0 | CG116: =IF(CG11,NPV(CG115,CG106:JX106)) -> 0 | CH116: =IF(CH11,NPV(CH115,CH106:JY106)) -> 0 | CI116: =IF(CI11,NPV(CI115,CI106:JZ106)) -> 0 | CJ116: =IF(CJ11,NPV(CJ115,CJ106:KA106)) -> FALSE | CK116: =IF(CK11,NPV(CK115,CK106:KB106)) -> FALSE | CL116: =IF(CL11,NPV(CL115,CL106:KC106)) -> FALSE | CM116: =IF(CM11,NPV(CM115,CM106:KD106)) -> FALSE | CN116: =IF(CN11,NPV(CN115,CN106:KE106)) -> FALSE | CO116: =IF(CO11,NPV(CO115,CO106:KF106)) -> FALSE | CP116: =IF(CP11,NPV(CP115,CP106:KG106)) -> FALSE | CQ116: =IF(CQ11,NPV(CQ115,CQ106:KH106)) -> FALSE | CR116: =IF(CR11,NPV(CR115,CR106:KI106)) -> FALSE | CS116: =IF(CS11,NPV(CS115,CS106:KJ106)) -> FALSE | CT116: =IF(CT11,NPV(CT115,CT106:KK106)) -> FALSE | CU116: =IF(CU11,NPV(CU115,CU106:KL106)) -> FALSE | CV116: =IF(CV11,NPV(CV115,CV106:KM106)) -> FALSE | CW116: =IF(CW11,NPV(CW115,CW106:KN106)) -> FALSE | CX116: =IF(CX11,NPV(CX115,CX106:KO106)) -> FALSE | CY116: =IF(CY11,NPV(CY115,CY106:KP106)) -> FALSE | CZ116: =IF(CZ11,NPV(CZ115,CZ106:KQ106)) -> FALSE | DA116: =IF(DA11,NPV(DA115,DA106:KR106)) -> FALSE | DB116: =IF(DB11,NPV(DB115,DB106:KS106)) -> FALSE | DC116: =IF(DC11,NPV(DC115,DC106:KT106)) -> FALSE | DD116: =IF(DD11,NPV(DD115,DD106:KU106)) -> FALSE | DE116: =IF(DE11,NPV(DE115,DE106:KV106)) -> FALSE | DF116: =IF(DF11,NPV(DF115,DF106:KW106)) -> FALSE | DG116: =IF(DG11,NPV(DG115,DG106:KX106)) -> FALSE | DH116: =IF(DH11,NPV(DH115,DH106:KY106)) -> FALSE | DI116: =IF(DI11,NPV(DI115,DI106:KZ106)) -> FALSE | DJ116: =IF(DJ11,NPV(DJ115,DJ106:LA106)) -> FALSE | DK116: =IF(DK11,NPV(DK115,DK106:LB106)) -> FALSE | DL116: =IF(DL11,NPV(DL115,DL106:LC106)) -> FALSE | DM116: =IF(DM11,NPV(DM115,DM106:LD106)) -> FALSE | DN116: =IF(DN11,NPV(DN115,DN106:LE106)) -> FALSE | DO116: =IF(DO11,NPV(DO115,DO106:LF106)) -> FALSE | DP116: =IF(DP11,NPV(DP115,DP106:LG106)) -> FALSE | DQ116: =IF(DQ11,NPV(DQ115,DQ106:LH106)) -> FALSE | DR116: =IF(DR11,NPV(DR115,DR106:LI106)) -> FALSE | DS116: =IF(DS11,NPV(DS115,DS106:LJ106)) -> FALSE | DT116: =IF(DT11,NPV(DT115,DT106:LK106)) -> FALSE | DU116: =IF(DU11,NPV(DU115,DU106:LL106)) -> FALSE | DV116: =IF(DV11,NPV(DV115,DV106:LM106)) -> FALSE | DW116: =IF(DW11,NPV(DW115,DW106:LN106)) -> FALSE | DX116: =IF(DX11,NPV(DX115,DX106:LO106)) -> FALSE | DY116: =IF(DY11,NPV(DY115,DY106:LP106)) -> FALSE | DZ116: =IF(DZ11,NPV(DZ115,DZ106:LQ106)) -> FALSE | EA116: =IF(EA11,NPV(EA115,EA106:LR106)) -> FALSE | EB116: =IF(EB11,NPV(EB115,EB106:LS106)) -> FALSE | EC116: =IF(EC11,NPV(EC115,EC106:LT106)) -> FALSE | ED116: =IF(ED11,NPV(ED115,ED106:LU106)) -> FALSE | EE116: =IF(EE11,NPV(EE115,EE106:LV106)) -> FALSE | EF116: =IF(EF11,NPV(EF115,EF106:LW106)) -> FALSE | EG116: =IF(EG11,NPV(EG115,EG106:LX106)) -> FALSE | EH116: =IF(EH11,NPV(EH115,EH106:LY106)) -> FALSE | EI116: =IF(EI11,NPV(EI115,EI106:LZ106)) -> FALSE | EJ116: =IF(EJ11,NPV(EJ115,EJ106:MA106)) -> FALSE | EK116: =IF(EK11,NPV(EK115,EK106:MB106)) -> FALSE | EL116: =IF(EL11,NPV(EL115,EL106:MC106)) -> FALSE | EM116: =IF(EM11,NPV(EM115,EM106:MD106)) -> FALSE | EN116: =IF(EN11,NPV(EN115,EN106:ME106)) -> FALSE | EO116: =IF(EO11,NPV(EO115,EO106:MF106)) -> FALSE | EP116: =IF(EP11,NPV(EP115,EP106:MG106)) -> FALSE | EQ116: =IF(EQ11,NPV(EQ115,EQ106:MH106)) -> FALSE | ER116: =IF(ER11,NPV(ER115,ER106:MI106)) -> FALSE | ES116: =IF(ES11,NPV(ES115,ES106:MJ106)) -> FALSE | ET116: =IF(ET11,NPV(ET115,ET106:MK106)) -> FALSE | EU116: =IF(EU11,NPV(EU115,EU106:ML106)) -> FALSE | EV116: =IF(EV11,NPV(EV115,EV106:MM106)) -> FALSE | EW116: =IF(EW11,NPV(EW115,EW106:MN106)) -> FALSE | EX116: =IF(EX11,NPV(EX115,EX106:MO106)) -> FALSE | EY116: =IF(EY11,NPV(EY115,EY106:MP106)) -> FALSE | EZ116: =IF(EZ11,NPV(EZ115,EZ106:MQ106)) -> FALSE | FA116: =IF(FA11,NPV(FA115,FA106:MR106)) -> FALSE | FB116: =IF(FB11,NPV(FB115,FB106:MS106)) -> FALSE | FC116: =IF(FC11,NPV(FC115,FC106:MT106)) -> FALSE | FD116: =IF(FD11,NPV(FD115,FD106:MU106)) -> FALSE | FE116: =IF(FE11,NPV(FE115,FE106:MV106)) -> FALSE | FF116: =IF(FF11,NPV(FF115,FF106:MW106)) -> FALSE | FG116: =IF(FG11,NPV(FG115,FG106:MX106)) -> FALSE | FH116: =IF(FH11,NPV(FH115,FH106:MY106)) -> FALSE | FI116: =IF(FI11,NPV(FI115,FI106:MZ106)) -> FALSE | FJ116: =IF(FJ11,NPV(FJ115,FJ106:NA106)) -> FALSE | FK116: =IF(FK11,NPV(FK115,FK106:NB106)) -> FALSE | FL116: =IF(FL11,NPV(FL115,FL106:NC106)) -> FALSE | FM116: =IF(FM11,NPV(FM115,FM106:ND106)) -> FALSE | FN116: =IF(FN11,NPV(FN115,FN106:NE106)) -> FALSE | FO116: =IF(FO11,NPV(FO115,FO106:NF106)) -> FALSE | FP116: =IF(FP11,NPV(FP115,FP106:NG106)) -> FALSE | FQ116: =IF(FQ11,NPV(FQ115,FQ106:NH106)) -> FALSE | FR116: =IF(FR11,NPV(FR115,FR106:NI106)) -> FALSE | FS116: =IF(FS11,NPV(FS115,FS106:NJ106)) -> FALSE | FT116: =IF(FT11,NPV(FT115,FT106:NK106)) -> FALSE | FU116: =IF(FU11,NPV(FU115,FU106:NL106)) -> FALSE | FV116: =IF(FV11,NPV(FV115,FV106:NM106)) -> FALSE | FW116: =IF(FW11,NPV(FW115,FW106:NN106)) -> FALSE | FX116: =IF(FX11,NPV(FX115,FX106:NO106)) -> FALSE | FY116: =IF(FY11,NPV(FY115,FY106:NP106)) -> FALSE | FZ116: =IF(FZ11,NPV(FZ115,FZ106:NQ106)) -> FALSE | GA116: =IF(GA11,NPV(GA115,GA106:NR106)) -> FALSE | GB116: =IF(GB11,NPV(GB115,GB106:NS106)) -> FALSE | GC116: =IF(GC11,NPV(GC115,GC106:NT106)) -> FALSE | GD116: =IF(GD11,NPV(GD115,GD106:NU106)) -> FALSE | GE116: =IF(GE11,NPV(GE115,GE106:NV106)) -> FALSE | GF116: =IF(GF11,NPV(GF115,GF106:NW106)) -> FALSE | GG116: =IF(GG11,NPV(GG115,GG106:NX106)) -> FALSE | GH116: =IF(GH11,NPV(GH115,GH106:NY106)) -> FALSE | GI116: =IF(GI11,NPV(GI115,GI106:NZ106)) -> FALSE | GJ116: =IF(GJ11,NPV(GJ115,GJ106:OA106)) -> FALSE | GK116: =IF(GK11,NPV(GK115,GK106:OB106)) -> FALSE | GL116: =IF(GL11,NPV(GL115,GL106:OC106)) -> FALSE | GM116: =IF(GM11,NPV(GM115,GM106:OD106)) -> FALSE | GN116: =IF(GN11,NPV(GN115,GN106:OE106)) -> FALSE | GO116: =IF(GO11,NPV(GO115,GO106:OF106)) -> FALSE | GP116: =IF(GP11,NPV(GP115,GP106:OG106)) -> FALSE | GQ116: =IF(GQ11,NPV(GQ115,GQ106:OH106)) -> FALSE | GR116: =IF(GR11,NPV(GR115,GR106:OI106)) -> FALSE | GS116: =IF(GS11,NPV(GS115,GS106:OJ106)) -> FALSE | GT116: =IF(GT11,NPV(GT115,GT106:OK106)) -> FALSE | GU116: =IF(GU11,NPV(GU115,GU106:OL106)) -> FALSE | GV116: =IF(GV11,NPV(GV115,GV106:OM106)) -> FALSE | GW116: =IF(GW11,NPV(GW115,GW106:ON106)) -> FALSE | GX116: =IF(GX11,NPV(GX115,GX106:OO106)) -> FALSE | GY116: =IF(GY11,NPV(GY115,GY106:OP106)) -> FALSE | GZ116: =IF(GZ11,NPV(GZ115,GZ106:OQ106)) -> FALSE | HA116: =IF(HA11,NPV(HA115,HA106:OR106)) -> FALSE
C117: PV of DS Forward | J117: =IF(J11,NPV(J115,J107:HA107))*1 -> 0 | K117: =IF(K11,NPV(K115,K107:HB107))*1 -> 0 | L117: =IF(L11,NPV(L115,L107:HC107))*1 -> 0 | M117: =IF(M11,NPV(M115,M107:HD107))*1 -> 0 | N117: =IF(N11,NPV(N115,N107:HE107))*1 -> 0 | O117: =IF(O11,NPV(O115,O107:HF107))*1 -> 0 | P117: =IF(P11,NPV(P115,P107:HG107))*1 -> 0 | Q117: =IF(Q11,NPV(Q115,Q107:HH107))*1 -> 0 | R117: =IF(R11,NPV(R115,R107:HI107))*1 -> 0 | S117: =IF(S11,NPV(S115,S107:HJ107))*1 -> 0 | T117: =IF(T11,NPV(T115,T107:HK107))*1 -> 0 | U117: =IF(U11,NPV(U115,U107:HL107))*1 -> 0 | V117: =IF(V11,NPV(V115,V107:HM107))*1 -> 0 | W117: =IF(W11,NPV(W115,W107:HN107))*1 -> 0 | X117: =IF(X11,NPV(X115,X107:HO107))*1 -> 0 | Y117: =IF(Y11,NPV(Y115,Y107:HP107))*1 -> 0 | Z117: =IF(Z11,NPV(Z115,Z107:HQ107))*1 -> 0 | AA117: =IF(AA11,NPV(AA115,AA107:HR107))*1 -> 0 | AB117: =IF(AB11,NPV(AB115,AB107:HS107))*1 -> 0 | AC117: =IF(AC11,NPV(AC115,AC107:HT107))*1 -> 0 | AD117: =IF(AD11,NPV(AD115,AD107:HU107))*1 -> 0 | AE117: =IF(AE11,NPV(AE115,AE107:HV107))*1 -> 0 | AF117: =IF(AF11,NPV(AF115,AF107:HW107))*1 -> 0 | AG117: =IF(AG11,NPV(AG115,AG107:HX107))*1 -> 0 | AH117: =IF(AH11,NPV(AH115,AH107:HY107))*1 -> 0 | AI117: =IF(AI11,NPV(AI115,AI107:HZ107))*1 -> 0 | AJ117: =IF(AJ11,NPV(AJ115,AJ107:IA107))*1 -> 0 | AK117: =IF(AK11,NPV(AK115,AK107:IB107))*1 -> 0 | AL117: =IF(AL11,NPV(AL115,AL107:IC107))*1 -> 0 | AM117: =IF(AM11,NPV(AM115,AM107:ID107))*1 -> 0 | AN117: =IF(AN11,NPV(AN115,AN107:IE107))*1 -> 0 | AO117: =IF(AO11,NPV(AO115,AO107:IF107))*1 -> 0 | AP117: =IF(AP11,NPV(AP115,AP107:IG107))*1 -> 0 | AQ117: =IF(AQ11,NPV(AQ115,AQ107:IH107))*1 -> 0 | AR117: =IF(AR11,NPV(AR115,AR107:II107))*1 -> 0 | AS117: =IF(AS11,NPV(AS115,AS107:IJ107))*1 -> 0 | AT117: =IF(AT11,NPV(AT115,AT107:IK107))*1 -> 0 | AU117: =IF(AU11,NPV(AU115,AU107:IL107))*1 -> 0 | AV117: =IF(AV11,NPV(AV115,AV107:IM107))*1 -> 7000 | AW117: =IF(AW11,NPV(AW115,AW107:IN107))*1 -> 6792.7169 | AX117: =IF(AX11,NPV(AX115,AX107:IO107))*1 -> 6583.954804 | AY117: =IF(AY11,NPV(AY115,AY107:IP107))*1 -> 6373.684133 | AZ117: =IF(AZ11,NPV(AZ115,AZ107:IQ107))*1 -> 6161.874716 | BA117: =IF(BA11,NPV(BA115,BA107:IR107))*1 -> 5948.495777 | BB117: =IF(BB11,NPV(BB115,BB107:IS107))*1 -> 5733.515925 | BC117: =IF(BC11,NPV(BC115,BC107:IT107))*1 -> 5516.903144 | BD117: =IF(BD11,NPV(BD115,BD107:IU107))*1 -> 5298.624773 | BE117: =IF(BE11,NPV(BE115,BE107:IV107))*1 -> 5078.647502 | BF117: =IF(BF11,NPV(BF115,BF107:IW107))*1 -> 4856.937351 | BG117: =IF(BG11,NPV(BG115,BG107:IX107))*1 -> 4633.459665 | BH117: =IF(BH11,NPV(BH115,BH107:IY107))*1 -> 4408.179091 | BI117: =IF(BI11,NPV(BI115,BI107:IZ107))*1 -> 4181.059573 | BJ117: =IF(BJ11,NPV(BJ115,BJ107:JA107))*1 -> 3952.064331 | BK117: =IF(BK11,NPV(BK115,BK107:JB107))*1 -> 3721.15585 | BL117: =IF(BL11,NPV(BL115,BL107:JC107))*1 -> 3488.295867 | BM117: =IF(BM11,NPV(BM115,BM107:JD107))*1 -> 3253.445351 | BN117: =IF(BN11,NPV(BN115,BN107:JE107))*1 -> 3016.564491 | BO117: =IF(BO11,NPV(BO115,BO107:JF107))*1 -> 2777.612681 | BP117: =IF(BP11,NPV(BP115,BP107:JG107))*1 -> 2536.548501 | BQ117: =IF(BQ11,NPV(BQ115,BQ107:JH107))*1 -> 2293.329704 | BR117: =IF(BR11,NPV(BR115,BR107:JI107))*1 -> 2047.913198 | BS117: =IF(BS11,NPV(BS115,BS107:JJ107))*1 -> 1800.255028 | BT117: =IF(BT11,NPV(BT115,BT107:JK107))*1 -> 1550.310362 | BU117: =IF(BU11,NPV(BU115,BU107:JL107))*1 -> 1298.033469 | BV117: =IF(BV11,NPV(BV115,BV107:JM107))*1 -> 1043.377705 | BW117: =IF(BW11,NPV(BW115,BW107:JN107))*1 -> 786.2954921 | BX117: =IF(BX11,NPV(BX115,BX107:JO107))*1 -> 526.7383017 | BY117: =IF(BY11,NPV(BY115,BY107:JP107))*1 -> 264.6566342 | BZ117: =IF(BZ11,NPV(BZ115,BZ107:JQ107))*1 -> 4.691119071e-12 | CA117: =IF(CA11,NPV(CA115,CA107:JR107))*1 -> 7.887480479e-14 | CB117: =IF(CB11,NPV(CB115,CB107:JS107))*1 -> 7.078891968e-14 | CC117: =IF(CC11,NPV(CC115,CC107:JT107))*1 -> 6.254131687e-14 | CD117: =IF(CD11,NPV(CD115,CD107:JU107))*1 -> 5.4128762e-14 | CE117: =IF(CE11,NPV(CE115,CE107:JV107))*1 -> 4.554795603e-14 | CF117: =IF(CF11,NPV(CF115,CF107:JW107))*1 -> 3.679553395e-14 | CG117: =IF(CG11,NPV(CG115,CG107:JX107))*1 -> 2.786806342e-14 | CH117: =IF(CH11,NPV(CH115,CH107:JY107))*1 -> 1.876204348e-14 | CI117: =IF(CI11,NPV(CI115,CI107:JZ107))*1 -> 9.473903143e-15 | CJ117: =IF(CJ11,NPV(CJ115,CJ107:KA107))*1 -> 0 | CK117: =IF(CK11,NPV(CK115,CK107:KB107))*1 -> 0 | CL117: =IF(CL11,NPV(CL115,CL107:KC107))*1 -> 0 | CM117: =IF(CM11,NPV(CM115,CM107:KD107))*1 -> 0 | CN117: =IF(CN11,NPV(CN115,CN107:KE107))*1 -> 0 | CO117: =IF(CO11,NPV(CO115,CO107:KF107))*1 -> 0 | CP117: =IF(CP11,NPV(CP115,CP107:KG107))*1 -> 0 | CQ117: =IF(CQ11,NPV(CQ115,CQ107:KH107))*1 -> 0 | CR117: =IF(CR11,NPV(CR115,CR107:KI107))*1 -> 0 | CS117: =IF(CS11,NPV(CS115,CS107:KJ107))*1 -> 0 | CT117: =IF(CT11,NPV(CT115,CT107:KK107))*1 -> 0 | CU117: =IF(CU11,NPV(CU115,CU107:KL107))*1 -> 0 | CV117: =IF(CV11,NPV(CV115,CV107:KM107))*1 -> 0 | CW117: =IF(CW11,NPV(CW115,CW107:KN107))*1 -> 0 | CX117: =IF(CX11,NPV(CX115,CX107:KO107))*1 -> 0 | CY117: =IF(CY11,NPV(CY115,CY107:KP107))*1 -> 0 | CZ117: =IF(CZ11,NPV(CZ115,CZ107:KQ107))*1 -> 0 | DA117: =IF(DA11,NPV(DA115,DA107:KR107))*1 -> 0 | DB117: =IF(DB11,NPV(DB115,DB107:KS107))*1 -> 0 | DC117: =IF(DC11,NPV(DC115,DC107:KT107))*1 -> 0 | DD117: =IF(DD11,NPV(DD115,DD107:KU107))*1 -> 0 | DE117: =IF(DE11,NPV(DE115,DE107:KV107))*1 -> 0 | DF117: =IF(DF11,NPV(DF115,DF107:KW107))*1 -> 0 | DG117: =IF(DG11,NPV(DG115,DG107:KX107))*1 -> 0 | DH117: =IF(DH11,NPV(DH115,DH107:KY107))*1 -> 0 | DI117: =IF(DI11,NPV(DI115,DI107:KZ107))*1 -> 0 | DJ117: =IF(DJ11,NPV(DJ115,DJ107:LA107))*1 -> 0 | DK117: =IF(DK11,NPV(DK115,DK107:LB107))*1 -> 0 | DL117: =IF(DL11,NPV(DL115,DL107:LC107))*1 -> 0 | DM117: =IF(DM11,NPV(DM115,DM107:LD107))*1 -> 0 | DN117: =IF(DN11,NPV(DN115,DN107:LE107))*1 -> 0 | DO117: =IF(DO11,NPV(DO115,DO107:LF107))*1 -> 0 | DP117: =IF(DP11,NPV(DP115,DP107:LG107))*1 -> 0 | DQ117: =IF(DQ11,NPV(DQ115,DQ107:LH107))*1 -> 0 | DR117: =IF(DR11,NPV(DR115,DR107:LI107))*1 -> 0 | DS117: =IF(DS11,NPV(DS115,DS107:LJ107))*1 -> 0 | DT117: =IF(DT11,NPV(DT115,DT107:LK107))*1 -> 0 | DU117: =IF(DU11,NPV(DU115,DU107:LL107))*1 -> 0 | DV117: =IF(DV11,NPV(DV115,DV107:LM107))*1 -> 0 | DW117: =IF(DW11,NPV(DW115,DW107:LN107))*1 -> 0 | DX117: =IF(DX11,NPV(DX115,DX107:LO107))*1 -> 0 | DY117: =IF(DY11,NPV(DY115,DY107:LP107))*1 -> 0 | DZ117: =IF(DZ11,NPV(DZ115,DZ107:LQ107))*1 -> 0 | EA117: =IF(EA11,NPV(EA115,EA107:LR107))*1 -> 0 | EB117: =IF(EB11,NPV(EB115,EB107:LS107))*1 -> 0 | EC117: =IF(EC11,NPV(EC115,EC107:LT107))*1 -> 0 | ED117: =IF(ED11,NPV(ED115,ED107:LU107))*1 -> 0 | EE117: =IF(EE11,NPV(EE115,EE107:LV107))*1 -> 0 | EF117: =IF(EF11,NPV(EF115,EF107:LW107))*1 -> 0 | EG117: =IF(EG11,NPV(EG115,EG107:LX107))*1 -> 0 | EH117: =IF(EH11,NPV(EH115,EH107:LY107))*1 -> 0 | EI117: =IF(EI11,NPV(EI115,EI107:LZ107))*1 -> 0 | EJ117: =IF(EJ11,NPV(EJ115,EJ107:MA107))*1 -> 0 | EK117: =IF(EK11,NPV(EK115,EK107:MB107))*1 -> 0 | EL117: =IF(EL11,NPV(EL115,EL107:MC107))*1 -> 0 | EM117: =IF(EM11,NPV(EM115,EM107:MD107))*1 -> 0 | EN117: =IF(EN11,NPV(EN115,EN107:ME107))*1 -> 0 | EO117: =IF(EO11,NPV(EO115,EO107:MF107))*1 -> 0 | EP117: =IF(EP11,NPV(EP115,EP107:MG107))*1 -> 0 | EQ117: =IF(EQ11,NPV(EQ115,EQ107:MH107))*1 -> 0 | ER117: =IF(ER11,NPV(ER115,ER107:MI107))*1 -> 0 | ES117: =IF(ES11,NPV(ES115,ES107:MJ107))*1 -> 0 | ET117: =IF(ET11,NPV(ET115,ET107:MK107))*1 -> 0 | EU117: =IF(EU11,NPV(EU115,EU107:ML107))*1 -> 0 | EV117: =IF(EV11,NPV(EV115,EV107:MM107))*1 -> 0 | EW117: =IF(EW11,NPV(EW115,EW107:MN107))*1 -> 0 | EX117: =IF(EX11,NPV(EX115,EX107:MO107))*1 -> 0 | EY117: =IF(EY11,NPV(EY115,EY107:MP107))*1 -> 0 | EZ117: =IF(EZ11,NPV(EZ115,EZ107:MQ107))*1 -> 0 | FA117: =IF(FA11,NPV(FA115,FA107:MR107))*1 -> 0 | FB117: =IF(FB11,NPV(FB115,FB107:MS107))*1 -> 0 | FC117: =IF(FC11,NPV(FC115,FC107:MT107))*1 -> 0 | FD117: =IF(FD11,NPV(FD115,FD107:MU107))*1 -> 0 | FE117: =IF(FE11,NPV(FE115,FE107:MV107))*1 -> 0 | FF117: =IF(FF11,NPV(FF115,FF107:MW107))*1 -> 0 | FG117: =IF(FG11,NPV(FG115,FG107:MX107))*1 -> 0 | FH117: =IF(FH11,NPV(FH115,FH107:MY107))*1 -> 0 | FI117: =IF(FI11,NPV(FI115,FI107:MZ107))*1 -> 0 | FJ117: =IF(FJ11,NPV(FJ115,FJ107:NA107))*1 -> 0 | FK117: =IF(FK11,NPV(FK115,FK107:NB107))*1 -> 0 | FL117: =IF(FL11,NPV(FL115,FL107:NC107))*1 -> 0 | FM117: =IF(FM11,NPV(FM115,FM107:ND107))*1 -> 0 | FN117: =IF(FN11,NPV(FN115,FN107:NE107))*1 -> 0 | FO117: =IF(FO11,NPV(FO115,FO107:NF107))*1 -> 0 | FP117: =IF(FP11,NPV(FP115,FP107:NG107))*1 -> 0 | FQ117: =IF(FQ11,NPV(FQ115,FQ107:NH107))*1 -> 0 | FR117: =IF(FR11,NPV(FR115,FR107:NI107))*1 -> 0 | FS117: =IF(FS11,NPV(FS115,FS107:NJ107))*1 -> 0 | FT117: =IF(FT11,NPV(FT115,FT107:NK107))*1 -> 0 | FU117: =IF(FU11,NPV(FU115,FU107:NL107))*1 -> 0 | FV117: =IF(FV11,NPV(FV115,FV107:NM107))*1 -> 0 | FW117: =IF(FW11,NPV(FW115,FW107:NN107))*1 -> 0 | FX117: =IF(FX11,NPV(FX115,FX107:NO107))*1 -> 0 | FY117: =IF(FY11,NPV(FY115,FY107:NP107))*1 -> 0 | FZ117: =IF(FZ11,NPV(FZ115,FZ107:NQ107))*1 -> 0 | GA117: =IF(GA11,NPV(GA115,GA107:NR107))*1 -> 0 | GB117: =IF(GB11,NPV(GB115,GB107:NS107))*1 -> 0 | GC117: =IF(GC11,NPV(GC115,GC107:NT107))*1 -> 0 | GD117: =IF(GD11,NPV(GD115,GD107:NU107))*1 -> 0 | GE117: =IF(GE11,NPV(GE115,GE107:NV107))*1 -> 0 | GF117: =IF(GF11,NPV(GF115,GF107:NW107))*1 -> 0 | GG117: =IF(GG11,NPV(GG115,GG107:NX107))*1 -> 0 | GH117: =IF(GH11,NPV(GH115,GH107:NY107))*1 -> 0 | GI117: =IF(GI11,NPV(GI115,GI107:NZ107))*1 -> 0 | GJ117: =IF(GJ11,NPV(GJ115,GJ107:OA107))*1 -> 0 | GK117: =IF(GK11,NPV(GK115,GK107:OB107))*1 -> 0 | GL117: =IF(GL11,NPV(GL115,GL107:OC107))*1 -> 0 | GM117: =IF(GM11,NPV(GM115,GM107:OD107))*1 -> 0 | GN117: =IF(GN11,NPV(GN115,GN107:OE107))*1 -> 0 | GO117: =IF(GO11,NPV(GO115,GO107:OF107))*1 -> 0 | GP117: =IF(GP11,NPV(GP115,GP107:OG107))*1 -> 0 | GQ117: =IF(GQ11,NPV(GQ115,GQ107:OH107))*1 -> 0 | GR117: =IF(GR11,NPV(GR115,GR107:OI107))*1 -> 0 | GS117: =IF(GS11,NPV(GS115,GS107:OJ107))*1 -> 0 | GT117: =IF(GT11,NPV(GT115,GT107:OK107))*1 -> 0 | GU117: =IF(GU11,NPV(GU115,GU107:OL107))*1 -> 0 | GV117: =IF(GV11,NPV(GV115,GV107:OM107))*1 -> 0 | GW117: =IF(GW11,NPV(GW115,GW107:ON107))*1 -> 0 | GX117: =IF(GX11,NPV(GX115,GX107:OO107))*1 -> 0 | GY117: =IF(GY11,NPV(GY115,GY107:OP107))*1 -> 0 | GZ117: =IF(GZ11,NPV(GZ115,GZ107:OQ107))*1 -> 0 | HA117: =IF(HA11,NPV(HA115,HA107:OR107))*1 -> 0
C118: Opening Debt Balance | J118: =IF(J11,J75+J63) -> FALSE | K118: =IF(K11,K75+K63) -> FALSE | L118: =IF(L11,L75+L63) -> FALSE | M118: =IF(M11,M75+M63) -> FALSE | N118: =IF(N11,N75+N63) -> FALSE | O118: =IF(O11,O75+O63) -> FALSE | P118: =IF(P11,P75+P63) -> FALSE | Q118: =IF(Q11,Q75+Q63) -> FALSE | R118: =IF(R11,R75+R63) -> FALSE | S118: =IF(S11,S75+S63) -> FALSE | T118: =IF(T11,T75+T63) -> FALSE | U118: =IF(U11,U75+U63) -> FALSE | V118: =IF(V11,V75+V63) -> FALSE | W118: =IF(W11,W75+W63) -> FALSE | X118: =IF(X11,X75+X63) -> FALSE | Y118: =IF(Y11,Y75+Y63) -> FALSE | Z118: =IF(Z11,Z75+Z63) -> FALSE | AA118: =IF(AA11,AA75+AA63) -> FALSE | AB118: =IF(AB11,AB75+AB63) -> FALSE | AC118: =IF(AC11,AC75+AC63) -> FALSE | AD118: =IF(AD11,AD75+AD63) -> FALSE | AE118: =IF(AE11,AE75+AE63) -> FALSE | AF118: =IF(AF11,AF75+AF63) -> FALSE | AG118: =IF(AG11,AG75+AG63) -> FALSE | AH118: =IF(AH11,AH75+AH63) -> FALSE | AI118: =IF(AI11,AI75+AI63) -> FALSE | AJ118: =IF(AJ11,AJ75+AJ63) -> FALSE | AK118: =IF(AK11,AK75+AK63) -> FALSE | AL118: =IF(AL11,AL75+AL63) -> FALSE | AM118: =IF(AM11,AM75+AM63) -> FALSE | AN118: =IF(AN11,AN75+AN63) -> FALSE | AO118: =IF(AO11,AO75+AO63) -> FALSE | AP118: =IF(AP11,AP75+AP63) -> FALSE | AQ118: =IF(AQ11,AQ75+AQ63) -> FALSE | AR118: =IF(AR11,AR75+AR63) -> FALSE | AS118: =IF(AS11,AS75+AS63) -> FALSE | AT118: =IF(AT11,AT75+AT63) -> FALSE | AU118: =IF(AU11,AU75+AU63) -> FALSE | AV118: =IF(AV11,AV75+AV63) -> 7000 | AW118: =IF(AW11,AW75+AW63) -> 6792.7169 | AX118: =IF(AX11,AX75+AX63) -> 6583.954804 | AY118: =IF(AY11,AY75+AY63) -> 6373.684133 | AZ118: =IF(AZ11,AZ75+AZ63) -> 6161.874716 | BA118: =IF(BA11,BA75+BA63) -> 5948.495777 | BB118: =IF(BB11,BB75+BB63) -> 5733.515925 | BC118: =IF(BC11,BC75+BC63) -> 5516.903144 | BD118: =IF(BD11,BD75+BD63) -> 5298.624773 | BE118: =IF(BE11,BE75+BE63) -> 5078.647502 | BF118: =IF(BF11,BF75+BF63) -> 4856.937351 | BG118: =IF(BG11,BG75+BG63) -> 4633.459665 | BH118: =IF(BH11,BH75+BH63) -> 4408.179091 | BI118: =IF(BI11,BI75+BI63) -> 4181.059573 | BJ118: =IF(BJ11,BJ75+BJ63) -> 3952.064331 | BK118: =IF(BK11,BK75+BK63) -> 3721.15585 | BL118: =IF(BL11,BL75+BL63) -> 3488.295867 | BM118: =IF(BM11,BM75+BM63) -> 3253.445351 | BN118: =IF(BN11,BN75+BN63) -> 3016.564491 | BO118: =IF(BO11,BO75+BO63) -> 2777.612681 | BP118: =IF(BP11,BP75+BP63) -> 2536.548501 | BQ118: =IF(BQ11,BQ75+BQ63) -> 2293.329704 | BR118: =IF(BR11,BR75+BR63) -> 2047.913198 | BS118: =IF(BS11,BS75+BS63) -> 1800.255028 | BT118: =IF(BT11,BT75+BT63) -> 1550.310362 | BU118: =IF(BU11,BU75+BU63) -> 1298.033469 | BV118: =IF(BV11,BV75+BV63) -> 1043.377705 | BW118: =IF(BW11,BW75+BW63) -> 786.2954921 | BX118: =IF(BX11,BX75+BX63) -> 526.7383017 | BY118: =IF(BY11,BY75+BY63) -> 264.6566342 | BZ118: =IF(BZ11,BZ75+BZ63) -> 5.087485988e-12 | CA118: =IF(CA11,CA75+CA63) -> 4.831690603e-13 | CB118: =IF(CB11,CB75+CB63) -> 4.831690603e-13 | CC118: =IF(CC11,CC75+CC63) -> 4.831690603e-13 | CD118: =IF(CD11,CD75+CD63) -> 4.831690603e-13 | CE118: =IF(CE11,CE75+CE63) -> 4.831690603e-13 | CF118: =IF(CF11,CF75+CF63) -> 4.831690603e-13 | CG118: =IF(CG11,CG75+CG63) -> 4.831690603e-13 | CH118: =IF(CH11,CH75+CH63) -> 4.831690603e-13 | CI118: =IF(CI11,CI75+CI63) -> 4.831690603e-13 | CJ118: =IF(CJ11,CJ75+CJ63) -> FALSE | CK118: =IF(CK11,CK75+CK63) -> FALSE | CL118: =IF(CL11,CL75+CL63) -> FALSE | CM118: =IF(CM11,CM75+CM63) -> FALSE | CN118: =IF(CN11,CN75+CN63) -> FALSE | CO118: =IF(CO11,CO75+CO63) -> FALSE | CP118: =IF(CP11,CP75+CP63) -> FALSE | CQ118: =IF(CQ11,CQ75+CQ63) -> FALSE | CR118: =IF(CR11,CR75+CR63) -> FALSE | CS118: =IF(CS11,CS75+CS63) -> FALSE | CT118: =IF(CT11,CT75+CT63) -> FALSE | CU118: =IF(CU11,CU75+CU63) -> FALSE | CV118: =IF(CV11,CV75+CV63) -> FALSE | CW118: =IF(CW11,CW75+CW63) -> FALSE | CX118: =IF(CX11,CX75+CX63) -> FALSE | CY118: =IF(CY11,CY75+CY63) -> FALSE | CZ118: =IF(CZ11,CZ75+CZ63) -> FALSE | DA118: =IF(DA11,DA75+DA63) -> FALSE | DB118: =IF(DB11,DB75+DB63) -> FALSE | DC118: =IF(DC11,DC75+DC63) -> FALSE | DD118: =IF(DD11,DD75+DD63) -> FALSE | DE118: =IF(DE11,DE75+DE63) -> FALSE | DF118: =IF(DF11,DF75+DF63) -> FALSE | DG118: =IF(DG11,DG75+DG63) -> FALSE | DH118: =IF(DH11,DH75+DH63) -> FALSE | DI118: =IF(DI11,DI75+DI63) -> FALSE | DJ118: =IF(DJ11,DJ75+DJ63) -> FALSE | DK118: =IF(DK11,DK75+DK63) -> FALSE | DL118: =IF(DL11,DL75+DL63) -> FALSE | DM118: =IF(DM11,DM75+DM63) -> FALSE | DN118: =IF(DN11,DN75+DN63) -> FALSE | DO118: =IF(DO11,DO75+DO63) -> FALSE | DP118: =IF(DP11,DP75+DP63) -> FALSE | DQ118: =IF(DQ11,DQ75+DQ63) -> FALSE | DR118: =IF(DR11,DR75+DR63) -> FALSE | DS118: =IF(DS11,DS75+DS63) -> FALSE | DT118: =IF(DT11,DT75+DT63) -> FALSE | DU118: =IF(DU11,DU75+DU63) -> FALSE | DV118: =IF(DV11,DV75+DV63) -> FALSE | DW118: =IF(DW11,DW75+DW63) -> FALSE | DX118: =IF(DX11,DX75+DX63) -> FALSE | DY118: =IF(DY11,DY75+DY63) -> FALSE | DZ118: =IF(DZ11,DZ75+DZ63) -> FALSE | EA118: =IF(EA11,EA75+EA63) -> FALSE | EB118: =IF(EB11,EB75+EB63) -> FALSE | EC118: =IF(EC11,EC75+EC63) -> FALSE | ED118: =IF(ED11,ED75+ED63) -> FALSE | EE118: =IF(EE11,EE75+EE63) -> FALSE | EF118: =IF(EF11,EF75+EF63) -> FALSE | EG118: =IF(EG11,EG75+EG63) -> FALSE | EH118: =IF(EH11,EH75+EH63) -> FALSE | EI118: =IF(EI11,EI75+EI63) -> FALSE | EJ118: =IF(EJ11,EJ75+EJ63) -> FALSE | EK118: =IF(EK11,EK75+EK63) -> FALSE | EL118: =IF(EL11,EL75+EL63) -> FALSE | EM118: =IF(EM11,EM75+EM63) -> FALSE | EN118: =IF(EN11,EN75+EN63) -> FALSE | EO118: =IF(EO11,EO75+EO63) -> FALSE | EP118: =IF(EP11,EP75+EP63) -> FALSE | EQ118: =IF(EQ11,EQ75+EQ63) -> FALSE | ER118: =IF(ER11,ER75+ER63) -> FALSE | ES118: =IF(ES11,ES75+ES63) -> FALSE | ET118: =IF(ET11,ET75+ET63) -> FALSE | EU118: =IF(EU11,EU75+EU63) -> FALSE | EV118: =IF(EV11,EV75+EV63) -> FALSE | EW118: =IF(EW11,EW75+EW63) -> FALSE | EX118: =IF(EX11,EX75+EX63) -> FALSE | EY118: =IF(EY11,EY75+EY63) -> FALSE | EZ118: =IF(EZ11,EZ75+EZ63) -> FALSE | FA118: =IF(FA11,FA75+FA63) -> FALSE | FB118: =IF(FB11,FB75+FB63) -> FALSE | FC118: =IF(FC11,FC75+FC63) -> FALSE | FD118: =IF(FD11,FD75+FD63) -> FALSE | FE118: =IF(FE11,FE75+FE63) -> FALSE | FF118: =IF(FF11,FF75+FF63) -> FALSE | FG118: =IF(FG11,FG75+FG63) -> FALSE | FH118: =IF(FH11,FH75+FH63) -> FALSE | FI118: =IF(FI11,FI75+FI63) -> FALSE | FJ118: =IF(FJ11,FJ75+FJ63) -> FALSE | FK118: =IF(FK11,FK75+FK63) -> FALSE | FL118: =IF(FL11,FL75+FL63) -> FALSE | FM118: =IF(FM11,FM75+FM63) -> FALSE | FN118: =IF(FN11,FN75+FN63) -> FALSE | FO118: =IF(FO11,FO75+FO63) -> FALSE | FP118: =IF(FP11,FP75+FP63) -> FALSE | FQ118: =IF(FQ11,FQ75+FQ63) -> FALSE | FR118: =IF(FR11,FR75+FR63) -> FALSE | FS118: =IF(FS11,FS75+FS63) -> FALSE | FT118: =IF(FT11,FT75+FT63) -> FALSE | FU118: =IF(FU11,FU75+FU63) -> FALSE | FV118: =IF(FV11,FV75+FV63) -> FALSE | FW118: =IF(FW11,FW75+FW63) -> FALSE | FX118: =IF(FX11,FX75+FX63) -> FALSE | FY118: =IF(FY11,FY75+FY63) -> FALSE | FZ118: =IF(FZ11,FZ75+FZ63) -> FALSE | GA118: =IF(GA11,GA75+GA63) -> FALSE | GB118: =IF(GB11,GB75+GB63) -> FALSE | GC118: =IF(GC11,GC75+GC63) -> FALSE | GD118: =IF(GD11,GD75+GD63) -> FALSE | GE118: =IF(GE11,GE75+GE63) -> FALSE | GF118: =IF(GF11,GF75+GF63) -> FALSE | GG118: =IF(GG11,GG75+GG63) -> FALSE | GH118: =IF(GH11,GH75+GH63) -> FALSE | GI118: =IF(GI11,GI75+GI63) -> FALSE | GJ118: =IF(GJ11,GJ75+GJ63) -> FALSE | GK118: =IF(GK11,GK75+GK63) -> FALSE | GL118: =IF(GL11,GL75+GL63) -> FALSE | GM118: =IF(GM11,GM75+GM63) -> FALSE | GN118: =IF(GN11,GN75+GN63) -> FALSE | GO118: =IF(GO11,GO75+GO63) -> FALSE | GP118: =IF(GP11,GP75+GP63) -> FALSE | GQ118: =IF(GQ11,GQ75+GQ63) -> FALSE | GR118: =IF(GR11,GR75+GR63) -> FALSE | GS118: =IF(GS11,GS75+GS63) -> FALSE | GT118: =IF(GT11,GT75+GT63) -> FALSE | GU118: =IF(GU11,GU75+GU63) -> FALSE | GV118: =IF(GV11,GV75+GV63) -> FALSE | GW118: =IF(GW11,GW75+GW63) -> FALSE | GX118: =IF(GX11,GX75+GX63) -> FALSE | GY118: =IF(GY11,GY75+GY63) -> FALSE | GZ118: =IF(GZ11,GZ75+GZ63) -> FALSE | HA118: =IF(HA11,HA75+HA63) -> FALSE
D119: LLCR Forward | J119: =IF(J117>0.1,J116/J117) -> FALSE | K119: =IF(K117>0.1,K116/K117) -> FALSE | L119: FALSE | M119: FALSE | N119: FALSE | O119: FALSE | P119: FALSE | Q119: FALSE | R119: FALSE | S119: FALSE | T119: FALSE | U119: FALSE | V119: FALSE | W119: FALSE | X119: FALSE | Y119: FALSE | Z119: FALSE | AA119: FALSE | AB119: FALSE | AC119: FALSE | AD119: FALSE | AE119: FALSE | AF119: FALSE | AG119: FALSE | AH119: FALSE | AI119: FALSE | AJ119: FALSE | AK119: FALSE | AL119: FALSE | AM119: FALSE | AN119: FALSE | AO119: FALSE | AP119: FALSE | AQ119: FALSE | AR119: FALSE | AS119: FALSE | AT119: FALSE | AU119: FALSE | AV119: 1.76595431 | AW119: 1.78975339 | AX119: 1.813816196 | AY119: 1.838144289 | AZ119: 1.862739206 | BA119: 1.887602458 | BB119: 1.912735533 | BC119: 1.938139892 | BD119: 1.963816969 | BE119: 1.989768171 | BF119: 2.015994876 | BG119: 2.04249843 | BH119: 2.069280153 | BI119: 2.096341328 | BJ119: 2.123683211 | BK119: 2.151307021 | BL119: 2.179213944 | BM119: 2.207405131 | BN119: 2.235881697 | BO119: 2.26464472 | BP119: 2.293695239 | BQ119: 2.323034256 | BR119: 2.352662733 | BS119: 2.382581589 | BT119: 2.412791705 | BU119: 2.443293917 | BV119: 2.474089018 | BW119: =IF(BW117>0.1,BW116/BW117) -> 2.505177759 | BX119: 2.536560844 | BY119: 2.56823893 | BZ119: FALSE | CA119: FALSE | CB119: FALSE | CC119: FALSE | CD119: FALSE | CE119: FALSE | CF119: FALSE | CG119: FALSE | CH119: FALSE | CI119: FALSE | CJ119: FALSE | CK119: FALSE | CL119: FALSE | CM119: FALSE | CN119: FALSE | CO119: FALSE | CP119: FALSE | CQ119: FALSE | CR119: FALSE | CS119: FALSE | CT119: FALSE | CU119: FALSE | CV119: FALSE | CW119: FALSE | CX119: FALSE | CY119: FALSE | CZ119: FALSE | DA119: FALSE | DB119: FALSE | DC119: FALSE | DD119: FALSE | DE119: FALSE | DF119: FALSE | DG119: FALSE | DH119: FALSE | DI119: FALSE | DJ119: FALSE | DK119: FALSE | DL119: FALSE | DM119: FALSE | DN119: FALSE | DO119: FALSE | DP119: FALSE | DQ119: FALSE | DR119: FALSE | DS119: FALSE | DT119: FALSE | DU119: FALSE | DV119: FALSE | DW119: FALSE | DX119: FALSE | DY119: FALSE | DZ119: FALSE | EA119: FALSE | EB119: FALSE | EC119: FALSE | ED119: FALSE | EE119: FALSE | EF119: FALSE | EG119: FALSE | EH119: FALSE | EI119: =IF(EI117>0.1,EI116/EI117) -> FALSE | EJ119: FALSE | EK119: FALSE | EL119: FALSE | EM119: FALSE | EN119: FALSE | EO119: FALSE | EP119: FALSE | EQ119: FALSE | ER119: FALSE | ES119: FALSE | ET119: FALSE | EU119: FALSE | EV119: FALSE | EW119: FALSE | EX119: FALSE | EY119: FALSE | EZ119: FALSE | FA119: FALSE | FB119: FALSE | FC119: FALSE | FD119: FALSE | FE119: FALSE | FF119: FALSE | FG119: FALSE | FH119: FALSE | FI119: FALSE | FJ119: FALSE | FK119: FALSE | FL119: FALSE | FM119: FALSE | FN119: FALSE | FO119: FALSE | FP119: FALSE | FQ119: FALSE | FR119: FALSE | FS119: FALSE | FT119: FALSE | FU119: FALSE | FV119: FALSE | FW119: FALSE | FX119: FALSE | FY119: FALSE | FZ119: FALSE | GA119: FALSE | GB119: FALSE | GC119: FALSE | GD119: FALSE | GE119: FALSE | GF119: FALSE | GG119: FALSE | GH119: FALSE | GI119: FALSE | GJ119: FALSE | GK119: FALSE | GL119: FALSE | GM119: FALSE | GN119: FALSE | GO119: FALSE | GP119: FALSE | GQ119: FALSE | GR119: FALSE | GS119: FALSE | GT119: FALSE | GU119: =IF(GU117>0.1,GU116/GU117) -> FALSE | GV119: FALSE | GW119: FALSE | GX119: FALSE | GY119: FALSE | GZ119: FALSE | HA119: FALSE
A121: Going Forward with SUMPRODUCT
C122: Interst Rate Index | J122: =J100 -> 1 | K122: =K100 -> 1 | L122: 1 | M122: 1 | N122: 1 | O122: 1 | P122: 1 | Q122: 1 | R122: 1 | S122: 1 | T122: 1 | U122: 1 | V122: 1 | W122: 1 | X122: 1 | Y122: 1 | Z122: 1 | AA122: 1 | AB122: 1 | AC122: 1 | AD122: 1 | AE122: 1 | AF122: 1 | AG122: 1 | AH122: 1 | AI122: 1 | AJ122: 1 | AK122: 1 | AL122: 1 | AM122: 1 | AN122: 1 | AO122: 1 | AP122: 1 | AQ122: 1 | AR122: 1 | AS122: 1 | AT122: 1 | AU122: 1 | AV122: 1.02 | AW122: 1.0404 | AX122: 1.061208 | AY122: 1.08243216 | AZ122: 1.104080803 | BA122: 1.126162419 | BB122: 1.148685668 | BC122: 1.171659381 | BD122: 1.195092569 | BE122: 1.21899442 | BF122: 1.243374308 | BG122: 1.268241795 | BH122: 1.29360663 | BI122: 1.319478763 | BJ122: 1.345868338 | BK122: 1.372785705 | BL122: 1.400241419 | BM122: 1.428246248 | BN122: 1.456811173 | BO122: 1.485947396 | BP122: 1.515666344 | BQ122: 1.545979671 | BR122: 1.576899264 | BS122: 1.608437249 | BT122: 1.640605994 | BU122: 1.673418114 | BV122: 1.706886477 | BW122: =BW100 -> 1.741024206 | BX122: 1.77584469 | BY122: 1.811361584 | BZ122: 1.847588816 | CA122: 1.884540592 | CB122: 1.922231404 | CC122: 1.960676032 | CD122: 1.999889553 | CE122: 2.039887344 | CF122: 2.080685091 | CG122: 2.122298792 | CH122: 2.164744768 | CI122: 2.208039664 | CJ122: 2.208039664 | CK122: 2.208039664 | CL122: 2.208039664 | CM122: 2.208039664 | CN122: 2.208039664 | CO122: 2.208039664 | CP122: 2.208039664 | CQ122: 2.208039664 | CR122: 2.208039664 | CS122: 2.208039664 | CT122: 2.208039664 | CU122: 2.208039664 | CV122: 2.208039664 | CW122: 2.208039664 | CX122: 2.208039664 | CY122: 2.208039664 | CZ122: 2.208039664 | DA122: 2.208039664 | DB122: 2.208039664 | DC122: 2.208039664 | DD122: 2.208039664 | DE122: 2.208039664 | DF122: 2.208039664 | DG122: 2.208039664 | DH122: 2.208039664 | DI122: 2.208039664 | DJ122: 2.208039664 | DK122: 2.208039664 | DL122: 2.208039664 | DM122: 2.208039664 | DN122: 2.208039664 | DO122: 2.208039664 | DP122: 2.208039664 | DQ122: 2.208039664 | DR122: 2.208039664 | DS122: 2.208039664 | DT122: 2.208039664 | DU122: 2.208039664 | DV122: 2.208039664 | DW122: 2.208039664 | DX122: 2.208039664 | DY122: 2.208039664 | DZ122: 2.208039664 | EA122: 2.208039664 | EB122: 2.208039664 | EC122: 2.208039664 | ED122: 2.208039664 | EE122: 2.208039664 | EF122: 2.208039664 | EG122: 2.208039664 | EH122: 2.208039664 | EI122: =EI100 -> 2.208039664 | EJ122: 2.208039664 | EK122: 2.208039664 | EL122: 2.208039664 | EM122: 2.208039664 | EN122: 2.208039664 | EO122: 2.208039664 | EP122: 2.208039664 | EQ122: 2.208039664 | ER122: 2.208039664 | ES122: 2.208039664 | ET122: 2.208039664 | EU122: 2.208039664 | EV122: 2.208039664 | EW122: 2.208039664 | EX122: 2.208039664 | EY122: 2.208039664 | EZ122: 2.208039664 | FA122: 2.208039664 | FB122: 2.208039664 | FC122: 2.208039664 | FD122: 2.208039664 | FE122: 2.208039664 | FF122: 2.208039664 | FG122: 2.208039664 | FH122: 2.208039664 | FI122: 2.208039664 | FJ122: 2.208039664 | FK122: 2.208039664 | FL122: 2.208039664 | FM122: 2.208039664 | FN122: 2.208039664 | FO122: 2.208039664 | FP122: 2.208039664 | FQ122: 2.208039664 | FR122: 2.208039664 | FS122: 2.208039664 | FT122: 2.208039664 | FU122: 2.208039664 | FV122: 2.208039664 | FW122: 2.208039664 | FX122: 2.208039664 | FY122: 2.208039664 | FZ122: 2.208039664 | GA122: 2.208039664 | GB122: 2.208039664 | GC122: 2.208039664 | GD122: 2.208039664 | GE122: 2.208039664 | GF122: 2.208039664 | GG122: 2.208039664 | GH122: 2.208039664 | GI122: 2.208039664 | GJ122: 2.208039664 | GK122: 2.208039664 | GL122: 2.208039664 | GM122: 2.208039664 | GN122: 2.208039664 | GO122: 2.208039664 | GP122: 2.208039664 | GQ122: 2.208039664 | GR122: 2.208039664 | GS122: 2.208039664 | GT122: 2.208039664 | GU122: =GU100 -> 2.208039664 | GV122: 2.208039664 | GW122: 2.208039664 | GX122: 2.208039664 | GY122: 2.208039664 | GZ122: 2.208039664 | HA122: 2.208039664
C123: Forward Sumproduct | J123: =SUMPRODUCT(J95:$HA95/J122:$HA122) -> 12361.68017 | K123: =SUMPRODUCT(K95:$HA95/K122:$HA122) -> 12361.68017 | L123: =SUMPRODUCT(L95:$HA95/L122:$HA122) -> 12361.68017 | M123: =SUMPRODUCT(M95:$HA95/M122:$HA122) -> 12361.68017 | N123: =SUMPRODUCT(N95:$HA95/N122:$HA122) -> 12361.68017 | O123: =SUMPRODUCT(O95:$HA95/O122:$HA122) -> 12361.68017 | P123: =SUMPRODUCT(P95:$HA95/P122:$HA122) -> 12361.68017 | Q123: =SUMPRODUCT(Q95:$HA95/Q122:$HA122) -> 12361.68017 | R123: =SUMPRODUCT(R95:$HA95/R122:$HA122) -> 12361.68017 | S123: =SUMPRODUCT(S95:$HA95/S122:$HA122) -> 12361.68017 | T123: =SUMPRODUCT(T95:$HA95/T122:$HA122) -> 12361.68017 | U123: =SUMPRODUCT(U95:$HA95/U122:$HA122) -> 12361.68017 | V123: =SUMPRODUCT(V95:$HA95/V122:$HA122) -> 12361.68017 | W123: =SUMPRODUCT(W95:$HA95/W122:$HA122) -> 12361.68017 | X123: =SUMPRODUCT(X95:$HA95/X122:$HA122) -> 12361.68017 | Y123: =SUMPRODUCT(Y95:$HA95/Y122:$HA122) -> 12361.68017 | Z123: =SUMPRODUCT(Z95:$HA95/Z122:$HA122) -> 12361.68017 | AA123: =SUMPRODUCT(AA95:$HA95/AA122:$HA122) -> 12361.68017 | AB123: =SUMPRODUCT(AB95:$HA95/AB122:$HA122) -> 12361.68017 | AC123: =SUMPRODUCT(AC95:$HA95/AC122:$HA122) -> 12361.68017 | AD123: =SUMPRODUCT(AD95:$HA95/AD122:$HA122) -> 12361.68017 | AE123: =SUMPRODUCT(AE95:$HA95/AE122:$HA122) -> 12361.68017 | AF123: =SUMPRODUCT(AF95:$HA95/AF122:$HA122) -> 12361.68017 | AG123: =SUMPRODUCT(AG95:$HA95/AG122:$HA122) -> 12361.68017 | AH123: =SUMPRODUCT(AH95:$HA95/AH122:$HA122) -> 12361.68017 | AI123: =SUMPRODUCT(AI95:$HA95/AI122:$HA122) -> 12361.68017 | AJ123: =SUMPRODUCT(AJ95:$HA95/AJ122:$HA122) -> 12361.68017 | AK123: =SUMPRODUCT(AK95:$HA95/AK122:$HA122) -> 12361.68017 | AL123: =SUMPRODUCT(AL95:$HA95/AL122:$HA122) -> 12361.68017 | AM123: =SUMPRODUCT(AM95:$HA95/AM122:$HA122) -> 12361.68017 | AN123: =SUMPRODUCT(AN95:$HA95/AN122:$HA122) -> 12361.68017 | AO123: =SUMPRODUCT(AO95:$HA95/AO122:$HA122) -> 12361.68017 | AP123: =SUMPRODUCT(AP95:$HA95/AP122:$HA122) -> 12361.68017 | AQ123: =SUMPRODUCT(AQ95:$HA95/AQ122:$HA122) -> 12361.68017 | AR123: =SUMPRODUCT(AR95:$HA95/AR122:$HA122) -> 12361.68017 | AS123: =SUMPRODUCT(AS95:$HA95/AS122:$HA122) -> 12361.68017 | AT123: =SUMPRODUCT(AT95:$HA95/AT122:$HA122) -> 12361.68017 | AU123: =SUMPRODUCT(AU95:$HA95/AU122:$HA122) -> 12361.68017 | AV123: =SUMPRODUCT(AV95:$HA95/AV122:$HA122) -> 12361.68017 | AW123: =SUMPRODUCT(AW95:$HA95/AW122:$HA122) -> 11918.9099 | AX123: =SUMPRODUCT(AX95:$HA95/AX122:$HA122) -> 11478.35819 | AY123: =SUMPRODUCT(AY95:$HA95/AY122:$HA122) -> 11040.01392 | AZ123: =SUMPRODUCT(AZ95:$HA95/AZ122:$HA122) -> 10603.86603 | BA123: =SUMPRODUCT(BA95:$HA95/BA122:$HA122) -> 10169.90352 | BB123: =SUMPRODUCT(BB95:$HA95/BB122:$HA122) -> 9738.115436 | BC123: =SUMPRODUCT(BC95:$HA95/BC122:$HA122) -> 9308.490881 | BD123: =SUMPRODUCT(BD95:$HA95/BD122:$HA122) -> 8881.019016 | BE123: =SUMPRODUCT(BE95:$HA95/BE122:$HA122) -> 8455.689055 | BF123: =SUMPRODUCT(BF95:$HA95/BF122:$HA122) -> 8032.490265 | BG123: =SUMPRODUCT(BG95:$HA95/BG122:$HA122) -> 7611.411969 | BH123: =SUMPRODUCT(BH95:$HA95/BH122:$HA122) -> 7192.44354 | BI123: =SUMPRODUCT(BI95:$HA95/BI122:$HA122) -> 6775.574407 | BJ123: =SUMPRODUCT(BJ95:$HA95/BJ122:$HA122) -> 6360.794052 | BK123: =SUMPRODUCT(BK95:$HA95/BK122:$HA122) -> 5948.092008 | BL123: =SUMPRODUCT(BL95:$HA95/BL122:$HA122) -> 5537.457862 | BM123: =SUMPRODUCT(BM95:$HA95/BM122:$HA122) -> 5128.881251 | BN123: =SUMPRODUCT(BN95:$HA95/BN122:$HA122) -> 4722.351868 | BO123: =SUMPRODUCT(BO95:$HA95/BO122:$HA122) -> 4317.859453 | BP123: =SUMPRODUCT(BP95:$HA95/BP122:$HA122) -> 3915.3938 | BQ123: =SUMPRODUCT(BQ95:$HA95/BQ122:$HA122) -> 3514.944754 | BR123: =SUMPRODUCT(BR95:$HA95/BR122:$HA122) -> 3116.50221 | BS123: =SUMPRODUCT(BS95:$HA95/BS122:$HA122) -> 2720.056115 | BT123: =SUMPRODUCT(BT95:$HA95/BT122:$HA122) -> 2325.596465 | BU123: =SUMPRODUCT(BU95:$HA95/BU122:$HA122) -> 1933.113306 | BV123: =SUMPRODUCT(BV95:$HA95/BV122:$HA122) -> 1542.596736 | BW123: =SUMPRODUCT(BW95:$HA95/BW122:$HA122) -> 1154.0369 | BX123: =SUMPRODUCT(BX95:$HA95/BX122:$HA122) -> 767.4239945 | BY123: =SUMPRODUCT(BY95:$HA95/BY122:$HA122) -> 382.7482632 | BZ123: =SUMPRODUCT(BZ95:$HA95/BZ122:$HA122) -> 0 | CA123: =SUMPRODUCT(CA95:$HA95/CA122:$HA122) -> 0 | CB123: =SUMPRODUCT(CB95:$HA95/CB122:$HA122) -> 0 | CC123: =SUMPRODUCT(CC95:$HA95/CC122:$HA122) -> 0 | CD123: =SUMPRODUCT(CD95:$HA95/CD122:$HA122) -> 0 | CE123: =SUMPRODUCT(CE95:$HA95/CE122:$HA122) -> 0 | CF123: =SUMPRODUCT(CF95:$HA95/CF122:$HA122) -> 0 | CG123: =SUMPRODUCT(CG95:$HA95/CG122:$HA122) -> 0 | CH123: =SUMPRODUCT(CH95:$HA95/CH122:$HA122) -> 0 | CI123: =SUMPRODUCT(CI95:$HA95/CI122:$HA122) -> 0 | CJ123: =SUMPRODUCT(CJ95:$HA95/CJ122:$HA122) -> 0 | CK123: =SUMPRODUCT(CK95:$HA95/CK122:$HA122) -> 0 | CL123: =SUMPRODUCT(CL95:$HA95/CL122:$HA122) -> 0 | CM123: =SUMPRODUCT(CM95:$HA95/CM122:$HA122) -> 0 | CN123: =SUMPRODUCT(CN95:$HA95/CN122:$HA122) -> 0 | CO123: =SUMPRODUCT(CO95:$HA95/CO122:$HA122) -> 0 | CP123: =SUMPRODUCT(CP95:$HA95/CP122:$HA122) -> 0 | CQ123: =SUMPRODUCT(CQ95:$HA95/CQ122:$HA122) -> 0 | CR123: =SUMPRODUCT(CR95:$HA95/CR122:$HA122) -> 0 | CS123: =SUMPRODUCT(CS95:$HA95/CS122:$HA122) -> 0 | CT123: =SUMPRODUCT(CT95:$HA95/CT122:$HA122) -> 0 | CU123: =SUMPRODUCT(CU95:$HA95/CU122:$HA122) -> 0 | CV123: =SUMPRODUCT(CV95:$HA95/CV122:$HA122) -> 0 | CW123: =SUMPRODUCT(CW95:$HA95/CW122:$HA122) -> 0 | CX123: =SUMPRODUCT(CX95:$HA95/CX122:$HA122) -> 0 | CY123: =SUMPRODUCT(CY95:$HA95/CY122:$HA122) -> 0 | CZ123: =SUMPRODUCT(CZ95:$HA95/CZ122:$HA122) -> 0 | DA123: =SUMPRODUCT(DA95:$HA95/DA122:$HA122) -> 0 | DB123: =SUMPRODUCT(DB95:$HA95/DB122:$HA122) -> 0 | DC123: =SUMPRODUCT(DC95:$HA95/DC122:$HA122) -> 0 | DD123: =SUMPRODUCT(DD95:$HA95/DD122:$HA122) -> 0 | DE123: =SUMPRODUCT(DE95:$HA95/DE122:$HA122) -> 0 | DF123: =SUMPRODUCT(DF95:$HA95/DF122:$HA122) -> 0 | DG123: =SUMPRODUCT(DG95:$HA95/DG122:$HA122) -> 0 | DH123: =SUMPRODUCT(DH95:$HA95/DH122:$HA122) -> 0 | DI123: =SUMPRODUCT(DI95:$HA95/DI122:$HA122) -> 0 | DJ123: =SUMPRODUCT(DJ95:$HA95/DJ122:$HA122) -> 0 | DK123: =SUMPRODUCT(DK95:$HA95/DK122:$HA122) -> 0 | DL123: =SUMPRODUCT(DL95:$HA95/DL122:$HA122) -> 0 | DM123: =SUMPRODUCT(DM95:$HA95/DM122:$HA122) -> 0 | DN123: =SUMPRODUCT(DN95:$HA95/DN122:$HA122) -> 0 | DO123: =SUMPRODUCT(DO95:$HA95/DO122:$HA122) -> 0 | DP123: =SUMPRODUCT(DP95:$HA95/DP122:$HA122) -> 0 | DQ123: =SUMPRODUCT(DQ95:$HA95/DQ122:$HA122) -> 0 | DR123: =SUMPRODUCT(DR95:$HA95/DR122:$HA122) -> 0 | DS123: =SUMPRODUCT(DS95:$HA95/DS122:$HA122) -> 0 | DT123: =SUMPRODUCT(DT95:$HA95/DT122:$HA122) -> 0 | DU123: =SUMPRODUCT(DU95:$HA95/DU122:$HA122) -> 0 | DV123: =SUMPRODUCT(DV95:$HA95/DV122:$HA122) -> 0 | DW123: =SUMPRODUCT(DW95:$HA95/DW122:$HA122) -> 0 | DX123: =SUMPRODUCT(DX95:$HA95/DX122:$HA122) -> 0 | DY123: =SUMPRODUCT(DY95:$HA95/DY122:$HA122) -> 0 | DZ123: =SUMPRODUCT(DZ95:$HA95/DZ122:$HA122) -> 0 | EA123: =SUMPRODUCT(EA95:$HA95/EA122:$HA122) -> 0 | EB123: =SUMPRODUCT(EB95:$HA95/EB122:$HA122) -> 0 | EC123: =SUMPRODUCT(EC95:$HA95/EC122:$HA122) -> 0 | ED123: =SUMPRODUCT(ED95:$HA95/ED122:$HA122) -> 0 | EE123: =SUMPRODUCT(EE95:$HA95/EE122:$HA122) -> 0 | EF123: =SUMPRODUCT(EF95:$HA95/EF122:$HA122) -> 0 | EG123: =SUMPRODUCT(EG95:$HA95/EG122:$HA122) -> 0 | EH123: =SUMPRODUCT(EH95:$HA95/EH122:$HA122) -> 0 | EI123: =SUMPRODUCT(EI95:$HA95/EI122:$HA122) -> 0 | EJ123: =SUMPRODUCT(EJ95:$HA95/EJ122:$HA122) -> 0 | EK123: =SUMPRODUCT(EK95:$HA95/EK122:$HA122) -> 0 | EL123: =SUMPRODUCT(EL95:$HA95/EL122:$HA122) -> 0 | EM123: =SUMPRODUCT(EM95:$HA95/EM122:$HA122) -> 0 | EN123: =SUMPRODUCT(EN95:$HA95/EN122:$HA122) -> 0 | EO123: =SUMPRODUCT(EO95:$HA95/EO122:$HA122) -> 0 | EP123: =SUMPRODUCT(EP95:$HA95/EP122:$HA122) -> 0 | EQ123: =SUMPRODUCT(EQ95:$HA95/EQ122:$HA122) -> 0 | ER123: =SUMPRODUCT(ER95:$HA95/ER122:$HA122) -> 0 | ES123: =SUMPRODUCT(ES95:$HA95/ES122:$HA122) -> 0 | ET123: =SUMPRODUCT(ET95:$HA95/ET122:$HA122) -> 0 | EU123: =SUMPRODUCT(EU95:$HA95/EU122:$HA122) -> 0 | EV123: =SUMPRODUCT(EV95:$HA95/EV122:$HA122) -> 0 | EW123: =SUMPRODUCT(EW95:$HA95/EW122:$HA122) -> 0 | EX123: =SUMPRODUCT(EX95:$HA95/EX122:$HA122) -> 0 | EY123: =SUMPRODUCT(EY95:$HA95/EY122:$HA122) -> 0 | EZ123: =SUMPRODUCT(EZ95:$HA95/EZ122:$HA122) -> 0 | FA123: =SUMPRODUCT(FA95:$HA95/FA122:$HA122) -> 0 | FB123: =SUMPRODUCT(FB95:$HA95/FB122:$HA122) -> 0 | FC123: =SUMPRODUCT(FC95:$HA95/FC122:$HA122) -> 0 | FD123: =SUMPRODUCT(FD95:$HA95/FD122:$HA122) -> 0 | FE123: =SUMPRODUCT(FE95:$HA95/FE122:$HA122) -> 0 | FF123: =SUMPRODUCT(FF95:$HA95/FF122:$HA122) -> 0 | FG123: =SUMPRODUCT(FG95:$HA95/FG122:$HA122) -> 0 | FH123: =SUMPRODUCT(FH95:$HA95/FH122:$HA122) -> 0 | FI123: =SUMPRODUCT(FI95:$HA95/FI122:$HA122) -> 0 | FJ123: =SUMPRODUCT(FJ95:$HA95/FJ122:$HA122) -> 0 | FK123: =SUMPRODUCT(FK95:$HA95/FK122:$HA122) -> 0 | FL123: =SUMPRODUCT(FL95:$HA95/FL122:$HA122) -> 0 | FM123: =SUMPRODUCT(FM95:$HA95/FM122:$HA122) -> 0 | FN123: =SUMPRODUCT(FN95:$HA95/FN122:$HA122) -> 0 | FO123: =SUMPRODUCT(FO95:$HA95/FO122:$HA122) -> 0 | FP123: =SUMPRODUCT(FP95:$HA95/FP122:$HA122) -> 0 | FQ123: =SUMPRODUCT(FQ95:$HA95/FQ122:$HA122) -> 0 | FR123: =SUMPRODUCT(FR95:$HA95/FR122:$HA122) -> 0 | FS123: =SUMPRODUCT(FS95:$HA95/FS122:$HA122) -> 0 | FT123: =SUMPRODUCT(FT95:$HA95/FT122:$HA122) -> 0 | FU123: =SUMPRODUCT(FU95:$HA95/FU122:$HA122) -> 0 | FV123: =SUMPRODUCT(FV95:$HA95/FV122:$HA122) -> 0 | FW123: =SUMPRODUCT(FW95:$HA95/FW122:$HA122) -> 0 | FX123: =SUMPRODUCT(FX95:$HA95/FX122:$HA122) -> 0 | FY123: =SUMPRODUCT(FY95:$HA95/FY122:$HA122) -> 0 | FZ123: =SUMPRODUCT(FZ95:$HA95/FZ122:$HA122) -> 0 | GA123: =SUMPRODUCT(GA95:$HA95/GA122:$HA122) -> 0 | GB123: =SUMPRODUCT(GB95:$HA95/GB122:$HA122) -> 0 | GC123: =SUMPRODUCT(GC95:$HA95/GC122:$HA122) -> 0 | GD123: =SUMPRODUCT(GD95:$HA95/GD122:$HA122) -> 0 | GE123: =SUMPRODUCT(GE95:$HA95/GE122:$HA122) -> 0 | GF123: =SUMPRODUCT(GF95:$HA95/GF122:$HA122) -> 0 | GG123: =SUMPRODUCT(GG95:$HA95/GG122:$HA122) -> 0 | GH123: =SUMPRODUCT(GH95:$HA95/GH122:$HA122) -> 0 | GI123: =SUMPRODUCT(GI95:$HA95/GI122:$HA122) -> 0 | GJ123: =SUMPRODUCT(GJ95:$HA95/GJ122:$HA122) -> 0 | GK123: =SUMPRODUCT(GK95:$HA95/GK122:$HA122) -> 0 | GL123: =SUMPRODUCT(GL95:$HA95/GL122:$HA122) -> 0 | GM123: =SUMPRODUCT(GM95:$HA95/GM122:$HA122) -> 0 | GN123: =SUMPRODUCT(GN95:$HA95/GN122:$HA122) -> 0 | GO123: =SUMPRODUCT(GO95:$HA95/GO122:$HA122) -> 0 | GP123: =SUMPRODUCT(GP95:$HA95/GP122:$HA122) -> 0 | GQ123: =SUMPRODUCT(GQ95:$HA95/GQ122:$HA122) -> 0 | GR123: =SUMPRODUCT(GR95:$HA95/GR122:$HA122) -> 0 | GS123: =SUMPRODUCT(GS95:$HA95/GS122:$HA122) -> 0 | GT123: =SUMPRODUCT(GT95:$HA95/GT122:$HA122) -> 0 | GU123: =SUMPRODUCT(GU95:$HA95/GU122:$HA122) -> 0 | GV123: =SUMPRODUCT(GV95:$HA95/GV122:$HA122) -> 0 | GW123: =SUMPRODUCT(GW95:$HA95/GW122:$HA122) -> 0 | GX123: =SUMPRODUCT(GX95:$HA95/GX122:$HA122) -> 0 | GY123: =SUMPRODUCT(GY95:$HA95/GY122:$HA122) -> 0 | GZ123: =SUMPRODUCT(GZ95:$HA95/GZ122:$HA122) -> 0 | HA123: =SUMPRODUCT(HA95:$HA95/HA122:$HA122) -> 0
C124: Adjusted | J124: =J123*I122 -> 0 | K124: =K123*J122 -> 12361.68017 | L124: 12361.68017 | M124: 12361.68017 | N124: 12361.68017 | O124: 12361.68017 | P124: 12361.68017 | Q124: 12361.68017 | R124: 12361.68017 | S124: 12361.68017 | T124: 12361.68017 | U124: 12361.68017 | V124: 12361.68017 | W124: 12361.68017 | X124: 12361.68017 | Y124: 12361.68017 | Z124: 12361.68017 | AA124: 12361.68017 | AB124: 12361.68017 | AC124: 12361.68017 | AD124: 12361.68017 | AE124: 12361.68017 | AF124: 12361.68017 | AG124: 12361.68017 | AH124: 12361.68017 | AI124: 12361.68017 | AJ124: 12361.68017 | AK124: 12361.68017 | AL124: 12361.68017 | AM124: 12361.68017 | AN124: 12361.68017 | AO124: 12361.68017 | AP124: 12361.68017 | AQ124: 12361.68017 | AR124: 12361.68017 | AS124: 12361.68017 | AT124: 12361.68017 | AU124: 12361.68017 | AV124: 12361.68017 | AW124: 12157.2881 | AX124: 11942.08386 | AY124: 11715.75109 | AZ124: 11477.96561 | BA124: 11228.39525 | BB124: 10966.69964 | BC124: 10692.53006 | BD124: 10405.52924 | BE124: 10105.33115 | BF124: 9791.560812 | BG124: 9463.834092 | BH124: 9121.757502 | BI124: 8764.927978 | BJ124: 8392.932668 | BK124: 8005.348707 | BL124: 7601.742995 | BM124: 7181.671962 | BN124: 6744.681335 | BO124: 6290.305892 | BP124: 5818.069221 | BQ124: 5327.483464 | BR124: 4818.049061 | BS124: 4289.254486 | BT124: 3740.575981 | BU124: 3171.477278 | BV124: 2581.409322 | BW124: =BW123*BV122 -> 1969.809979 | BX124: 1336.103751 | BY124: 679.701471 | BZ124: 0 | CA124: 0 | CB124: 0 | CC124: 0 | CD124: 0 | CE124: 0 | CF124: 0 | CG124: 0 | CH124: 0 | CI124: 0 | CJ124: 0 | CK124: 0 | CL124: 0 | CM124: 0 | CN124: 0 | CO124: 0 | CP124: 0 | CQ124: 0 | CR124: 0 | CS124: 0 | CT124: 0 | CU124: 0 | CV124: 0 | CW124: 0 | CX124: 0 | CY124: 0 | CZ124: 0 | DA124: 0 | DB124: 0 | DC124: 0 | DD124: 0 | DE124: 0 | DF124: 0 | DG124: 0 | DH124: 0 | DI124: 0 | DJ124: 0 | DK124: 0 | DL124: 0 | DM124: 0 | DN124: 0 | DO124: 0 | DP124: 0 | DQ124: 0 | DR124: 0 | DS124: 0 | DT124: 0 | DU124: 0 | DV124: 0 | DW124: 0 | DX124: 0 | DY124: 0 | DZ124: 0 | EA124: 0 | EB124: 0 | EC124: 0 | ED124: 0 | EE124: 0 | EF124: 0 | EG124: 0 | EH124: 0 | EI124: =EI123*EH122 -> 0 | EJ124: 0 | EK124: 0 | EL124: 0 | EM124: 0 | EN124: 0 | EO124: 0 | EP124: 0 | EQ124: 0 | ER124: 0 | ES124: 0 | ET124: 0 | EU124: 0 | EV124: 0 | EW124: 0 | EX124: 0 | EY124: 0 | EZ124: 0 | FA124: 0 | FB124: 0 | FC124: 0 | FD124: 0 | FE124: 0 | FF124: 0 | FG124: 0 | FH124: 0 | FI124: 0 | FJ124: 0 | FK124: 0 | FL124: 0 | FM124: 0 | FN124: 0 | FO124: 0 | FP124: 0 | FQ124: 0 | FR124: 0 | FS124: 0 | FT124: 0 | FU124: 0 | FV124: 0 | FW124: 0 | FX124: 0 | FY124: 0 | FZ124: 0 | GA124: 0 | GB124: 0 | GC124: 0 | GD124: 0 | GE124: 0 | GF124: 0 | GG124: 0 | GH124: 0 | GI124: 0 | GJ124: 0 | GK124: 0 | GL124: 0 | GM124: 0 | GN124: 0 | GO124: 0 | GP124: 0 | GQ124: 0 | GR124: 0 | GS124: 0 | GT124: 0 | GU124: =GU123*GT122 -> 0 | GV124: 0 | GW124: 0 | GX124: 0 | GY124: 0 | GZ124: 0 | HA124: 0
C125: Debt Balance | J125: =J118 -> FALSE | K125: =K118 -> FALSE | L125: FALSE | M125: FALSE | N125: FALSE | O125: FALSE | P125: FALSE | Q125: FALSE | R125: FALSE | S125: FALSE | T125: FALSE | U125: FALSE | V125: FALSE | W125: FALSE | X125: FALSE | Y125: FALSE | Z125: FALSE | AA125: FALSE | AB125: FALSE | AC125: FALSE | AD125: FALSE | AE125: FALSE | AF125: FALSE | AG125: FALSE | AH125: FALSE | AI125: FALSE | AJ125: FALSE | AK125: FALSE | AL125: FALSE | AM125: FALSE | AN125: FALSE | AO125: FALSE | AP125: FALSE | AQ125: FALSE | AR125: FALSE | AS125: FALSE | AT125: FALSE | AU125: FALSE | AV125: 7000 | AW125: 6792.7169 | AX125: 6583.954804 | AY125: 6373.684133 | AZ125: 6161.874716 | BA125: 5948.495777 | BB125: 5733.515925 | BC125: 5516.903144 | BD125: 5298.624773 | BE125: 5078.647502 | BF125: 4856.937351 | BG125: 4633.459665 | BH125: 4408.179091 | BI125: 4181.059573 | BJ125: 3952.064331 | BK125: 3721.15585 | BL125: 3488.295867 | BM125: 3253.445351 | BN125: 3016.564491 | BO125: 2777.612681 | BP125: 2536.548501 | BQ125: 2293.329704 | BR125: 2047.913198 | BS125: 1800.255028 | BT125: 1550.310362 | BU125: 1298.033469 | BV125: 1043.377705 | BW125: =BW118 -> 786.2954921 | BX125: 526.7383017 | BY125: 264.6566342 | BZ125: 5.087485988e-12 | CA125: 4.831690603e-13 | CB125: 4.831690603e-13 | CC125: 4.831690603e-13 | CD125: 4.831690603e-13 | CE125: 4.831690603e-13 | CF125: 4.831690603e-13 | CG125: 4.831690603e-13 | CH125: 4.831690603e-13 | CI125: 4.831690603e-13 | CJ125: FALSE | CK125: FALSE | CL125: FALSE | CM125: FALSE | CN125: FALSE | CO125: FALSE | CP125: FALSE | CQ125: FALSE | CR125: FALSE | CS125: FALSE | CT125: FALSE | CU125: FALSE | CV125: FALSE | CW125: FALSE | CX125: FALSE | CY125: FALSE | CZ125: FALSE | DA125: FALSE | DB125: FALSE | DC125: FALSE | DD125: FALSE | DE125: FALSE | DF125: FALSE | DG125: FALSE | DH125: FALSE | DI125: FALSE | DJ125: FALSE | DK125: FALSE | DL125: FALSE | DM125: FALSE | DN125: FALSE | DO125: FALSE | DP125: FALSE | DQ125: FALSE | DR125: FALSE | DS125: FALSE | DT125: FALSE | DU125: FALSE | DV125: FALSE | DW125: FALSE | DX125: FALSE | DY125: FALSE | DZ125: FALSE | EA125: FALSE | EB125: FALSE | EC125: FALSE | ED125: FALSE | EE125: FALSE | EF125: FALSE | EG125: FALSE | EH125: FALSE | EI125: =EI118 -> FALSE | EJ125: FALSE | EK125: FALSE | EL125: FALSE | EM125: FALSE | EN125: FALSE | EO125: FALSE | EP125: FALSE | EQ125: FALSE | ER125: FALSE | ES125: FALSE | ET125: FALSE | EU125: FALSE | EV125: FALSE | EW125: FALSE | EX125: FALSE | EY125: FALSE | EZ125: FALSE | FA125: FALSE | FB125: FALSE | FC125: FALSE | FD125: FALSE | FE125: FALSE | FF125: FALSE | FG125: FALSE | FH125: FALSE | FI125: FALSE | FJ125: FALSE | FK125: FALSE | FL125: FALSE | FM125: FALSE | FN125: FALSE | FO125: FALSE | FP125: FALSE | FQ125: FALSE | FR125: FALSE | FS125: FALSE | FT125: FALSE | FU125: FALSE | FV125: FALSE | FW125: FALSE | FX125: FALSE | FY125: FALSE | FZ125: FALSE | GA125: FALSE | GB125: FALSE | GC125: FALSE | GD125: FALSE | GE125: FALSE | GF125: FALSE | GG125: FALSE | GH125: FALSE | GI125: FALSE | GJ125: FALSE | GK125: FALSE | GL125: FALSE | GM125: FALSE | GN125: FALSE | GO125: FALSE | GP125: FALSE | GQ125: FALSE | GR125: FALSE | GS125: FALSE | GT125: FALSE | GU125: =GU118 -> FALSE | GV125: FALSE | GW125: FALSE | GX125: FALSE | GY125: FALSE | GZ125: FALSE | HA125: FALSE
C126: Debt Balance from Sumprodcut | J126: =SUMPRODUCT(J96:$HA96/J122:$HA122)*I122 -> 0 | K126: =SUMPRODUCT(K96:$HA96/K122:$HA122)*J122 -> 7000 | L126: =SUMPRODUCT(L96:$HA96/L122:$HA122)*K122 -> 7000 | M126: =SUMPRODUCT(M96:$HA96/M122:$HA122)*L122 -> 7000 | N126: =SUMPRODUCT(N96:$HA96/N122:$HA122)*M122 -> 7000 | O126: =SUMPRODUCT(O96:$HA96/O122:$HA122)*N122 -> 7000 | P126: =SUMPRODUCT(P96:$HA96/P122:$HA122)*O122 -> 7000 | Q126: =SUMPRODUCT(Q96:$HA96/Q122:$HA122)*P122 -> 7000 | R126: =SUMPRODUCT(R96:$HA96/R122:$HA122)*Q122 -> 7000 | S126: =SUMPRODUCT(S96:$HA96/S122:$HA122)*R122 -> 7000 | T126: =SUMPRODUCT(T96:$HA96/T122:$HA122)*S122 -> 7000 | U126: =SUMPRODUCT(U96:$HA96/U122:$HA122)*T122 -> 7000 | V126: =SUMPRODUCT(V96:$HA96/V122:$HA122)*U122 -> 7000 | W126: =SUMPRODUCT(W96:$HA96/W122:$HA122)*V122 -> 7000 | X126: =SUMPRODUCT(X96:$HA96/X122:$HA122)*W122 -> 7000 | Y126: =SUMPRODUCT(Y96:$HA96/Y122:$HA122)*X122 -> 7000 | Z126: =SUMPRODUCT(Z96:$HA96/Z122:$HA122)*Y122 -> 7000 | AA126: =SUMPRODUCT(AA96:$HA96/AA122:$HA122)*Z122 -> 7000 | AB126: =SUMPRODUCT(AB96:$HA96/AB122:$HA122)*AA122 -> 7000 | AC126: =SUMPRODUCT(AC96:$HA96/AC122:$HA122)*AB122 -> 7000 | AD126: =SUMPRODUCT(AD96:$HA96/AD122:$HA122)*AC122 -> 7000 | AE126: =SUMPRODUCT(AE96:$HA96/AE122:$HA122)*AD122 -> 7000 | AF126: =SUMPRODUCT(AF96:$HA96/AF122:$HA122)*AE122 -> 7000 | AG126: =SUMPRODUCT(AG96:$HA96/AG122:$HA122)*AF122 -> 7000 | AH126: =SUMPRODUCT(AH96:$HA96/AH122:$HA122)*AG122 -> 7000 | AI126: =SUMPRODUCT(AI96:$HA96/AI122:$HA122)*AH122 -> 7000 | AJ126: =SUMPRODUCT(AJ96:$HA96/AJ122:$HA122)*AI122 -> 7000 | AK126: =SUMPRODUCT(AK96:$HA96/AK122:$HA122)*AJ122 -> 7000 | AL126: =SUMPRODUCT(AL96:$HA96/AL122:$HA122)*AK122 -> 7000 | AM126: =SUMPRODUCT(AM96:$HA96/AM122:$HA122)*AL122 -> 7000 | AN126: =SUMPRODUCT(AN96:$HA96/AN122:$HA122)*AM122 -> 7000 | AO126: =SUMPRODUCT(AO96:$HA96/AO122:$HA122)*AN122 -> 7000 | AP126: =SUMPRODUCT(AP96:$HA96/AP122:$HA122)*AO122 -> 7000 | AQ126: =SUMPRODUCT(AQ96:$HA96/AQ122:$HA122)*AP122 -> 7000 | AR126: =SUMPRODUCT(AR96:$HA96/AR122:$HA122)*AQ122 -> 7000 | AS126: =SUMPRODUCT(AS96:$HA96/AS122:$HA122)*AR122 -> 7000 | AT126: =SUMPRODUCT(AT96:$HA96/AT122:$HA122)*AS122 -> 7000 | AU126: =SUMPRODUCT(AU96:$HA96/AU122:$HA122)*AT122 -> 7000 | AV126: =SUMPRODUCT(AV96:$HA96/AV122:$HA122)*AU122 -> 7000 | AW126: =SUMPRODUCT(AW96:$HA96/AW122:$HA122)*AV122 -> 6792.7169 | AX126: =SUMPRODUCT(AX96:$HA96/AX122:$HA122)*AW122 -> 6583.954804 | AY126: =SUMPRODUCT(AY96:$HA96/AY122:$HA122)*AX122 -> 6373.684133 | AZ126: =SUMPRODUCT(AZ96:$HA96/AZ122:$HA122)*AY122 -> 6161.874716 | BA126: =SUMPRODUCT(BA96:$HA96/BA122:$HA122)*AZ122 -> 5948.495777 | BB126: =SUMPRODUCT(BB96:$HA96/BB122:$HA122)*BA122 -> 5733.515925 | BC126: =SUMPRODUCT(BC96:$HA96/BC122:$HA122)*BB122 -> 5516.903144 | BD126: =SUMPRODUCT(BD96:$HA96/BD122:$HA122)*BC122 -> 5298.624773 | BE126: =SUMPRODUCT(BE96:$HA96/BE122:$HA122)*BD122 -> 5078.647502 | BF126: =SUMPRODUCT(BF96:$HA96/BF122:$HA122)*BE122 -> 4856.937351 | BG126: =SUMPRODUCT(BG96:$HA96/BG122:$HA122)*BF122 -> 4633.459665 | BH126: =SUMPRODUCT(BH96:$HA96/BH122:$HA122)*BG122 -> 4408.179091 | BI126: =SUMPRODUCT(BI96:$HA96/BI122:$HA122)*BH122 -> 4181.059573 | BJ126: =SUMPRODUCT(BJ96:$HA96/BJ122:$HA122)*BI122 -> 3952.064331 | BK126: =SUMPRODUCT(BK96:$HA96/BK122:$HA122)*BJ122 -> 3721.15585 | BL126: =SUMPRODUCT(BL96:$HA96/BL122:$HA122)*BK122 -> 3488.295867 | BM126: =SUMPRODUCT(BM96:$HA96/BM122:$HA122)*BL122 -> 3253.445351 | BN126: =SUMPRODUCT(BN96:$HA96/BN122:$HA122)*BM122 -> 3016.564491 | BO126: =SUMPRODUCT(BO96:$HA96/BO122:$HA122)*BN122 -> 2777.612681 | BP126: =SUMPRODUCT(BP96:$HA96/BP122:$HA122)*BO122 -> 2536.548501 | BQ126: =SUMPRODUCT(BQ96:$HA96/BQ122:$HA122)*BP122 -> 2293.329704 | BR126: =SUMPRODUCT(BR96:$HA96/BR122:$HA122)*BQ122 -> 2047.913198 | BS126: =SUMPRODUCT(BS96:$HA96/BS122:$HA122)*BR122 -> 1800.255028 | BT126: =SUMPRODUCT(BT96:$HA96/BT122:$HA122)*BS122 -> 1550.310362 | BU126: =SUMPRODUCT(BU96:$HA96/BU122:$HA122)*BT122 -> 1298.033469 | BV126: =SUMPRODUCT(BV96:$HA96/BV122:$HA122)*BU122 -> 1043.377705 | BW126: =SUMPRODUCT(BW96:$HA96/BW122:$HA122)*BV122 -> 786.2954921 | BX126: =SUMPRODUCT(BX96:$HA96/BX122:$HA122)*BW122 -> 526.7383017 | BY126: =SUMPRODUCT(BY96:$HA96/BY122:$HA122)*BX122 -> 264.6566342 | BZ126: =SUMPRODUCT(BZ96:$HA96/BZ122:$HA122)*BY122 -> 4.691119071e-12 | CA126: =SUMPRODUCT(CA96:$HA96/CA122:$HA122)*BZ122 -> 7.887480479e-14 | CB126: =SUMPRODUCT(CB96:$HA96/CB122:$HA122)*CA122 -> 7.078891968e-14 | CC126: =SUMPRODUCT(CC96:$HA96/CC122:$HA122)*CB122 -> 6.254131687e-14 | CD126: =SUMPRODUCT(CD96:$HA96/CD122:$HA122)*CC122 -> 5.4128762e-14 | CE126: =SUMPRODUCT(CE96:$HA96/CE122:$HA122)*CD122 -> 4.554795603e-14 | CF126: =SUMPRODUCT(CF96:$HA96/CF122:$HA122)*CE122 -> 3.679553395e-14 | CG126: =SUMPRODUCT(CG96:$HA96/CG122:$HA122)*CF122 -> 2.786806342e-14 | CH126: =SUMPRODUCT(CH96:$HA96/CH122:$HA122)*CG122 -> 1.876204348e-14 | CI126: =SUMPRODUCT(CI96:$HA96/CI122:$HA122)*CH122 -> 9.473903143e-15 | CJ126: =SUMPRODUCT(CJ96:$HA96/CJ122:$HA122)*CI122 -> 0 | CK126: =SUMPRODUCT(CK96:$HA96/CK122:$HA122)*CJ122 -> 0 | CL126: =SUMPRODUCT(CL96:$HA96/CL122:$HA122)*CK122 -> 0 | CM126: =SUMPRODUCT(CM96:$HA96/CM122:$HA122)*CL122 -> 0 | CN126: =SUMPRODUCT(CN96:$HA96/CN122:$HA122)*CM122 -> 0 | CO126: =SUMPRODUCT(CO96:$HA96/CO122:$HA122)*CN122 -> 0 | CP126: =SUMPRODUCT(CP96:$HA96/CP122:$HA122)*CO122 -> 0 | CQ126: =SUMPRODUCT(CQ96:$HA96/CQ122:$HA122)*CP122 -> 0 | CR126: =SUMPRODUCT(CR96:$HA96/CR122:$HA122)*CQ122 -> 0 | CS126: =SUMPRODUCT(CS96:$HA96/CS122:$HA122)*CR122 -> 0 | CT126: =SUMPRODUCT(CT96:$HA96/CT122:$HA122)*CS122 -> 0 | CU126: =SUMPRODUCT(CU96:$HA96/CU122:$HA122)*CT122 -> 0 | CV126: =SUMPRODUCT(CV96:$HA96/CV122:$HA122)*CU122 -> 0 | CW126: =SUMPRODUCT(CW96:$HA96/CW122:$HA122)*CV122 -> 0 | CX126: =SUMPRODUCT(CX96:$HA96/CX122:$HA122)*CW122 -> 0 | CY126: =SUMPRODUCT(CY96:$HA96/CY122:$HA122)*CX122 -> 0 | CZ126: =SUMPRODUCT(CZ96:$HA96/CZ122:$HA122)*CY122 -> 0 | DA126: =SUMPRODUCT(DA96:$HA96/DA122:$HA122)*CZ122 -> 0 | DB126: =SUMPRODUCT(DB96:$HA96/DB122:$HA122)*DA122 -> 0 | DC126: =SUMPRODUCT(DC96:$HA96/DC122:$HA122)*DB122 -> 0 | DD126: =SUMPRODUCT(DD96:$HA96/DD122:$HA122)*DC122 -> 0 | DE126: =SUMPRODUCT(DE96:$HA96/DE122:$HA122)*DD122 -> 0 | DF126: =SUMPRODUCT(DF96:$HA96/DF122:$HA122)*DE122 -> 0 | DG126: =SUMPRODUCT(DG96:$HA96/DG122:$HA122)*DF122 -> 0 | DH126: =SUMPRODUCT(DH96:$HA96/DH122:$HA122)*DG122 -> 0 | DI126: =SUMPRODUCT(DI96:$HA96/DI122:$HA122)*DH122 -> 0 | DJ126: =SUMPRODUCT(DJ96:$HA96/DJ122:$HA122)*DI122 -> 0 | DK126: =SUMPRODUCT(DK96:$HA96/DK122:$HA122)*DJ122 -> 0 | DL126: =SUMPRODUCT(DL96:$HA96/DL122:$HA122)*DK122 -> 0 | DM126: =SUMPRODUCT(DM96:$HA96/DM122:$HA122)*DL122 -> 0 | DN126: =SUMPRODUCT(DN96:$HA96/DN122:$HA122)*DM122 -> 0 | DO126: =SUMPRODUCT(DO96:$HA96/DO122:$HA122)*DN122 -> 0 | DP126: =SUMPRODUCT(DP96:$HA96/DP122:$HA122)*DO122 -> 0 | DQ126: =SUMPRODUCT(DQ96:$HA96/DQ122:$HA122)*DP122 -> 0 | DR126: =SUMPRODUCT(DR96:$HA96/DR122:$HA122)*DQ122 -> 0 | DS126: =SUMPRODUCT(DS96:$HA96/DS122:$HA122)*DR122 -> 0 | DT126: =SUMPRODUCT(DT96:$HA96/DT122:$HA122)*DS122 -> 0 | DU126: =SUMPRODUCT(DU96:$HA96/DU122:$HA122)*DT122 -> 0 | DV126: =SUMPRODUCT(DV96:$HA96/DV122:$HA122)*DU122 -> 0 | DW126: =SUMPRODUCT(DW96:$HA96/DW122:$HA122)*DV122 -> 0 | DX126: =SUMPRODUCT(DX96:$HA96/DX122:$HA122)*DW122 -> 0 | DY126: =SUMPRODUCT(DY96:$HA96/DY122:$HA122)*DX122 -> 0 | DZ126: =SUMPRODUCT(DZ96:$HA96/DZ122:$HA122)*DY122 -> 0 | EA126: =SUMPRODUCT(EA96:$HA96/EA122:$HA122)*DZ122 -> 0 | EB126: =SUMPRODUCT(EB96:$HA96/EB122:$HA122)*EA122 -> 0 | EC126: =SUMPRODUCT(EC96:$HA96/EC122:$HA122)*EB122 -> 0 | ED126: =SUMPRODUCT(ED96:$HA96/ED122:$HA122)*EC122 -> 0 | EE126: =SUMPRODUCT(EE96:$HA96/EE122:$HA122)*ED122 -> 0 | EF126: =SUMPRODUCT(EF96:$HA96/EF122:$HA122)*EE122 -> 0 | EG126: =SUMPRODUCT(EG96:$HA96/EG122:$HA122)*EF122 -> 0 | EH126: =SUMPRODUCT(EH96:$HA96/EH122:$HA122)*EG122 -> 0 | EI126: =SUMPRODUCT(EI96:$HA96/EI122:$HA122)*EH122 -> 0 | EJ126: =SUMPRODUCT(EJ96:$HA96/EJ122:$HA122)*EI122 -> 0 | EK126: =SUMPRODUCT(EK96:$HA96/EK122:$HA122)*EJ122 -> 0 | EL126: =SUMPRODUCT(EL96:$HA96/EL122:$HA122)*EK122 -> 0 | EM126: =SUMPRODUCT(EM96:$HA96/EM122:$HA122)*EL122 -> 0 | EN126: =SUMPRODUCT(EN96:$HA96/EN122:$HA122)*EM122 -> 0 | EO126: =SUMPRODUCT(EO96:$HA96/EO122:$HA122)*EN122 -> 0 | EP126: =SUMPRODUCT(EP96:$HA96/EP122:$HA122)*EO122 -> 0 | EQ126: =SUMPRODUCT(EQ96:$HA96/EQ122:$HA122)*EP122 -> 0 | ER126: =SUMPRODUCT(ER96:$HA96/ER122:$HA122)*EQ122 -> 0 | ES126: =SUMPRODUCT(ES96:$HA96/ES122:$HA122)*ER122 -> 0 | ET126: =SUMPRODUCT(ET96:$HA96/ET122:$HA122)*ES122 -> 0 | EU126: =SUMPRODUCT(EU96:$HA96/EU122:$HA122)*ET122 -> 0 | EV126: =SUMPRODUCT(EV96:$HA96/EV122:$HA122)*EU122 -> 0 | EW126: =SUMPRODUCT(EW96:$HA96/EW122:$HA122)*EV122 -> 0 | EX126: =SUMPRODUCT(EX96:$HA96/EX122:$HA122)*EW122 -> 0 | EY126: =SUMPRODUCT(EY96:$HA96/EY122:$HA122)*EX122 -> 0 | EZ126: =SUMPRODUCT(EZ96:$HA96/EZ122:$HA122)*EY122 -> 0 | FA126: =SUMPRODUCT(FA96:$HA96/FA122:$HA122)*EZ122 -> 0 | FB126: =SUMPRODUCT(FB96:$HA96/FB122:$HA122)*FA122 -> 0 | FC126: =SUMPRODUCT(FC96:$HA96/FC122:$HA122)*FB122 -> 0 | FD126: =SUMPRODUCT(FD96:$HA96/FD122:$HA122)*FC122 -> 0 | FE126: =SUMPRODUCT(FE96:$HA96/FE122:$HA122)*FD122 -> 0 | FF126: =SUMPRODUCT(FF96:$HA96/FF122:$HA122)*FE122 -> 0 | FG126: =SUMPRODUCT(FG96:$HA96/FG122:$HA122)*FF122 -> 0 | FH126: =SUMPRODUCT(FH96:$HA96/FH122:$HA122)*FG122 -> 0 | FI126: =SUMPRODUCT(FI96:$HA96/FI122:$HA122)*FH122 -> 0 | FJ126: =SUMPRODUCT(FJ96:$HA96/FJ122:$HA122)*FI122 -> 0 | FK126: =SUMPRODUCT(FK96:$HA96/FK122:$HA122)*FJ122 -> 0 | FL126: =SUMPRODUCT(FL96:$HA96/FL122:$HA122)*FK122 -> 0 | FM126: =SUMPRODUCT(FM96:$HA96/FM122:$HA122)*FL122 -> 0 | FN126: =SUMPRODUCT(FN96:$HA96/FN122:$HA122)*FM122 -> 0 | FO126: =SUMPRODUCT(FO96:$HA96/FO122:$HA122)*FN122 -> 0 | FP126: =SUMPRODUCT(FP96:$HA96/FP122:$HA122)*FO122 -> 0 | FQ126: =SUMPRODUCT(FQ96:$HA96/FQ122:$HA122)*FP122 -> 0 | FR126: =SUMPRODUCT(FR96:$HA96/FR122:$HA122)*FQ122 -> 0 | FS126: =SUMPRODUCT(FS96:$HA96/FS122:$HA122)*FR122 -> 0 | FT126: =SUMPRODUCT(FT96:$HA96/FT122:$HA122)*FS122 -> 0 | FU126: =SUMPRODUCT(FU96:$HA96/FU122:$HA122)*FT122 -> 0 | FV126: =SUMPRODUCT(FV96:$HA96/FV122:$HA122)*FU122 -> 0 | FW126: =SUMPRODUCT(FW96:$HA96/FW122:$HA122)*FV122 -> 0 | FX126: =SUMPRODUCT(FX96:$HA96/FX122:$HA122)*FW122 -> 0 | FY126: =SUMPRODUCT(FY96:$HA96/FY122:$HA122)*FX122 -> 0 | FZ126: =SUMPRODUCT(FZ96:$HA96/FZ122:$HA122)*FY122 -> 0 | GA126: =SUMPRODUCT(GA96:$HA96/GA122:$HA122)*FZ122 -> 0 | GB126: =SUMPRODUCT(GB96:$HA96/GB122:$HA122)*GA122 -> 0 | GC126: =SUMPRODUCT(GC96:$HA96/GC122:$HA122)*GB122 -> 0 | GD126: =SUMPRODUCT(GD96:$HA96/GD122:$HA122)*GC122 -> 0 | GE126: =SUMPRODUCT(GE96:$HA96/GE122:$HA122)*GD122 -> 0 | GF126: =SUMPRODUCT(GF96:$HA96/GF122:$HA122)*GE122 -> 0 | GG126: =SUMPRODUCT(GG96:$HA96/GG122:$HA122)*GF122 -> 0 | GH126: =SUMPRODUCT(GH96:$HA96/GH122:$HA122)*GG122 -> 0 | GI126: =SUMPRODUCT(GI96:$HA96/GI122:$HA122)*GH122 -> 0 | GJ126: =SUMPRODUCT(GJ96:$HA96/GJ122:$HA122)*GI122 -> 0 | GK126: =SUMPRODUCT(GK96:$HA96/GK122:$HA122)*GJ122 -> 0 | GL126: =SUMPRODUCT(GL96:$HA96/GL122:$HA122)*GK122 -> 0 | GM126: =SUMPRODUCT(GM96:$HA96/GM122:$HA122)*GL122 -> 0 | GN126: =SUMPRODUCT(GN96:$HA96/GN122:$HA122)*GM122 -> 0 | GO126: =SUMPRODUCT(GO96:$HA96/GO122:$HA122)*GN122 -> 0 | GP126: =SUMPRODUCT(GP96:$HA96/GP122:$HA122)*GO122 -> 0 | GQ126: =SUMPRODUCT(GQ96:$HA96/GQ122:$HA122)*GP122 -> 0 | GR126: =SUMPRODUCT(GR96:$HA96/GR122:$HA122)*GQ122 -> 0 | GS126: =SUMPRODUCT(GS96:$HA96/GS122:$HA122)*GR122 -> 0 | GT126: =SUMPRODUCT(GT96:$HA96/GT122:$HA122)*GS122 -> 0 | GU126: =SUMPRODUCT(GU96:$HA96/GU122:$HA122)*GT122 -> 0 | GV126: =SUMPRODUCT(GV96:$HA96/GV122:$HA122)*GU122 -> 0 | GW126: =SUMPRODUCT(GW96:$HA96/GW122:$HA122)*GV122 -> 0 | GX126: =SUMPRODUCT(GX96:$HA96/GX122:$HA122)*GW122 -> 0 | GY126: =SUMPRODUCT(GY96:$HA96/GY122:$HA122)*GX122 -> 0 | GZ126: =SUMPRODUCT(GZ96:$HA96/GZ122:$HA122)*GY122 -> 0 | HA126: =SUMPRODUCT(HA96:$HA96/HA122:$HA122)*GZ122 -> 0
